Workbook

Sheet Proposta-TCE (hidden)
A1: PROPOSTA
A2: Modalidade | E2: N° | G2: Ano
A3: Descrição do Objeto | C3: ='Orçamento-TCE'!C3:K3 -> Reforma dos setores 2 e 4 do Ginásio Municipal Osmar Fortes Barcellos (Ginásio Tesourinha)
A4: Licitante | G4: CNPJ*
A5: Tipo de Objeto
A6: Preço Total Proposto | C6: =SUM(H12:H257) -> 2045309.43
A7: Atenção! Se existirem itens sem preço proposto, deixe a célula do preço unitário proposto em branco.
A8: Para incluir itens da proposta, selecione as células A13 a K13 e arraste para baixo, de acordo com o número de itens cadastrado na planilha Orçamento-base.
A9: *Campos de preenchimento obrigatório | F9: **Obrigatório só para Obras e Serviços de Engenharia
A10: Nº do lote | B10: Nº Ordem | C10: Nº Item | D10: Descrição do item | E10: Proposta | O10: Equipamento | Q10: Mão de Obra | S10: Material
E11: Qtd. | F11: Unid. | G11: Preço unitário (R$)* | H11: Preço Total (R$) | I11: % BDI** | J11: % Encargos Sociais** | K11: Percentual de Desconto | L11: Pr. Unit. Material | M11: Pr. Unit. Mão de obra | N11: Pr. Unit. Equipamento | O11: Preço total | P11: Preço unit. | Q11: Preço total | R11: Preço unit. | S11: Preço total | T11: Preço unit.
A12: 1 | B12: ='Orçamento-TCE'!B12 -> 1 | C12: ='Orçamento-TCE'!C12 -> 1.1 | D12: ='Orçamento-TCE'!G12 -> PLACA DE OBRA | E12: ='Orçamento-TCE'!H12 -> 2.88 | F12: ='Orçamento-TCE'!I12 -> M2 | G12: =Orçamento!H10 -> 390.92 | H12: =Orçamento!I10 -> 1125.85 | I12: =Orçamento!G10 -> 0.2216 | J12: 1.1122 | L12: =G12*0.7 -> 273.644 | M12: =G12-L12 -> 117.276 | N12: =P12 ->  | O12: =IF(#REF!="Tabela Não Desonerada",VLOOKUP($C12,#REF!,13,FALSE),VLOOKUP($C12,#REF!,13,FALSE)) ->  | P12: =O12/E12 ->  | Q12: =IF(#REF!="Tabela Não Desonerada",VLOOKUP($C12,#REF!,14,FALSE),VLOOKUP($C12,#REF!,14,FALSE)) ->  | R12: =Q12/E12 ->  | S12: =IF(#REF!="Tabela Não Desonerada",VLOOKUP($C12,#REF!,15,FALSE),VLOOKUP($C12,#REF!,15,FALSE)) ->  | T12: =S12/E12 -> 
A13: 1 | B13: ='Orçamento-TCE'!B13 -> 2 | C13: ='Orçamento-TCE'!C13 -> 1.2 | D13: ='Orçamento-TCE'!G13 -> ANDAIME TUBULAR METÁLICO | E13: ='Orçamento-TCE'!H13 -> 8 | F13: ='Orçamento-TCE'!I13 -> MÊS | G13: =Orçamento!H11 -> 789.78 | H13: =Orçamento!I11 -> 6318.24 | I13: =Orçamento!G11 -> 0.2216 | J13: 1.1122 | L13: =G13*0.7 -> 552.846 | M13: =G13-L13 -> 236.934 | N13: =P13 ->  | O13: =IF(#REF!="Tabela Não Desonerada",VLOOKUP($C13,#REF!,13,FALSE),VLOOKUP($C13,#REF!,13,FALSE)) ->  | P13: =O13/E13 ->  | Q13: =IF(#REF!="Tabela Não Desonerada",VLOOKUP($C13,#REF!,14,FALSE),VLOOKUP($C13,#REF!,14,FALSE)) ->  | R13: =Q13/E13 ->  | S13: =IF(#REF!="Tabela Não Desonerada",VLOOKUP($C13,#REF!,15,FALSE),VLOOKUP($C13,#REF!,15,FALSE)) ->  | T13: =S13/E13 -> 
A14: 1 | B14: ='Orçamento-TCE'!B14 -> 3 | C14: ='Orçamento-TCE'!C14 -> 1.3 | D14: ='Orçamento-TCE'!G14 -> EXTINTOR DE INCÊNDIO PORTÁTIL COM CARGA DE PQS DE 4 KG, CLASSE BC - FORNECIMENTO E INSTALAÇÃO. AF_10/2020_P | E14: ='Orçamento-TCE'!H14 -> 2 | F14: ='Orçamento-TCE'!I14 -> UN | G14: =Orçamento!H12 -> 282.97 | H14: =Orçamento!I12 -> 565.94 | I14: =Orçamento!G12 -> 0.2216 | J14: 1.1122 | L14: 198.079 | M14: 84.891 | O14: =IF(#REF!="Tabela Não Desonerada",VLOOKUP($C14,#REF!,13,FALSE),VLOOKUP($C14,#REF!,13,FALSE)) ->  | Q14: =IF(#REF!="Tabela Não Desonerada",VLOOKUP($C14,#REF!,14,FALSE),VLOOKUP($C14,#REF!,14,FALSE)) ->  | S14: =IF(#REF!="Tabela Não Desonerada",VLOOKUP($C14,#REF!,15,FALSE),VLOOKUP($C14,#REF!,15,FALSE)) -> 
A15: 1 | B15: ='Orçamento-TCE'!B15 -> 4 | C15: ='Orçamento-TCE'!C15 -> 1.4 | D15: ='Orçamento-TCE'!G15 -> EXTINTOR DE INCÊNDIO PORTÁTIL COM CARGA DE ÁGUA PRESSURIZADA DE 10 L, CLASSE A - FORNECIMENTO E INSTALAÇÃO. AF_10/2020_P | E15: ='Orçamento-TCE'!H15 -> 2 | F15: ='Orçamento-TCE'!I15 -> UN | G15: =Orçamento!H13 -> 291.82 | H15: =Orçamento!I13 -> 583.64 | I15: =Orçamento!G13 -> 0.2216 | J15: 1.1122 | L15: 204.274 | M15: 87.546 | O15: =IF(#REF!="Tabela Não Desonerada",VLOOKUP($C15,#REF!,13,FALSE),VLOOKUP($C15,#REF!,13,FALSE)) ->  | Q15: =IF(#REF!="Tabela Não Desonerada",VLOOKUP($C15,#REF!,14,FALSE),VLOOKUP($C15,#REF!,14,FALSE)) ->  | S15: =IF(#REF!="Tabela Não Desonerada",VLOOKUP($C15,#REF!,15,FALSE),VLOOKUP($C15,#REF!,15,FALSE)) -> 
A16: 1 | B16: ='Orçamento-TCE'!B16 -> 5 | C16: ='Orçamento-TCE'!C16 -> 2.1 | D16: ='Orçamento-TCE'!G16 -> ADMINISTRAÇÃO LOCAL | E16: ='Orçamento-TCE'!H16 -> 1 | F16: ='Orçamento-TCE'!I16 -> UN | G16: =Orçamento!H15 -> 116639.28 | H16: =Orçamento!I15 -> 116639.28 | I16: =Orçamento!G15 -> 0.2216 | J16: 1.1122 | L16: 81647.496 | M16: 34991.784 | O16: =IF(#REF!="Tabela Não Desonerada",VLOOKUP($C16,#REF!,13,FALSE),VLOOKUP($C16,#REF!,13,FALSE)) ->  | Q16: =IF(#REF!="Tabela Não Desonerada",VLOOKUP($C16,#REF!,14,FALSE),VLOOKUP($C16,#REF!,14,FALSE)) ->  | S16: =IF(#REF!="Tabela Não Desonerada",VLOOKUP($C16,#REF!,15,FALSE),VLOOKUP($C16,#REF!,15,FALSE)) -> 
A17: 1 | B17: ='Orçamento-TCE'!B17 -> 6 | C17: ='Orçamento-TCE'!C17 -> 3.1 | D17: ='Orçamento-TCE'!G17 -> REMOÇÃO DE FORROS DE DRYWALL, PVC E FIBROMINERAL, DE FORMA MANUAL, SEM REAPROVEITAMENTO. AF_12/2017 | E17: ='Orçamento-TCE'!H17 -> 317.29 | F17: ='Orçamento-TCE'!I17 -> M2 | G17: =Orçamento!H17 -> 1.84 | H17: =Orçamento!I17 -> 583.81 | I17: =Orçamento!G17 -> 0.2216 | J17: 1.1122 | L17: 1.288 | M17: 0.552 | O17: =IF(#REF!="Tabela Não Desonerada",VLOOKUP($C17,#REF!,13,FALSE),VLOOKUP($C17,#REF!,13,FALSE)) ->  | Q17: =IF(#REF!="Tabela Não Desonerada",VLOOKUP($C17,#REF!,14,FALSE),VLOOKUP($C17,#REF!,14,FALSE)) ->  | S17: =IF(#REF!="Tabela Não Desonerada",VLOOKUP($C17,#REF!,15,FALSE),VLOOKUP($C17,#REF!,15,FALSE)) -> 
A18: 1 | B18: ='Orçamento-TCE'!B18 -> 7 | C18: ='Orçamento-TCE'!C18 -> 3.2 | D18: ='Orçamento-TCE'!G18 -> DEMOLIÇÃO DE LAJES, DE FORMA MECANIZADA COM MARTELETE, SEM REAPROVEITAMENTO. AF_12/2017 | E18: ='Orçamento-TCE'!H18 -> 7.53 | F18: ='Orçamento-TCE'!I18 -> M3 | G18: =Orçamento!H18 -> 149.19 | H18: =Orçamento!I18 -> 1123.4 | I18: =Orçamento!G18 -> 0.2216 | J18: 1.1122 | L18: 104.433 | M18: 44.757 | O18: =IF(#REF!="Tabela Não Desonerada",VLOOKUP($C18,#REF!,13,FALSE),VLOOKUP($C18,#REF!,13,FALSE)) ->  | Q18: =IF(#REF!="Tabela Não Desonerada",VLOOKUP($C18,#REF!,14,FALSE),VLOOKUP($C18,#REF!,14,FALSE)) ->  | S18: =IF(#REF!="Tabela Não Desonerada",VLOOKUP($C18,#REF!,15,FALSE),VLOOKUP($C18,#REF!,15,FALSE)) -> 
A19: 1 | B19: ='Orçamento-TCE'!B19 -> 8 | C19: ='Orçamento-TCE'!C19 -> 3.3 | D19: ='Orçamento-TCE'!G19 -> REMOÇÃO DE TRAMA METÁLICA OU DE MADEIRA PARA FORRO, DE FORMA MANUAL SEM REAPROVEITAMENTO. AF_12/2017 | E19: ='Orçamento-TCE'!H19 -> 189.14 | F19: ='Orçamento-TCE'!I19 -> M2 | G19: =Orçamento!H19 -> 3.31 | H19: =Orçamento!I19 -> 626.05 | I19: =Orçamento!G19 -> 0.2216 | J19: 1.1122 | L19: 2.317 | M19: 0.993 | O19: =IF(#REF!="Tabela Não Desonerada",VLOOKUP($C19,#REF!,13,FALSE),VLOOKUP($C19,#REF!,13,FALSE)) ->  | Q19: =IF(#REF!="Tabela Não Desonerada",VLOOKUP($C19,#REF!,14,FALSE),VLOOKUP($C19,#REF!,14,FALSE)) ->  | S19: =IF(#REF!="Tabela Não Desonerada",VLOOKUP($C19,#REF!,15,FALSE),VLOOKUP($C19,#REF!,15,FALSE)) -> 
A20: 1 | B20: ='Orçamento-TCE'!B20 -> 9 | C20: ='Orçamento-TCE'!C20 -> 3.4 | D20: ='Orçamento-TCE'!G20 -> DEMOLIÇÃO DE REVESTIMENTO CERÂMICO, DE FORMA MANUAL, SEM REAPROVEITAMENTO. AF_12/2017 | E20: ='Orçamento-TCE'!H20 -> 301.22 | F20: ='Orçamento-TCE'!I20 -> M2 | G20: =Orçamento!H20 -> 23.63 | H20: =Orçamento!I20 -> 7117.83 | I20: =Orçamento!G20 -> 0.2216 | J20: 1.1122 | L20: 16.541 | M20: 7.089 | O20: =IF(#REF!="Tabela Não Desonerada",VLOOKUP($C20,#REF!,13,FALSE),VLOOKUP($C20,#REF!,13,FALSE)) ->  | Q20: =IF(#REF!="Tabela Não Desonerada",VLOOKUP($C20,#REF!,14,FALSE),VLOOKUP($C20,#REF!,14,FALSE)) ->  | S20: =IF(#REF!="Tabela Não Desonerada",VLOOKUP($C20,#REF!,15,FALSE),VLOOKUP($C20,#REF!,15,FALSE)) -> 
A21: 1 | B21: ='Orçamento-TCE'!B21 -> 10 | C21: ='Orçamento-TCE'!C21 -> 3.5 | D21: ='Orçamento-TCE'!G21 -> DEMOLIÇÃO DE REVESTIMENTO CERÂMICO, DE FORMA MECANIZADA COM MARTELETE, SEM REAPROVEITAMENTO. AF_12/2017 | E21: ='Orçamento-TCE'!H21 -> 1053.16 | F21: ='Orçamento-TCE'!I21 -> M2 | G21: =Orçamento!H21 -> 13.71 | H21: =Orçamento!I21 -> 14438.82 | I21: =Orçamento!G21 -> 0.2216 | J21: 1.1122 | L21: 9.597 | M21: 4.113 | O21: =IF(#REF!="Tabela Não Desonerada",VLOOKUP($C21,#REF!,13,FALSE),VLOOKUP($C21,#REF!,13,FALSE)) ->  | Q21: =IF(#REF!="Tabela Não Desonerada",VLOOKUP($C21,#REF!,14,FALSE),VLOOKUP($C21,#REF!,14,FALSE)) ->  | S21: =IF(#REF!="Tabela Não Desonerada",VLOOKUP($C21,#REF!,15,FALSE),VLOOKUP($C21,#REF!,15,FALSE)) -> 
A22: 1 | B22: ='Orçamento-TCE'!B22 -> 11 | C22: ='Orçamento-TCE'!C22 -> 3.6 | D22: ='Orçamento-TCE'!G22 -> DEMOLIÇÃO DE ALVENARIA DE BLOCO FURADO, DE FORMA MANUAL, COM REAPROVEITAMENTO. AF_12/2017 | E22: ='Orçamento-TCE'!H22 -> 66.85 | F22: ='Orçamento-TCE'!I22 -> M3 | G22: =Orçamento!H22 -> 122.61 | H22: =Orçamento!I22 -> 8196.48 | I22: =Orçamento!G22 -> 0.2216 | J22: 1.1122 | L22: 85.827 | M22: 36.783 | O22: =IF(#REF!="Tabela Não Desonerada",VLOOKUP($C22,#REF!,13,FALSE),VLOOKUP($C22,#REF!,13,FALSE)) ->  | Q22: =IF(#REF!="Tabela Não Desonerada",VLOOKUP($C22,#REF!,14,FALSE),VLOOKUP($C22,#REF!,14,FALSE)) ->  | S22: =IF(#REF!="Tabela Não Desonerada",VLOOKUP($C22,#REF!,15,FALSE),VLOOKUP($C22,#REF!,15,FALSE)) -> 
A23: 1 | B23: ='Orçamento-TCE'!B23 -> 12 | C23: ='Orçamento-TCE'!C23 -> 3.7 | D23: ='Orçamento-TCE'!G23 -> REMOÇÃO DE CHAPAS E PERFIS DE DRYWALL, DE FORMA MANUAL, SEM REAPROVEITAMENTO. AF_12/2017 | E23: ='Orçamento-TCE'!H23 -> 23.23 | F23: ='Orçamento-TCE'!I23 -> M2 | G23: =Orçamento!H23 -> 8.54 | H23: =Orçamento!I23 -> 198.38 | I23: =Orçamento!G23 -> 0.2216 | J23: 1.1122 | L23: 5.978 | M23: 2.562 | O23: =IF(#REF!="Tabela Não Desonerada",VLOOKUP($C23,#REF!,13,FALSE),VLOOKUP($C23,#REF!,13,FALSE)) ->  | Q23: =IF(#REF!="Tabela Não Desonerada",VLOOKUP($C23,#REF!,14,FALSE),VLOOKUP($C23,#REF!,14,FALSE)) ->  | S23: =IF(#REF!="Tabela Não Desonerada",VLOOKUP($C23,#REF!,15,FALSE),VLOOKUP($C23,#REF!,15,FALSE)) -> 
A24: 1 | B24: ='Orçamento-TCE'!B24 -> 13 | C24: ='Orçamento-TCE'!C24 -> 3.8 | D24: ='Orçamento-TCE'!G24 -> REMOÇÃO DE PORTAS, DE FORMA MANUAL, SEM REAPROVEITAMENTO. AF_12/2017 | E24: ='Orçamento-TCE'!H24 -> 84.21 | F24: ='Orçamento-TCE'!I24 -> m2 | G24: =Orçamento!H24 -> 9.59 | H24: =Orçamento!I24 -> 807.57 | I24: =Orçamento!G24 -> 0.2216 | J24: 1.1122 | L24: 6.713 | M24: 2.877 | O24: =IF(#REF!="Tabela Não Desonerada",VLOOKUP($C24,#REF!,13,FALSE),VLOOKUP($C24,#REF!,13,FALSE)) ->  | Q24: =IF(#REF!="Tabela Não Desonerada",VLOOKUP($C24,#REF!,14,FALSE),VLOOKUP($C24,#REF!,14,FALSE)) ->  | S24: =IF(#REF!="Tabela Não Desonerada",VLOOKUP($C24,#REF!,15,FALSE),VLOOKUP($C24,#REF!,15,FALSE)) -> 
A25: 1 | B25: ='Orçamento-TCE'!B25 -> 14 | C25: ='Orçamento-TCE'!C25 -> 3.9 | D25: ='Orçamento-TCE'!G25 -> REMOÇÃO DE JANELAS, DE FORMA MANUAL, SEM REAPROVEIAMENTO. AF_12/2017 | E25: ='Orçamento-TCE'!H25 -> 116.42 | F25: ='Orçamento-TCE'!I25 -> M2 | G25: =Orçamento!H25 -> 36.16 | H25: =Orçamento!I25 -> 4209.75 | I25: =Orçamento!G25 -> 0.2216 | J25: 1.1122 | L25: 25.312 | M25: 10.848 | O25: =IF(#REF!="Tabela Não Desonerada",VLOOKUP($C25,#REF!,13,FALSE),VLOOKUP($C25,#REF!,13,FALSE)) ->  | Q25: =IF(#REF!="Tabela Não Desonerada",VLOOKUP($C25,#REF!,14,FALSE),VLOOKUP($C25,#REF!,14,FALSE)) ->  | S25: =IF(#REF!="Tabela Não Desonerada",VLOOKUP($C25,#REF!,15,FALSE),VLOOKUP($C25,#REF!,15,FALSE)) -> 
A26: 1 | B26: ='Orçamento-TCE'!B26 -> 15 | C26: ='Orçamento-TCE'!C26 -> 3.10 | D26: ='Orçamento-TCE'!G26 -> REMOÇÃO DE LOUÇAS, DE FORMA MANUAL, SEM REAPROVEITAMENTO. AF_12/2017 | E26: ='Orçamento-TCE'!H26 -> 55 | F26: ='Orçamento-TCE'!I26 -> UN | G26: =Orçamento!H26 -> 12.72 | H26: =Orçamento!I26 -> 699.6 | I26: =Orçamento!G26 -> 0.2216 | J26: 1.1122 | L26: 8.904 | M26: 3.816 | O26: =IF(#REF!="Tabela Não Desonerada",VLOOKUP($C26,#REF!,13,FALSE),VLOOKUP($C26,#REF!,13,FALSE)) ->  | Q26: =IF(#REF!="Tabela Não Desonerada",VLOOKUP($C26,#REF!,14,FALSE),VLOOKUP($C26,#REF!,14,FALSE)) ->  | S26: =IF(#REF!="Tabela Não Desonerada",VLOOKUP($C26,#REF!,15,FALSE),VLOOKUP($C26,#REF!,15,FALSE)) -> 
A27: 1 | B27: ='Orçamento-TCE'!B27 -> 16 | C27: ='Orçamento-TCE'!C27 -> 3.11 | D27: ='Orçamento-TCE'!G27 -> TRANSPORTE COM CAMINHÃO BASCULANTE DE 10M3, EM VIA URBANA PAVIMENTADA, DMT ATÉ 30 KM (UNIDADE: M3XKM). AF_07/2020 | E27: ='Orçamento-TCE'!H27 -> 2944.62 | F27: ='Orçamento-TCE'!I27 -> M3XKM | G27: =Orçamento!H27 -> 2 | H27: =Orçamento!I27 -> 5889.24 | I27: =Orçamento!G27 -> 0.2216 | J27: 1.1122 | L27: 1.4 | M27: 0.6 | O27: =IF(#REF!="Tabela Não Desonerada",VLOOKUP($C27,#REF!,13,FALSE),VLOOKUP($C27,#REF!,13,FALSE)) ->  | Q27: =IF(#REF!="Tabela Não Desonerada",VLOOKUP($C27,#REF!,14,FALSE),VLOOKUP($C27,#REF!,14,FALSE)) ->  | S27: =IF(#REF!="Tabela Não Desonerada",VLOOKUP($C27,#REF!,15,FALSE),VLOOKUP($C27,#REF!,15,FALSE)) -> 
A28: 1 | B28: ='Orçamento-TCE'!B28 -> 17 | C28: ='Orçamento-TCE'!C28 -> 4.1 | D28: ='Orçamento-TCE'!G28 -> ALVENARIA DE VEDAÇÃO DE BLOCOS CERÂMICOS FURADOS NA VERTICAL DE 14X19X39 CM (ESPESSURA 14 CM) E ARGAMASSA DE ASSENTAMENTO COM PREPARO EM BETONEIRA. AF_12/2021 | E28: ='Orçamento-TCE'!H28 -> 373.38 | F28: ='Orçamento-TCE'!I28 -> M2 | G28: =Orçamento!H29 -> 86.78 | H28: =Orçamento!I29 -> 32401.92 | I28: =Orçamento!G29 -> 0.2216 | J28: 1.1122 | L28: 60.746 | M28: 26.034 | O28: =IF(#REF!="Tabela Não Desonerada",VLOOKUP($C28,#REF!,13,FALSE),VLOOKUP($C28,#REF!,13,FALSE)) ->  | Q28: =IF(#REF!="Tabela Não Desonerada",VLOOKUP($C28,#REF!,14,FALSE),VLOOKUP($C28,#REF!,14,FALSE)) ->  | S28: =IF(#REF!="Tabela Não Desonerada",VLOOKUP($C28,#REF!,15,FALSE),VLOOKUP($C28,#REF!,15,FALSE)) -> 
A29: 1 | B29: ='Orçamento-TCE'!B29 -> 18 | C29: ='Orçamento-TCE'!C29 -> 4.2 | D29: ='Orçamento-TCE'!G29 -> ALVENARIA DE VEDAÇÃO DE BLOCOS CERÂMICOS FURADOS NA VERTICAL DE 19X19X39 CM (ESPESSURA 19 CM) E ARGAMASSA DE ASSENTAMENTO COM PREPARO EM BETONEIRA. AF_12/2021 | E29: ='Orçamento-TCE'!H29 -> 3.9 | F29: ='Orçamento-TCE'!I29 -> M2 | G29: =Orçamento!H30 -> 105.58 | H29: =Orçamento!I30 -> 411.76 | I29: =Orçamento!G30 -> 0.2216 | J29: 1.1122 | L29: 73.906 | M29: 31.674 | O29: =IF(#REF!="Tabela Não Desonerada",VLOOKUP($C29,#REF!,13,FALSE),VLOOKUP($C29,#REF!,13,FALSE)) ->  | Q29: =IF(#REF!="Tabela Não Desonerada",VLOOKUP($C29,#REF!,14,FALSE),VLOOKUP($C29,#REF!,14,FALSE)) ->  | S29: =IF(#REF!="Tabela Não Desonerada",VLOOKUP($C29,#REF!,15,FALSE),VLOOKUP($C29,#REF!,15,FALSE)) -> 
A30: 1 | B30: ='Orçamento-TCE'!B30 -> 19 | C30: ='Orçamento-TCE'!C30 -> 4.3 | D30: ='Orçamento-TCE'!G30 -> PAREDE COM PLACAS DE GESSO ACARTONADO (DRYWALL), PARA USO INTERNO, COM DUAS FACES SIMPLES E ESTRUTURA METÁLICA COM GUIAS DUPLAS, COM VÃOS. AF_06/2017 | E30: ='Orçamento-TCE'!H30 -> 114.08 | F30: ='Orçamento-TCE'!I30 -> M2 | G30: =Orçamento!H31 -> 220.73 | H30: =Orçamento!I31 -> 25180.88 | I30: =Orçamento!G31 -> 0.2216 | J30: 1.1122 | L30: 154.511 | M30: 66.219 | O30: =IF(#REF!="Tabela Não Desonerada",VLOOKUP($C30,#REF!,13,FALSE),VLOOKUP($C30,#REF!,13,FALSE)) ->  | Q30: =IF(#REF!="Tabela Não Desonerada",VLOOKUP($C30,#REF!,14,FALSE),VLOOKUP($C30,#REF!,14,FALSE)) ->  | S30: =IF(#REF!="Tabela Não Desonerada",VLOOKUP($C30,#REF!,15,FALSE),VLOOKUP($C30,#REF!,15,FALSE)) -> 
A31: 1 | B31: ='Orçamento-TCE'!B31 -> 20 | C31: ='Orçamento-TCE'!C31 -> 4.4 | D31: ='Orçamento-TCE'!G31 -> DIVISÓRIA SANITÁRIA, TIPO CABINE, EM PAINEL DE GRANILITE, ESP = 3CM, ASSENTADO COM ARGAMASSA COLANTE AC III-E, EXCLUSIVE FERRAGENS. AF_01/2021 | E31: ='Orçamento-TCE'!H31 -> 11.34 | F31: ='Orçamento-TCE'!I31 -> M2 | G31: =Orçamento!H32 -> 310.81 | H31: =Orçamento!I32 -> 3524.59 | I31: =Orçamento!G32 -> 0.2216 | J31: 1.1122 | L31: 217.567 | M31: 93.243 | O31: =IF(#REF!="Tabela Não Desonerada",VLOOKUP($C31,#REF!,13,FALSE),VLOOKUP($C31,#REF!,13,FALSE)) ->  | Q31: =IF(#REF!="Tabela Não Desonerada",VLOOKUP($C31,#REF!,14,FALSE),VLOOKUP($C31,#REF!,14,FALSE)) ->  | S31: =IF(#REF!="Tabela Não Desonerada",VLOOKUP($C31,#REF!,15,FALSE),VLOOKUP($C31,#REF!,15,FALSE)) -> 
A32: 1 | B32: ='Orçamento-TCE'!B32 -> 21 | C32: ='Orçamento-TCE'!C32 -> 4.5 | D32: ='Orçamento-TCE'!G32 -> FERRAGEM PARA DIVISÓRIA (VÃO PORTA) COMPOSTA DE 3 DOBRADIÇAS PALMELA E 1 FECHADURA TUBULAR LOCKWELL COM BOTÃO DE GIRO PARA TRAVAMENTO, REF: 41410N, OU SIMILAR | E32: ='Orçamento-TCE'!H32 -> 3 | F32: ='Orçamento-TCE'!I32 -> CJ | G32: =Orçamento!H33 -> 256.07 | H32: =Orçamento!I33 -> 768.21 | I32: =Orçamento!G33 -> 0.2216 | J32: 1.1122 | L32: 179.249 | M32: 76.821 | O32: =IF(#REF!="Tabela Não Desonerada",VLOOKUP($C32,#REF!,13,FALSE),VLOOKUP($C32,#REF!,13,FALSE)) ->  | Q32: =IF(#REF!="Tabela Não Desonerada",VLOOKUP($C32,#REF!,14,FALSE),VLOOKUP($C32,#REF!,14,FALSE)) ->  | S32: =IF(#REF!="Tabela Não Desonerada",VLOOKUP($C32,#REF!,15,FALSE),VLOOKUP($C32,#REF!,15,FALSE)) -> 
A33: 1 | B33: ='Orçamento-TCE'!B33 -> 22 | C33: ='Orçamento-TCE'!C33 -> 5.1 | D33: ='Orçamento-TCE'!G33 -> EA01 | E33: ='Orçamento-TCE'!H33 -> 1 | F33: ='Orçamento-TCE'!I33 -> UN | G33: =Orçamento!H35 -> 1092.95 | H33: =Orçamento!I35 -> 1092.95 | I33: =Orçamento!G35 -> 0.1373 | J33: 1.1122 | L33: 765.065 | M33: 327.885 | O33: =IF(#REF!="Tabela Não Desonerada",VLOOKUP($C33,#REF!,13,FALSE),VLOOKUP($C33,#REF!,13,FALSE)) ->  | Q33: =IF(#REF!="Tabela Não Desonerada",VLOOKUP($C33,#REF!,14,FALSE),VLOOKUP($C33,#REF!,14,FALSE)) ->  | S33: =IF(#REF!="Tabela Não Desonerada",VLOOKUP($C33,#REF!,15,FALSE),VLOOKUP($C33,#REF!,15,FALSE)) -> 
A34: 1 | B34: ='Orçamento-TCE'!B34 -> 23 | C34: ='Orçamento-TCE'!C34 -> 5.2 | D34: ='Orçamento-TCE'!G34 -> EA03 | E34: ='Orçamento-TCE'!H34 -> 3 | F34: ='Orçamento-TCE'!I34 -> UN | G34: =Orçamento!H36 -> 1990.28 | H34: =Orçamento!I36 -> 5970.84 | I34: =Orçamento!G36 -> 0.1373 | J34: 1.1122 | L34: 1393.196 | M34: 597.084 | O34: =IF(#REF!="Tabela Não Desonerada",VLOOKUP($C34,#REF!,13,FALSE),VLOOKUP($C34,#REF!,13,FALSE)) ->  | Q34: =IF(#REF!="Tabela Não Desonerada",VLOOKUP($C34,#REF!,14,FALSE),VLOOKUP($C34,#REF!,14,FALSE)) ->  | S34: =IF(#REF!="Tabela Não Desonerada",VLOOKUP($C34,#REF!,15,FALSE),VLOOKUP($C34,#REF!,15,FALSE)) -> 
A35: 1 | B35: ='Orçamento-TCE'!B35 -> 24 | C35: ='Orçamento-TCE'!C35 -> 5.3 | D35: ='Orçamento-TCE'!G35 -> EA04 | E35: ='Orçamento-TCE'!H35 -> 1 | F35: ='Orçamento-TCE'!I35 -> UN | G35: =Orçamento!H37 -> 2900.12 | H35: =Orçamento!I37 -> 2900.12 | I35: =Orçamento!G37 -> 0.1373 | J35: 1.1122 | L35: 2030.084 | M35: 870.036 | O35: =IF(#REF!="Tabela Não Desonerada",VLOOKUP($C35,#REF!,13,FALSE),VLOOKUP($C35,#REF!,13,FALSE)) ->  | Q35: =IF(#REF!="Tabela Não Desonerada",VLOOKUP($C35,#REF!,14,FALSE),VLOOKUP($C35,#REF!,14,FALSE)) ->  | S35: =IF(#REF!="Tabela Não Desonerada",VLOOKUP($C35,#REF!,15,FALSE),VLOOKUP($C35,#REF!,15,FALSE)) -> 
A36: 1 | B36: ='Orçamento-TCE'!B36 -> 25 | C36: ='Orçamento-TCE'!C36 -> 5.4 | D36: ='Orçamento-TCE'!G36 -> EA05 | E36: ='Orçamento-TCE'!H36 -> 5 | F36: ='Orçamento-TCE'!I36 -> UN | G36: =Orçamento!H38 -> 3070.71 | H36: =Orçamento!I38 -> 15353.55 | I36: =Orçamento!G38 -> 0.1373 | J36: 1.1122 | L36: 2149.497 | M36: 921.213 | O36: =IF(#REF!="Tabela Não Desonerada",VLOOKUP($C36,#REF!,13,FALSE),VLOOKUP($C36,#REF!,13,FALSE)) ->  | Q36: =IF(#REF!="Tabela Não Desonerada",VLOOKUP($C36,#REF!,14,FALSE),VLOOKUP($C36,#REF!,14,FALSE)) ->  | S36: =IF(#REF!="Tabela Não Desonerada",VLOOKUP($C36,#REF!,15,FALSE),VLOOKUP($C36,#REF!,15,FALSE)) -> 
A37: 1 | B37: ='Orçamento-TCE'!B37 -> 26 | C37: ='Orçamento-TCE'!C37 -> 5.5 | D37: ='Orçamento-TCE'!G37 -> EA09 | E37: ='Orçamento-TCE'!H37 -> 3 | F37: ='Orçamento-TCE'!I37 -> UN | G37: =Orçamento!H39 -> 5004.12 | H37: =Orçamento!I39 -> 15012.36 | I37: =Orçamento!G39 -> 0.1373 | J37: 1.1122 | L37: 3502.884 | M37: 1501.236 | O37: =IF(#REF!="Tabela Não Desonerada",VLOOKUP($C37,#REF!,13,FALSE),VLOOKUP($C37,#REF!,13,FALSE)) ->  | Q37: =IF(#REF!="Tabela Não Desonerada",VLOOKUP($C37,#REF!,14,FALSE),VLOOKUP($C37,#REF!,14,FALSE)) ->  | S37: =IF(#REF!="Tabela Não Desonerada",VLOOKUP($C37,#REF!,15,FALSE),VLOOKUP($C37,#REF!,15,FALSE)) -> 
A38: 1 | B38: ='Orçamento-TCE'!B38 -> 27 | C38: ='Orçamento-TCE'!C38 -> 5.6 | D38: ='Orçamento-TCE'!G38 -> EA11 | E38: ='Orçamento-TCE'!H38 -> 4 | F38: ='Orçamento-TCE'!I38 -> UN | G38: =Orçamento!H40 -> 5459.04 | H38: =Orçamento!I40 -> 21836.16 | I38: =Orçamento!G40 -> 0.1373 | J38: 1.1122 | L38: 3821.328 | M38: 1637.712 | O38: =IF(#REF!="Tabela Não Desonerada",VLOOKUP($C38,#REF!,13,FALSE),VLOOKUP($C38,#REF!,13,FALSE)) ->  | Q38: =IF(#REF!="Tabela Não Desonerada",VLOOKUP($C38,#REF!,14,FALSE),VLOOKUP($C38,#REF!,14,FALSE)) ->  | S38: =IF(#REF!="Tabela Não Desonerada",VLOOKUP($C38,#REF!,15,FALSE),VLOOKUP($C38,#REF!,15,FALSE)) -> 
A39: 1 | B39: ='Orçamento-TCE'!B39 -> 28 | C39: ='Orçamento-TCE'!C39 -> 5.7 | D39: ='Orçamento-TCE'!G39 -> EA12 | E39: ='Orçamento-TCE'!H39 -> 5 | F39: ='Orçamento-TCE'!I39 -> UN | G39: =Orçamento!H41 -> 10576.89 | H39: =Orçamento!I41 -> 52884.45 | I39: =Orçamento!G41 -> 0.1373 | J39: 1.1122 | L39: 7403.823 | M39: 3173.067 | O39: =IF(#REF!="Tabela Não Desonerada",VLOOKUP($C39,#REF!,13,FALSE),VLOOKUP($C39,#REF!,13,FALSE)) ->  | Q39: =IF(#REF!="Tabela Não Desonerada",VLOOKUP($C39,#REF!,14,FALSE),VLOOKUP($C39,#REF!,14,FALSE)) ->  | S39: =IF(#REF!="Tabela Não Desonerada",VLOOKUP($C39,#REF!,15,FALSE),VLOOKUP($C39,#REF!,15,FALSE)) -> 
A40: 1 | B40: ='Orçamento-TCE'!B40 -> 29 | C40: ='Orçamento-TCE'!C40 -> 5.8 | D40: ='Orçamento-TCE'!G40 -> EA13 | E40: ='Orçamento-TCE'!H40 -> 2 | F40: ='Orçamento-TCE'!I40 -> UN | G40: =Orçamento!H42 -> 5629.64 | H40: =Orçamento!I42 -> 11259.28 | I40: =Orçamento!G42 -> 0.1373 | J40: 1.1122 | L40: 3940.748 | M40: 1688.892 | O40: =IF(#REF!="Tabela Não Desonerada",VLOOKUP($C40,#REF!,13,FALSE),VLOOKUP($C40,#REF!,13,FALSE)) ->  | Q40: =IF(#REF!="Tabela Não Desonerada",VLOOKUP($C40,#REF!,14,FALSE),VLOOKUP($C40,#REF!,14,FALSE)) ->  | S40: =IF(#REF!="Tabela Não Desonerada",VLOOKUP($C40,#REF!,15,FALSE),VLOOKUP($C40,#REF!,15,FALSE)) -> 
A41: 1 | B41: ='Orçamento-TCE'!B41 -> 30 | C41: ='Orçamento-TCE'!C41 -> 5.9 | D41: ='Orçamento-TCE'!G41 -> EA15 | E41: ='Orçamento-TCE'!H41 -> 7 | F41: ='Orçamento-TCE'!I41 -> UN | G41: =Orçamento!H43 -> 5192.62 | H41: =Orçamento!I43 -> 36348.34 | I41: =Orçamento!G43 -> 0.1373 | J41: 1.1122 | L41: 3634.834 | M41: 1557.786 | O41: =IF(#REF!="Tabela Não Desonerada",VLOOKUP($C41,#REF!,13,FALSE),VLOOKUP($C41,#REF!,13,FALSE)) ->  | Q41: =IF(#REF!="Tabela Não Desonerada",VLOOKUP($C41,#REF!,14,FALSE),VLOOKUP($C41,#REF!,14,FALSE)) ->  | S41: =IF(#REF!="Tabela Não Desonerada",VLOOKUP($C41,#REF!,15,FALSE),VLOOKUP($C41,#REF!,15,FALSE)) -> 
A42: 1 | B42: ='Orçamento-TCE'!B42 -> 31 | C42: ='Orçamento-TCE'!C42 -> 5.10 | D42: ='Orçamento-TCE'!G42 -> EA16 | E42: ='Orçamento-TCE'!H42 -> 1 | F42: ='Orçamento-TCE'!I42 -> UN | G42: =Orçamento!H44 -> 15051.03 | H42: =Orçamento!I44 -> 15051.03 | I42: =Orçamento!G44 -> 0.1373 | J42: 1.1122 | L42: 10535.721 | M42: 4515.309 | O42: =IF(#REF!="Tabela Não Desonerada",VLOOKUP($C42,#REF!,13,FALSE),VLOOKUP($C42,#REF!,13,FALSE)) ->  | Q42: =IF(#REF!="Tabela Não Desonerada",VLOOKUP($C42,#REF!,14,FALSE),VLOOKUP($C42,#REF!,14,FALSE)) ->  | S42: =IF(#REF!="Tabela Não Desonerada",VLOOKUP($C42,#REF!,15,FALSE),VLOOKUP($C42,#REF!,15,FALSE)) -> 
A43: 1 | B43: ='Orçamento-TCE'!B43 -> 32 | C43: ='Orçamento-TCE'!C43 -> 5.11 | D43: ='Orçamento-TCE'!G43 -> EA18 | E43: ='Orçamento-TCE'!H43 -> 1 | F43: ='Orçamento-TCE'!I43 -> UN | G43: =Orçamento!H45 -> 23655.84 | H43: =Orçamento!I45 -> 23655.84 | I43: =Orçamento!G45 -> 0.1373 | J43: 1.1122 | L43: 16559.088 | M43: 7096.752 | O43: =IF(#REF!="Tabela Não Desonerada",VLOOKUP($C43,#REF!,13,FALSE),VLOOKUP($C43,#REF!,13,FALSE)) ->  | Q43: =IF(#REF!="Tabela Não Desonerada",VLOOKUP($C43,#REF!,14,FALSE),VLOOKUP($C43,#REF!,14,FALSE)) ->  | S43: =IF(#REF!="Tabela Não Desonerada",VLOOKUP($C43,#REF!,15,FALSE),VLOOKUP($C43,#REF!,15,FALSE)) -> 
A44: 1 | B44: ='Orçamento-TCE'!B44 -> 33 | C44: ='Orçamento-TCE'!C44 -> 5.12 | D44: ='Orçamento-TCE'!G44 -> PM01 - 1 FOLHA DE ABRIR 0,70 X 1,40 M | E44: ='Orçamento-TCE'!H44 -> 3 | F44: ='Orçamento-TCE'!I44 -> UN | G44: =Orçamento!H46 -> 1170 | H44: =Orçamento!I46 -> 3510 | I44: =Orçamento!G46 -> 0.2216 | J44: 1.1122 | L44: 819 | M44: 351 | O44: =IF(#REF!="Tabela Não Desonerada",VLOOKUP($C44,#REF!,13,FALSE),VLOOKUP($C44,#REF!,13,FALSE)) ->  | Q44: =IF(#REF!="Tabela Não Desonerada",VLOOKUP($C44,#REF!,14,FALSE),VLOOKUP($C44,#REF!,14,FALSE)) ->  | S44: =IF(#REF!="Tabela Não Desonerada",VLOOKUP($C44,#REF!,15,FALSE),VLOOKUP($C44,#REF!,15,FALSE)) -> 
A45: 1 | B45: ='Orçamento-TCE'!B45 -> 34 | C45: ='Orçamento-TCE'!C45 -> 5.13 | D45: ='Orçamento-TCE'!G45 -> KIT DE PORTA DE MADEIRA FRISADA, SEMI-OCA (LEVE OU MÉDIA), PADRÃO MÉDIO, 60X210CM, ESPESSURA DE 3,5CM, ITENS INCLUSOS: DOBRADIÇAS, MONTAGEM E INSTALAÇÃO DE BATENTE, FECHADURA COM EXECUÇÃO DO FURO - FORNECIMENTO E INSTALAÇÃO. AF_12/2019 | E45: ='Orçamento-TCE'!H45 -> 4 | F45: ='Orçamento-TCE'!I45 -> UN | G45: =Orçamento!H47 -> 1306.1 | H45: =Orçamento!I47 -> 5224.4 | I45: =Orçamento!G47 -> 0.2216 | J45: 1.1122 | L45: 914.27 | M45: 391.83 | O45: =IF(#REF!="Tabela Não Desonerada",VLOOKUP($C45,#REF!,13,FALSE),VLOOKUP($C45,#REF!,13,FALSE)) ->  | Q45: =IF(#REF!="Tabela Não Desonerada",VLOOKUP($C45,#REF!,14,FALSE),VLOOKUP($C45,#REF!,14,FALSE)) ->  | S45: =IF(#REF!="Tabela Não Desonerada",VLOOKUP($C45,#REF!,15,FALSE),VLOOKUP($C45,#REF!,15,FALSE)) -> 
A46: 1 | B46: ='Orçamento-TCE'!B46 -> 35 | C46: ='Orçamento-TCE'!C46 -> 5.14 | D46: ='Orçamento-TCE'!G46 -> KIT DE PORTA DE MADEIRA FRISADA, SEMI-OCA (LEVE OU MÉDIA), PADRÃO MÉDIO, 80 X 210CM, ESPESSURA DE 3,5CM,ITENS INCLUSOS: DOBRADIÇAS, MONTAGEM E INSTALAÇÃO DE BATENTE, FECHADURA COM EXECUÇÃO DO FURO - FORNECIMENTO E INSTALAÇÃO. AF_12/2019 | E46: ='Orçamento-TCE'!H46 -> 18 | F46: ='Orçamento-TCE'!I46 -> UN | G46: =Orçamento!H48 -> 1413.37 | H46: =Orçamento!I48 -> 25440.66 | I46: =Orçamento!G48 -> 0.2216 | J46: 1.1122 | L46: 989.359 | M46: 424.011 | O46: =IF(#REF!="Tabela Não Desonerada",VLOOKUP($C46,#REF!,13,FALSE),VLOOKUP($C46,#REF!,13,FALSE)) ->  | Q46: =IF(#REF!="Tabela Não Desonerada",VLOOKUP($C46,#REF!,14,FALSE),VLOOKUP($C46,#REF!,14,FALSE)) ->  | S46: =IF(#REF!="Tabela Não Desonerada",VLOOKUP($C46,#REF!,15,FALSE),VLOOKUP($C46,#REF!,15,FALSE)) -> 
A47: 1 | B47: ='Orçamento-TCE'!B47 -> 36 | C47: ='Orçamento-TCE'!C47 -> 5.15 | D47: ='Orçamento-TCE'!G47 -> PM04 - 1 FOLHA DE ABRIR 1,00x2,10 M | E47: ='Orçamento-TCE'!H47 -> 11 | F47: ='Orçamento-TCE'!I47 -> UN | G47: =Orçamento!H49 -> 1421.01 | H47: =Orçamento!I49 -> 15631.11 | I47: =Orçamento!G49 -> 0.2216 | J47: 1.1122 | L47: 994.707 | M47: 426.303 | O47: =IF(#REF!="Tabela Não Desonerada",VLOOKUP($C47,#REF!,13,FALSE),VLOOKUP($C47,#REF!,13,FALSE)) ->  | Q47: =IF(#REF!="Tabela Não Desonerada",VLOOKUP($C47,#REF!,14,FALSE),VLOOKUP($C47,#REF!,14,FALSE)) ->  | S47: =IF(#REF!="Tabela Não Desonerada",VLOOKUP($C47,#REF!,15,FALSE),VLOOKUP($C47,#REF!,15,FALSE)) -> 
A48: 1 | B48: ='Orçamento-TCE'!B48 -> 37 | C48: ='Orçamento-TCE'!C48 -> 5.16 | D48: ='Orçamento-TCE'!G48 -> PM06 - 2 FOLHAS DE ABRIR 1,60 X 2,10 M | E48: ='Orçamento-TCE'!H48 -> 2 | F48: ='Orçamento-TCE'!I48 -> UN | G48: =Orçamento!H50 -> 1678.48 | H48: =Orçamento!I50 -> 3356.96 | I48: =Orçamento!G50 -> 0.2216 | J48: 1.1122 | L48: 1174.936 | M48: 503.544 | O48: =IF(#REF!="Tabela Não Desonerada",VLOOKUP($C48,#REF!,13,FALSE),VLOOKUP($C48,#REF!,13,FALSE)) ->  | Q48: =IF(#REF!="Tabela Não Desonerada",VLOOKUP($C48,#REF!,14,FALSE),VLOOKUP($C48,#REF!,14,FALSE)) ->  | S48: =IF(#REF!="Tabela Não Desonerada",VLOOKUP($C48,#REF!,15,FALSE),VLOOKUP($C48,#REF!,15,FALSE)) -> 
A49: 1 | B49: ='Orçamento-TCE'!B49 -> 38 | C49: ='Orçamento-TCE'!C49 -> 5.17 | D49: ='Orçamento-TCE'!G49 -> PM07 - 2 FOLHAS DE ABRIR 1,80 X 2,10 M | E49: ='Orçamento-TCE'!H49 -> 2 | F49: ='Orçamento-TCE'!I49 -> UN | G49: =Orçamento!H51 -> 1875.91 | H49: =Orçamento!I51 -> 3751.82 | I49: =Orçamento!G51 -> 0.2216 | J49: 1.1122 | L49: 1313.137 | M49: 562.773 | O49: =IF(#REF!="Tabela Não Desonerada",VLOOKUP($C49,#REF!,13,FALSE),VLOOKUP($C49,#REF!,13,FALSE)) ->  | Q49: =IF(#REF!="Tabela Não Desonerada",VLOOKUP($C49,#REF!,14,FALSE),VLOOKUP($C49,#REF!,14,FALSE)) ->  | S49: =IF(#REF!="Tabela Não Desonerada",VLOOKUP($C49,#REF!,15,FALSE),VLOOKUP($C49,#REF!,15,FALSE)) -> 
A50: 1 | B50: ='Orçamento-TCE'!B50 -> 39 | C50: ='Orçamento-TCE'!C50 -> 5.18 | D50: ='Orçamento-TCE'!G50 -> PM08 - 2 FOHAS DE ABRIR 2,00 X 2,10 M | E50: ='Orçamento-TCE'!H50 -> 1 | F50: ='Orçamento-TCE'!I50 -> UN | G50: =Orçamento!H52 -> 1998.31 | H50: =Orçamento!I52 -> 1998.31 | I50: =Orçamento!G52 -> 0.2216 | J50: 1.1122 | L50: 1398.817 | M50: 599.493 | O50: =IF(#REF!="Tabela Não Desonerada",VLOOKUP($C50,#REF!,13,FALSE),VLOOKUP($C50,#REF!,13,FALSE)) ->  | Q50: =IF(#REF!="Tabela Não Desonerada",VLOOKUP($C50,#REF!,14,FALSE),VLOOKUP($C50,#REF!,14,FALSE)) ->  | S50: =IF(#REF!="Tabela Não Desonerada",VLOOKUP($C50,#REF!,15,FALSE),VLOOKUP($C50,#REF!,15,FALSE)) -> 
A51: 1 | B51: ='Orçamento-TCE'!B51 -> 40 | C51: ='Orçamento-TCE'!C51 -> 6.1 | D51: ='Orçamento-TCE'!G51 -> IMPERMEABILIZAÇÃO DE SUPERFÍCIE COM EMULSÃO ASFÁLTICA, DUAS CAMADAS, COM APLICAÇÃO DE VÉU DE POLIÉSTER | E51: ='Orçamento-TCE'!H51 -> 40.36 | F51: ='Orçamento-TCE'!I51 -> M2 | G51: =Orçamento!H54 -> 61.54 | H51: =Orçamento!I54 -> 2483.75 | I51: =Orçamento!G54 -> 0.2216 | J51: 1.1122 | L51: 43.078 | M51: 18.462 | O51: =IF(#REF!="Tabela Não Desonerada",VLOOKUP($C51,#REF!,13,FALSE),VLOOKUP($C51,#REF!,13,FALSE)) ->  | Q51: =IF(#REF!="Tabela Não Desonerada",VLOOKUP($C51,#REF!,14,FALSE),VLOOKUP($C51,#REF!,14,FALSE)) ->  | S51: =IF(#REF!="Tabela Não Desonerada",VLOOKUP($C51,#REF!,15,FALSE),VLOOKUP($C51,#REF!,15,FALSE)) -> 
A52: 1 | B52: ='Orçamento-TCE'!B52 -> 41 | C52: ='Orçamento-TCE'!C52 -> 6.2 | D52: ='Orçamento-TCE'!G52 -> PISO CIMENTADO, TRAÇO 1:3 (CIMENTO E AREIA), ACABAMENTO LISO, ESPESSURA 4,0 CM, PREPARO MECÂNICO DA ARGAMASSA. AF_09/2020 | E52: ='Orçamento-TCE'!H52 -> 40.36 | F52: ='Orçamento-TCE'!I52 -> M2 | G52: =Orçamento!H55 -> 57.34 | H52: =Orçamento!I55 -> 2314.24 | I52: =Orçamento!G55 -> 0.2216 | J52: 1.1122 | L52: 40.138 | M52: 17.202 | O52: =IF(#REF!="Tabela Não Desonerada",VLOOKUP($C52,#REF!,13,FALSE),VLOOKUP($C52,#REF!,13,FALSE)) ->  | Q52: =IF(#REF!="Tabela Não Desonerada",VLOOKUP($C52,#REF!,14,FALSE),VLOOKUP($C52,#REF!,14,FALSE)) ->  | S52: =IF(#REF!="Tabela Não Desonerada",VLOOKUP($C52,#REF!,15,FALSE),VLOOKUP($C52,#REF!,15,FALSE)) -> 
A53: 1 | B53: ='Orçamento-TCE'!B53 -> 42 | C53: ='Orçamento-TCE'!C53 -> 6.3 | D53: ='Orçamento-TCE'!G53 -> PROTEÇÃO MECÂNICA DE SUPERFÍCIE HORIZONTAL COM ARGAMASSA DE CIMENTO E AREIA, TRAÇO 1:3, E= 4CM. AF_06/2018 | E53: ='Orçamento-TCE'!H53 -> 40.36 | F53: ='Orçamento-TCE'!I53 -> M2 | G53: =Orçamento!H56 -> 69.2 | H53: =Orçamento!I56 -> 2792.91 | I53: =Orçamento!G56 -> 0.2216 | J53: 1.1122 | L53: 48.44 | M53: 20.76 | O53: =IF(#REF!="Tabela Não Desonerada",VLOOKUP($C53,#REF!,13,FALSE),VLOOKUP($C53,#REF!,13,FALSE)) ->  | Q53: =IF(#REF!="Tabela Não Desonerada",VLOOKUP($C53,#REF!,14,FALSE),VLOOKUP($C53,#REF!,14,FALSE)) ->  | S53: =IF(#REF!="Tabela Não Desonerada",VLOOKUP($C53,#REF!,15,FALSE),VLOOKUP($C53,#REF!,15,FALSE)) -> 
A54: 1 | B54: ='Orçamento-TCE'!B54 -> 43 | C54: ='Orçamento-TCE'!C54 -> 6.4 | D54: ='Orçamento-TCE'!G54 -> BASE DE DISTRIUBUIÇÃO DE CARGA SOBRE CONTRAPISO EXISTENTE, E=2CM | E54: ='Orçamento-TCE'!H54 -> 40.36 | F54: ='Orçamento-TCE'!I54 -> M2 | G54: =Orçamento!H57 -> 147.23 | H54: =Orçamento!I57 -> 5942.2 | I54: =Orçamento!G57 -> 0.2216 | J54: 1.1122 | L54: 103.061 | M54: 44.169 | O54: =IF(#REF!="Tabela Não Desonerada",VLOOKUP($C54,#REF!,13,FALSE),VLOOKUP($C54,#REF!,13,FALSE)) ->  | Q54: =IF(#REF!="Tabela Não Desonerada",VLOOKUP($C54,#REF!,14,FALSE),VLOOKUP($C54,#REF!,14,FALSE)) ->  | S54: =IF(#REF!="Tabela Não Desonerada",VLOOKUP($C54,#REF!,15,FALSE),VLOOKUP($C54,#REF!,15,FALSE)) -> 
A55: 1 | B55: ='Orçamento-TCE'!B55 -> 44 | C55: ='Orçamento-TCE'!C55 -> 6.5 | D55: ='Orçamento-TCE'!G55 -> TRATAMENTO DE ESTRUTURAS DE CONCRETO ARMADO | E55: ='Orçamento-TCE'!H55 -> 24.95 | F55: ='Orçamento-TCE'!I55 -> M2 | G55: =Orçamento!H58 -> 498.57 | H55: =Orçamento!I58 -> 12439.32 | I55: =Orçamento!G58 -> 0.2216 | J55: 1.1122 | L55: 348.999 | M55: 149.571 | O55: =IF(#REF!="Tabela Não Desonerada",VLOOKUP($C55,#REF!,13,FALSE),VLOOKUP($C55,#REF!,13,FALSE)) ->  | Q55: =IF(#REF!="Tabela Não Desonerada",VLOOKUP($C55,#REF!,14,FALSE),VLOOKUP($C55,#REF!,14,FALSE)) ->  | S55: =IF(#REF!="Tabela Não Desonerada",VLOOKUP($C55,#REF!,15,FALSE),VLOOKUP($C55,#REF!,15,FALSE)) -> 
A56: 1 | B56: ='Orçamento-TCE'!B56 -> 45 | C56: ='Orçamento-TCE'!C56 -> 7.1 | D56: ='Orçamento-TCE'!G56 -> CHAPISCO APLICADO EM ALVENARIAS E ESTRUTURAS DE CONCRETO INTERNAS, COM COLHER DE PEDREIRO. ARGAMASSA TRAÇO 1:3 COM PREPARO MANUAL. AF_06/2014 | E56: ='Orçamento-TCE'!H56 -> 616.2 | F56: ='Orçamento-TCE'!I56 -> M2 | G56: =Orçamento!H60 -> 5.02 | H56: =Orçamento!I60 -> 3093.32 | I56: =Orçamento!G60 -> 0.2216 | J56: 1.1122 | L56: 3.514 | M56: 1.506 | O56: =IF(#REF!="Tabela Não Desonerada",VLOOKUP($C56,#REF!,13,FALSE),VLOOKUP($C56,#REF!,13,FALSE)) ->  | Q56: =IF(#REF!="Tabela Não Desonerada",VLOOKUP($C56,#REF!,14,FALSE),VLOOKUP($C56,#REF!,14,FALSE)) ->  | S56: =IF(#REF!="Tabela Não Desonerada",VLOOKUP($C56,#REF!,15,FALSE),VLOOKUP($C56,#REF!,15,FALSE)) -> 
A57: 1 | B57: ='Orçamento-TCE'!B57 -> 46 | C57: ='Orçamento-TCE'!C57 -> 7.2 | D57: ='Orçamento-TCE'!G57 -> MASSA ÚNICA, PARA RECEBIMENTO DE PINTURA EM ARGAMASSA TRAÇO 1:2:8, PREPARO MECÂNICO COM BETONEIRA 400L, APLICADA MANUALMENTE EM FACES INTERNAS DE PAREDES, ESPESSURA DE 20MM, COM EXECUÇÃO DE TALISCAS. AF_06/2014 | E57: ='Orçamento-TCE'!H57 -> 616.2 | F57: ='Orçamento-TCE'!I57 -> M2 | G57: =Orçamento!H61 -> 37.26 | H57: =Orçamento!I61 -> 22959.61 | I57: =Orçamento!G61 -> 0.2216 | J57: 1.1122 | L57: 26.082 | M57: 11.178 | O57: =IF(#REF!="Tabela Não Desonerada",VLOOKUP($C57,#REF!,13,FALSE),VLOOKUP($C57,#REF!,13,FALSE)) ->  | Q57: =IF(#REF!="Tabela Não Desonerada",VLOOKUP($C57,#REF!,14,FALSE),VLOOKUP($C57,#REF!,14,FALSE)) ->  | S57: =IF(#REF!="Tabela Não Desonerada",VLOOKUP($C57,#REF!,15,FALSE),VLOOKUP($C57,#REF!,15,FALSE)) -> 
A58: 1 | B58: ='Orçamento-TCE'!B58 -> 47 | C58: ='Orçamento-TCE'!C58 -> 7.3 | D58: ='Orçamento-TCE'!G58 -> REVESTIMENTO CERÂMICO PARA PAREDES INTERNAS COM PLACAS TIPO ESMALTADA EXTRA DE DIMENSÕES 33X45CM APLICADAS EM AMBIENTES DE ÁREA MENOR QUE 5M2 A MEIA ALTURA DAS PAREDES. AF_06/2014 | E58: ='Orçamento-TCE'!H58 -> 757.83 | F58: ='Orçamento-TCE'!I58 -> M2 | G58: =Orçamento!H62 -> 84.08 | H58: =Orçamento!I62 -> 63718.35 | I58: =Orçamento!G62 -> 0.2216 | J58: 1.1122 | L58: 58.856 | M58: 25.224 | O58: =IF(#REF!="Tabela Não Desonerada",VLOOKUP($C58,#REF!,13,FALSE),VLOOKUP($C58,#REF!,13,FALSE)) ->  | Q58: =IF(#REF!="Tabela Não Desonerada",VLOOKUP($C58,#REF!,14,FALSE),VLOOKUP($C58,#REF!,14,FALSE)) ->  | S58: =IF(#REF!="Tabela Não Desonerada",VLOOKUP($C58,#REF!,15,FALSE),VLOOKUP($C58,#REF!,15,FALSE)) -> 
A59: 1 | B59: ='Orçamento-TCE'!B59 -> 48 | C59: ='Orçamento-TCE'!C59 -> 7.4 | D59: ='Orçamento-TCE'!G59 -> FORRO DE FIBRA MINERAL EM PLACAS DE 625X625MM, E=15MM, BORDA RETA, COM PINTURA ANTIMOFO, APOIADO EM PERFIL DE AÇO GALVANIZADO COM 24MM DE BASE - INSTALADO | E59: ='Orçamento-TCE'!H59 -> 846.46 | F59: ='Orçamento-TCE'!I59 -> M2 | G59: =Orçamento!H63 -> 131.99 | H59: =Orçamento!I63 -> 111724.26 | I59: =Orçamento!G63 -> 0.2216 | J59: 1.1122 | L59: 92.393 | M59: 39.597 | O59: =IF(#REF!="Tabela Não Desonerada",VLOOKUP($C59,#REF!,13,FALSE),VLOOKUP($C59,#REF!,13,FALSE)) ->  | Q59: =IF(#REF!="Tabela Não Desonerada",VLOOKUP($C59,#REF!,14,FALSE),VLOOKUP($C59,#REF!,14,FALSE)) ->  | S59: =IF(#REF!="Tabela Não Desonerada",VLOOKUP($C59,#REF!,15,FALSE),VLOOKUP($C59,#REF!,15,FALSE)) -> 
A60: 1 | B60: ='Orçamento-TCE'!B60 -> 49 | C60: ='Orçamento-TCE'!C60 -> 7.5 | D60: ='Orçamento-TCE'!G60 -> LIXAMENTO MANUAL EM SUPERFÍCIES METÁLICAS EM OBRA. AF_01/2020 | E60: ='Orçamento-TCE'!H60 -> 172.56 | F60: ='Orçamento-TCE'!I60 -> M2 | G60: =Orçamento!H64 -> 10.32 | H60: =Orçamento!I64 -> 1780.82 | I60: =Orçamento!G64 -> 0.2216 | J60: 1.1122 | L60: 7.224 | M60: 3.096 | O60: =IF(#REF!="Tabela Não Desonerada",VLOOKUP($C60,#REF!,13,FALSE),VLOOKUP($C60,#REF!,13,FALSE)) ->  | Q60: =IF(#REF!="Tabela Não Desonerada",VLOOKUP($C60,#REF!,14,FALSE),VLOOKUP($C60,#REF!,14,FALSE)) ->  | S60: =IF(#REF!="Tabela Não Desonerada",VLOOKUP($C60,#REF!,15,FALSE),VLOOKUP($C60,#REF!,15,FALSE)) -> 
A61: 1 | B61: ='Orçamento-TCE'!B61 -> 50 | C61: ='Orçamento-TCE'!C61 -> 7.6 | D61: ='Orçamento-TCE'!G61 -> PINTURA COM TINTA ALQUÍDICA DE FUNDO (TIPO ZARCÃO) APLICADA A ROLO OU PINCEL SOBRE SUPERFÍCIES METÁLICAS (EXCETO PERFIL) EXECUTADO EM OBRA (POR DEMÃO). AF_01/2020 | E61: ='Orçamento-TCE'!H61 -> 172.56 | F61: ='Orçamento-TCE'!I61 -> M2 | G61: =Orçamento!H65 -> 25.07 | H61: =Orçamento!I65 -> 4326.08 | I61: =Orçamento!G65 -> 0.2216 | J61: 1.1122 | L61: 17.549 | M61: 7.521 | O61: =IF(#REF!="Tabela Não Desonerada",VLOOKUP($C61,#REF!,13,FALSE),VLOOKUP($C61,#REF!,13,FALSE)) ->  | Q61: =IF(#REF!="Tabela Não Desonerada",VLOOKUP($C61,#REF!,14,FALSE),VLOOKUP($C61,#REF!,14,FALSE)) ->  | S61: =IF(#REF!="Tabela Não Desonerada",VLOOKUP($C61,#REF!,15,FALSE),VLOOKUP($C61,#REF!,15,FALSE)) -> 
A62: 1 | B62: ='Orçamento-TCE'!B62 -> 51 | C62: ='Orçamento-TCE'!C62 -> 7.7 | D62: ='Orçamento-TCE'!G62 -> PINTURA COM TINTA ACRÍLICA DE FUNDO APLICADA A ROLO OU PINCEL SOBRE SUPERFÍCIES METÁLICAS (EXCETO PERFIL) EXECUTADO EM OBRA (POR DEMÃO). AF_01/2020 | E62: ='Orçamento-TCE'!H62 -> 172.56 | F62: ='Orçamento-TCE'!I62 -> M2 | G62: =Orçamento!H66 -> 15.6 | H62: =Orçamento!I66 -> 2691.94 | I62: =Orçamento!G66 -> 0.2216 | J62: 1.1122 | L62: 10.92 | M62: 4.68 | O62: =IF(#REF!="Tabela Não Desonerada",VLOOKUP($C62,#REF!,13,FALSE),VLOOKUP($C62,#REF!,13,FALSE)) ->  | Q62: =IF(#REF!="Tabela Não Desonerada",VLOOKUP($C62,#REF!,14,FALSE),VLOOKUP($C62,#REF!,14,FALSE)) ->  | S62: =IF(#REF!="Tabela Não Desonerada",VLOOKUP($C62,#REF!,15,FALSE),VLOOKUP($C62,#REF!,15,FALSE)) -> 
A63: 1 | B63: ='Orçamento-TCE'!B63 -> 52 | C63: ='Orçamento-TCE'!C63 -> 7.8 | D63: ='Orçamento-TCE'!G63 -> PINTURA TINTA DE ACABAMENTO (PIGMENTADA) ESMALTE SINTÉTICO BRILHANTE EM MADEIRA, 2 DEMÃOS. AF_01/2021 | E63: ='Orçamento-TCE'!H63 -> 242.55 | F63: ='Orçamento-TCE'!I63 -> M2 | G63: =Orçamento!H67 -> 16.74 | H63: =Orçamento!I67 -> 4060.29 | I63: =Orçamento!G67 -> 0.2216 | J63: 1.1122 | L63: 11.718 | M63: 5.022 | O63: =IF(#REF!="Tabela Não Desonerada",VLOOKUP($C63,#REF!,13,FALSE),VLOOKUP($C63,#REF!,13,FALSE)) ->  | Q63: =IF(#REF!="Tabela Não Desonerada",VLOOKUP($C63,#REF!,14,FALSE),VLOOKUP($C63,#REF!,14,FALSE)) ->  | S63: =IF(#REF!="Tabela Não Desonerada",VLOOKUP($C63,#REF!,15,FALSE),VLOOKUP($C63,#REF!,15,FALSE)) -> 
A64: 1 | B64: ='Orçamento-TCE'!B64 -> 53 | C64: ='Orçamento-TCE'!C64 -> 7.9 | D64: ='Orçamento-TCE'!G64 -> APLICAÇÃO DE FUNDO SELADOR ACRÍLICO EM PAREDES, UMA DEMÃO. AF_06/2014 | E64: ='Orçamento-TCE'!H64 -> 214.93 | F64: ='Orçamento-TCE'!I64 -> M2 | G64: =Orçamento!H68 -> 2.81 | H64: =Orçamento!I68 -> 603.95 | I64: =Orçamento!G68 -> 0.2216 | J64: 1.1122 | L64: 1.967 | M64: 0.843 | O64: =IF(#REF!="Tabela Não Desonerada",VLOOKUP($C64,#REF!,13,FALSE),VLOOKUP($C64,#REF!,13,FALSE)) ->  | Q64: =IF(#REF!="Tabela Não Desonerada",VLOOKUP($C64,#REF!,14,FALSE),VLOOKUP($C64,#REF!,14,FALSE)) ->  | S64: =IF(#REF!="Tabela Não Desonerada",VLOOKUP($C64,#REF!,15,FALSE),VLOOKUP($C64,#REF!,15,FALSE)) -> 
A65: 1 | B65: ='Orçamento-TCE'!B65 -> 54 | C65: ='Orçamento-TCE'!C65 -> 7.10 | D65: ='Orçamento-TCE'!G65 -> APLICAÇÃO MANUAL DE PINTURA COM TINTA LÁTEX ACRÍLICA EM PAREDES, DUAS DEMÃOS. AF_06/2014 | E65: ='Orçamento-TCE'!H65 -> 1765.7 | F65: ='Orçamento-TCE'!I65 -> M2 | G65: =Orçamento!H69 -> 18.07 | H65: =Orçamento!I69 -> 31906.2 | I65: =Orçamento!G69 -> 0.2216 | J65: 1.1122 | L65: 12.649 | M65: 5.421 | O65: =IF(#REF!="Tabela Não Desonerada",VLOOKUP($C65,#REF!,13,FALSE),VLOOKUP($C65,#REF!,13,FALSE)) ->  | Q65: =IF(#REF!="Tabela Não Desonerada",VLOOKUP($C65,#REF!,14,FALSE),VLOOKUP($C65,#REF!,14,FALSE)) ->  | S65: =IF(#REF!="Tabela Não Desonerada",VLOOKUP($C65,#REF!,15,FALSE),VLOOKUP($C65,#REF!,15,FALSE)) -> 
A66: 1 | B66: ='Orçamento-TCE'!B66 -> 55 | C66: ='Orçamento-TCE'!C66 -> 7.11 | D66: ='Orçamento-TCE'!G66 -> APLICAÇÃO E LIXAMENTO DE MASSA LÁTEX EM PAREDES, UMA DEMÃO. AF_06/2014 | E66: ='Orçamento-TCE'!H66 -> 384.46 | F66: ='Orçamento-TCE'!I66 -> M2 | G66: =Orçamento!H70 -> 14.49 | H66: =Orçamento!I70 -> 5570.83 | I66: =Orçamento!G70 -> 0.2216 | J66: 1.1122 | L66: 10.143 | M66: 4.347 | O66: =IF(#REF!="Tabela Não Desonerada",VLOOKUP($C66,#REF!,13,FALSE),VLOOKUP($C66,#REF!,13,FALSE)) ->  | Q66: =IF(#REF!="Tabela Não Desonerada",VLOOKUP($C66,#REF!,14,FALSE),VLOOKUP($C66,#REF!,14,FALSE)) ->  | S66: =IF(#REF!="Tabela Não Desonerada",VLOOKUP($C66,#REF!,15,FALSE),VLOOKUP($C66,#REF!,15,FALSE)) -> 
A67: 1 | B67: ='Orçamento-TCE'!B67 -> 56 | C67: ='Orçamento-TCE'!C67 -> 8.1 | D67: ='Orçamento-TCE'!G67 -> SAIBRO PARA ARGAMASSA (COLETADO NO COMÉRCIO) | E67: ='Orçamento-TCE'!H67 -> 107.19 | F67: ='Orçamento-TCE'!I67 -> M3 | G67: =Orçamento!H72 -> 73.81 | H67: =Orçamento!I72 -> 7911.69 | I67: =Orçamento!G72 -> 0.2216 | J67: 1.1122 | L67: 51.667 | M67: 22.143 | O67: =IF(#REF!="Tabela Não Desonerada",VLOOKUP($C67,#REF!,13,FALSE),VLOOKUP($C67,#REF!,13,FALSE)) ->  | Q67: =IF(#REF!="Tabela Não Desonerada",VLOOKUP($C67,#REF!,14,FALSE),VLOOKUP($C67,#REF!,14,FALSE)) ->  | S67: =IF(#REF!="Tabela Não Desonerada",VLOOKUP($C67,#REF!,15,FALSE),VLOOKUP($C67,#REF!,15,FALSE)) -> 
A68: 1 | B68: ='Orçamento-TCE'!B68 -> 57 | C68: ='Orçamento-TCE'!C68 -> 8.2 | D68: ='Orçamento-TCE'!G68 -> CONTRAPISO EM ARGAMASSA TRAÇO 1:4 (CIMENTO E AREIA), PREPARO MECÂNICO COM BETONEIRA 400L, APLICADO EM ÁREAS SECAS SOBRE LAJE, ADERIDO, ESPESSURA 2CM. AF_06/2014 | E68: ='Orçamento-TCE'!H68 -> 975.2 | F68: ='Orçamento-TCE'!I68 -> M2 | G68: =Orçamento!H73 -> 33.18 | H68: =Orçamento!I73 -> 32357.14 | I68: =Orçamento!G73 -> 0.2216 | J68: 1.1122 | L68: 23.226 | M68: 9.954 | O68: =IF(#REF!="Tabela Não Desonerada",VLOOKUP($C68,#REF!,13,FALSE),VLOOKUP($C68,#REF!,13,FALSE)) ->  | Q68: =IF(#REF!="Tabela Não Desonerada",VLOOKUP($C68,#REF!,14,FALSE),VLOOKUP($C68,#REF!,14,FALSE)) ->  | S68: =IF(#REF!="Tabela Não Desonerada",VLOOKUP($C68,#REF!,15,FALSE),VLOOKUP($C68,#REF!,15,FALSE)) -> 
A69: 1 | B69: ='Orçamento-TCE'!B69 -> 58 | C69: ='Orçamento-TCE'!C69 -> 8.3 | D69: ='Orçamento-TCE'!G69 -> CONTRAPISO DE CONCRETO ARMADO, E=6CM | E69: ='Orçamento-TCE'!H69 -> 214.38 | F69: ='Orçamento-TCE'!I69 -> M2 | G69: =Orçamento!H74 -> 138.22 | H69: =Orçamento!I74 -> 29631.6 | I69: =Orçamento!G74 -> 0.2216 | J69: 1.1122 | L69: 96.754 | M69: 41.466 | O69: =IF(#REF!="Tabela Não Desonerada",VLOOKUP($C69,#REF!,13,FALSE),VLOOKUP($C69,#REF!,13,FALSE)) ->  | Q69: =IF(#REF!="Tabela Não Desonerada",VLOOKUP($C69,#REF!,14,FALSE),VLOOKUP($C69,#REF!,14,FALSE)) ->  | S69: =IF(#REF!="Tabela Não Desonerada",VLOOKUP($C69,#REF!,15,FALSE),VLOOKUP($C69,#REF!,15,FALSE)) -> 
A70: 1 | B70: ='Orçamento-TCE'!B70 -> 59 | C70: ='Orçamento-TCE'!C70 -> 8.4 | D70: ='Orçamento-TCE'!G70 -> REVESTIMENTO CERÂMICO PARA PISO COM PLACAS TIPO PORCELANATO DE DIMENSÕES 60X60CM APLICADA EM AMBIENTES DE ÁREA ENTRE 5M2 E 10M2. AF_06/2014 | E70: ='Orçamento-TCE'!H70 -> 451.99 | F70: ='Orçamento-TCE'!I70 -> M2 | G70: =Orçamento!H75 -> 167.93 | H70: =Orçamento!I75 -> 75902.68 | I70: =Orçamento!G75 -> 0.2216 | J70: 1.1122 | L70: 117.551 | M70: 50.379 | O70: =IF(#REF!="Tabela Não Desonerada",VLOOKUP($C70,#REF!,13,FALSE),VLOOKUP($C70,#REF!,13,FALSE)) ->  | Q70: =IF(#REF!="Tabela Não Desonerada",VLOOKUP($C70,#REF!,14,FALSE),VLOOKUP($C70,#REF!,14,FALSE)) ->  | S70: =IF(#REF!="Tabela Não Desonerada",VLOOKUP($C70,#REF!,15,FALSE),VLOOKUP($C70,#REF!,15,FALSE)) -> 
A71: 1 | B71: ='Orçamento-TCE'!B71 -> 60 | C71: ='Orçamento-TCE'!C71 -> 8.5 | D71: ='Orçamento-TCE'!G71 -> PISO DE PORCELANATO TÉCNICO 80X80CM - FORNECIMENTO E INSTALAÇÃO | E71: ='Orçamento-TCE'!H71 -> 487.82 | F71: ='Orçamento-TCE'!I71 -> M2 | G71: =Orçamento!H76 -> 184.77 | H71: =Orçamento!I76 -> 90134.5 | I71: =Orçamento!G76 -> 0.2216 | J71: 1.1122 | L71: 129.339 | M71: 55.431 | O71: =IF(#REF!="Tabela Não Desonerada",VLOOKUP($C71,#REF!,13,FALSE),VLOOKUP($C71,#REF!,13,FALSE)) ->  | Q71: =IF(#REF!="Tabela Não Desonerada",VLOOKUP($C71,#REF!,14,FALSE),VLOOKUP($C71,#REF!,14,FALSE)) ->  | S71: =IF(#REF!="Tabela Não Desonerada",VLOOKUP($C71,#REF!,15,FALSE),VLOOKUP($C71,#REF!,15,FALSE)) -> 
A72: 1 | B72: ='Orçamento-TCE'!B72 -> 61 | C72: ='Orçamento-TCE'!C72 -> 8.6 | D72: ='Orçamento-TCE'!G72 -> PISO VINÍLICO SEMI FLEXÍVEL EM PLACAS, PADRÃO LISO, ESPESSURA 3,2MM, FIXADO COM COLA. AF_09/2020 | E72: ='Orçamento-TCE'!H72 -> 192.91 | F72: ='Orçamento-TCE'!I72 -> M2 | G72: =Orçamento!H77 -> 199.4 | H72: =Orçamento!I77 -> 38466.25 | I72: =Orçamento!G77 -> 0.2216 | J72: 1.1122 | L72: 139.58 | M72: 59.82 | O72: =IF(#REF!="Tabela Não Desonerada",VLOOKUP($C72,#REF!,13,FALSE),VLOOKUP($C72,#REF!,13,FALSE)) ->  | Q72: =IF(#REF!="Tabela Não Desonerada",VLOOKUP($C72,#REF!,14,FALSE),VLOOKUP($C72,#REF!,14,FALSE)) ->  | S72: =IF(#REF!="Tabela Não Desonerada",VLOOKUP($C72,#REF!,15,FALSE),VLOOKUP($C72,#REF!,15,FALSE)) -> 
A73: 1 | B73: ='Orçamento-TCE'!B73 -> 62 | C73: ='Orçamento-TCE'!C73 -> 8.7 | D73: ='Orçamento-TCE'!G73 -> RODAPÉ EM POLIESTIRENO, ALTURA 5CM. AF_09/2020 | E73: ='Orçamento-TCE'!H73 -> 618.22 | F73: ='Orçamento-TCE'!I73 -> M | G73: =Orçamento!H78 -> 62.47 | H73: =Orçamento!I78 -> 38620.2 | I73: =Orçamento!G78 -> 0.2216 | J73: 1.1122 | L73: 43.729 | M73: 18.741 | O73: =IF(#REF!="Tabela Não Desonerada",VLOOKUP($C73,#REF!,13,FALSE),VLOOKUP($C73,#REF!,13,FALSE)) ->  | Q73: =IF(#REF!="Tabela Não Desonerada",VLOOKUP($C73,#REF!,14,FALSE),VLOOKUP($C73,#REF!,14,FALSE)) ->  | S73: =IF(#REF!="Tabela Não Desonerada",VLOOKUP($C73,#REF!,15,FALSE),VLOOKUP($C73,#REF!,15,FALSE)) -> 
A74: 1 | B74: ='Orçamento-TCE'!B74 -> 63 | C74: ='Orçamento-TCE'!C74 -> 8.8 | D74: ='Orçamento-TCE'!G74 -> SOLEIRA EM BASALTO - FORNECIMENTO E INSTALAÇÃO | E74: ='Orçamento-TCE'!H74 -> 32.85 | F74: ='Orçamento-TCE'!I74 -> M | G74: =Orçamento!H79 -> 109.25 | H74: =Orçamento!I79 -> 3588.86 | I74: =Orçamento!G79 -> 0.2216 | J74: 1.1122 | L74: 76.475 | M74: 32.775 | O74: =IF(#REF!="Tabela Não Desonerada",VLOOKUP($C74,#REF!,13,FALSE),VLOOKUP($C74,#REF!,13,FALSE)) ->  | Q74: =IF(#REF!="Tabela Não Desonerada",VLOOKUP($C74,#REF!,14,FALSE),VLOOKUP($C74,#REF!,14,FALSE)) ->  | S74: =IF(#REF!="Tabela Não Desonerada",VLOOKUP($C74,#REF!,15,FALSE),VLOOKUP($C74,#REF!,15,FALSE)) -> 
A75: 1 | B75: ='Orçamento-TCE'!B75 -> 64 | C75: ='Orçamento-TCE'!C75 -> 8.9 | D75: ='Orçamento-TCE'!G75 -> PEITORIL DE BASALTO EM JANELAS - FORNECIMENTO E INSTALAÇÃO | E75: ='Orçamento-TCE'!H75 -> 75.05 | F75: ='Orçamento-TCE'!I75 -> M | G75: =Orçamento!H80 -> 121.53 | H75: =Orçamento!I80 -> 9120.83 | I75: =Orçamento!G80 -> 0.2216 | J75: 1.1122 | L75: 85.071 | M75: 36.459 | O75: =IF(#REF!="Tabela Não Desonerada",VLOOKUP($C75,#REF!,13,FALSE),VLOOKUP($C75,#REF!,13,FALSE)) ->  | Q75: =IF(#REF!="Tabela Não Desonerada",VLOOKUP($C75,#REF!,14,FALSE),VLOOKUP($C75,#REF!,14,FALSE)) ->  | S75: =IF(#REF!="Tabela Não Desonerada",VLOOKUP($C75,#REF!,15,FALSE),VLOOKUP($C75,#REF!,15,FALSE)) -> 
A76: 1 | B76: ='Orçamento-TCE'!B76 -> 65 | C76: ='Orçamento-TCE'!C76 -> 9.1 | D76: ='Orçamento-TCE'!G76 -> DEMOLIÇÃO DE REVESTIMENTO CERÂMICO, DE FORMA MECANIZADA COM MARTELETE, SEM REAPROVEITAMENTO. AF_12/2017 | E76: ='Orçamento-TCE'!H76 -> 13.5 | F76: ='Orçamento-TCE'!I76 -> M2 | G76: =Orçamento!H82 -> 13.71 | H76: =Orçamento!I82 -> 185.09 | I76: =Orçamento!G82 -> 0.2216 | J76: 1.1122 | L76: 9.597 | M76: 4.113 | O76: =IF(#REF!="Tabela Não Desonerada",VLOOKUP($C76,#REF!,13,FALSE),VLOOKUP($C76,#REF!,13,FALSE)) ->  | Q76: =IF(#REF!="Tabela Não Desonerada",VLOOKUP($C76,#REF!,14,FALSE),VLOOKUP($C76,#REF!,14,FALSE)) ->  | S76: =IF(#REF!="Tabela Não Desonerada",VLOOKUP($C76,#REF!,15,FALSE),VLOOKUP($C76,#REF!,15,FALSE)) -> 
A77: 1 | B77: ='Orçamento-TCE'!B77 -> 66 | C77: ='Orçamento-TCE'!C77 -> 9.2 | D77: ='Orçamento-TCE'!G77 -> PISO PODOTÁTIL ALERTA/DIRECIONAL 40X40CM | E77: ='Orçamento-TCE'!H77 -> 30 | F77: ='Orçamento-TCE'!I77 -> M | G77: =Orçamento!H83 -> 41.4 | H77: =Orçamento!I83 -> 1242 | I77: =Orçamento!G83 -> 0.2216 | J77: 1.1122 | L77: =G77*0.7 -> 28.98 | M77: =G77-L77 -> 12.42 | N77: =P77 ->  | O77: =IF(#REF!="Tabela Não Desonerada",VLOOKUP($C77,#REF!,13,FALSE),VLOOKUP($C77,#REF!,13,FALSE)) ->  | P77: =O77/E77 ->  | Q77: =IF(#REF!="Tabela Não Desonerada",VLOOKUP($C77,#REF!,14,FALSE),VLOOKUP($C77,#REF!,14,FALSE)) ->  | R77: =Q77/E77 ->  | S77: =IF(#REF!="Tabela Não Desonerada",VLOOKUP($C77,#REF!,15,FALSE),VLOOKUP($C77,#REF!,15,FALSE)) ->  | T77: =S77/E77 -> 
A78: 1 | B78: ='Orçamento-TCE'!B78 -> 67 | C78: ='Orçamento-TCE'!C78 -> 10.1 | D78: ='Orçamento-TCE'!G78 -> QGBT - ARMÁRIO AUTO PORTANTE COM BASE SOLEIRA E OLHAIS DE IÇAMENTO COM PORTA INTERNA METÁLICA. 1600X700X350, DISJ. GERAL CX. MOLDADA 35KA/380V – 600 A 01PÇ MULTIMEDIDOR DIGITAL DE GRANDEZAS ELETRICAS DISJUNTORES PARCIAIS EM CX. MOLDADA 18KA/380V CFE. PROJETO. COM INSTALAÇÃO. | E78: ='Orçamento-TCE'!H78 -> 1 | F78: ='Orçamento-TCE'!I78 -> UN | G78: =Orçamento!H85 -> 34364.34 | H78: =Orçamento!I85 -> 34364.34 | I78: =Orçamento!G85 -> 0.2216 | J78: 1.1122 | L78: 24055.038 | M78: 10309.302 | O78: =IF(#REF!="Tabela Não Desonerada",VLOOKUP($C78,#REF!,13,FALSE),VLOOKUP($C78,#REF!,13,FALSE)) ->  | Q78: =IF(#REF!="Tabela Não Desonerada",VLOOKUP($C78,#REF!,14,FALSE),VLOOKUP($C78,#REF!,14,FALSE)) ->  | S78: =IF(#REF!="Tabela Não Desonerada",VLOOKUP($C78,#REF!,15,FALSE),VLOOKUP($C78,#REF!,15,FALSE)) -> 
A79: 1 | B79: ='Orçamento-TCE'!B79 -> 68 | C79: ='Orçamento-TCE'!C79 -> 10.2 | D79: ='Orçamento-TCE'!G79 -> CD-Q2 - QUADRO DE FORÇA DE SOBREPOR MONTADO EM CAIXA DE COMANDO COM DIMENSÕES MÍNIMAS DE 1800X500X150MM, 66 LUGARES. COM INSTALAÇÃO. | E79: ='Orçamento-TCE'!H79 -> 1 | F79: ='Orçamento-TCE'!I79 -> UN | G79: =Orçamento!H86 -> 6804.32 | H79: =Orçamento!I86 -> 6804.32 | I79: =Orçamento!G86 -> 0.2216 | J79: 1.1122 | L79: 4763.024 | M79: 2041.296 | O79: =IF(#REF!="Tabela Não Desonerada",VLOOKUP($C79,#REF!,13,FALSE),VLOOKUP($C79,#REF!,13,FALSE)) ->  | Q79: =IF(#REF!="Tabela Não Desonerada",VLOOKUP($C79,#REF!,14,FALSE),VLOOKUP($C79,#REF!,14,FALSE)) ->  | S79: =IF(#REF!="Tabela Não Desonerada",VLOOKUP($C79,#REF!,15,FALSE),VLOOKUP($C79,#REF!,15,FALSE)) -> 
A80: 1 | B80: ='Orçamento-TCE'!B80 -> 69 | C80: ='Orçamento-TCE'!C80 -> 10.3 | D80: ='Orçamento-TCE'!G80 -> CD-Q3 - QUADRO DE FORÇA DE SOBREPOR MONTADO EM CAIXA DE COMANDO COM DIMENSÕES MÍNIMAS DE 1800X500X150MM, 66 LUGARES. COM INSTALAÇÃO. | E80: ='Orçamento-TCE'!H80 -> 1 | F80: ='Orçamento-TCE'!I80 -> UN | G80: =Orçamento!H87 -> 6613.82 | H80: =Orçamento!I87 -> 6613.82 | I80: =Orçamento!G87 -> 0.2216 | J80: 1.1122 | L80: 4629.674 | M80: 1984.146 | O80: =IF(#REF!="Tabela Não Desonerada",VLOOKUP($C80,#REF!,13,FALSE),VLOOKUP($C80,#REF!,13,FALSE)) ->  | Q80: =IF(#REF!="Tabela Não Desonerada",VLOOKUP($C80,#REF!,14,FALSE),VLOOKUP($C80,#REF!,14,FALSE)) ->  | S80: =IF(#REF!="Tabela Não Desonerada",VLOOKUP($C80,#REF!,15,FALSE),VLOOKUP($C80,#REF!,15,FALSE)) -> 
A81: 1 | B81: ='Orçamento-TCE'!B81 -> 70 | C81: ='Orçamento-TCE'!C81 -> 10.4 | D81: ='Orçamento-TCE'!G81 -> QF EMERGENCIA - QUADRO DE FORÇA DE SOBREPOR MONTADO EM CAIXA DE COMANDO COM DIMENSÕES MÍNIMAS DE 800X500X150MM. COM INSTALAÇÃO. | E81: ='Orçamento-TCE'!H81 -> 1 | F81: ='Orçamento-TCE'!I81 -> UN | G81: =Orçamento!H88 -> 3966.28 | H81: =Orçamento!I88 -> 3966.28 | I81: =Orçamento!G88 -> 0.2216 | J81: 1.1122 | L81: 2776.396 | M81: 1189.884 | O81: =IF(#REF!="Tabela Não Desonerada",VLOOKUP($C81,#REF!,13,FALSE),VLOOKUP($C81,#REF!,13,FALSE)) ->  | Q81: =IF(#REF!="Tabela Não Desonerada",VLOOKUP($C81,#REF!,14,FALSE),VLOOKUP($C81,#REF!,14,FALSE)) ->  | S81: =IF(#REF!="Tabela Não Desonerada",VLOOKUP($C81,#REF!,15,FALSE),VLOOKUP($C81,#REF!,15,FALSE)) -> 
A82: 1 | B82: ='Orçamento-TCE'!B82 -> 71 | C82: ='Orçamento-TCE'!C82 -> 10.5 | D82: ='Orçamento-TCE'!G82 -> CABO DE COBRE FLEXÍVEL ISOLADO, 95MM2, ANTI-CHAMA 0,6/1,0kV, PARA DISTRIBUIÇÃO - FORNECIMENTO E INSTALAÇÃO. AF_12/2015 | E82: ='Orçamento-TCE'!H82 -> 440 | F82: ='Orçamento-TCE'!I82 -> M | G82: =Orçamento!H89 -> 124.04 | H82: =Orçamento!I89 -> 54577.6 | I82: =Orçamento!G89 -> 0.2216 | J82: 1.1122 | L82: 86.828 | M82: 37.212 | O82: =IF(#REF!="Tabela Não Desonerada",VLOOKUP($C82,#REF!,13,FALSE),VLOOKUP($C82,#REF!,13,FALSE)) ->  | Q82: =IF(#REF!="Tabela Não Desonerada",VLOOKUP($C82,#REF!,14,FALSE),VLOOKUP($C82,#REF!,14,FALSE)) ->  | S82: =IF(#REF!="Tabela Não Desonerada",VLOOKUP($C82,#REF!,15,FALSE),VLOOKUP($C82,#REF!,15,FALSE)) -> 
A83: 1 | B83: ='Orçamento-TCE'!B83 -> 72 | C83: ='Orçamento-TCE'!C83 -> 10.6 | D83: ='Orçamento-TCE'!G83 -> CABO DE COBRE FLEXÍVEL ISOLADO, 50MM2, ANTI-CHAMA 0,6/1,0kV, PARA DISTRIBUIÇÃO - FORNECIMENTO E INSTALAÇÃO. AF_12/2015 | E83: ='Orçamento-TCE'!H83 -> 110 | F83: ='Orçamento-TCE'!I83 -> M | G83: =Orçamento!H90 -> 68.21 | H83: =Orçamento!I90 -> 7503.1 | I83: =Orçamento!G90 -> 0.2216 | J83: 1.1122 | L83: 47.747 | M83: 20.463 | O83: =IF(#REF!="Tabela Não Desonerada",VLOOKUP($C83,#REF!,13,FALSE),VLOOKUP($C83,#REF!,13,FALSE)) ->  | Q83: =IF(#REF!="Tabela Não Desonerada",VLOOKUP($C83,#REF!,14,FALSE),VLOOKUP($C83,#REF!,14,FALSE)) ->  | S83: =IF(#REF!="Tabela Não Desonerada",VLOOKUP($C83,#REF!,15,FALSE),VLOOKUP($C83,#REF!,15,FALSE)) -> 
A84: 1 | B84: ='Orçamento-TCE'!B84 -> 73 | C84: ='Orçamento-TCE'!C84 -> 10.7 | D84: ='Orçamento-TCE'!G84 -> CABO DE COBRE FLEXÍVEL ISOLADO, 35MM2, ANTI-CHAMA 0,6/1,0kV, PARA DISTRIBUIÇÃO - FORNECIMENTO E INSTALAÇÃO. AF_12/2015 | E84: ='Orçamento-TCE'!H84 -> 280 | F84: ='Orçamento-TCE'!I84 -> M | G84: =Orçamento!H91 -> 48.44 | H84: =Orçamento!I91 -> 13563.2 | I84: =Orçamento!G91 -> 0.2216 | J84: 1.1122 | L84: 33.908 | M84: 14.532 | O84: =IF(#REF!="Tabela Não Desonerada",VLOOKUP($C84,#REF!,13,FALSE),VLOOKUP($C84,#REF!,13,FALSE)) ->  | Q84: =IF(#REF!="Tabela Não Desonerada",VLOOKUP($C84,#REF!,14,FALSE),VLOOKUP($C84,#REF!,14,FALSE)) ->  | S84: =IF(#REF!="Tabela Não Desonerada",VLOOKUP($C84,#REF!,15,FALSE),VLOOKUP($C84,#REF!,15,FALSE)) -> 
A85: 1 | B85: ='Orçamento-TCE'!B85 -> 74 | C85: ='Orçamento-TCE'!C85 -> 10.8 | D85: ='Orçamento-TCE'!G85 -> CABO DE COBRE FLEXÍVEL ISOLADO, 25MM2, ANTI-CHAMA 0,6/1,0kV, PARA DISTRIBUIÇÃO - FORNECIMENTO E INSTALAÇÃO. AF_12/2015 | E85: ='Orçamento-TCE'!H85 -> 620 | F85: ='Orçamento-TCE'!I85 -> M | G85: =Orçamento!H92 -> 35.66 | H85: =Orçamento!I92 -> 22109.2 | I85: =Orçamento!G92 -> 0.2216 | J85: 1.1122 | L85: 24.962 | M85: 10.698 | O85: =IF(#REF!="Tabela Não Desonerada",VLOOKUP($C85,#REF!,13,FALSE),VLOOKUP($C85,#REF!,13,FALSE)) ->  | Q85: =IF(#REF!="Tabela Não Desonerada",VLOOKUP($C85,#REF!,14,FALSE),VLOOKUP($C85,#REF!,14,FALSE)) ->  | S85: =IF(#REF!="Tabela Não Desonerada",VLOOKUP($C85,#REF!,15,FALSE),VLOOKUP($C85,#REF!,15,FALSE)) -> 
A86: 1 | B86: ='Orçamento-TCE'!B86 -> 75 | C86: ='Orçamento-TCE'!C86 -> 10.9 | D86: ='Orçamento-TCE'!G86 -> CABO DE COBRE FLEXÍVEL ISOLADO, 16MM2, ANTI-CHAMA 0,6/1,0kV, PARA DISTRIBUIÇÃO - FORNECIMENTO E INSTALAÇÃO. AF_12/2015 | E86: ='Orçamento-TCE'!H86 -> 250 | F86: ='Orçamento-TCE'!I86 -> M | G86: =Orçamento!H93 -> 22.33 | H86: =Orçamento!I93 -> 5582.5 | I86: =Orçamento!G93 -> 0.2216 | J86: 1.1122 | L86: 15.631 | M86: 6.699 | O86: =IF(#REF!="Tabela Não Desonerada",VLOOKUP($C86,#REF!,13,FALSE),VLOOKUP($C86,#REF!,13,FALSE)) ->  | Q86: =IF(#REF!="Tabela Não Desonerada",VLOOKUP($C86,#REF!,14,FALSE),VLOOKUP($C86,#REF!,14,FALSE)) ->  | S86: =IF(#REF!="Tabela Não Desonerada",VLOOKUP($C86,#REF!,15,FALSE),VLOOKUP($C86,#REF!,15,FALSE)) -> 
A87: 1 | B87: ='Orçamento-TCE'!B87 -> 76 | C87: ='Orçamento-TCE'!C87 -> 10.10 | D87: ='Orçamento-TCE'!G87 -> CABO DE COBRE FLEXÍVEL ISOLADO, 10MM2, ANTI-CHAMA 0,6/1,0kV, PARA DISTRIBUIÇÃO - FORNECIMENTO E INSTALAÇÃO. AF_12/2015 | E87: ='Orçamento-TCE'!H87 -> 720 | F87: ='Orçamento-TCE'!I87 -> M | G87: =Orçamento!H94 -> 14.59 | H87: =Orçamento!I94 -> 10504.8 | I87: =Orçamento!G94 -> 0.2216 | J87: 1.1122 | L87: 10.213 | M87: 4.377 | O87: =IF(#REF!="Tabela Não Desonerada",VLOOKUP($C87,#REF!,13,FALSE),VLOOKUP($C87,#REF!,13,FALSE)) ->  | Q87: =IF(#REF!="Tabela Não Desonerada",VLOOKUP($C87,#REF!,14,FALSE),VLOOKUP($C87,#REF!,14,FALSE)) ->  | S87: =IF(#REF!="Tabela Não Desonerada",VLOOKUP($C87,#REF!,15,FALSE),VLOOKUP($C87,#REF!,15,FALSE)) -> 
A88: 1 | B88: ='Orçamento-TCE'!B88 -> 77 | C88: ='Orçamento-TCE'!C88 -> 10.11 | D88: ='Orçamento-TCE'!G88 -> LUMINÁRIA DE EMBUTIR - COMPLETA COM QUATRO LÂMPADAS TUBULARES LED T8 (4x9 - 10W), INSTALAÇÃO EM FORRO COM MODELAÇÃO DE 625X625MM, COM REFLETOR PARABÓLICO E ALETAS DE ALUMÍNIO ANODIZADO BRILHANTE DE ALTA REFLETÂNCIA E ALTA PUREZA 99,85%. SOQUETE TIPO PUSH-IN G-13 DE ENGATE RÁPIDO, ROTOR DE SEGURANÇA EM POLICARBONATO E CONTATOS EM BRONZE FOSFOROSO, COMPLETA. CERTIFICAÇÃO CE, GARANTIA MÍNIMA DE 2 ANOS | E88: ='Orçamento-TCE'!H88 -> 150 | F88: ='Orçamento-TCE'!I88 -> UN | G88: =Orçamento!H95 -> 553.02 | H88: =Orçamento!I95 -> 82953 | I88: =Orçamento!G95 -> 0.2216 | J88: 1.1122 | L88: 387.114 | M88: 165.906 | O88: =IF(#REF!="Tabela Não Desonerada",VLOOKUP($C88,#REF!,13,FALSE),VLOOKUP($C88,#REF!,13,FALSE)) ->  | Q88: =IF(#REF!="Tabela Não Desonerada",VLOOKUP($C88,#REF!,14,FALSE),VLOOKUP($C88,#REF!,14,FALSE)) ->  | S88: =IF(#REF!="Tabela Não Desonerada",VLOOKUP($C88,#REF!,15,FALSE),VLOOKUP($C88,#REF!,15,FALSE)) -> 
A89: 1 | B89: ='Orçamento-TCE'!B89 -> 78 | C89: ='Orçamento-TCE'!C89 -> 10.12 | D89: ='Orçamento-TCE'!G89 -> LUMINÁRIA TIPO CALHA, DE SOBREPOR, COM 2 LÂMPADAS TUBULARES FLUORESCENTES DE 18W, COM REATOR DE PARTIDA RÁPIDA - FORNECIMENTO E INSTALAÇÃO. AF_02/2020 | E89: ='Orçamento-TCE'!H89 -> 23 | F89: ='Orçamento-TCE'!I89 -> UN | G89: =Orçamento!H96 -> 177.49 | H89: =Orçamento!I96 -> 4082.27 | I89: =Orçamento!G96 -> 0.2216 | J89: 1.1122 | L89: 124.243 | M89: 53.247 | O89: =IF(#REF!="Tabela Não Desonerada",VLOOKUP($C89,#REF!,13,FALSE),VLOOKUP($C89,#REF!,13,FALSE)) ->  | Q89: =IF(#REF!="Tabela Não Desonerada",VLOOKUP($C89,#REF!,14,FALSE),VLOOKUP($C89,#REF!,14,FALSE)) ->  | S89: =IF(#REF!="Tabela Não Desonerada",VLOOKUP($C89,#REF!,15,FALSE),VLOOKUP($C89,#REF!,15,FALSE)) -> 
A90: 1 | B90: ='Orçamento-TCE'!B90 -> 79 | C90: ='Orçamento-TCE'!C90 -> 10.13 | D90: ='Orçamento-TCE'!G90 -> LUMINÁRIA DE SOBREPOR - COMPLETA COM DUAS LÂMPADAS TUBULARES LED T8 (2X9W), INSTALAÇÃO EM FORRO DE GESSO, COM REFLETOR PARABÓLICO E ALETAS DE ALUMÍNIO ANODIZADO BRILHANTE DE ALTA REFLETÂNCIA E ALTA PUREZA 99,85%. SOQUE TIPO PUSH-IN G-13 DE ENGATE RÁPIDO, ROTOR DE SEGURANÇA EM POLICARBONATO E CONTATOS EM BRONZE FOSFOROSO. COMPLETA. CERTIFICAÇÃO CE. GARANTIA MÍNIMA 2 ANOS. | E90: ='Orçamento-TCE'!H90 -> 1 | F90: ='Orçamento-TCE'!I90 -> UN | G90: =Orçamento!H97 -> 216.11 | H90: =Orçamento!I97 -> 216.11 | I90: =Orçamento!G97 -> 0.2216 | J90: 1.1122 | L90: 151.277 | M90: 64.833 | O90: =IF(#REF!="Tabela Não Desonerada",VLOOKUP($C90,#REF!,13,FALSE),VLOOKUP($C90,#REF!,13,FALSE)) ->  | Q90: =IF(#REF!="Tabela Não Desonerada",VLOOKUP($C90,#REF!,14,FALSE),VLOOKUP($C90,#REF!,14,FALSE)) ->  | S90: =IF(#REF!="Tabela Não Desonerada",VLOOKUP($C90,#REF!,15,FALSE),VLOOKUP($C90,#REF!,15,FALSE)) -> 
A91: 1 | B91: ='Orçamento-TCE'!B91 -> 80 | C91: ='Orçamento-TCE'!C91 -> 10.14 | D91: ='Orçamento-TCE'!G91 -> Luminária arandela de Sobrepor - Lâmpada led 18 W | E91: ='Orçamento-TCE'!H91 -> 19 | F91: ='Orçamento-TCE'!I91 -> UN | G91: =Orçamento!H98 -> 171.32 | H91: =Orçamento!I98 -> 3255.08 | I91: =Orçamento!G98 -> 0.2216 | J91: 1.1122 | L91: 119.924 | M91: 51.396 | O91: =IF(#REF!="Tabela Não Desonerada",VLOOKUP($C91,#REF!,13,FALSE),VLOOKUP($C91,#REF!,13,FALSE)) ->  | Q91: =IF(#REF!="Tabela Não Desonerada",VLOOKUP($C91,#REF!,14,FALSE),VLOOKUP($C91,#REF!,14,FALSE)) ->  | S91: =IF(#REF!="Tabela Não Desonerada",VLOOKUP($C91,#REF!,15,FALSE),VLOOKUP($C91,#REF!,15,FALSE)) -> 
A92: 1 | B92: ='Orçamento-TCE'!B92 -> 81 | C92: ='Orçamento-TCE'!C92 -> 10.15 | D92: ='Orçamento-TCE'!G92 -> SENSOR DE PRESENÇA COM FOTOCÉLULA, FIXAÇÃO EM PAREDE - FORNECIMENTO E INSTALAÇÃO. AF_02/2020 | E92: ='Orçamento-TCE'!H92 -> 2 | F92: ='Orçamento-TCE'!I92 -> UN | G92: =Orçamento!H99 -> 152.41 | H92: =Orçamento!I99 -> 304.82 | I92: =Orçamento!G99 -> 0.2216 | J92: 1.1122 | L92: 106.687 | M92: 45.723 | O92: =IF(#REF!="Tabela Não Desonerada",VLOOKUP($C92,#REF!,13,FALSE),VLOOKUP($C92,#REF!,13,FALSE)) ->  | Q92: =IF(#REF!="Tabela Não Desonerada",VLOOKUP($C92,#REF!,14,FALSE),VLOOKUP($C92,#REF!,14,FALSE)) ->  | S92: =IF(#REF!="Tabela Não Desonerada",VLOOKUP($C92,#REF!,15,FALSE),VLOOKUP($C92,#REF!,15,FALSE)) -> 
A93: 1 | B93: ='Orçamento-TCE'!B93 -> 82 | C93: ='Orçamento-TCE'!C93 -> 10.16 | D93: ='Orçamento-TCE'!G93 -> MÓDULO AUTÔNOMO DE ILUMINAÇÃO DE EMERGÊNCIA COM DIFUSOR LEITOSO, 500 LÚMENS, 115/220V, COM 80 LED'S. ALTO BRILHO, BATERIA 6V, 4,5Ah, AUTONOMIA DE 8 HORAS, GABINETE EM METAL, PINTURA EPÓXI. REF. TECHNOMASTER LM 0180 OU EQUIVALENTE | E93: ='Orçamento-TCE'!H93 -> 23 | F93: ='Orçamento-TCE'!I93 -> UN | G93: =Orçamento!H100 -> 184.36 | H93: =Orçamento!I100 -> 4240.28 | I93: =Orçamento!G100 -> 0.2216 | J93: 1.1122 | L93: 129.052 | M93: 55.308 | O93: =IF(#REF!="Tabela Não Desonerada",VLOOKUP($C93,#REF!,13,FALSE),VLOOKUP($C93,#REF!,13,FALSE)) ->  | Q93: =IF(#REF!="Tabela Não Desonerada",VLOOKUP($C93,#REF!,14,FALSE),VLOOKUP($C93,#REF!,14,FALSE)) ->  | S93: =IF(#REF!="Tabela Não Desonerada",VLOOKUP($C93,#REF!,15,FALSE),VLOOKUP($C93,#REF!,15,FALSE)) -> 
A94: 1 | B94: ='Orçamento-TCE'!B94 -> 83 | C94: ='Orçamento-TCE'!C94 -> 10.17 | D94: ='Orçamento-TCE'!G94 -> MÓDULO AUTÔNOMO DE EMERGÊNCIA (127/220V) COM 2 FAROLETES DE 32 LED'S CADA, COM BATERIA 12V - 7A COM AUTONOMIA DE 32 HORAS COM SUPORTE METÁLICO PARA FIXAÇÃO DA BATERIA. REF. TECHNOMASTER UN0232 OU EQUIVALENTE | E94: ='Orçamento-TCE'!H94 -> 1 | F94: ='Orçamento-TCE'!I94 -> UN | G94: =Orçamento!H101 -> 284.17 | H94: =Orçamento!I101 -> 284.17 | I94: =Orçamento!G101 -> 0.2216 | J94: 1.1122 | L94: 198.919 | M94: 85.251 | O94: =IF(#REF!="Tabela Não Desonerada",VLOOKUP($C94,#REF!,13,FALSE),VLOOKUP($C94,#REF!,13,FALSE)) ->  | Q94: =IF(#REF!="Tabela Não Desonerada",VLOOKUP($C94,#REF!,14,FALSE),VLOOKUP($C94,#REF!,14,FALSE)) ->  | S94: =IF(#REF!="Tabela Não Desonerada",VLOOKUP($C94,#REF!,15,FALSE),VLOOKUP($C94,#REF!,15,FALSE)) -> 
A95: 1 | B95: ='Orçamento-TCE'!B95 -> 84 | C95: ='Orçamento-TCE'!C95 -> 10.18 | D95: ='Orçamento-TCE'!G95 -> INTERRUPTOR SIMPLES (1 MÓDULO), 10A//250V, INCLUINDO SUPORTE E PLACA - FORNECIMENTO E INSTALAÇÃO. AF_12/2015 | E95: ='Orçamento-TCE'!H95 -> 14 | F95: ='Orçamento-TCE'!I95 -> UN | G95: =Orçamento!H102 -> 29.56 | H95: =Orçamento!I102 -> 413.84 | I95: =Orçamento!G102 -> 0.2216 | J95: 1.1122 | L95: 20.692 | M95: 8.868 | O95: =IF(#REF!="Tabela Não Desonerada",VLOOKUP($C95,#REF!,13,FALSE),VLOOKUP($C95,#REF!,13,FALSE)) ->  | Q95: =IF(#REF!="Tabela Não Desonerada",VLOOKUP($C95,#REF!,14,FALSE),VLOOKUP($C95,#REF!,14,FALSE)) ->  | S95: =IF(#REF!="Tabela Não Desonerada",VLOOKUP($C95,#REF!,15,FALSE),VLOOKUP($C95,#REF!,15,FALSE)) -> 
A96: 1 | B96: ='Orçamento-TCE'!B96 -> 85 | C96: ='Orçamento-TCE'!C96 -> 10.19 | D96: ='Orçamento-TCE'!G96 -> INTERRUPTOR SIMPLES (2 MÓDULOS), 10A/250V, INCLUINDO SUPORTE E PLACA. FORNECIMENTO E INSTALAÇÃO. AF_12/2015 | E96: ='Orçamento-TCE'!H96 -> 16 | F96: ='Orçamento-TCE'!I96 -> UN | G96: =Orçamento!H103 -> 46.81 | H96: =Orçamento!I103 -> 748.96 | I96: =Orçamento!G103 -> 0.2216 | J96: 1.1122 | L96: 32.767 | M96: 14.043 | O96: =IF(#REF!="Tabela Não Desonerada",VLOOKUP($C96,#REF!,13,FALSE),VLOOKUP($C96,#REF!,13,FALSE)) ->  | Q96: =IF(#REF!="Tabela Não Desonerada",VLOOKUP($C96,#REF!,14,FALSE),VLOOKUP($C96,#REF!,14,FALSE)) ->  | S96: =IF(#REF!="Tabela Não Desonerada",VLOOKUP($C96,#REF!,15,FALSE),VLOOKUP($C96,#REF!,15,FALSE)) -> 
A97: 1 | B97: ='Orçamento-TCE'!B97 -> 86 | C97: ='Orçamento-TCE'!C97 -> 10.20 | D97: ='Orçamento-TCE'!G97 -> INTERRUPTOR SIMPLES (3 MÓDULOS), 10A/250V, INCLUINDO SUPORTE E PLACA. FORNECIMENTO E INSTALAÇÃO. AF_12/2015 | E97: ='Orçamento-TCE'!H97 -> 9 | F97: ='Orçamento-TCE'!I97 -> UN | G97: =Orçamento!H104 -> 64.09 | H97: =Orçamento!I104 -> 576.81 | I97: =Orçamento!G104 -> 0.2216 | J97: 1.1122 | L97: 44.863 | M97: 19.227 | O97: =IF(#REF!="Tabela Não Desonerada",VLOOKUP($C97,#REF!,13,FALSE),VLOOKUP($C97,#REF!,13,FALSE)) ->  | Q97: =IF(#REF!="Tabela Não Desonerada",VLOOKUP($C97,#REF!,14,FALSE),VLOOKUP($C97,#REF!,14,FALSE)) ->  | S97: =IF(#REF!="Tabela Não Desonerada",VLOOKUP($C97,#REF!,15,FALSE),VLOOKUP($C97,#REF!,15,FALSE)) -> 
A98: 1 | B98: ='Orçamento-TCE'!B98 -> 87 | C98: ='Orçamento-TCE'!C98 -> 10.21 | D98: ='Orçamento-TCE'!G98 -> INTERRUPTOR BIPOLAR, (1 MÓDULO), 10A/250V, INCLUINDO SUPORTE E PLACA. FORNECIMENTO E INSTALAÇÃO. AF_09/2017 | E98: ='Orçamento-TCE'!H98 -> 10 | F98: ='Orçamento-TCE'!I98 -> UN | G98: =Orçamento!H105 -> 52.14 | H98: =Orçamento!I105 -> 521.4 | I98: =Orçamento!G105 -> 0.2216 | J98: 1.1122 | L98: 36.498 | M98: 15.642 | O98: =IF(#REF!="Tabela Não Desonerada",VLOOKUP($C98,#REF!,13,FALSE),VLOOKUP($C98,#REF!,13,FALSE)) ->  | Q98: =IF(#REF!="Tabela Não Desonerada",VLOOKUP($C98,#REF!,14,FALSE),VLOOKUP($C98,#REF!,14,FALSE)) ->  | S98: =IF(#REF!="Tabela Não Desonerada",VLOOKUP($C98,#REF!,15,FALSE),VLOOKUP($C98,#REF!,15,FALSE)) -> 
A99: 1 | B99: ='Orçamento-TCE'!B99 -> 88 | C99: ='Orçamento-TCE'!C99 -> 10.22 | D99: ='Orçamento-TCE'!G99 -> INTERRUPTOR INTERMEDIÁRIO (1 MÓDULO), 10A/250V, INCLUINDO SUPORTE E PLACA. FORNECIMENTO E INSTALAÇÃO. AF_09/2017 | E99: ='Orçamento-TCE'!H99 -> 1 | F99: ='Orçamento-TCE'!I99 -> UN | G99: =Orçamento!H106 -> 53.73 | H99: =Orçamento!I106 -> 53.73 | I99: =Orçamento!G106 -> 0.2216 | J99: 1.1122 | L99: 37.611 | M99: 16.119 | O99: =IF(#REF!="Tabela Não Desonerada",VLOOKUP($C99,#REF!,13,FALSE),VLOOKUP($C99,#REF!,13,FALSE)) ->  | Q99: =IF(#REF!="Tabela Não Desonerada",VLOOKUP($C99,#REF!,14,FALSE),VLOOKUP($C99,#REF!,14,FALSE)) ->  | S99: =IF(#REF!="Tabela Não Desonerada",VLOOKUP($C99,#REF!,15,FALSE),VLOOKUP($C99,#REF!,15,FALSE)) -> 
A100: 1 | B100: ='Orçamento-TCE'!B100 -> 89 | C100: ='Orçamento-TCE'!C100 -> 10.23 | D100: ='Orçamento-TCE'!G100 -> TOMADA ALTA DE EMBUTIR (1 MÓDULO), 2P+T 10A, INCLUINDO SUPORTE E PLACA. FORNECIMENTO E INSTALAÇÃO. AF_12/2015 | E100: ='Orçamento-TCE'!H100 -> 23 | F100: ='Orçamento-TCE'!I100 -> UN | G100: =Orçamento!H107 -> 44.39 | H100: =Orçamento!I107 -> 1020.97 | I100: =Orçamento!G107 -> 0.2216 | J100: 1.1122 | L100: 31.073 | M100: 13.317 | O100: =IF(#REF!="Tabela Não Desonerada",VLOOKUP($C100,#REF!,13,FALSE),VLOOKUP($C100,#REF!,13,FALSE)) ->  | Q100: =IF(#REF!="Tabela Não Desonerada",VLOOKUP($C100,#REF!,14,FALSE),VLOOKUP($C100,#REF!,14,FALSE)) ->  | S100: =IF(#REF!="Tabela Não Desonerada",VLOOKUP($C100,#REF!,15,FALSE),VLOOKUP($C100,#REF!,15,FALSE)) -> 
A101: 1 | B101: ='Orçamento-TCE'!B101 -> 90 | C101: ='Orçamento-TCE'!C101 -> 10.24 | D101: ='Orçamento-TCE'!G101 -> TOMADA MÉDIA DE EMBUTIR (2 MÓDULOS), 2P+T 10A, INCLUINDO SUPORTE E PLACA. FORNECIMENTO E INSTALAÇÃO. AF_12/2015 | E101: ='Orçamento-TCE'!H101 -> 56 | F101: ='Orçamento-TCE'!I101 -> UN | G101: =Orçamento!H108 -> 57.59 | H101: =Orçamento!I108 -> 3225.04 | I101: =Orçamento!G108 -> 0.2216 | J101: 1.1122 | L101: 40.313 | M101: 17.277 | O101: =IF(#REF!="Tabela Não Desonerada",VLOOKUP($C101,#REF!,13,FALSE),VLOOKUP($C101,#REF!,13,FALSE)) ->  | Q101: =IF(#REF!="Tabela Não Desonerada",VLOOKUP($C101,#REF!,14,FALSE),VLOOKUP($C101,#REF!,14,FALSE)) ->  | S101: =IF(#REF!="Tabela Não Desonerada",VLOOKUP($C101,#REF!,15,FALSE),VLOOKUP($C101,#REF!,15,FALSE)) -> 
A102: 1 | B102: ='Orçamento-TCE'!B102 -> 91 | C102: ='Orçamento-TCE'!C102 -> 10.25 | D102: ='Orçamento-TCE'!G102 -> TOMADA MÉDIA DE EMBUTIR (2 MÓDULOS), 2P+T 20A, INCLUINDO SUPORTE E PLACA. FORNECIMENTO E INSTALAÇÃO. AF_12/2015 | E102: ='Orçamento-TCE'!H102 -> 23 | F102: ='Orçamento-TCE'!I102 -> UN | G102: =Orçamento!H109 -> 63.3 | H102: =Orçamento!I109 -> 1455.9 | I102: =Orçamento!G109 -> 0.2216 | J102: 1.1122 | L102: 44.31 | M102: 18.99 | O102: =IF(#REF!="Tabela Não Desonerada",VLOOKUP($C102,#REF!,13,FALSE),VLOOKUP($C102,#REF!,13,FALSE)) ->  | Q102: =IF(#REF!="Tabela Não Desonerada",VLOOKUP($C102,#REF!,14,FALSE),VLOOKUP($C102,#REF!,14,FALSE)) ->  | S102: =IF(#REF!="Tabela Não Desonerada",VLOOKUP($C102,#REF!,15,FALSE),VLOOKUP($C102,#REF!,15,FALSE)) -> 
A103: 1 | B103: ='Orçamento-TCE'!B103 -> 92 | C103: ='Orçamento-TCE'!C103 -> 10.26 | D103: ='Orçamento-TCE'!G103 -> CABO DE COBRE PP CORDPLAST 3X1,5MM2 HF (NÃO HALOGENADO), 70ºC 450/750V. REF. AFITOX, AFUMEX OU EQUIVALENTE. (LIGAÇÃO PGDM, INTERFONE, FECHO SAA, ILUM. PÓRTICO, LIGAÇÃO LUMINÁRIAS, TOTEM, CUBO, SENSOR PRESENÇA) | E103: ='Orçamento-TCE'!H103 -> 97 | F103: ='Orçamento-TCE'!I103 -> M | G103: =Orçamento!H110 -> 10.32 | H103: =Orçamento!I110 -> 1001.04 | I103: =Orçamento!G110 -> 0.2216 | J103: 1.1122 | L103: 7.224 | M103: 3.096 | O103: =IF(#REF!="Tabela Não Desonerada",VLOOKUP($C103,#REF!,13,FALSE),VLOOKUP($C103,#REF!,13,FALSE)) ->  | Q103: =IF(#REF!="Tabela Não Desonerada",VLOOKUP($C103,#REF!,14,FALSE),VLOOKUP($C103,#REF!,14,FALSE)) ->  | S103: =IF(#REF!="Tabela Não Desonerada",VLOOKUP($C103,#REF!,15,FALSE),VLOOKUP($C103,#REF!,15,FALSE)) -> 
A104: 1 | B104: ='Orçamento-TCE'!B104 -> 93 | C104: ='Orçamento-TCE'!C104 -> 10.27 | D104: ='Orçamento-TCE'!G104 -> CONJUNTO PLUGS MACHO/FÊMEA 2P+T 10A/250V NBR 14136 (LIGAÇÃO LUMINÁRIAS) | E104: ='Orçamento-TCE'!H104 -> 193 | F104: ='Orçamento-TCE'!I104 -> CJ | G104: =Orçamento!H111 -> 22.95 | H104: =Orçamento!I111 -> 4429.35 | I104: =Orçamento!G111 -> 0.2216 | J104: 1.1122 | L104: 16.065 | M104: 6.885 | O104: =IF(#REF!="Tabela Não Desonerada",VLOOKUP($C104,#REF!,13,FALSE),VLOOKUP($C104,#REF!,13,FALSE)) ->  | Q104: =IF(#REF!="Tabela Não Desonerada",VLOOKUP($C104,#REF!,14,FALSE),VLOOKUP($C104,#REF!,14,FALSE)) ->  | S104: =IF(#REF!="Tabela Não Desonerada",VLOOKUP($C104,#REF!,15,FALSE),VLOOKUP($C104,#REF!,15,FALSE)) -> 
A105: 1 | B105: ='Orçamento-TCE'!B105 -> 94 | C105: ='Orçamento-TCE'!C105 -> 10.28 | D105: ='Orçamento-TCE'!G105 -> CABO DE COBRE FLEXÍVEL ISOLADO 2,5MM2, ANTI-CHAMA 450/750V, PARA CIRCUITOS TERMINAIS - FORNECIMENTO E INSTALAÇÃO. AF_12/2015 | E105: ='Orçamento-TCE'!H105 -> 1920 | F105: ='Orçamento-TCE'!I105 -> M | G105: =Orçamento!H112 -> 5.01 | H105: =Orçamento!I112 -> 9619.2 | I105: =Orçamento!G112 -> 0.2216 | J105: 1.1122 | L105: 3.507 | M105: 1.503 | O105: =IF(#REF!="Tabela Não Desonerada",VLOOKUP($C105,#REF!,13,FALSE),VLOOKUP($C105,#REF!,13,FALSE)) ->  | Q105: =IF(#REF!="Tabela Não Desonerada",VLOOKUP($C105,#REF!,14,FALSE),VLOOKUP($C105,#REF!,14,FALSE)) ->  | S105: =IF(#REF!="Tabela Não Desonerada",VLOOKUP($C105,#REF!,15,FALSE),VLOOKUP($C105,#REF!,15,FALSE)) -> 
A106: 1 | B106: ='Orçamento-TCE'!B106 -> 95 | C106: ='Orçamento-TCE'!C106 -> 10.29 | D106: ='Orçamento-TCE'!G106 -> CABO DE COBRE FLEXÍVEL ISOLADO 4MM2, ANTI-CHAMA 450/750V, PARA CIRCUITOS TERMINAIS - FORNECIMENTO E INSTALAÇÃO. AF_12/2015 | E106: ='Orçamento-TCE'!H106 -> 160 | F106: ='Orçamento-TCE'!I106 -> M | G106: =Orçamento!H113 -> 8.29 | H106: =Orçamento!I113 -> 1326.4 | I106: =Orçamento!G113 -> 0.2216 | J106: 1.1122 | L106: 5.803 | M106: 2.487 | O106: =IF(#REF!="Tabela Não Desonerada",VLOOKUP($C106,#REF!,13,FALSE),VLOOKUP($C106,#REF!,13,FALSE)) ->  | Q106: =IF(#REF!="Tabela Não Desonerada",VLOOKUP($C106,#REF!,14,FALSE),VLOOKUP($C106,#REF!,14,FALSE)) ->  | S106: =IF(#REF!="Tabela Não Desonerada",VLOOKUP($C106,#REF!,15,FALSE),VLOOKUP($C106,#REF!,15,FALSE)) -> 
A107: 1 | B107: ='Orçamento-TCE'!B107 -> 96 | C107: ='Orçamento-TCE'!C107 -> 10.30 | D107: ='Orçamento-TCE'!G107 -> ELETRODUTO DE AÇO GALVANIZADO, CLASSE LEVE, DN 20MM (3/4"), APARENTE, INSTALADO EM TETO - FORNECIMENTO E INSTALAÇÃO. AF_11/2016_P | E107: ='Orçamento-TCE'!H107 -> 150 | F107: ='Orçamento-TCE'!I107 -> M | G107: =Orçamento!H114 -> 41.11 | H107: =Orçamento!I114 -> 6166.5 | I107: =Orçamento!G114 -> 0.2216 | J107: 1.1122 | L107: 28.777 | M107: 12.333 | O107: =IF(#REF!="Tabela Não Desonerada",VLOOKUP($C107,#REF!,13,FALSE),VLOOKUP($C107,#REF!,13,FALSE)) ->  | Q107: =IF(#REF!="Tabela Não Desonerada",VLOOKUP($C107,#REF!,14,FALSE),VLOOKUP($C107,#REF!,14,FALSE)) ->  | S107: =IF(#REF!="Tabela Não Desonerada",VLOOKUP($C107,#REF!,15,FALSE),VLOOKUP($C107,#REF!,15,FALSE)) -> 
A108: 1 | B108: ='Orçamento-TCE'!B108 -> 97 | C108: ='Orçamento-TCE'!C108 -> 10.31 | D108: ='Orçamento-TCE'!G108 -> ELETRODUTO DE AÇO GALVANIZADO, CLASSE LEVE, DN 25MM (1"), APARENTE, INSTALADO EM TETO - FORNECIMENTO E INSTALAÇÃO. AF_11/2016_P | E108: ='Orçamento-TCE'!H108 -> 560 | F108: ='Orçamento-TCE'!I108 -> M | G108: =Orçamento!H115 -> 51.83 | H108: =Orçamento!I115 -> 29024.8 | I108: =Orçamento!G115 -> 0.2216 | J108: 1.1122 | L108: 36.281 | M108: 15.549 | O108: =IF(#REF!="Tabela Não Desonerada",VLOOKUP($C108,#REF!,13,FALSE),VLOOKUP($C108,#REF!,13,FALSE)) ->  | Q108: =IF(#REF!="Tabela Não Desonerada",VLOOKUP($C108,#REF!,14,FALSE),VLOOKUP($C108,#REF!,14,FALSE)) ->  | S108: =IF(#REF!="Tabela Não Desonerada",VLOOKUP($C108,#REF!,15,FALSE),VLOOKUP($C108,#REF!,15,FALSE)) -> 
A109: 1 | B109: ='Orçamento-TCE'!B109 -> 98 | C109: ='Orçamento-TCE'!C109 -> 10.32 | D109: ='Orçamento-TCE'!G109 -> ELETRODUTO DE AÇO GALVANIZADO, CLASSE SEMI PESADO, DN 50MM - FORNECIMENTO E INSTALAÇÃO | E109: ='Orçamento-TCE'!H109 -> 90 | F109: ='Orçamento-TCE'!I109 -> M | G109: =Orçamento!H116 -> 108.84 | H109: =Orçamento!I116 -> 9795.6 | I109: =Orçamento!G116 -> 0.2216 | J109: 1.1122 | L109: 76.188 | M109: 32.652 | O109: =IF(#REF!="Tabela Não Desonerada",VLOOKUP($C109,#REF!,13,FALSE),VLOOKUP($C109,#REF!,13,FALSE)) ->  | Q109: =IF(#REF!="Tabela Não Desonerada",VLOOKUP($C109,#REF!,14,FALSE),VLOOKUP($C109,#REF!,14,FALSE)) ->  | S109: =IF(#REF!="Tabela Não Desonerada",VLOOKUP($C109,#REF!,15,FALSE),VLOOKUP($C109,#REF!,15,FALSE)) -> 
A110: 1 | B110: ='Orçamento-TCE'!B110 -> 99 | C110: ='Orçamento-TCE'!C110 -> 10.33 | D110: ='Orçamento-TCE'!G110 -> BARRAMENTO DE EQUIPOTENCIALIZAÇÃO | E110: ='Orçamento-TCE'!H110 -> 1 | F110: ='Orçamento-TCE'!I110 -> UN | G110: =Orçamento!H117 -> 50.24 | H110: =Orçamento!I117 -> 50.24 | I110: =Orçamento!G117 -> 0.2216 | J110: 1.1122 | L110: 35.168 | M110: 15.072 | O110: =IF(#REF!="Tabela Não Desonerada",VLOOKUP($C110,#REF!,13,FALSE),VLOOKUP($C110,#REF!,13,FALSE)) ->  | Q110: =IF(#REF!="Tabela Não Desonerada",VLOOKUP($C110,#REF!,14,FALSE),VLOOKUP($C110,#REF!,14,FALSE)) ->  | S110: =IF(#REF!="Tabela Não Desonerada",VLOOKUP($C110,#REF!,15,FALSE),VLOOKUP($C110,#REF!,15,FALSE)) -> 
A111: 1 | B111: ='Orçamento-TCE'!B111 -> 100 | C111: ='Orçamento-TCE'!C111 -> 10.34 | D111: ='Orçamento-TCE'!G111 -> CORDOALHA DE COBRE NU, 50MM2, ENTERRADA, SEM ISOLADOR - FORNECIMENTO E INSTALAÇÃO. AF_12/2017 | E111: ='Orçamento-TCE'!H111 -> 30 | F111: ='Orçamento-TCE'!I111 -> M | G111: =Orçamento!H118 -> 67.52 | H111: =Orçamento!I118 -> 2025.6 | I111: =Orçamento!G118 -> 0.2216 | J111: 1.1122 | L111: 47.264 | M111: 20.256 | O111: =IF(#REF!="Tabela Não Desonerada",VLOOKUP($C111,#REF!,13,FALSE),VLOOKUP($C111,#REF!,13,FALSE)) ->  | Q111: =IF(#REF!="Tabela Não Desonerada",VLOOKUP($C111,#REF!,14,FALSE),VLOOKUP($C111,#REF!,14,FALSE)) ->  | S111: =IF(#REF!="Tabela Não Desonerada",VLOOKUP($C111,#REF!,15,FALSE),VLOOKUP($C111,#REF!,15,FALSE)) -> 
A112: 1 | B112: ='Orçamento-TCE'!B112 -> 101 | C112: ='Orçamento-TCE'!C112 -> 10.35 | D112: ='Orçamento-TCE'!G112 -> HASTE DE ATERRAMENTO 3/4 PARA SPDA -FORNECIMENTO E INSTALAÇÃO. AF_12/2017 | E112: ='Orçamento-TCE'!H112 -> 3 | F112: ='Orçamento-TCE'!I112 -> UN | G112: =Orçamento!H119 -> 171.62 | H112: =Orçamento!I119 -> 514.86 | I112: =Orçamento!G119 -> 0.2216 | J112: 1.1122 | L112: 120.134 | M112: 51.486 | O112: =IF(#REF!="Tabela Não Desonerada",VLOOKUP($C112,#REF!,13,FALSE),VLOOKUP($C112,#REF!,13,FALSE)) ->  | Q112: =IF(#REF!="Tabela Não Desonerada",VLOOKUP($C112,#REF!,14,FALSE),VLOOKUP($C112,#REF!,14,FALSE)) ->  | S112: =IF(#REF!="Tabela Não Desonerada",VLOOKUP($C112,#REF!,15,FALSE),VLOOKUP($C112,#REF!,15,FALSE)) -> 
A113: 1 | B113: ='Orçamento-TCE'!B113 -> 102 | C113: ='Orçamento-TCE'!C113 -> 10.36 | D113: ='Orçamento-TCE'!G113 -> Fornecimento e instalação de eletrocalha perfurada 300x100x3000mm | E113: ='Orçamento-TCE'!H113 -> 170 | F113: ='Orçamento-TCE'!I113 -> M | G113: =Orçamento!H120 -> 146.89 | H113: =Orçamento!I120 -> 24971.3 | I113: =Orçamento!G120 -> 0.2216 | J113: 1.1122 | L113: 102.823 | M113: 44.067 | O113: =IF(#REF!="Tabela Não Desonerada",VLOOKUP($C113,#REF!,13,FALSE),VLOOKUP($C113,#REF!,13,FALSE)) ->  | Q113: =IF(#REF!="Tabela Não Desonerada",VLOOKUP($C113,#REF!,14,FALSE),VLOOKUP($C113,#REF!,14,FALSE)) ->  | S113: =IF(#REF!="Tabela Não Desonerada",VLOOKUP($C113,#REF!,15,FALSE),VLOOKUP($C113,#REF!,15,FALSE)) -> 
A114: 1 | B114: ='Orçamento-TCE'!B114 -> 103 | C114: ='Orçamento-TCE'!C114 -> 10.37 | D114: ='Orçamento-TCE'!G114 -> Tampa de encaixe 300x3000mm, zincada, para eletrocalha metálica | E114: ='Orçamento-TCE'!H114 -> 57 | F114: ='Orçamento-TCE'!I114 -> UN | G114: =Orçamento!H121 -> 156.05 | H114: =Orçamento!I121 -> 8894.85 | I114: =Orçamento!G121 -> 0.2216 | J114: 1.1122 | L114: 109.235 | M114: 46.815 | O114: =IF(#REF!="Tabela Não Desonerada",VLOOKUP($C114,#REF!,13,FALSE),VLOOKUP($C114,#REF!,13,FALSE)) ->  | Q114: =IF(#REF!="Tabela Não Desonerada",VLOOKUP($C114,#REF!,14,FALSE),VLOOKUP($C114,#REF!,14,FALSE)) ->  | S114: =IF(#REF!="Tabela Não Desonerada",VLOOKUP($C114,#REF!,15,FALSE),VLOOKUP($C114,#REF!,15,FALSE)) -> 
A115: 1 | B115: ='Orçamento-TCE'!B115 -> 104 | C115: ='Orçamento-TCE'!C115 -> 10.38 | D115: ='Orçamento-TCE'!G115 -> Suporte horizontal 300x100mm para fixação de eletrocalha metálica | E115: ='Orçamento-TCE'!H115 -> 170 | F115: ='Orçamento-TCE'!I115 -> UN | G115: =Orçamento!H122 -> 16.11 | H115: =Orçamento!I122 -> 2738.7 | I115: =Orçamento!G122 -> 0.2216 | J115: 1.1122 | L115: 11.277 | M115: 4.833 | O115: =IF(#REF!="Tabela Não Desonerada",VLOOKUP($C115,#REF!,13,FALSE),VLOOKUP($C115,#REF!,13,FALSE)) ->  | Q115: =IF(#REF!="Tabela Não Desonerada",VLOOKUP($C115,#REF!,14,FALSE),VLOOKUP($C115,#REF!,14,FALSE)) ->  | S115: =IF(#REF!="Tabela Não Desonerada",VLOOKUP($C115,#REF!,15,FALSE),VLOOKUP($C115,#REF!,15,FALSE)) -> 
A116: 1 | B116: ='Orçamento-TCE'!B116 -> 105 | C116: ='Orçamento-TCE'!C116 -> 10.39 | D116: ='Orçamento-TCE'!G116 -> Fornecimento e instalação de curva vertical em PVC, para eletrocalha, 300x100mm | E116: ='Orçamento-TCE'!H116 -> 8 | F116: ='Orçamento-TCE'!I116 -> UN | G116: =Orçamento!H123 -> 151.86 | H116: =Orçamento!I123 -> 1214.88 | I116: =Orçamento!G123 -> 0.2216 | J116: 1.1122 | L116: 106.302 | M116: 45.558 | O116: =IF(#REF!="Tabela Não Desonerada",VLOOKUP($C116,#REF!,13,FALSE),VLOOKUP($C116,#REF!,13,FALSE)) ->  | Q116: =IF(#REF!="Tabela Não Desonerada",VLOOKUP($C116,#REF!,14,FALSE),VLOOKUP($C116,#REF!,14,FALSE)) ->  | S116: =IF(#REF!="Tabela Não Desonerada",VLOOKUP($C116,#REF!,15,FALSE),VLOOKUP($C116,#REF!,15,FALSE)) -> 
A117: 1 | B117: ='Orçamento-TCE'!B117 -> 106 | C117: ='Orçamento-TCE'!C117 -> 10.40 | D117: ='Orçamento-TCE'!G117 -> Emenda interna 300 x 100 mm com base lisa perfurada para eletrocalha metálica (ref. Mopa ou similar) | E117: ='Orçamento-TCE'!H117 -> 169 | F117: ='Orçamento-TCE'!I117 -> UN | G117: =Orçamento!H124 -> 30.1 | H117: =Orçamento!I124 -> 5086.9 | I117: =Orçamento!G124 -> 0.2216 | J117: 1.1122 | L117: 21.07 | M117: 9.03 | O117: =IF(#REF!="Tabela Não Desonerada",VLOOKUP($C117,#REF!,13,FALSE),VLOOKUP($C117,#REF!,13,FALSE)) ->  | Q117: =IF(#REF!="Tabela Não Desonerada",VLOOKUP($C117,#REF!,14,FALSE),VLOOKUP($C117,#REF!,14,FALSE)) ->  | S117: =IF(#REF!="Tabela Não Desonerada",VLOOKUP($C117,#REF!,15,FALSE),VLOOKUP($C117,#REF!,15,FALSE)) -> 
A118: 1 | B118: ='Orçamento-TCE'!B118 -> 107 | C118: ='Orçamento-TCE'!C118 -> 10.41 | D118: ='Orçamento-TCE'!G118 -> Perfilado 38x38mm chapa #18 | E118: ='Orçamento-TCE'!H118 -> 440 | F118: ='Orçamento-TCE'!I118 -> M | G118: =Orçamento!H125 -> 42.8 | H118: =Orçamento!I125 -> 18832 | I118: =Orçamento!G125 -> 0.2216 | J118: 1.1122 | L118: 29.96 | M118: 12.84 | O118: =IF(#REF!="Tabela Não Desonerada",VLOOKUP($C118,#REF!,13,FALSE),VLOOKUP($C118,#REF!,13,FALSE)) ->  | Q118: =IF(#REF!="Tabela Não Desonerada",VLOOKUP($C118,#REF!,14,FALSE),VLOOKUP($C118,#REF!,14,FALSE)) ->  | S118: =IF(#REF!="Tabela Não Desonerada",VLOOKUP($C118,#REF!,15,FALSE),VLOOKUP($C118,#REF!,15,FALSE)) -> 
A119: 1 | B119: ='Orçamento-TCE'!B119 -> 108 | C119: ='Orçamento-TCE'!C119 -> 10.42 | D119: ='Orçamento-TCE'!G119 -> Suporte longo para perfilado 38x38MM | E119: ='Orçamento-TCE'!H119 -> 440 | F119: ='Orçamento-TCE'!I119 -> UN | G119: =Orçamento!H126 -> 1.89 | H119: =Orçamento!I126 -> 831.6 | I119: =Orçamento!G126 -> 0.2216 | J119: 1.1122 | L119: 1.323 | M119: 0.567 | O119: =IF(#REF!="Tabela Não Desonerada",VLOOKUP($C119,#REF!,13,FALSE),VLOOKUP($C119,#REF!,13,FALSE)) ->  | Q119: =IF(#REF!="Tabela Não Desonerada",VLOOKUP($C119,#REF!,14,FALSE),VLOOKUP($C119,#REF!,14,FALSE)) ->  | S119: =IF(#REF!="Tabela Não Desonerada",VLOOKUP($C119,#REF!,15,FALSE),VLOOKUP($C119,#REF!,15,FALSE)) -> 
A120: 1 | B120: ='Orçamento-TCE'!B120 -> 109 | C120: ='Orçamento-TCE'!C120 -> 10.43 | D120: ='Orçamento-TCE'!G120 -> Vergalhão rosca total 1/4" | E120: ='Orçamento-TCE'!H120 -> 450 | F120: ='Orçamento-TCE'!I120 -> M | G120: =Orçamento!H127 -> 24.72 | H120: =Orçamento!I127 -> 11124 | I120: =Orçamento!G127 -> 0.2216 | J120: 1.1122 | L120: 17.304 | M120: 7.416 | O120: =IF(#REF!="Tabela Não Desonerada",VLOOKUP($C120,#REF!,13,FALSE),VLOOKUP($C120,#REF!,13,FALSE)) ->  | Q120: =IF(#REF!="Tabela Não Desonerada",VLOOKUP($C120,#REF!,14,FALSE),VLOOKUP($C120,#REF!,14,FALSE)) ->  | S120: =IF(#REF!="Tabela Não Desonerada",VLOOKUP($C120,#REF!,15,FALSE),VLOOKUP($C120,#REF!,15,FALSE)) -> 
A121: 1 | B121: ='Orçamento-TCE'!B121 -> 110 | C121: ='Orçamento-TCE'!C121 -> 10.44 | D121: ='Orçamento-TCE'!G121 -> Chumbador rosca interna 1/4" | E121: ='Orçamento-TCE'!H121 -> 225 | F121: ='Orçamento-TCE'!I121 -> UN | G121: =Orçamento!H128 -> 34.66 | H121: =Orçamento!I128 -> 7798.5 | I121: =Orçamento!G128 -> 0.2216 | J121: 1.1122 | L121: 24.262 | M121: 10.398 | O121: =IF(#REF!="Tabela Não Desonerada",VLOOKUP($C121,#REF!,13,FALSE),VLOOKUP($C121,#REF!,13,FALSE)) ->  | Q121: =IF(#REF!="Tabela Não Desonerada",VLOOKUP($C121,#REF!,14,FALSE),VLOOKUP($C121,#REF!,14,FALSE)) ->  | S121: =IF(#REF!="Tabela Não Desonerada",VLOOKUP($C121,#REF!,15,FALSE),VLOOKUP($C121,#REF!,15,FALSE)) -> 
A122: 1 | B122: ='Orçamento-TCE'!B122 -> 111 | C122: ='Orçamento-TCE'!C122 -> 10.45 | D122: ='Orçamento-TCE'!G122 -> TRANSFORMADOR TRIFÁSICO A SECO, PN=225KVA, CLASSE 15KV - BT 220/127V - 60HZ, IP00. | E122: ='Orçamento-TCE'!H122 -> 1 | F122: ='Orçamento-TCE'!I122 -> UN | G122: =Orçamento!H129 -> 34088.78 | H122: =Orçamento!I129 -> 34088.78 | I122: =Orçamento!G129 -> 0.2216 | J122: 1.1122 | L122: 23862.146 | M122: 10226.634 | O122: =IF(#REF!="Tabela Não Desonerada",VLOOKUP($C122,#REF!,13,FALSE),VLOOKUP($C122,#REF!,13,FALSE)) ->  | Q122: =IF(#REF!="Tabela Não Desonerada",VLOOKUP($C122,#REF!,14,FALSE),VLOOKUP($C122,#REF!,14,FALSE)) ->  | S122: =IF(#REF!="Tabela Não Desonerada",VLOOKUP($C122,#REF!,15,FALSE),VLOOKUP($C122,#REF!,15,FALSE)) -> 
A123: 1 | B123: ='Orçamento-TCE'!B123 -> 112 | C123: ='Orçamento-TCE'!C123 -> 10.46 | D123: ='Orçamento-TCE'!G123 -> CABO DE COBRE UNIPOLAR #35MM² BLINDADO, ISOLAÇÃO 12/20KV EPR - COBERTURA EM PVC | E123: ='Orçamento-TCE'!H123 -> 300 | F123: ='Orçamento-TCE'!I123 -> M | G123: =Orçamento!H130 -> 127.22 | H123: =Orçamento!I130 -> 38166 | I123: =Orçamento!G130 -> 0.2216 | J123: 1.1122 | L123: 89.054 | M123: 38.166 | O123: =IF(#REF!="Tabela Não Desonerada",VLOOKUP($C123,#REF!,13,FALSE),VLOOKUP($C123,#REF!,13,FALSE)) ->  | Q123: =IF(#REF!="Tabela Não Desonerada",VLOOKUP($C123,#REF!,14,FALSE),VLOOKUP($C123,#REF!,14,FALSE)) ->  | S123: =IF(#REF!="Tabela Não Desonerada",VLOOKUP($C123,#REF!,15,FALSE),VLOOKUP($C123,#REF!,15,FALSE)) -> 
A124: 1 | B124: ='Orçamento-TCE'!B124 -> 113 | C124: ='Orçamento-TCE'!C124 -> 10.47 | D124: ='Orçamento-TCE'!G124 -> TERMINAÇÃO TERMOCONTRÁTIL PARA CABO 35MM2, CLASSE 15kV (PARA USO EXTERNO) | E124: ='Orçamento-TCE'!H124 -> 3 | F124: ='Orçamento-TCE'!I124 -> UN | G124: =Orçamento!H131 -> 317.84 | H124: =Orçamento!I131 -> 953.52 | I124: =Orçamento!G131 -> 0.2216 | J124: 1.1122 | L124: 222.488 | M124: 95.352 | O124: =IF(#REF!="Tabela Não Desonerada",VLOOKUP($C124,#REF!,13,FALSE),VLOOKUP($C124,#REF!,13,FALSE)) ->  | Q124: =IF(#REF!="Tabela Não Desonerada",VLOOKUP($C124,#REF!,14,FALSE),VLOOKUP($C124,#REF!,14,FALSE)) ->  | S124: =IF(#REF!="Tabela Não Desonerada",VLOOKUP($C124,#REF!,15,FALSE),VLOOKUP($C124,#REF!,15,FALSE)) -> 
A125: 1 | B125: ='Orçamento-TCE'!B125 -> 114 | C125: ='Orçamento-TCE'!C125 -> 10.48 | D125: ='Orçamento-TCE'!G125 -> TERMINAÇÃO TERMOCONTRÁTIL PARA CABO 35MM2, CLASSE 15kV (PARA USO INTERNO) | E125: ='Orçamento-TCE'!H125 -> 3 | F125: ='Orçamento-TCE'!I125 -> UN | G125: =Orçamento!H132 -> 317.59 | H125: =Orçamento!I132 -> 952.77 | I125: =Orçamento!G132 -> 0.2216 | J125: 1.1122 | L125: 222.313 | M125: 95.277 | O125: =IF(#REF!="Tabela Não Desonerada",VLOOKUP($C125,#REF!,13,FALSE),VLOOKUP($C125,#REF!,13,FALSE)) ->  | Q125: =IF(#REF!="Tabela Não Desonerada",VLOOKUP($C125,#REF!,14,FALSE),VLOOKUP($C125,#REF!,14,FALSE)) ->  | S125: =IF(#REF!="Tabela Não Desonerada",VLOOKUP($C125,#REF!,15,FALSE),VLOOKUP($C125,#REF!,15,FALSE)) -> 
A126: 1 | B126: ='Orçamento-TCE'!B126 -> 115 | C126: ='Orçamento-TCE'!C126 -> 10.49 | D126: ='Orçamento-TCE'!G126 -> SECCIONADORA TRIPOLAR SECA 15KV-400A-TSI 95KV-COMANDO POR PUNHO | E126: ='Orçamento-TCE'!H126 -> 1 | F126: ='Orçamento-TCE'!I126 -> UN | G126: =Orçamento!H133 -> 1688.14 | H126: =Orçamento!I133 -> 1688.14 | I126: =Orçamento!G133 -> 0.2216 | J126: 1.1122 | L126: 1181.698 | M126: 506.442 | O126: =IF(#REF!="Tabela Não Desonerada",VLOOKUP($C126,#REF!,13,FALSE),VLOOKUP($C126,#REF!,13,FALSE)) ->  | Q126: =IF(#REF!="Tabela Não Desonerada",VLOOKUP($C126,#REF!,14,FALSE),VLOOKUP($C126,#REF!,14,FALSE)) ->  | S126: =IF(#REF!="Tabela Não Desonerada",VLOOKUP($C126,#REF!,15,FALSE),VLOOKUP($C126,#REF!,15,FALSE)) -> 
A127: 1 | B127: ='Orçamento-TCE'!B127 -> 116 | C127: ='Orçamento-TCE'!C127 -> 10.50 | D127: ='Orçamento-TCE'!G127 -> SECCIONADORA TRIPOLAR FUSÍVEL 15KV-400A-TSI95KV-COMANDO POR PUNHO ABERTURA MÍNIMA 18CM-RUPTURA MÌNIMA 30KA-COM FUSÍVEL HH ABERTURA SOB CARGA | E127: ='Orçamento-TCE'!H127 -> 1 | F127: ='Orçamento-TCE'!I127 -> UN | G127: =Orçamento!H134 -> 3516.65 | H127: =Orçamento!I134 -> 3516.65 | I127: =Orçamento!G134 -> 0.2216 | J127: 1.1122 | L127: 2461.655 | M127: 1054.995 | O127: =IF(#REF!="Tabela Não Desonerada",VLOOKUP($C127,#REF!,13,FALSE),VLOOKUP($C127,#REF!,13,FALSE)) ->  | Q127: =IF(#REF!="Tabela Não Desonerada",VLOOKUP($C127,#REF!,14,FALSE),VLOOKUP($C127,#REF!,14,FALSE)) ->  | S127: =IF(#REF!="Tabela Não Desonerada",VLOOKUP($C127,#REF!,15,FALSE),VLOOKUP($C127,#REF!,15,FALSE)) -> 
A128: 1 | B128: ='Orçamento-TCE'!B128 -> 117 | C128: ='Orçamento-TCE'!C128 -> 10.51 | D128: ='Orçamento-TCE'!G128 -> PUNHO DE ACIONAMENTO DA SECCIONADORA C/ MICROINTERRUPTOR DO INTERTRAVAMENTO ELÉTRICO, DIRETAMENTE ATERRADO | E128: ='Orçamento-TCE'!H128 -> 1 | F128: ='Orçamento-TCE'!I128 -> UN | G128: =Orçamento!H135 -> 404.47 | H128: =Orçamento!I135 -> 404.47 | I128: =Orçamento!G135 -> 0.2216 | J128: 1.1122 | L128: 283.129 | M128: 121.341 | O128: =IF(#REF!="Tabela Não Desonerada",VLOOKUP($C128,#REF!,13,FALSE),VLOOKUP($C128,#REF!,13,FALSE)) ->  | Q128: =IF(#REF!="Tabela Não Desonerada",VLOOKUP($C128,#REF!,14,FALSE),VLOOKUP($C128,#REF!,14,FALSE)) ->  | S128: =IF(#REF!="Tabela Não Desonerada",VLOOKUP($C128,#REF!,15,FALSE),VLOOKUP($C128,#REF!,15,FALSE)) -> 
A129: 1 | B129: ='Orçamento-TCE'!B129 -> 118 | C129: ='Orçamento-TCE'!C129 -> 10.52 | D129: ='Orçamento-TCE'!G129 -> PLACA DE SINALIZAÇÃO DE SEGURANÇA CONTRA INCÊNDIO, FOTOLUMINISCENTE, RETANGULAR, 20X40CM EM PVC 2MM, ANTI-CHAMAS (SÍMBOLOS, CORES E PICTOGRAMAS CONFORME NBR 13434) | E129: ='Orçamento-TCE'!H129 -> 3 | F129: ='Orçamento-TCE'!I129 -> UN | G129: =Orçamento!H136 -> 45.5 | H129: =Orçamento!I136 -> 136.5 | I129: =Orçamento!G136 -> 0.2216 | J129: 1.1122 | L129: 31.85 | M129: 13.65 | O129: =IF(#REF!="Tabela Não Desonerada",VLOOKUP($C129,#REF!,13,FALSE),VLOOKUP($C129,#REF!,13,FALSE)) ->  | Q129: =IF(#REF!="Tabela Não Desonerada",VLOOKUP($C129,#REF!,14,FALSE),VLOOKUP($C129,#REF!,14,FALSE)) ->  | S129: =IF(#REF!="Tabela Não Desonerada",VLOOKUP($C129,#REF!,15,FALSE),VLOOKUP($C129,#REF!,15,FALSE)) -> 
A130: 1 | B130: ='Orçamento-TCE'!B130 -> 119 | C130: ='Orçamento-TCE'!C130 -> 10.53 | D130: ='Orçamento-TCE'!G130 -> QUADRO COM DIAGRAMA UNIFILAR DA SUBESTAÇÃO | E130: ='Orçamento-TCE'!H130 -> 1 | F130: ='Orçamento-TCE'!I130 -> UN | G130: =Orçamento!H137 -> 656.66 | H130: =Orçamento!I137 -> 656.66 | I130: =Orçamento!G137 -> 0.2216 | J130: 1.1122 | L130: 459.662 | M130: 196.998 | O130: =IF(#REF!="Tabela Não Desonerada",VLOOKUP($C130,#REF!,13,FALSE),VLOOKUP($C130,#REF!,13,FALSE)) ->  | Q130: =IF(#REF!="Tabela Não Desonerada",VLOOKUP($C130,#REF!,14,FALSE),VLOOKUP($C130,#REF!,14,FALSE)) ->  | S130: =IF(#REF!="Tabela Não Desonerada",VLOOKUP($C130,#REF!,15,FALSE),VLOOKUP($C130,#REF!,15,FALSE)) -> 
A131: 1 | B131: ='Orçamento-TCE'!B131 -> 120 | C131: ='Orçamento-TCE'!C131 -> 10.54 | D131: ='Orçamento-TCE'!G131 -> PISO DE BORRACHA FRISADO OU PASTILHADO, PRETO, EM PLACAS DE 50X50CM, E=7MM, PARA ARGAMASSA | E131: ='Orçamento-TCE'!H131 -> 0.25 | F131: ='Orçamento-TCE'!I131 -> M2 | G131: =Orçamento!H138 -> 220.56 | H131: =Orçamento!I138 -> 55.14 | I131: =Orçamento!G138 -> 0.2216 | J131: 1.1122 | L131: 154.392 | M131: 66.168 | O131: =IF(#REF!="Tabela Não Desonerada",VLOOKUP($C131,#REF!,13,FALSE),VLOOKUP($C131,#REF!,13,FALSE)) ->  | Q131: =IF(#REF!="Tabela Não Desonerada",VLOOKUP($C131,#REF!,14,FALSE),VLOOKUP($C131,#REF!,14,FALSE)) ->  | S131: =IF(#REF!="Tabela Não Desonerada",VLOOKUP($C131,#REF!,15,FALSE),VLOOKUP($C131,#REF!,15,FALSE)) -> 
A132: 1 | B132: ='Orçamento-TCE'!B132 -> 121 | C132: ='Orçamento-TCE'!C132 -> 11.1 | D132: ='Orçamento-TCE'!G132 -> TUBO, PPR, DN 25, CLASSE PN 20, INSTALADO EM RAMAL OU SUB-RAMAL DE ÁGUA - FORNECIMENTO E INSTALAÇÃO. AF_06/2015 | E132: ='Orçamento-TCE'!H132 -> 60 | F132: ='Orçamento-TCE'!I132 -> M | G132: =Orçamento!H140 -> 34.33 | H132: =Orçamento!I140 -> 2059.8 | I132: =Orçamento!G140 -> 0.2216 | J132: 1.1122 | L132: 24.031 | M132: 10.299 | O132: =IF(#REF!="Tabela Não Desonerada",VLOOKUP($C132,#REF!,13,FALSE),VLOOKUP($C132,#REF!,13,FALSE)) ->  | Q132: =IF(#REF!="Tabela Não Desonerada",VLOOKUP($C132,#REF!,14,FALSE),VLOOKUP($C132,#REF!,14,FALSE)) ->  | S132: =IF(#REF!="Tabela Não Desonerada",VLOOKUP($C132,#REF!,15,FALSE),VLOOKUP($C132,#REF!,15,FALSE)) -> 
A133: 1 | B133: ='Orçamento-TCE'!B133 -> 122 | C133: ='Orçamento-TCE'!C133 -> 11.2 | D133: ='Orçamento-TCE'!G133 -> TUBO, PVC, SOLDÁVEL, DN 25MM, INSTALADO EM RAMAL OU SUB-RAMAL DE ÁGUA - FORNECIMENTO E INSTALAÇÃO. AF_12/2014 | E133: ='Orçamento-TCE'!H133 -> 157 | F133: ='Orçamento-TCE'!I133 -> M | G133: =Orçamento!H141 -> 26.18 | H133: =Orçamento!I141 -> 4110.26 | I133: =Orçamento!G141 -> 0.2216 | J133: 1.1122 | L133: 18.326 | M133: 7.854 | O133: =IF(#REF!="Tabela Não Desonerada",VLOOKUP($C133,#REF!,13,FALSE),VLOOKUP($C133,#REF!,13,FALSE)) ->  | Q133: =IF(#REF!="Tabela Não Desonerada",VLOOKUP($C133,#REF!,14,FALSE),VLOOKUP($C133,#REF!,14,FALSE)) ->  | S133: =IF(#REF!="Tabela Não Desonerada",VLOOKUP($C133,#REF!,15,FALSE),VLOOKUP($C133,#REF!,15,FALSE)) -> 
A134: 1 | B134: ='Orçamento-TCE'!B134 -> 123 | C134: ='Orçamento-TCE'!C134 -> 11.3 | D134: ='Orçamento-TCE'!G134 -> TUBO, PPR, DN 32, CLASSE PN 12, INSTALADO EM RAMAL DE DISTRIBUIÇÃO DE ÁGUA - FORNECIMENTO E INSTALAÇÃO. AF_06/2015 | E134: ='Orçamento-TCE'!H134 -> 17 | F134: ='Orçamento-TCE'!I134 -> M | G134: =Orçamento!H142 -> 30.52 | H134: =Orçamento!I142 -> 518.84 | I134: =Orçamento!G142 -> 0.2216 | J134: 1.1122 | L134: 21.364 | M134: 9.156 | O134: =IF(#REF!="Tabela Não Desonerada",VLOOKUP($C134,#REF!,13,FALSE),VLOOKUP($C134,#REF!,13,FALSE)) ->  | Q134: =IF(#REF!="Tabela Não Desonerada",VLOOKUP($C134,#REF!,14,FALSE),VLOOKUP($C134,#REF!,14,FALSE)) ->  | S134: =IF(#REF!="Tabela Não Desonerada",VLOOKUP($C134,#REF!,15,FALSE),VLOOKUP($C134,#REF!,15,FALSE)) -> 
A135: 1 | B135: ='Orçamento-TCE'!B135 -> 124 | C135: ='Orçamento-TCE'!C135 -> 11.4 | D135: ='Orçamento-TCE'!G135 -> TUBO, PVC, SOLDÁVEL, DN 32MM, INSTALADO EM RAMAL OU SUB-RAMAL DE ÁGUA - FORNECIMENTO E INSTALAÇÃO. AF_12/2014 | E135: ='Orçamento-TCE'!H135 -> 15 | F135: ='Orçamento-TCE'!I135 -> M | G135: =Orçamento!H143 -> 39.73 | H135: =Orçamento!I143 -> 595.95 | I135: =Orçamento!G143 -> 0.2216 | J135: 1.1122 | L135: 27.811 | M135: 11.919 | O135: =IF(#REF!="Tabela Não Desonerada",VLOOKUP($C135,#REF!,13,FALSE),VLOOKUP($C135,#REF!,13,FALSE)) ->  | Q135: =IF(#REF!="Tabela Não Desonerada",VLOOKUP($C135,#REF!,14,FALSE),VLOOKUP($C135,#REF!,14,FALSE)) ->  | S135: =IF(#REF!="Tabela Não Desonerada",VLOOKUP($C135,#REF!,15,FALSE),VLOOKUP($C135,#REF!,15,FALSE)) -> 
A136: 1 | B136: ='Orçamento-TCE'!B136 -> 125 | C136: ='Orçamento-TCE'!C136 -> 11.5 | D136: ='Orçamento-TCE'!G136 -> TUBO, PVC, SOLDÁVEL, DN 40MM, INSTALADO EM PRUMADA DE ÁGUA - FORNECIMENTO E INSTALAÇÃO. AF_12/2014 | E136: ='Orçamento-TCE'!H136 -> 14 | F136: ='Orçamento-TCE'!I136 -> M | G136: =Orçamento!H144 -> 27.63 | H136: =Orçamento!I144 -> 386.82 | I136: =Orçamento!G144 -> 0.2216 | J136: 1.1122 | L136: 19.341 | M136: 8.289 | O136: =IF(#REF!="Tabela Não Desonerada",VLOOKUP($C136,#REF!,13,FALSE),VLOOKUP($C136,#REF!,13,FALSE)) ->  | Q136: =IF(#REF!="Tabela Não Desonerada",VLOOKUP($C136,#REF!,14,FALSE),VLOOKUP($C136,#REF!,14,FALSE)) ->  | S136: =IF(#REF!="Tabela Não Desonerada",VLOOKUP($C136,#REF!,15,FALSE),VLOOKUP($C136,#REF!,15,FALSE)) -> 
A137: 1 | B137: ='Orçamento-TCE'!B137 -> 126 | C137: ='Orçamento-TCE'!C137 -> 11.6 | D137: ='Orçamento-TCE'!G137 -> TUBO PVC SÉRIE NORMAL, ESGOTO PREDIAL, DN 40MM, FORNECIDO E INSTALADO EM RAMAL DE DESCARGA OU RAMAL DE ESGOTO SANITÁRIO. AF_12/2014 | E137: ='Orçamento-TCE'!H137 -> 102 | F137: ='Orçamento-TCE'!I137 -> M | G137: =Orçamento!H145 -> 23.63 | H137: =Orçamento!I145 -> 2410.26 | I137: =Orçamento!G145 -> 0.2216 | J137: 1.1122 | L137: 16.541 | M137: 7.089 | O137: =IF(#REF!="Tabela Não Desonerada",VLOOKUP($C137,#REF!,13,FALSE),VLOOKUP($C137,#REF!,13,FALSE)) ->  | Q137: =IF(#REF!="Tabela Não Desonerada",VLOOKUP($C137,#REF!,14,FALSE),VLOOKUP($C137,#REF!,14,FALSE)) ->  | S137: =IF(#REF!="Tabela Não Desonerada",VLOOKUP($C137,#REF!,15,FALSE),VLOOKUP($C137,#REF!,15,FALSE)) -> 
A138: 1 | B138: ='Orçamento-TCE'!B138 -> 127 | C138: ='Orçamento-TCE'!C138 -> 11.7 | D138: ='Orçamento-TCE'!G138 -> TUBO, PVC, SOLDÁVEL, DN 50MM, INSTALADO EM PRUMADA DE ÁGUA - FORNECIMENTO E INSTALAÇÃO. AF_12/2014 | E138: ='Orçamento-TCE'!H138 -> 40 | F138: ='Orçamento-TCE'!I138 -> M | G138: =Orçamento!H146 -> 31.74 | H138: =Orçamento!I146 -> 1269.6 | I138: =Orçamento!G146 -> 0.2216 | J138: 1.1122 | L138: 22.218 | M138: 9.522 | O138: =IF(#REF!="Tabela Não Desonerada",VLOOKUP($C138,#REF!,13,FALSE),VLOOKUP($C138,#REF!,13,FALSE)) ->  | Q138: =IF(#REF!="Tabela Não Desonerada",VLOOKUP($C138,#REF!,14,FALSE),VLOOKUP($C138,#REF!,14,FALSE)) ->  | S138: =IF(#REF!="Tabela Não Desonerada",VLOOKUP($C138,#REF!,15,FALSE),VLOOKUP($C138,#REF!,15,FALSE)) -> 
A139: 1 | B139: ='Orçamento-TCE'!B139 -> 128 | C139: ='Orçamento-TCE'!C139 -> 11.8 | D139: ='Orçamento-TCE'!G139 -> TUBO PVC SÉRIE NORMAL, ESGOTO PREDIAL, DN 50MM, FORNECIDO E INSTALADO EM RAMAL DE DESCARGA OU RAMAL DE ESGOTO SANITÁRIO. AF_12/2014 | E139: ='Orçamento-TCE'!H139 -> 134 | F139: ='Orçamento-TCE'!I139 -> M | G139: =Orçamento!H147 -> 36.7 | H139: =Orçamento!I147 -> 4917.8 | I139: =Orçamento!G147 -> 0.2216 | J139: 1.1122 | L139: 25.69 | M139: 11.01 | O139: =IF(#REF!="Tabela Não Desonerada",VLOOKUP($C139,#REF!,13,FALSE),VLOOKUP($C139,#REF!,13,FALSE)) ->  | Q139: =IF(#REF!="Tabela Não Desonerada",VLOOKUP($C139,#REF!,14,FALSE),VLOOKUP($C139,#REF!,14,FALSE)) ->  | S139: =IF(#REF!="Tabela Não Desonerada",VLOOKUP($C139,#REF!,15,FALSE),VLOOKUP($C139,#REF!,15,FALSE)) -> 
A140: 1 | B140: ='Orçamento-TCE'!B140 -> 129 | C140: ='Orçamento-TCE'!C140 -> 11.9 | D140: ='Orçamento-TCE'!G140 -> TUBO, PVC, SOLDÁVEL, DN 75MM, INSTALADO EM PRUMADA DE ÁGUA - FORNECIMENTO E INSTALAÇÃO. AF_12/2014 | E140: ='Orçamento-TCE'!H140 -> 155 | F140: ='Orçamento-TCE'!I140 -> M | G140: =Orçamento!H148 -> 87.76 | H140: =Orçamento!I148 -> 13602.8 | I140: =Orçamento!G148 -> 0.2216 | J140: 1.1122 | L140: 61.432 | M140: 26.328 | O140: =IF(#REF!="Tabela Não Desonerada",VLOOKUP($C140,#REF!,13,FALSE),VLOOKUP($C140,#REF!,13,FALSE)) ->  | Q140: =IF(#REF!="Tabela Não Desonerada",VLOOKUP($C140,#REF!,14,FALSE),VLOOKUP($C140,#REF!,14,FALSE)) ->  | S140: =IF(#REF!="Tabela Não Desonerada",VLOOKUP($C140,#REF!,15,FALSE),VLOOKUP($C140,#REF!,15,FALSE)) -> 
A141: 1 | B141: ='Orçamento-TCE'!B141 -> 130 | C141: ='Orçamento-TCE'!C141 -> 11.10 | D141: ='Orçamento-TCE'!G141 -> TUBO PVC SÉRIE NORMAL, ESGOTO PREDIAL, DN 75MM, FORNECIDO E INSTALADO EM RAMAL DE DESCARGA OU RAMAL DE ESGOTO SANITÁRIO. AF_12/2014 | E141: ='Orçamento-TCE'!H141 -> 19 | F141: ='Orçamento-TCE'!I141 -> M | G141: =Orçamento!H149 -> 56.11 | H141: =Orçamento!I149 -> 1066.09 | I141: =Orçamento!G149 -> 0.2216 | J141: 1.1122 | L141: =G141*0.7 -> 39.277 | M141: =G141-L141 -> 16.833 | N141: =P141 ->  | O141: =IF(#REF!="Tabela Não Desonerada",VLOOKUP($C141,#REF!,13,FALSE),VLOOKUP($C141,#REF!,13,FALSE)) ->  | P141: =O141/E141 ->  | Q141: =IF(#REF!="Tabela Não Desonerada",VLOOKUP($C141,#REF!,14,FALSE),VLOOKUP($C141,#REF!,14,FALSE)) ->  | R141: =Q141/E141 ->  | S141: =IF(#REF!="Tabela Não Desonerada",VLOOKUP($C141,#REF!,15,FALSE),VLOOKUP($C141,#REF!,15,FALSE)) ->  | T141: =S141/E141 -> 
A142: 1 | B142: ='Orçamento-TCE'!B142 -> 131 | C142: ='Orçamento-TCE'!C142 -> 11.11 | D142: ='Orçamento-TCE'!G142 -> TUBO PVC SÉRIE NORMAL, ESGOTO PREDIAL, DN 100MM, FORNECIDO E INSTALADO EM RAMAL DE DESCARGA OU RAMAL DE ESGOTO SANITÁRIO. AF_12/2014 | E142: ='Orçamento-TCE'!H142 -> 43 | F142: ='Orçamento-TCE'!I142 -> M | G142: =Orçamento!H150 -> 71.18 | H142: =Orçamento!I150 -> 3060.74 | I142: =Orçamento!G150 -> 0.2216 | J142: 1.1122 | L142: 49.826 | M142: 21.354 | O142: =IF(#REF!="Tabela Não Desonerada",VLOOKUP($C142,#REF!,13,FALSE),VLOOKUP($C142,#REF!,13,FALSE)) ->  | Q142: =IF(#REF!="Tabela Não Desonerada",VLOOKUP($C142,#REF!,14,FALSE),VLOOKUP($C142,#REF!,14,FALSE)) ->  | S142: =IF(#REF!="Tabela Não Desonerada",VLOOKUP($C142,#REF!,15,FALSE),VLOOKUP($C142,#REF!,15,FALSE)) -> 
A143: 1 | B143: ='Orçamento-TCE'!B143 -> 132 | C143: ='Orçamento-TCE'!C143 -> 11.12 | D143: ='Orçamento-TCE'!G143 -> JOELHO 90 GRAUS, PPR, DN 25MM, CLASSE PN 25, INSTALADO EM RAMAL DE DISTRIBUIÇÃO - FORNECIMENTO E INSTALAÇÃO. AF_06/2015 | E143: ='Orçamento-TCE'!H143 -> 62 | F143: ='Orçamento-TCE'!I143 -> UN | G143: =Orçamento!H151 -> 11.52 | H143: =Orçamento!I151 -> 714.24 | I143: =Orçamento!G151 -> 0.2216 | J143: 1.1122 | L143: 8.064 | M143: 3.456 | O143: =IF(#REF!="Tabela Não Desonerada",VLOOKUP($C143,#REF!,13,FALSE),VLOOKUP($C143,#REF!,13,FALSE)) ->  | Q143: =IF(#REF!="Tabela Não Desonerada",VLOOKUP($C143,#REF!,14,FALSE),VLOOKUP($C143,#REF!,14,FALSE)) ->  | S143: =IF(#REF!="Tabela Não Desonerada",VLOOKUP($C143,#REF!,15,FALSE),VLOOKUP($C143,#REF!,15,FALSE)) -> 
A144: 1 | B144: ='Orçamento-TCE'!B144 -> 133 | C144: ='Orçamento-TCE'!C144 -> 11.13 | D144: ='Orçamento-TCE'!G144 -> TÊ NORMAL, PPR, DN 25MM, CLASSE PN 25, INSTALADO EM RAMAL DE DISTRIBUIÇÃO DE ÁGUA - FORNECIMENTO E INSTALAÇÃO. AF_06/2015 | E144: ='Orçamento-TCE'!H144 -> 13 | F144: ='Orçamento-TCE'!I144 -> UN | G144: =Orçamento!H152 -> 15.15 | H144: =Orçamento!I152 -> 196.95 | I144: =Orçamento!G152 -> 0.2216 | J144: 1.1122 | L144: 10.605 | M144: 4.545 | O144: =IF(#REF!="Tabela Não Desonerada",VLOOKUP($C144,#REF!,13,FALSE),VLOOKUP($C144,#REF!,13,FALSE)) ->  | Q144: =IF(#REF!="Tabela Não Desonerada",VLOOKUP($C144,#REF!,14,FALSE),VLOOKUP($C144,#REF!,14,FALSE)) ->  | S144: =IF(#REF!="Tabela Não Desonerada",VLOOKUP($C144,#REF!,15,FALSE),VLOOKUP($C144,#REF!,15,FALSE)) -> 
A145: 1 | B145: ='Orçamento-TCE'!B145 -> 134 | C145: ='Orçamento-TCE'!C145 -> 11.14 | D145: ='Orçamento-TCE'!G145 -> JOELHO 90 GRAUS, PVC, SOLDÁVEL, DN 25MM, INSTALADO EM RAMAL DE DISTRIBUIÇÃO DE ÁGUA - FORNECIMENTO E INSTALAÇÃO. AF_12/2014 | E145: ='Orçamento-TCE'!H145 -> 113 | F145: ='Orçamento-TCE'!I145 -> UN | G145: =Orçamento!H153 -> 7.45 | H145: =Orçamento!I153 -> 841.85 | I145: =Orçamento!G153 -> 0.2216 | J145: 1.1122 | L145: 5.215 | M145: 2.235 | O145: =IF(#REF!="Tabela Não Desonerada",VLOOKUP($C145,#REF!,13,FALSE),VLOOKUP($C145,#REF!,13,FALSE)) ->  | Q145: =IF(#REF!="Tabela Não Desonerada",VLOOKUP($C145,#REF!,14,FALSE),VLOOKUP($C145,#REF!,14,FALSE)) ->  | S145: =IF(#REF!="Tabela Não Desonerada",VLOOKUP($C145,#REF!,15,FALSE),VLOOKUP($C145,#REF!,15,FALSE)) -> 
A146: 1 | B146: ='Orçamento-TCE'!B146 -> 135 | C146: ='Orçamento-TCE'!C146 -> 11.15 | D146: ='Orçamento-TCE'!G146 -> TÊ, PVC, SOLDÁVEL, DN 25MM, INSTALADO EM RAMAL OU SUB-RAMAL DE ÁGUA - FORNECIMENTO E INSTALAÇÃO. AF_12/2014 | E146: ='Orçamento-TCE'!H146 -> 34 | F146: ='Orçamento-TCE'!I146 -> UN | G146: =Orçamento!H154 -> 14.74 | H146: =Orçamento!I154 -> 501.16 | I146: =Orçamento!G154 -> 0.2216 | J146: 1.1122 | L146: 10.318 | M146: 4.422 | O146: =IF(#REF!="Tabela Não Desonerada",VLOOKUP($C146,#REF!,13,FALSE),VLOOKUP($C146,#REF!,13,FALSE)) ->  | Q146: =IF(#REF!="Tabela Não Desonerada",VLOOKUP($C146,#REF!,14,FALSE),VLOOKUP($C146,#REF!,14,FALSE)) ->  | S146: =IF(#REF!="Tabela Não Desonerada",VLOOKUP($C146,#REF!,15,FALSE),VLOOKUP($C146,#REF!,15,FALSE)) -> 
A147: 1 | B147: ='Orçamento-TCE'!B147 -> 136 | C147: ='Orçamento-TCE'!C147 -> 11.16 | D147: ='Orçamento-TCE'!G147 -> BUCHA DE REDUÇÃO, PPR, 32X25, CLASSE PN 25, INSTALADO EM RAMAL DE DISTRIBUIÇÃO DE ÁGUA - FORNECIMENTO E INSTALAÇÃO. AF_06/2015 | E147: ='Orçamento-TCE'!H147 -> 3 | F147: ='Orçamento-TCE'!I147 -> UN | G147: =Orçamento!H155 -> 15.04 | H147: =Orçamento!I155 -> 45.12 | I147: =Orçamento!G155 -> 0.2216 | J147: 1.1122 | L147: 10.528 | M147: 4.512 | O147: =IF(#REF!="Tabela Não Desonerada",VLOOKUP($C147,#REF!,13,FALSE),VLOOKUP($C147,#REF!,13,FALSE)) ->  | Q147: =IF(#REF!="Tabela Não Desonerada",VLOOKUP($C147,#REF!,14,FALSE),VLOOKUP($C147,#REF!,14,FALSE)) ->  | S147: =IF(#REF!="Tabela Não Desonerada",VLOOKUP($C147,#REF!,15,FALSE),VLOOKUP($C147,#REF!,15,FALSE)) -> 
A148: 1 | B148: ='Orçamento-TCE'!B148 -> 137 | C148: ='Orçamento-TCE'!C148 -> 11.17 | D148: ='Orçamento-TCE'!G148 -> LUVA DE REDUÇÃO, PVC, SOLDÁVEL, DN 32MMX25MM, INSTALADO EM RAMAL DE DISTRIBUIÇÃO DE ÁGUA - FORNECIMENTO E INSTALAÇÃO. AF_12/2014 | E148: ='Orçamento-TCE'!H148 -> 3 | F148: ='Orçamento-TCE'!I148 -> UN | G148: =Orçamento!H156 -> 12.07 | H148: =Orçamento!I156 -> 36.21 | I148: =Orçamento!G156 -> 0.2216 | J148: 1.1122 | L148: 8.449 | M148: 3.621 | O148: =IF(#REF!="Tabela Não Desonerada",VLOOKUP($C148,#REF!,13,FALSE),VLOOKUP($C148,#REF!,13,FALSE)) ->  | Q148: =IF(#REF!="Tabela Não Desonerada",VLOOKUP($C148,#REF!,14,FALSE),VLOOKUP($C148,#REF!,14,FALSE)) ->  | S148: =IF(#REF!="Tabela Não Desonerada",VLOOKUP($C148,#REF!,15,FALSE),VLOOKUP($C148,#REF!,15,FALSE)) -> 
A149: 1 | B149: ='Orçamento-TCE'!B149 -> 138 | C149: ='Orçamento-TCE'!C149 -> 11.18 | D149: ='Orçamento-TCE'!G149 -> JOELHO 90 GRAUS, PVC, SOLDÁVEL, DN 32MM, INSTALADO EM RAMAL DE DISTRIBUIÇÃO DE ÁGUA - FORNECIMENTO E INSTALAÇÃO. AF_12/2014 | E149: ='Orçamento-TCE'!H149 -> 20 | F149: ='Orçamento-TCE'!I149 -> UN | G149: =Orçamento!H157 -> 11.8 | H149: =Orçamento!I157 -> 236 | I149: =Orçamento!G157 -> 0.2216 | J149: 1.1122 | L149: 8.26 | M149: 3.54 | O149: =IF(#REF!="Tabela Não Desonerada",VLOOKUP($C149,#REF!,13,FALSE),VLOOKUP($C149,#REF!,13,FALSE)) ->  | Q149: =IF(#REF!="Tabela Não Desonerada",VLOOKUP($C149,#REF!,14,FALSE),VLOOKUP($C149,#REF!,14,FALSE)) ->  | S149: =IF(#REF!="Tabela Não Desonerada",VLOOKUP($C149,#REF!,15,FALSE),VLOOKUP($C149,#REF!,15,FALSE)) -> 
A150: 1 | B150: ='Orçamento-TCE'!B150 -> 139 | C150: ='Orçamento-TCE'!C150 -> 11.19 | D150: ='Orçamento-TCE'!G150 -> JOELHO 90 GRAUS, PPR, DN 32 MM, CLASSE PN 25, INSTALADO EM PRUMADA DE ÁGUA FORNECIMENTO E INSTALAÇÃO . AF_06/2015 | E150: ='Orçamento-TCE'!H150 -> 16 | F150: ='Orçamento-TCE'!I150 -> UN | G150: =Orçamento!H158 -> 9.06 | H150: =Orçamento!I158 -> 144.96 | I150: =Orçamento!G158 -> 0.2216 | J150: 1.1122 | L150: 6.342 | M150: 2.718 | O150: =IF(#REF!="Tabela Não Desonerada",VLOOKUP($C150,#REF!,13,FALSE),VLOOKUP($C150,#REF!,13,FALSE)) ->  | Q150: =IF(#REF!="Tabela Não Desonerada",VLOOKUP($C150,#REF!,14,FALSE),VLOOKUP($C150,#REF!,14,FALSE)) ->  | S150: =IF(#REF!="Tabela Não Desonerada",VLOOKUP($C150,#REF!,15,FALSE),VLOOKUP($C150,#REF!,15,FALSE)) -> 
A151: 1 | B151: ='Orçamento-TCE'!B151 -> 140 | C151: ='Orçamento-TCE'!C151 -> 11.20 | D151: ='Orçamento-TCE'!G151 -> JOELHO 90 GRAUS, PVC, SOLDÁVEL, DN 40MM, INSTALADO EM PRUMADA DE ÁGUA - FORNECIMENTO E INSTALAÇÃO. AF_12/2014 | E151: ='Orçamento-TCE'!H151 -> 14 | F151: ='Orçamento-TCE'!I151 -> UN | G151: =Orçamento!H159 -> 17.7 | H151: =Orçamento!I159 -> 247.8 | I151: =Orçamento!G159 -> 0.2216 | J151: 1.1122 | L151: 12.39 | M151: 5.31 | O151: =IF(#REF!="Tabela Não Desonerada",VLOOKUP($C151,#REF!,13,FALSE),VLOOKUP($C151,#REF!,13,FALSE)) ->  | Q151: =IF(#REF!="Tabela Não Desonerada",VLOOKUP($C151,#REF!,14,FALSE),VLOOKUP($C151,#REF!,14,FALSE)) ->  | S151: =IF(#REF!="Tabela Não Desonerada",VLOOKUP($C151,#REF!,15,FALSE),VLOOKUP($C151,#REF!,15,FALSE)) -> 
A152: 1 | B152: ='Orçamento-TCE'!B152 -> 141 | C152: ='Orçamento-TCE'!C152 -> 11.21 | D152: ='Orçamento-TCE'!G152 -> JOELHO 90 GRAUS, PVC, SERIE NORMAL, ESGOTO PREDIAL, DN 40MM, JUNTA SOLDÁVEL, FORNECIDO E INSTALADO EM RAMAL DE DESCARGA OU RAMAL DE ESGOTO SANITÁRIO. AF_12/2014 | E152: ='Orçamento-TCE'!H152 -> 68 | F152: ='Orçamento-TCE'!I152 -> UN | G152: =Orçamento!H160 -> 13.39 | H152: =Orçamento!I160 -> 910.52 | I152: =Orçamento!G160 -> 0.2216 | J152: 1.1122 | L152: 9.373 | M152: 4.017 | O152: =IF(#REF!="Tabela Não Desonerada",VLOOKUP($C152,#REF!,13,FALSE),VLOOKUP($C152,#REF!,13,FALSE)) ->  | Q152: =IF(#REF!="Tabela Não Desonerada",VLOOKUP($C152,#REF!,14,FALSE),VLOOKUP($C152,#REF!,14,FALSE)) ->  | S152: =IF(#REF!="Tabela Não Desonerada",VLOOKUP($C152,#REF!,15,FALSE),VLOOKUP($C152,#REF!,15,FALSE)) -> 
A153: 1 | B153: ='Orçamento-TCE'!B153 -> 142 | C153: ='Orçamento-TCE'!C153 -> 11.22 | D153: ='Orçamento-TCE'!G153 -> JOELHO 45 GRAUS, PVC, SERIE NORMAL, ESGOTO PREDIAL, DN 40MM, JUNTA SOLDÁVEL, FORNECIDO E INSTALADO EM RAMAL DE DESCARGA OU RAMAL DE ESGOTO SANITÁRIO. AF_12/2014 | E153: ='Orçamento-TCE'!H153 -> 80 | F153: ='Orçamento-TCE'!I153 -> UN | G153: =Orçamento!H161 -> 9.16 | H153: =Orçamento!I161 -> 732.8 | I153: =Orçamento!G161 -> 0.2216 | J153: 1.1122 | L153: 6.412 | M153: 2.748 | O153: =IF(#REF!="Tabela Não Desonerada",VLOOKUP($C153,#REF!,13,FALSE),VLOOKUP($C153,#REF!,13,FALSE)) ->  | Q153: =IF(#REF!="Tabela Não Desonerada",VLOOKUP($C153,#REF!,14,FALSE),VLOOKUP($C153,#REF!,14,FALSE)) ->  | S153: =IF(#REF!="Tabela Não Desonerada",VLOOKUP($C153,#REF!,15,FALSE),VLOOKUP($C153,#REF!,15,FALSE)) -> 
A154: 1 | B154: ='Orçamento-TCE'!B154 -> 143 | C154: ='Orçamento-TCE'!C154 -> 11.23 | D154: ='Orçamento-TCE'!G154 -> JUNÇÃO SIMPLES, PVC, SÉRIE NORMAL, ESGOTO PREDIAL, DN 40MM, JUNTA SOLDÁVEL, FORNECIDO E INSTALADO EM RAMAL DE DESCARGA OU RAMAL DE ESGOTO SANITÁRIO. AF_12/2014 | E154: ='Orçamento-TCE'!H154 -> 28 | F154: ='Orçamento-TCE'!I154 -> UN | G154: =Orçamento!H162 -> 15.88 | H154: =Orçamento!I162 -> 444.64 | I154: =Orçamento!G162 -> 0.2216 | J154: 1.1122 | L154: 11.116 | M154: 4.764 | O154: =IF(#REF!="Tabela Não Desonerada",VLOOKUP($C154,#REF!,13,FALSE),VLOOKUP($C154,#REF!,13,FALSE)) ->  | Q154: =IF(#REF!="Tabela Não Desonerada",VLOOKUP($C154,#REF!,14,FALSE),VLOOKUP($C154,#REF!,14,FALSE)) ->  | S154: =IF(#REF!="Tabela Não Desonerada",VLOOKUP($C154,#REF!,15,FALSE),VLOOKUP($C154,#REF!,15,FALSE)) -> 
A155: 1 | B155: ='Orçamento-TCE'!B155 -> 144 | C155: ='Orçamento-TCE'!C155 -> 11.24 | D155: ='Orçamento-TCE'!G155 -> JOELHO 90 GRAUS, PVC, SOLDÁVEL, DN 50MM, INSTALADO EM PRUMADA DE ÁGUA - FORNECIMENTO E INSTALAÇÃO. AF_12/2014 | E155: ='Orçamento-TCE'!H155 -> 35 | F155: ='Orçamento-TCE'!I155 -> UN | G155: =Orçamento!H163 -> 20.96 | H155: =Orçamento!I163 -> 733.6 | I155: =Orçamento!G163 -> 0.2216 | J155: 1.1122 | L155: 14.672 | M155: 6.288 | O155: =IF(#REF!="Tabela Não Desonerada",VLOOKUP($C155,#REF!,13,FALSE),VLOOKUP($C155,#REF!,13,FALSE)) ->  | Q155: =IF(#REF!="Tabela Não Desonerada",VLOOKUP($C155,#REF!,14,FALSE),VLOOKUP($C155,#REF!,14,FALSE)) ->  | S155: =IF(#REF!="Tabela Não Desonerada",VLOOKUP($C155,#REF!,15,FALSE),VLOOKUP($C155,#REF!,15,FALSE)) -> 
A156: 1 | B156: ='Orçamento-TCE'!B156 -> 145 | C156: ='Orçamento-TCE'!C156 -> 11.25 | D156: ='Orçamento-TCE'!G156 -> JOELHO 45 GRAUS, PVC, SÉRIE NORMAL, ESGOTO PREDIAL, DN 50MM, JUNTA ELÁSTICA, FORNECIDO E INSTALADO EM RAMAL DE DESCARGA OU ESGOTO SANITÁRIO. AF_12/2014 | E156: ='Orçamento-TCE'!H156 -> 59 | F156: ='Orçamento-TCE'!I156 -> UN | G156: =Orçamento!H164 -> 14.54 | H156: =Orçamento!I164 -> 857.86 | I156: =Orçamento!G164 -> 0.2216 | J156: 1.1122 | L156: 10.178 | M156: 4.362 | O156: =IF(#REF!="Tabela Não Desonerada",VLOOKUP($C156,#REF!,13,FALSE),VLOOKUP($C156,#REF!,13,FALSE)) ->  | Q156: =IF(#REF!="Tabela Não Desonerada",VLOOKUP($C156,#REF!,14,FALSE),VLOOKUP($C156,#REF!,14,FALSE)) ->  | S156: =IF(#REF!="Tabela Não Desonerada",VLOOKUP($C156,#REF!,15,FALSE),VLOOKUP($C156,#REF!,15,FALSE)) -> 
A157: 1 | B157: ='Orçamento-TCE'!B157 -> 146 | C157: ='Orçamento-TCE'!C157 -> 11.26 | D157: ='Orçamento-TCE'!G157 -> JOELHO 90 GRAUS, PVC, SÉRIE NORMAL, ESGOTO PREDIAL, DN 50M, JUNTA ELÁSTICA, FORNECIDO E INSTALADO EM REMAL DE DESCARGA OU RAMAL DE ESGOTO SANITÁRIO. AF_12/2014 | E157: ='Orçamento-TCE'!H157 -> 50 | F157: ='Orçamento-TCE'!I157 -> UN | G157: =Orçamento!H165 -> 13.54 | H157: =Orçamento!I165 -> 677 | I157: =Orçamento!G165 -> 0.2216 | J157: 1.1122 | L157: 9.478 | M157: 4.062 | O157: =IF(#REF!="Tabela Não Desonerada",VLOOKUP($C157,#REF!,13,FALSE),VLOOKUP($C157,#REF!,13,FALSE)) ->  | Q157: =IF(#REF!="Tabela Não Desonerada",VLOOKUP($C157,#REF!,14,FALSE),VLOOKUP($C157,#REF!,14,FALSE)) ->  | S157: =IF(#REF!="Tabela Não Desonerada",VLOOKUP($C157,#REF!,15,FALSE),VLOOKUP($C157,#REF!,15,FALSE)) -> 
A158: 1 | B158: ='Orçamento-TCE'!B158 -> 147 | C158: ='Orçamento-TCE'!C158 -> 11.27 | D158: ='Orçamento-TCE'!G158 -> TÊ, PVC, SOLDÁVEL, DN 50MM, INSTALADO EM PRUMADA DE ÁGUA - FORNECIMENTO E INSTALAÇÃO. AF_12/2014 | E158: ='Orçamento-TCE'!H158 -> 15 | F158: ='Orçamento-TCE'!I158 -> UN | G158: =Orçamento!H166 -> 33.95 | H158: =Orçamento!I166 -> 509.25 | I158: =Orçamento!G166 -> 0.2216 | J158: 1.1122 | L158: 23.765 | M158: 10.185 | O158: =IF(#REF!="Tabela Não Desonerada",VLOOKUP($C158,#REF!,13,FALSE),VLOOKUP($C158,#REF!,13,FALSE)) ->  | Q158: =IF(#REF!="Tabela Não Desonerada",VLOOKUP($C158,#REF!,14,FALSE),VLOOKUP($C158,#REF!,14,FALSE)) ->  | S158: =IF(#REF!="Tabela Não Desonerada",VLOOKUP($C158,#REF!,15,FALSE),VLOOKUP($C158,#REF!,15,FALSE)) -> 
A159: 1 | B159: ='Orçamento-TCE'!B159 -> 148 | C159: ='Orçamento-TCE'!C159 -> 11.28 | D159: ='Orçamento-TCE'!G159 -> JUNÇÃO SIMPLES, PVC, SÉRIE NORMAL, ESGOTO PREDIAL, DN 50X50MM, JUNTA ELÁSTICA, FORNECIDO E INSTALADO EM RAMAL DE DESCARGA OU RAMAL DE ESGOTO SANITÁRIO. AF_12/2014 | E159: ='Orçamento-TCE'!H159 -> 31 | F159: ='Orçamento-TCE'!I159 -> UN | G159: =Orçamento!H167 -> 28.94 | H159: =Orçamento!I167 -> 897.14 | I159: =Orçamento!G167 -> 0.2216 | J159: 1.1122 | L159: 20.258 | M159: 8.682 | O159: =IF(#REF!="Tabela Não Desonerada",VLOOKUP($C159,#REF!,13,FALSE),VLOOKUP($C159,#REF!,13,FALSE)) ->  | Q159: =IF(#REF!="Tabela Não Desonerada",VLOOKUP($C159,#REF!,14,FALSE),VLOOKUP($C159,#REF!,14,FALSE)) ->  | S159: =IF(#REF!="Tabela Não Desonerada",VLOOKUP($C159,#REF!,15,FALSE),VLOOKUP($C159,#REF!,15,FALSE)) -> 
A160: 1 | B160: ='Orçamento-TCE'!B160 -> 149 | C160: ='Orçamento-TCE'!C160 -> 11.29 | D160: ='Orçamento-TCE'!G160 -> TÊ DE REDUÇÃO, PVC, SOLDÁVEL, DN 75MMX50MM, INSTALADO EM PRUMADA DE ÁGUA - FORNECIMENTO E INSTALAÇÃO. AF_12/2014 | E160: ='Orçamento-TCE'!H160 -> 22 | F160: ='Orçamento-TCE'!I160 -> UN | G160: =Orçamento!H168 -> 126.73 | H160: =Orçamento!I168 -> 2788.06 | I160: =Orçamento!G168 -> 0.2216 | J160: 1.1122 | L160: 88.711 | M160: 38.019 | O160: =IF(#REF!="Tabela Não Desonerada",VLOOKUP($C160,#REF!,13,FALSE),VLOOKUP($C160,#REF!,13,FALSE)) ->  | Q160: =IF(#REF!="Tabela Não Desonerada",VLOOKUP($C160,#REF!,14,FALSE),VLOOKUP($C160,#REF!,14,FALSE)) ->  | S160: =IF(#REF!="Tabela Não Desonerada",VLOOKUP($C160,#REF!,15,FALSE),VLOOKUP($C160,#REF!,15,FALSE)) -> 
A161: 1 | B161: ='Orçamento-TCE'!B161 -> 150 | C161: ='Orçamento-TCE'!C161 -> 11.30 | D161: ='Orçamento-TCE'!G161 -> REDUÇÃO EXCÊNTRICA, PVC, SÉRIE R, ÁGUA PLUVIAL, DN 75X50MM, JUNTA ELÁSTICA, FORNECIDO E INSTALADO EM CONDUTORES VERTICAIS DE ÁGUAS PLUVIAIS. AF_12/2014 | E161: ='Orçamento-TCE'!H161 -> 3 | F161: ='Orçamento-TCE'!I161 -> UN | G161: =Orçamento!H169 -> 19.19 | H161: =Orçamento!I169 -> 57.57 | I161: =Orçamento!G169 -> 0.2216 | J161: 1.1122 | L161: 13.433 | M161: 5.757 | O161: =IF(#REF!="Tabela Não Desonerada",VLOOKUP($C161,#REF!,13,FALSE),VLOOKUP($C161,#REF!,13,FALSE)) ->  | Q161: =IF(#REF!="Tabela Não Desonerada",VLOOKUP($C161,#REF!,14,FALSE),VLOOKUP($C161,#REF!,14,FALSE)) ->  | S161: =IF(#REF!="Tabela Não Desonerada",VLOOKUP($C161,#REF!,15,FALSE),VLOOKUP($C161,#REF!,15,FALSE)) -> 
A162: 1 | B162: ='Orçamento-TCE'!B162 -> 151 | C162: ='Orçamento-TCE'!C162 -> 11.31 | D162: ='Orçamento-TCE'!G162 -> JOELHO 90 GRAUS, PVC, SOLDÁVEL, DN 75MM, INSTALADO EM RESERVAÇÃO DE ÁGUA DE EDIFICAÇÃO QUE POSSUA RESERVATÓRIO DE FIBRA/FIBROCIMENTO - FORNECIMENTO E INSTALAÇÃO. AF_06/2016 | E162: ='Orçamento-TCE'!H162 -> 24 | F162: ='Orçamento-TCE'!I162 -> UN | G162: =Orçamento!H170 -> 210.76 | H162: =Orçamento!I170 -> 5058.24 | I162: =Orçamento!G170 -> 0.2216 | J162: 1.1122 | L162: 147.532 | M162: 63.228 | O162: =IF(#REF!="Tabela Não Desonerada",VLOOKUP($C162,#REF!,13,FALSE),VLOOKUP($C162,#REF!,13,FALSE)) ->  | Q162: =IF(#REF!="Tabela Não Desonerada",VLOOKUP($C162,#REF!,14,FALSE),VLOOKUP($C162,#REF!,14,FALSE)) ->  | S162: =IF(#REF!="Tabela Não Desonerada",VLOOKUP($C162,#REF!,15,FALSE),VLOOKUP($C162,#REF!,15,FALSE)) -> 
A163: 1 | B163: ='Orçamento-TCE'!B163 -> 152 | C163: ='Orçamento-TCE'!C163 -> 11.32 | D163: ='Orçamento-TCE'!G163 -> JOELHO 90 GRAUS, PVC, SÉRIE NORMAL, ESGOTO PREDIAL, DN 75MM, JUNTA ELÁSTICA, FORNECIDO E INSTALADO EM PRUMADA DE ESGOTO SANITÁRIO OU VENTILAÇÃO. AF_12/2014 | E163: ='Orçamento-TCE'!H163 -> 9 | F163: ='Orçamento-TCE'!I163 -> UN | G163: =Orçamento!H171 -> 19.17 | H163: =Orçamento!I171 -> 172.53 | I163: =Orçamento!G171 -> 0.2216 | J163: 1.1122 | L163: 13.419 | M163: 5.751 | O163: =IF(#REF!="Tabela Não Desonerada",VLOOKUP($C163,#REF!,13,FALSE),VLOOKUP($C163,#REF!,13,FALSE)) ->  | Q163: =IF(#REF!="Tabela Não Desonerada",VLOOKUP($C163,#REF!,14,FALSE),VLOOKUP($C163,#REF!,14,FALSE)) ->  | S163: =IF(#REF!="Tabela Não Desonerada",VLOOKUP($C163,#REF!,15,FALSE),VLOOKUP($C163,#REF!,15,FALSE)) -> 
A164: 1 | B164: ='Orçamento-TCE'!B164 -> 153 | C164: ='Orçamento-TCE'!C164 -> 11.33 | D164: ='Orçamento-TCE'!G164 -> TÊ, PVC, SOLDÁVEL, DN 75MM INSTALADO EM RESERVAÇÃO DE ÁGUA DE EDIFICAÇÃO QUE POSSUA RESERVATÓRIO DE FIBRA/FIBROCIMENTO - FORNECIMENTO E INSTALAÇÃO. AF_06/2016 | E164: ='Orçamento-TCE'!H164 -> 13 | F164: ='Orçamento-TCE'!I164 -> UN | G164: =Orçamento!H172 -> 155.89 | H164: =Orçamento!I172 -> 2026.57 | I164: =Orçamento!G172 -> 0.2216 | J164: 1.1122 | L164: 109.123 | M164: 46.767 | O164: =IF(#REF!="Tabela Não Desonerada",VLOOKUP($C164,#REF!,13,FALSE),VLOOKUP($C164,#REF!,13,FALSE)) ->  | Q164: =IF(#REF!="Tabela Não Desonerada",VLOOKUP($C164,#REF!,14,FALSE),VLOOKUP($C164,#REF!,14,FALSE)) ->  | S164: =IF(#REF!="Tabela Não Desonerada",VLOOKUP($C164,#REF!,15,FALSE),VLOOKUP($C164,#REF!,15,FALSE)) -> 
A165: 1 | B165: ='Orçamento-TCE'!B165 -> 154 | C165: ='Orçamento-TCE'!C165 -> 11.34 | D165: ='Orçamento-TCE'!G165 -> JUNÇÃO SIMPLES, PVC, SÉRIE R, ÁGUA PLUVIAL, DN 75X75MM, JUNTA ELÁSTICA, FORNECIDO E INSTALADO EM RAMAL DE ENCAMINHAMENTO. AF_12/2014 | E165: ='Orçamento-TCE'!H165 -> 10 | F165: ='Orçamento-TCE'!I165 -> UN | G165: =Orçamento!H173 -> 77.21 | H165: =Orçamento!I173 -> 772.1 | I165: =Orçamento!G173 -> 0.2216 | J165: 1.1122 | L165: 54.047 | M165: 23.163 | O165: =IF(#REF!="Tabela Não Desonerada",VLOOKUP($C165,#REF!,13,FALSE),VLOOKUP($C165,#REF!,13,FALSE)) ->  | Q165: =IF(#REF!="Tabela Não Desonerada",VLOOKUP($C165,#REF!,14,FALSE),VLOOKUP($C165,#REF!,14,FALSE)) ->  | S165: =IF(#REF!="Tabela Não Desonerada",VLOOKUP($C165,#REF!,15,FALSE),VLOOKUP($C165,#REF!,15,FALSE)) -> 
A166: 1 | B166: ='Orçamento-TCE'!B166 -> 155 | C166: ='Orçamento-TCE'!C166 -> 11.35 | D166: ='Orçamento-TCE'!G166 -> TÊ, PVC, SÉRIE R, ÁGUA PLUVIAL, DN 75MM, JUNTA ELÁSTICA - FORNECIDO E INSTALADO EM RAMAL DE ENCAMINHAMENTO. AF_12/2014 | E166: ='Orçamento-TCE'!H166 -> 13 | F166: ='Orçamento-TCE'!I166 -> UN | G166: =Orçamento!H174 -> 65.65 | H166: =Orçamento!I174 -> 853.45 | I166: =Orçamento!G174 -> 0.2216 | J166: 1.1122 | L166: 45.955 | M166: 19.695 | O166: =IF(#REF!="Tabela Não Desonerada",VLOOKUP($C166,#REF!,13,FALSE),VLOOKUP($C166,#REF!,13,FALSE)) ->  | Q166: =IF(#REF!="Tabela Não Desonerada",VLOOKUP($C166,#REF!,14,FALSE),VLOOKUP($C166,#REF!,14,FALSE)) ->  | S166: =IF(#REF!="Tabela Não Desonerada",VLOOKUP($C166,#REF!,15,FALSE),VLOOKUP($C166,#REF!,15,FALSE)) -> 
A167: 1 | B167: ='Orçamento-TCE'!B167 -> 156 | C167: ='Orçamento-TCE'!C167 -> 11.36 | D167: ='Orçamento-TCE'!G167 -> REDUÇÃO EXCÊNTRICA, PVC, SERIE R, ÁGUA PLUVIAL, DN 100 X 75 MM, JUNTA ELÁSTICA, FORNECIDO E INSTALADO EM CONDUTORES VERTICAIS DE ÁGUAS PLUVIAIS. AF_12/2014 | E167: ='Orçamento-TCE'!H167 -> 12 | F167: ='Orçamento-TCE'!I167 -> UN | G167: =Orçamento!H175 -> 39.21 | H167: =Orçamento!I175 -> 470.52 | I167: =Orçamento!G175 -> 0.2216 | J167: 1.1122 | L167: 27.447 | M167: 11.763 | O167: =IF(#REF!="Tabela Não Desonerada",VLOOKUP($C167,#REF!,13,FALSE),VLOOKUP($C167,#REF!,13,FALSE)) ->  | Q167: =IF(#REF!="Tabela Não Desonerada",VLOOKUP($C167,#REF!,14,FALSE),VLOOKUP($C167,#REF!,14,FALSE)) ->  | S167: =IF(#REF!="Tabela Não Desonerada",VLOOKUP($C167,#REF!,15,FALSE),VLOOKUP($C167,#REF!,15,FALSE)) -> 
A168: 1 | B168: ='Orçamento-TCE'!B168 -> 157 | C168: ='Orçamento-TCE'!C168 -> 11.37 | D168: ='Orçamento-TCE'!G168 -> CONECTOR, CPVC, SOLDÁVEL, DN 22MMX1/2, INSTALADO EM RAMAL DE DISTRIBUIÇÃO DE ÁGUA - FORNECIMENTO E INSTALAÇÃO. AF_12/2014 | E168: ='Orçamento-TCE'!H168 -> 13 | F168: ='Orçamento-TCE'!I168 -> UN | G168: =Orçamento!H176 -> 41.17 | H168: =Orçamento!I176 -> 535.21 | I168: =Orçamento!G176 -> 0.2216 | J168: 1.1122 | L168: 28.819 | M168: 12.351 | O168: =IF(#REF!="Tabela Não Desonerada",VLOOKUP($C168,#REF!,13,FALSE),VLOOKUP($C168,#REF!,13,FALSE)) ->  | Q168: =IF(#REF!="Tabela Não Desonerada",VLOOKUP($C168,#REF!,14,FALSE),VLOOKUP($C168,#REF!,14,FALSE)) ->  | S168: =IF(#REF!="Tabela Não Desonerada",VLOOKUP($C168,#REF!,15,FALSE),VLOOKUP($C168,#REF!,15,FALSE)) -> 
A169: 1 | B169: ='Orçamento-TCE'!B169 -> 158 | C169: ='Orçamento-TCE'!C169 -> 11.38 | D169: ='Orçamento-TCE'!G169 -> JOELHO 45 GRAUS, PVC, SÉRIE NORMAL, ESGOTO PREDIAL, DN 100MM, JUNTA ELÁSTICA, FORNECIDO E INSTALADO EM RAMAL DE DESCARGA OU ESGOTO SANITÁRIO. AF_12/2014 | E169: ='Orçamento-TCE'!H169 -> 31 | F169: ='Orçamento-TCE'!I169 -> UN | G169: =Orçamento!H177 -> 31.52 | H169: =Orçamento!I177 -> 977.12 | I169: =Orçamento!G177 -> 0.2216 | J169: 1.1122 | L169: 22.064 | M169: 9.456 | O169: =IF(#REF!="Tabela Não Desonerada",VLOOKUP($C169,#REF!,13,FALSE),VLOOKUP($C169,#REF!,13,FALSE)) ->  | Q169: =IF(#REF!="Tabela Não Desonerada",VLOOKUP($C169,#REF!,14,FALSE),VLOOKUP($C169,#REF!,14,FALSE)) ->  | S169: =IF(#REF!="Tabela Não Desonerada",VLOOKUP($C169,#REF!,15,FALSE),VLOOKUP($C169,#REF!,15,FALSE)) -> 
A170: 1 | B170: ='Orçamento-TCE'!B170 -> 159 | C170: ='Orçamento-TCE'!C170 -> 11.39 | D170: ='Orçamento-TCE'!G170 -> JUNÇÃO SIMPLES, PVC, SÉRIE NORMAL, ESGOTO PREDIAL, DN 100X100MM, JUNTA ELÁSTICA, FORNECIDO E INSTALADO EM RAMAL DE DESCARGA OU RAMAL DE ESGOTO SANITÁRIO. AF_12/2014 | E170: ='Orçamento-TCE'!H170 -> 22 | F170: ='Orçamento-TCE'!I170 -> UN | G170: =Orçamento!H178 -> 63.12 | H170: =Orçamento!I178 -> 1388.64 | I170: =Orçamento!G178 -> 0.2216 | J170: 1.1122 | L170: 44.184 | M170: 18.936 | O170: =IF(#REF!="Tabela Não Desonerada",VLOOKUP($C170,#REF!,13,FALSE),VLOOKUP($C170,#REF!,13,FALSE)) ->  | Q170: =IF(#REF!="Tabela Não Desonerada",VLOOKUP($C170,#REF!,14,FALSE),VLOOKUP($C170,#REF!,14,FALSE)) ->  | S170: =IF(#REF!="Tabela Não Desonerada",VLOOKUP($C170,#REF!,15,FALSE),VLOOKUP($C170,#REF!,15,FALSE)) -> 
A171: 1 | B171: ='Orçamento-TCE'!B171 -> 160 | C171: ='Orçamento-TCE'!C171 -> 11.40 | D171: ='Orçamento-TCE'!G171 -> RALO SIFONADO, PVC, DN 100X40MM, JUNTA SOLDÁVEL, FORNECIDO E INSTALADO EM RAMAL DE DESCARGA OU EM RAMAL DE ESGOTO SANITÁRIO. AF_12/2014 | E171: ='Orçamento-TCE'!H171 -> 17 | F171: ='Orçamento-TCE'!I171 -> UN | G171: =Orçamento!H179 -> 22.05 | H171: =Orçamento!I179 -> 374.85 | I171: =Orçamento!G179 -> 0.2216 | J171: 1.1122 | L171: 15.435 | M171: 6.615 | O171: =IF(#REF!="Tabela Não Desonerada",VLOOKUP($C171,#REF!,13,FALSE),VLOOKUP($C171,#REF!,13,FALSE)) ->  | Q171: =IF(#REF!="Tabela Não Desonerada",VLOOKUP($C171,#REF!,14,FALSE),VLOOKUP($C171,#REF!,14,FALSE)) ->  | S171: =IF(#REF!="Tabela Não Desonerada",VLOOKUP($C171,#REF!,15,FALSE),VLOOKUP($C171,#REF!,15,FALSE)) -> 
A172: 1 | B172: ='Orçamento-TCE'!B172 -> 161 | C172: ='Orçamento-TCE'!C172 -> 11.41 | D172: ='Orçamento-TCE'!G172 -> CAIXA DE GORDURA PEQUENA (CAPACIDADE: 19L), CIRCULAR, EM PVC, DIÂMETRO INTERNO = 0,3M. AF_12/2020 | E172: ='Orçamento-TCE'!H172 -> 3 | F172: ='Orçamento-TCE'!I172 -> UN | G172: =Orçamento!H180 -> 567.4 | H172: =Orçamento!I180 -> 1702.2 | I172: =Orçamento!G180 -> 0.2216 | J172: 1.1122 | L172: 397.18 | M172: 170.22 | O172: =IF(#REF!="Tabela Não Desonerada",VLOOKUP($C172,#REF!,13,FALSE),VLOOKUP($C172,#REF!,13,FALSE)) ->  | Q172: =IF(#REF!="Tabela Não Desonerada",VLOOKUP($C172,#REF!,14,FALSE),VLOOKUP($C172,#REF!,14,FALSE)) ->  | S172: =IF(#REF!="Tabela Não Desonerada",VLOOKUP($C172,#REF!,15,FALSE),VLOOKUP($C172,#REF!,15,FALSE)) -> 
A173: 1 | B173: ='Orçamento-TCE'!B173 -> 162 | C173: ='Orçamento-TCE'!C173 -> 11.42 | D173: ='Orçamento-TCE'!G173 -> MISTURADOR MONOCOMANDO PARA CHUVEIRO, BASE BRUTA E ACABAMENTO CROMADO - FORNECIDO E INSTALADO EM RAMAL DE ÁGUA. AF_12/2014 | E173: ='Orçamento-TCE'!H173 -> 16 | F173: ='Orçamento-TCE'!I173 -> UN | G173: =Orçamento!H181 -> 952.15 | H173: =Orçamento!I181 -> 15234.4 | I173: =Orçamento!G181 -> 0.2216 | J173: 1.1122 | L173: 666.505 | M173: 285.645 | O173: =IF(#REF!="Tabela Não Desonerada",VLOOKUP($C173,#REF!,13,FALSE),VLOOKUP($C173,#REF!,13,FALSE)) ->  | Q173: =IF(#REF!="Tabela Não Desonerada",VLOOKUP($C173,#REF!,14,FALSE),VLOOKUP($C173,#REF!,14,FALSE)) ->  | S173: =IF(#REF!="Tabela Não Desonerada",VLOOKUP($C173,#REF!,15,FALSE),VLOOKUP($C173,#REF!,15,FALSE)) -> 
A174: 1 | B174: ='Orçamento-TCE'!B174 -> 163 | C174: ='Orçamento-TCE'!C174 -> 11.43 | D174: ='Orçamento-TCE'!G174 -> CAIXA SIFONADA, PVC, DN 150X185X75MM, FORNECIDA E INSTALADA EM RAMAIS DE ENCAMINHAMENTO DE ÁGUA PLUVIAL. AF_12/2014 | E174: ='Orçamento-TCE'!H174 -> 16 | F174: ='Orçamento-TCE'!I174 -> UN | G174: =Orçamento!H182 -> 118.3 | H174: =Orçamento!I182 -> 1892.8 | I174: =Orçamento!G182 -> 0.2216 | J174: 1.1122 | L174: 82.81 | M174: 35.49 | O174: =IF(#REF!="Tabela Não Desonerada",VLOOKUP($C174,#REF!,13,FALSE),VLOOKUP($C174,#REF!,13,FALSE)) ->  | Q174: =IF(#REF!="Tabela Não Desonerada",VLOOKUP($C174,#REF!,14,FALSE),VLOOKUP($C174,#REF!,14,FALSE)) ->  | S174: =IF(#REF!="Tabela Não Desonerada",VLOOKUP($C174,#REF!,15,FALSE),VLOOKUP($C174,#REF!,15,FALSE)) -> 
A175: 1 | B175: ='Orçamento-TCE'!B175 -> 164 | C175: ='Orçamento-TCE'!C175 -> 11.44 | D175: ='Orçamento-TCE'!G175 -> VÁLVULA DE DESCARGA METÁLICA, BASE 1 1/2", ACABAMENTO METÁLICO CROMADO - FORNECIMENTO E INSTALAÇÃO. AF_01/2019 | E175: ='Orçamento-TCE'!H175 -> 12 | F175: ='Orçamento-TCE'!I175 -> UN | G175: =Orçamento!H183 -> 369.2 | H175: =Orçamento!I183 -> 4430.4 | I175: =Orçamento!G183 -> 0.2216 | J175: 1.1122 | L175: 258.44 | M175: 110.76 | O175: =IF(#REF!="Tabela Não Desonerada",VLOOKUP($C175,#REF!,13,FALSE),VLOOKUP($C175,#REF!,13,FALSE)) ->  | Q175: =IF(#REF!="Tabela Não Desonerada",VLOOKUP($C175,#REF!,14,FALSE),VLOOKUP($C175,#REF!,14,FALSE)) ->  | S175: =IF(#REF!="Tabela Não Desonerada",VLOOKUP($C175,#REF!,15,FALSE),VLOOKUP($C175,#REF!,15,FALSE)) -> 
A176: 1 | B176: ='Orçamento-TCE'!B176 -> 165 | C176: ='Orçamento-TCE'!C176 -> 11.45 | D176: ='Orçamento-TCE'!G176 -> REGISTRO DE ESFERA, PVC, SOLDÁVEL, DN 25MM, INSTALADO EM RESERVAÇÃO DE ÁGUA DE EDIFIAÇÃO QUE POSSUA RESERVATÓRIO DE FIBRA/FIBROCIMENTO - FORNECIMENTO E INSTALAÇÃO. AF_06/2016 | E176: ='Orçamento-TCE'!H176 -> 5 | F176: ='Orçamento-TCE'!I176 -> UN | G176: =Orçamento!H184 -> 43.02 | H176: =Orçamento!I184 -> 215.1 | I176: =Orçamento!G184 -> 0.2216 | J176: 1.1122 | L176: 30.114 | M176: 12.906 | O176: =IF(#REF!="Tabela Não Desonerada",VLOOKUP($C176,#REF!,13,FALSE),VLOOKUP($C176,#REF!,13,FALSE)) ->  | Q176: =IF(#REF!="Tabela Não Desonerada",VLOOKUP($C176,#REF!,14,FALSE),VLOOKUP($C176,#REF!,14,FALSE)) ->  | S176: =IF(#REF!="Tabela Não Desonerada",VLOOKUP($C176,#REF!,15,FALSE),VLOOKUP($C176,#REF!,15,FALSE)) -> 
A177: 1 | B177: ='Orçamento-TCE'!B177 -> 166 | C177: ='Orçamento-TCE'!C177 -> 11.46 | D177: ='Orçamento-TCE'!G177 -> REGISTRO DE ESFERA, PVC, SOLDÁVEL, DN 32MM, INSTALADO EM RESERVAÇÃO DE ÁGUA DE EDIFIAÇÃO QUE POSSUA RESERVATÓRIO DE FIBRA/FIBROCIMENTO - FORNECIMENTO E INSTALAÇÃO. AF_06/2016 | E177: ='Orçamento-TCE'!H177 -> 5 | F177: ='Orçamento-TCE'!I177 -> UN | G177: =Orçamento!H185 -> 64.71 | H177: =Orçamento!I185 -> 323.55 | I177: =Orçamento!G185 -> 0.2216 | J177: 1.1122 | L177: 45.297 | M177: 19.413 | O177: =IF(#REF!="Tabela Não Desonerada",VLOOKUP($C177,#REF!,13,FALSE),VLOOKUP($C177,#REF!,13,FALSE)) ->  | Q177: =IF(#REF!="Tabela Não Desonerada",VLOOKUP($C177,#REF!,14,FALSE),VLOOKUP($C177,#REF!,14,FALSE)) ->  | S177: =IF(#REF!="Tabela Não Desonerada",VLOOKUP($C177,#REF!,15,FALSE),VLOOKUP($C177,#REF!,15,FALSE)) -> 
A178: 1 | B178: ='Orçamento-TCE'!B178 -> 167 | C178: ='Orçamento-TCE'!C178 -> 11.47 | D178: ='Orçamento-TCE'!G178 -> REGISTRO DE ESFERA, PVC, SOLDÁVEL, DN 60MM, INSTALADO EM RESERVAÇÃO DE ÁGUA DE EDIFICAÇÃO QUE POSSUA RESERVATÓRIO DE FIBRA/FIBROCIMENTO - FORNECIMENTO E INSTALAÇÃO. AF_06/2016 | E178: ='Orçamento-TCE'!H178 -> 2 | F178: ='Orçamento-TCE'!I178 -> UN | G178: =Orçamento!H186 -> 166.47 | H178: =Orçamento!I186 -> 332.94 | I178: =Orçamento!G186 -> 0.2216 | J178: 1.1122 | L178: 116.529 | M178: 49.941 | O178: =IF(#REF!="Tabela Não Desonerada",VLOOKUP($C178,#REF!,13,FALSE),VLOOKUP($C178,#REF!,13,FALSE)) ->  | Q178: =IF(#REF!="Tabela Não Desonerada",VLOOKUP($C178,#REF!,14,FALSE),VLOOKUP($C178,#REF!,14,FALSE)) ->  | S178: =IF(#REF!="Tabela Não Desonerada",VLOOKUP($C178,#REF!,15,FALSE),VLOOKUP($C178,#REF!,15,FALSE)) -> 
A179: 1 | B179: ='Orçamento-TCE'!B179 -> 168 | C179: ='Orçamento-TCE'!C179 -> 11.48 | D179: ='Orçamento-TCE'!G179 -> CALDEIRA MURAL GLP, POTÊNCIA NOMINAL 69,0KW, VAZÃO 42,5 L/MINM COM CHAMINÉ INCLUSA | E179: ='Orçamento-TCE'!H179 -> 2 | F179: ='Orçamento-TCE'!I179 -> UN | G179: =Orçamento!H187 -> 14284.71 | H179: =Orçamento!I187 -> 28569.42 | I179: =Orçamento!G187 -> 0.2216 | J179: 1.1122 | L179: 9999.297 | M179: 4285.413 | O179: =IF(#REF!="Tabela Não Desonerada",VLOOKUP($C179,#REF!,13,FALSE),VLOOKUP($C179,#REF!,13,FALSE)) ->  | Q179: =IF(#REF!="Tabela Não Desonerada",VLOOKUP($C179,#REF!,14,FALSE),VLOOKUP($C179,#REF!,14,FALSE)) ->  | S179: =IF(#REF!="Tabela Não Desonerada",VLOOKUP($C179,#REF!,15,FALSE),VLOOKUP($C179,#REF!,15,FALSE)) -> 
A180: 1 | B180: ='Orçamento-TCE'!B180 -> 169 | C180: ='Orçamento-TCE'!C180 -> 11.49 | D180: ='Orçamento-TCE'!G180 -> RESERVATÓRIO DE ÁGUA QUENTE 300 LITROS | E180: ='Orçamento-TCE'!H180 -> 2 | F180: ='Orçamento-TCE'!I180 -> UN | G180: =Orçamento!H188 -> 3987.89 | H180: =Orçamento!I188 -> 7975.78 | I180: =Orçamento!G188 -> 0.2216 | J180: 1.1122 | L180: 2791.523 | M180: 1196.367 | O180: =IF(#REF!="Tabela Não Desonerada",VLOOKUP($C180,#REF!,13,FALSE),VLOOKUP($C180,#REF!,13,FALSE)) ->  | Q180: =IF(#REF!="Tabela Não Desonerada",VLOOKUP($C180,#REF!,14,FALSE),VLOOKUP($C180,#REF!,14,FALSE)) ->  | S180: =IF(#REF!="Tabela Não Desonerada",VLOOKUP($C180,#REF!,15,FALSE),VLOOKUP($C180,#REF!,15,FALSE)) -> 
A181: 1 | B181: ='Orçamento-TCE'!B181 -> 170 | C181: ='Orçamento-TCE'!C181 -> 11.50 | D181: ='Orçamento-TCE'!G181 -> CONJUNTO HIDRÁULICO PARA INSTALAÇÃO DE BOMBA EM AÇO ROSCÁVEL, DN SUCÇÃO 40 (1 1/2") E DN RECALQUE 32 (1 1/4"), PARA EDIFICAÇÃO ENTRE 4 E 8 PAVIMENTOS - FORNECIMENTO E INSTALAÇÃO. AF_06/2016 | E181: ='Orçamento-TCE'!H181 -> 2 | F181: ='Orçamento-TCE'!I181 -> UN | G181: =Orçamento!H189 -> 1755.48 | H181: =Orçamento!I189 -> 3510.96 | I181: =Orçamento!G189 -> 0.2216 | J181: 1.1122 | L181: 1228.836 | M181: 526.644 | O181: =IF(#REF!="Tabela Não Desonerada",VLOOKUP($C181,#REF!,13,FALSE),VLOOKUP($C181,#REF!,13,FALSE)) ->  | Q181: =IF(#REF!="Tabela Não Desonerada",VLOOKUP($C181,#REF!,14,FALSE),VLOOKUP($C181,#REF!,14,FALSE)) ->  | S181: =IF(#REF!="Tabela Não Desonerada",VLOOKUP($C181,#REF!,15,FALSE),VLOOKUP($C181,#REF!,15,FALSE)) -> 
A182: 1 | B182: ='Orçamento-TCE'!B182 -> 171 | C182: ='Orçamento-TCE'!C182 -> 11.51 | D182: ='Orçamento-TCE'!G182 -> VÁLVULA QUEBRA VÁCUO 32MM | E182: ='Orçamento-TCE'!H182 -> 2 | F182: ='Orçamento-TCE'!I182 -> UN | G182: =Orçamento!H190 -> 374.57 | H182: =Orçamento!I190 -> 749.14 | I182: =Orçamento!G190 -> 0.2216 | J182: 1.1122 | L182: 262.199 | M182: 112.371 | O182: =IF(#REF!="Tabela Não Desonerada",VLOOKUP($C182,#REF!,13,FALSE),VLOOKUP($C182,#REF!,13,FALSE)) ->  | Q182: =IF(#REF!="Tabela Não Desonerada",VLOOKUP($C182,#REF!,14,FALSE),VLOOKUP($C182,#REF!,14,FALSE)) ->  | S182: =IF(#REF!="Tabela Não Desonerada",VLOOKUP($C182,#REF!,15,FALSE),VLOOKUP($C182,#REF!,15,FALSE)) -> 
A183: 1 | B183: ='Orçamento-TCE'!B183 -> 172 | C183: ='Orçamento-TCE'!C183 -> 11.52 | D183: ='Orçamento-TCE'!G183 -> REGISTRO DE ESFERA, PVC SOLDÁVEL, DN 32MM, INSTALADO EM RESERVAÇÃO DE ÁGUA DE EDIFICAÇÃO QUE POSSUA RESERVATÓRIO DE FIBRA/FIBROCIMENTO - FORNECIMENTO E INSTALAÇÃO. AF_06/2016 | E183: ='Orçamento-TCE'!H183 -> 2 | F183: ='Orçamento-TCE'!I183 -> UN | G183: =Orçamento!H191 -> 64.71 | H183: =Orçamento!I191 -> 129.42 | I183: =Orçamento!G191 -> 0.2216 | J183: 1.1122 | L183: 45.297 | M183: 19.413 | O183: =IF(#REF!="Tabela Não Desonerada",VLOOKUP($C183,#REF!,13,FALSE),VLOOKUP($C183,#REF!,13,FALSE)) ->  | Q183: =IF(#REF!="Tabela Não Desonerada",VLOOKUP($C183,#REF!,14,FALSE),VLOOKUP($C183,#REF!,14,FALSE)) ->  | S183: =IF(#REF!="Tabela Não Desonerada",VLOOKUP($C183,#REF!,15,FALSE),VLOOKUP($C183,#REF!,15,FALSE)) -> 
A184: 1 | B184: ='Orçamento-TCE'!B184 -> 173 | C184: ='Orçamento-TCE'!C184 -> 11.53 | D184: ='Orçamento-TCE'!G184 -> QUADRO DE DISTRIBUIÇÃO DE ENERGIA EM CHAPA DE AÇO GALVANIZADO, DE EMBUTIR, COM BARRAMENTO TRIFÁSICO, PARA 30 DISJUNTORES DIN 225A - FORNECIMENTO E INSTALAÇÃO. AF_10/2020 | E184: ='Orçamento-TCE'!H184 -> 2 | F184: ='Orçamento-TCE'!I184 -> UN | G184: =Orçamento!H192 -> 2007.81 | H184: =Orçamento!I192 -> 4015.62 | I184: =Orçamento!G192 -> 0.2216 | J184: 1.1122 | L184: 1405.467 | M184: 602.343 | O184: =IF(#REF!="Tabela Não Desonerada",VLOOKUP($C184,#REF!,13,FALSE),VLOOKUP($C184,#REF!,13,FALSE)) ->  | Q184: =IF(#REF!="Tabela Não Desonerada",VLOOKUP($C184,#REF!,14,FALSE),VLOOKUP($C184,#REF!,14,FALSE)) ->  | S184: =IF(#REF!="Tabela Não Desonerada",VLOOKUP($C184,#REF!,15,FALSE),VLOOKUP($C184,#REF!,15,FALSE)) -> 
A185: 1 | B185: ='Orçamento-TCE'!B185 -> 174 | C185: ='Orçamento-TCE'!C185 -> 11.54 | D185: ='Orçamento-TCE'!G185 -> ELETRODUTO FLEXÍVEL CORRUGADO REFORÇADO, PVC, DN 25MM (3/4'), PARA CIRCUITOS TERMINAIS, INSTALADO EM PAREDE - FORNECIMENTO E INSTALAÇÃO. AF_12/2015 | E185: ='Orçamento-TCE'!H185 -> 2 | F185: ='Orçamento-TCE'!I185 -> M | G185: =Orçamento!H193 -> 11.85 | H185: =Orçamento!I193 -> 23.7 | I185: =Orçamento!G193 -> 0.2216 | J185: 1.1122 | L185: 8.295 | M185: 3.555 | O185: =IF(#REF!="Tabela Não Desonerada",VLOOKUP($C185,#REF!,13,FALSE),VLOOKUP($C185,#REF!,13,FALSE)) ->  | Q185: =IF(#REF!="Tabela Não Desonerada",VLOOKUP($C185,#REF!,14,FALSE),VLOOKUP($C185,#REF!,14,FALSE)) ->  | S185: =IF(#REF!="Tabela Não Desonerada",VLOOKUP($C185,#REF!,15,FALSE),VLOOKUP($C185,#REF!,15,FALSE)) -> 
A186: 1 | B186: ='Orçamento-TCE'!B186 -> 175 | C186: ='Orçamento-TCE'!C186 -> 11.55 | D186: ='Orçamento-TCE'!G186 -> ELETRODUTO RÍGIDO ROSCÁVEL, PVC, DN 25MM (3/4"), PARA CIRCUITOS TERMINAIS, INSTALADO EM FORRO - FORNECIMENTO E INSTALAÇÃO. AF_12/2015 | E186: ='Orçamento-TCE'!H186 -> 6 | F186: ='Orçamento-TCE'!I186 -> M | G186: =Orçamento!H194 -> 13.14 | H186: =Orçamento!I194 -> 78.84 | I186: =Orçamento!G194 -> 0.2216 | J186: 1.1122 | L186: 9.198 | M186: 3.942 | O186: =IF(#REF!="Tabela Não Desonerada",VLOOKUP($C186,#REF!,13,FALSE),VLOOKUP($C186,#REF!,13,FALSE)) ->  | Q186: =IF(#REF!="Tabela Não Desonerada",VLOOKUP($C186,#REF!,14,FALSE),VLOOKUP($C186,#REF!,14,FALSE)) ->  | S186: =IF(#REF!="Tabela Não Desonerada",VLOOKUP($C186,#REF!,15,FALSE),VLOOKUP($C186,#REF!,15,FALSE)) -> 
A187: 1 | B187: ='Orçamento-TCE'!B187 -> 176 | C187: ='Orçamento-TCE'!C187 -> 11.56 | D187: ='Orçamento-TCE'!G187 -> CONDULETE DE PVC, TIPO B, PARA ELETRODUTO DE PVC SOLDÁVEL DN 20MM (1/2"), APARENTE - FORNECIMENTO E INSTALAÇÃO. AF_11/2016 | E187: ='Orçamento-TCE'!H187 -> 12 | F187: ='Orçamento-TCE'!I187 -> UN | G187: =Orçamento!H195 -> 30.63 | H187: =Orçamento!I195 -> 367.56 | I187: =Orçamento!G195 -> 0.2216 | J187: 1.1122 | L187: 21.441 | M187: 9.189 | O187: =IF(#REF!="Tabela Não Desonerada",VLOOKUP($C187,#REF!,13,FALSE),VLOOKUP($C187,#REF!,13,FALSE)) ->  | Q187: =IF(#REF!="Tabela Não Desonerada",VLOOKUP($C187,#REF!,14,FALSE),VLOOKUP($C187,#REF!,14,FALSE)) ->  | S187: =IF(#REF!="Tabela Não Desonerada",VLOOKUP($C187,#REF!,15,FALSE),VLOOKUP($C187,#REF!,15,FALSE)) -> 
A188: 1 | B188: ='Orçamento-TCE'!B188 -> 177 | C188: ='Orçamento-TCE'!C188 -> 11.57 | D188: ='Orçamento-TCE'!G188 -> CUBA DE EMBUTIR OVAL EM LOUÇA BRANCA, 35X50CM OU EQUIVALENTE - FORNECIMENTO E INSTALAÇÃO. AF_11/2016 | E188: ='Orçamento-TCE'!H188 -> 18 | F188: ='Orçamento-TCE'!I188 -> UN | G188: =Orçamento!H196 -> 157.16 | H188: =Orçamento!I196 -> 2828.88 | I188: =Orçamento!G196 -> 0.2216 | J188: 1.1122 | L188: 110.012 | M188: 47.148 | O188: =IF(#REF!="Tabela Não Desonerada",VLOOKUP($C188,#REF!,13,FALSE),VLOOKUP($C188,#REF!,13,FALSE)) ->  | Q188: =IF(#REF!="Tabela Não Desonerada",VLOOKUP($C188,#REF!,14,FALSE),VLOOKUP($C188,#REF!,14,FALSE)) ->  | S188: =IF(#REF!="Tabela Não Desonerada",VLOOKUP($C188,#REF!,15,FALSE),VLOOKUP($C188,#REF!,15,FALSE)) -> 
A189: 1 | B189: ='Orçamento-TCE'!B189 -> 178 | C189: ='Orçamento-TCE'!C189 -> 11.58 | D189: ='Orçamento-TCE'!G189 -> VASO SANITÁRIO SIFONADO CONVENCIONAL COM LOUÇA BRANCA - FORNECIMENTO E INSTALAÇÃO. AF_01/2020 | E189: ='Orçamento-TCE'!H189 -> 7 | F189: ='Orçamento-TCE'!I189 -> UN | G189: =Orçamento!H197 -> 317.91 | H189: =Orçamento!I197 -> 2225.37 | I189: =Orçamento!G197 -> 0.2216 | J189: 1.1122 | L189: 222.537 | M189: 95.373 | O189: =IF(#REF!="Tabela Não Desonerada",VLOOKUP($C189,#REF!,13,FALSE),VLOOKUP($C189,#REF!,13,FALSE)) ->  | Q189: =IF(#REF!="Tabela Não Desonerada",VLOOKUP($C189,#REF!,14,FALSE),VLOOKUP($C189,#REF!,14,FALSE)) ->  | S189: =IF(#REF!="Tabela Não Desonerada",VLOOKUP($C189,#REF!,15,FALSE),VLOOKUP($C189,#REF!,15,FALSE)) -> 
A190: 1 | B190: ='Orçamento-TCE'!B190 -> 179 | C190: ='Orçamento-TCE'!C190 -> 11.59 | D190: ='Orçamento-TCE'!G190 -> VASO SANITARIO SIFONADO CONVENCIONAL COM LOUÇA BRANCA, INCLUSO CONJUNTO DE LIGAÇÃO PARA BACIA SANITÁRIA AJUSTÁVEL - FORNECIMENTO E INSTALAÇÃO. AF_10/2016 | E190: ='Orçamento-TCE'!H190 -> 7 | F190: ='Orçamento-TCE'!I190 -> UN | G190: =Orçamento!H198 -> 329.8 | H190: =Orçamento!I198 -> 2308.6 | I190: =Orçamento!G198 -> 0.2216 | J190: 1.1122 | L190: 230.86 | M190: 98.94 | O190: =IF(#REF!="Tabela Não Desonerada",VLOOKUP($C190,#REF!,13,FALSE),VLOOKUP($C190,#REF!,13,FALSE)) ->  | Q190: =IF(#REF!="Tabela Não Desonerada",VLOOKUP($C190,#REF!,14,FALSE),VLOOKUP($C190,#REF!,14,FALSE)) ->  | S190: =IF(#REF!="Tabela Não Desonerada",VLOOKUP($C190,#REF!,15,FALSE),VLOOKUP($C190,#REF!,15,FALSE)) -> 
A191: 1 | B191: ='Orçamento-TCE'!B191 -> 180 | C191: ='Orçamento-TCE'!C191 -> 11.60 | D191: ='Orçamento-TCE'!G191 -> MICTÓRIO SIFONADO LOUÇA BRANCA, PADRÃO MÉDIO - FORNECIMENTO E INSTALAÇÃO. AF_01/2020 | E191: ='Orçamento-TCE'!H191 -> 2 | F191: ='Orçamento-TCE'!I191 -> UN | G191: =Orçamento!H199 -> 741.98 | H191: =Orçamento!I199 -> 1483.96 | I191: =Orçamento!G199 -> 0.2216 | J191: 1.1122 | L191: 519.386 | M191: 222.594 | O191: =IF(#REF!="Tabela Não Desonerada",VLOOKUP($C191,#REF!,13,FALSE),VLOOKUP($C191,#REF!,13,FALSE)) ->  | Q191: =IF(#REF!="Tabela Não Desonerada",VLOOKUP($C191,#REF!,14,FALSE),VLOOKUP($C191,#REF!,14,FALSE)) ->  | S191: =IF(#REF!="Tabela Não Desonerada",VLOOKUP($C191,#REF!,15,FALSE),VLOOKUP($C191,#REF!,15,FALSE)) -> 
A192: 1 | B192: ='Orçamento-TCE'!B192 -> 181 | C192: ='Orçamento-TCE'!C192 -> 11.61 | D192: ='Orçamento-TCE'!G192 -> ASSENTO SANITÁRIO CONVENCIONAL - FORNECIMENTO E INSTALAÇÃO | E192: ='Orçamento-TCE'!H192 -> 14 | F192: ='Orçamento-TCE'!I192 -> UN | G192: =Orçamento!H200 -> 60.88 | H192: =Orçamento!I200 -> 852.32 | I192: =Orçamento!G200 -> 0.2216 | J192: 1.1122 | L192: 42.616 | M192: 18.264 | O192: =IF(#REF!="Tabela Não Desonerada",VLOOKUP($C192,#REF!,13,FALSE),VLOOKUP($C192,#REF!,13,FALSE)) ->  | Q192: =IF(#REF!="Tabela Não Desonerada",VLOOKUP($C192,#REF!,14,FALSE),VLOOKUP($C192,#REF!,14,FALSE)) ->  | S192: =IF(#REF!="Tabela Não Desonerada",VLOOKUP($C192,#REF!,15,FALSE),VLOOKUP($C192,#REF!,15,FALSE)) -> 
A193: 1 | B193: ='Orçamento-TCE'!B193 -> 182 | C193: ='Orçamento-TCE'!C193 -> 11.62 | D193: ='Orçamento-TCE'!G193 -> TORNEIRA PARA SANITÁRIO PNE AUTOMÁTICA | E193: ='Orçamento-TCE'!H193 -> 19 | F193: ='Orçamento-TCE'!I193 -> UN | G193: =Orçamento!H201 -> 286.43 | H193: =Orçamento!I201 -> 5442.17 | I193: =Orçamento!G201 -> 0.2216 | J193: 1.1122 | L193: 200.501 | M193: 85.929 | O193: =IF(#REF!="Tabela Não Desonerada",VLOOKUP($C193,#REF!,13,FALSE),VLOOKUP($C193,#REF!,13,FALSE)) ->  | Q193: =IF(#REF!="Tabela Não Desonerada",VLOOKUP($C193,#REF!,14,FALSE),VLOOKUP($C193,#REF!,14,FALSE)) ->  | S193: =IF(#REF!="Tabela Não Desonerada",VLOOKUP($C193,#REF!,15,FALSE),VLOOKUP($C193,#REF!,15,FALSE)) -> 
A194: 1 | B194: ='Orçamento-TCE'!B194 -> 183 | C194: ='Orçamento-TCE'!C194 -> 11.63 | D194: ='Orçamento-TCE'!G194 -> PORTA PAPEL HIGIÊNICO EM ROLO - DISPENSER EM PLÁSTICO | E194: ='Orçamento-TCE'!H194 -> 14 | F194: ='Orçamento-TCE'!I194 -> UN | G194: =Orçamento!H202 -> 63.5 | H194: =Orçamento!I202 -> 889 | I194: =Orçamento!G202 -> 0.2216 | J194: 1.1122 | L194: 44.45 | M194: 19.05 | O194: =IF(#REF!="Tabela Não Desonerada",VLOOKUP($C194,#REF!,13,FALSE),VLOOKUP($C194,#REF!,13,FALSE)) ->  | Q194: =IF(#REF!="Tabela Não Desonerada",VLOOKUP($C194,#REF!,14,FALSE),VLOOKUP($C194,#REF!,14,FALSE)) ->  | S194: =IF(#REF!="Tabela Não Desonerada",VLOOKUP($C194,#REF!,15,FALSE),VLOOKUP($C194,#REF!,15,FALSE)) -> 
A195: 1 | B195: ='Orçamento-TCE'!B195 -> 184 | C195: ='Orçamento-TCE'!C195 -> 11.64 | D195: ='Orçamento-TCE'!G195 -> SABONETEIRA DE PAREDE EM PLASTICO ABS COM ACABAMENTO CROMADO E ACRILICO, INCLUSO FIXAÇÃO. AF_01/2020 | E195: ='Orçamento-TCE'!H195 -> 13 | F195: ='Orçamento-TCE'!I195 -> UN | G195: =Orçamento!H203 -> 83.06 | H195: =Orçamento!I203 -> 1079.78 | I195: =Orçamento!G203 -> 0.2216 | J195: 1.1122 | L195: 58.142 | M195: 24.918 | O195: =IF(#REF!="Tabela Não Desonerada",VLOOKUP($C195,#REF!,13,FALSE),VLOOKUP($C195,#REF!,13,FALSE)) ->  | Q195: =IF(#REF!="Tabela Não Desonerada",VLOOKUP($C195,#REF!,14,FALSE),VLOOKUP($C195,#REF!,14,FALSE)) ->  | S195: =IF(#REF!="Tabela Não Desonerada",VLOOKUP($C195,#REF!,15,FALSE),VLOOKUP($C195,#REF!,15,FALSE)) -> 
A196: 1 | B196: ='Orçamento-TCE'!B196 -> 185 | C196: ='Orçamento-TCE'!C196 -> 11.65 | D196: ='Orçamento-TCE'!G196 -> MEIA SABONETEIRA PARA CHUVEIRO | E196: ='Orçamento-TCE'!H196 -> 16 | F196: ='Orçamento-TCE'!I196 -> UN | G196: =Orçamento!H204 -> 82.94 | H196: =Orçamento!I204 -> 1327.04 | I196: =Orçamento!G204 -> 0.2216 | J196: 1.1122 | L196: 58.058 | M196: 24.882 | O196: =IF(#REF!="Tabela Não Desonerada",VLOOKUP($C196,#REF!,13,FALSE),VLOOKUP($C196,#REF!,13,FALSE)) ->  | Q196: =IF(#REF!="Tabela Não Desonerada",VLOOKUP($C196,#REF!,14,FALSE),VLOOKUP($C196,#REF!,14,FALSE)) ->  | S196: =IF(#REF!="Tabela Não Desonerada",VLOOKUP($C196,#REF!,15,FALSE),VLOOKUP($C196,#REF!,15,FALSE)) -> 
A197: 1 | B197: ='Orçamento-TCE'!B197 -> 186 | C197: ='Orçamento-TCE'!C197 -> 11.66 | D197: ='Orçamento-TCE'!G197 -> TOALHEIRO DISPENSER PARA TOALHA DE PAPEL, EM PLÁSTICO | E197: ='Orçamento-TCE'!H197 -> 14 | F197: ='Orçamento-TCE'!I197 -> UN | G197: =Orçamento!H205 -> 63.5 | H197: =Orçamento!I205 -> 889 | I197: =Orçamento!G205 -> 0.2216 | J197: 1.1122 | L197: 44.45 | M197: 19.05 | O197: =IF(#REF!="Tabela Não Desonerada",VLOOKUP($C197,#REF!,13,FALSE),VLOOKUP($C197,#REF!,13,FALSE)) ->  | Q197: =IF(#REF!="Tabela Não Desonerada",VLOOKUP($C197,#REF!,14,FALSE),VLOOKUP($C197,#REF!,14,FALSE)) ->  | S197: =IF(#REF!="Tabela Não Desonerada",VLOOKUP($C197,#REF!,15,FALSE),VLOOKUP($C197,#REF!,15,FALSE)) -> 
A198: 1 | B198: ='Orçamento-TCE'!B198 -> 187 | C198: ='Orçamento-TCE'!C198 -> 11.67 | D198: ='Orçamento-TCE'!G198 -> CHUVEIRO AQUECEDOR A GÁS | E198: ='Orçamento-TCE'!H198 -> 16 | F198: ='Orçamento-TCE'!I198 -> UN | G198: =Orçamento!H206 -> 325.73 | H198: =Orçamento!I206 -> 5211.68 | I198: =Orçamento!G206 -> 0.2216 | J198: 1.1122 | L198: 228.011 | M198: 97.719 | O198: =IF(#REF!="Tabela Não Desonerada",VLOOKUP($C198,#REF!,13,FALSE),VLOOKUP($C198,#REF!,13,FALSE)) ->  | Q198: =IF(#REF!="Tabela Não Desonerada",VLOOKUP($C198,#REF!,14,FALSE),VLOOKUP($C198,#REF!,14,FALSE)) ->  | S198: =IF(#REF!="Tabela Não Desonerada",VLOOKUP($C198,#REF!,15,FALSE),VLOOKUP($C198,#REF!,15,FALSE)) -> 
A199: 1 | B199: ='Orçamento-TCE'!B199 -> 188 | C199: ='Orçamento-TCE'!C199 -> 11.68 | D199: ='Orçamento-TCE'!G199 -> BATEDOR DE AÇO POLIDO | E199: ='Orçamento-TCE'!H199 -> 14 | F199: ='Orçamento-TCE'!I199 -> UN | G199: =Orçamento!H207 -> 381.09 | H199: =Orçamento!I207 -> 5335.26 | I199: =Orçamento!G207 -> 0.2216 | J199: 1.1122 | L199: 266.763 | M199: 114.327 | O199: =IF(#REF!="Tabela Não Desonerada",VLOOKUP($C199,#REF!,13,FALSE),VLOOKUP($C199,#REF!,13,FALSE)) ->  | Q199: =IF(#REF!="Tabela Não Desonerada",VLOOKUP($C199,#REF!,14,FALSE),VLOOKUP($C199,#REF!,14,FALSE)) ->  | S199: =IF(#REF!="Tabela Não Desonerada",VLOOKUP($C199,#REF!,15,FALSE),VLOOKUP($C199,#REF!,15,FALSE)) -> 
A200: 1 | B200: ='Orçamento-TCE'!B200 -> 189 | C200: ='Orçamento-TCE'!C200 -> 11.69 | D200: ='Orçamento-TCE'!G200 -> BANCO ARTICULADO, EM AÇO INOX, PARA PCD, FIXADO NA PAREDE - FORNECIMENTO E INSTALAÇÃO. AF_01/2020 | E200: ='Orçamento-TCE'!H200 -> 10 | F200: ='Orçamento-TCE'!I200 -> UN | G200: =Orçamento!H208 -> 1635.03 | H200: =Orçamento!I208 -> 16350.3 | I200: =Orçamento!G208 -> 0.2216 | J200: 1.1122 | L200: 1144.521 | M200: 490.509 | O200: =IF(#REF!="Tabela Não Desonerada",VLOOKUP($C200,#REF!,13,FALSE),VLOOKUP($C200,#REF!,13,FALSE)) ->  | Q200: =IF(#REF!="Tabela Não Desonerada",VLOOKUP($C200,#REF!,14,FALSE),VLOOKUP($C200,#REF!,14,FALSE)) ->  | S200: =IF(#REF!="Tabela Não Desonerada",VLOOKUP($C200,#REF!,15,FALSE),VLOOKUP($C200,#REF!,15,FALSE)) -> 
... 57 more rows

Sheet Orçamento-TCE (hidden)
A1: ORÇAMENTO
A2: Modalidade | H2: N° | J2: Ano
A3: Descrição do Objeto | C3: ='Identificação-TCE'!B3 -> Reforma dos setores 2 e 4 do Ginásio Municipal Osmar Fortes Barcellos (Ginásio Tesourinha)
A4: Órgão | C4: ='Identificação-TCE'!B4 -> SMELJ | J4: CNPJ
A5: Tipo de Objeto
A6: Preço T. Estimado | C6: =SUM(K12:K257) -> 2045309.43
A8: Atenção! Para incluir mais de 100 linhas de itens, selecione as células A113 a R113 e arraste as fórmulas para baixo, de acordo com o número de itens necessário.
A9: *Preenchimento obrigatório | F9: **Obrigatório só para Obras e Serviços de Engenharia | H9: ***Obrigatório só para licitação composta por Lotes
A10: Nº do Lote*** | B10: N° Ordem | C10: Nº Item* | D10: Fonte de Referência** | E10: Código de Referência** | F10: Data de Referência** | G10: Descrição do item* | H10: Estimativa | N10: Família | P10: Subfamília | R10: Tipo de Orçamento | S10: Pr. Unit. Material | T10: Pr. Unit. Mão de obra
H11: Qtd.* | I11: Unid.* | J11: Preço unitário (R$)* | K11: Preço Total (R$) | L11: % BDI** | M11: % Encargos Sociais** | N11: Código | O11: Descrição | P11: Código | Q11: Descrição
A12: ='[1]Identificação-TCE'!$A$13 -> 1 | B12: =IF(AND(G12<>"",H12>0,I12<>"",J12<>0,K12<>0),COUNT($B$11:B11)+1,"") -> 1 | C12: =Orçamento!A10 -> 1.1 | D12: CCU | E12: CPUE 30 | F12: 2022-02-11 | G12: =VLOOKUP($C12,Orçamento!A10:C268,3,FALSE) -> PLACA DE OBRA | H12: =IFERROR(VLOOKUP($C12,Orçamento!A10:E268,5,FALSE),0) -> 2.88 | I12: =VLOOKUP($C12,Orçamento!A10:D268,4,FALSE) -> M2 | J12: =VLOOKUP($C12,Orçamento!A10:H269,8,FALSE) -> 390.92 | K12: =VLOOKUP($C12,Orçamento!A10:I269,9,FALSE) -> 1125.85 | L12: =VLOOKUP($C12,Orçamento!A10:G269,7,FALSE) -> 0.2216 | M12: 1.1122
A13: ='[1]Identificação-TCE'!$A$13 -> 1 | B13: =IF(AND(G13<>"",H13>0,I13<>"",J13<>0,K13<>0),COUNT($B$11:B12)+1,"") -> 2 | C13: =Orçamento!A11 -> 1.2 | D13: CCU | E13: CPUE 54 | F13: 2022-02-11 | G13: =VLOOKUP($C13,Orçamento!A11:C269,3,FALSE) -> ANDAIME TUBULAR METÁLICO | H13: =IFERROR(VLOOKUP($C13,Orçamento!A11:E269,5,FALSE),0) -> 8 | I13: =VLOOKUP($C13,Orçamento!A11:D269,4,FALSE) -> MÊS | J13: =VLOOKUP($C13,Orçamento!A11:H270,8,FALSE) -> 789.78 | K13: =VLOOKUP($C13,Orçamento!A11:I270,9,FALSE) -> 6318.24 | L13: =VLOOKUP($C13,Orçamento!A11:G270,7,FALSE) -> 0.2216 | M13: 1.1122
A14: ='[1]Identificação-TCE'!$A$13 -> 1 | B14: =IF(AND(G14<>"",H14>0,I14<>"",J14<>0,K14<>0),COUNT($B$11:B13)+1,"") -> 3 | C14: =Orçamento!A12 -> 1.3 | D14: SINAPI | E14: SINAPI 101908 | F14: 2022-02-11 | G14: =VLOOKUP($C14,Orçamento!A12:C270,3,FALSE) -> EXTINTOR DE INCÊNDIO PORTÁTIL COM CARGA DE PQS DE 4 KG, CLASSE BC - FORNECIMENTO E INSTALAÇÃO. AF_10/2020_P | H14: =IFERROR(VLOOKUP($C14,Orçamento!A12:E270,5,FALSE),0) -> 2 | I14: UN | J14: =VLOOKUP($C14,Orçamento!A12:H271,8,FALSE) -> 282.97 | K14: =VLOOKUP($C14,Orçamento!A12:I271,9,FALSE) -> 565.94 | L14: =VLOOKUP($C14,Orçamento!A12:G271,7,FALSE) -> 0.2216 | M14: 1.1122
A15: ='[1]Identificação-TCE'!$A$13 -> 1 | B15: =IF(AND(G15<>"",H15>0,I15<>"",J15<>0,K15<>0),COUNT($B$11:B14)+1,"") -> 4 | C15: =Orçamento!A13 -> 1.4 | D15: SINAPI | E15: SINAPI 101905 | F15: 2022-02-11 | G15: =VLOOKUP($C15,Orçamento!A13:C271,3,FALSE) -> EXTINTOR DE INCÊNDIO PORTÁTIL COM CARGA DE ÁGUA PRESSURIZADA DE 10 L, CLASSE A - FORNECIMENTO E INSTALAÇÃO. AF_10/2020_P | H15: =IFERROR(VLOOKUP($C15,Orçamento!A13:E271,5,FALSE),0) -> 2 | I15: UN | J15: =VLOOKUP($C15,Orçamento!A13:H272,8,FALSE) -> 291.82 | K15: =VLOOKUP($C15,Orçamento!A13:I272,9,FALSE) -> 583.64 | L15: =VLOOKUP($C15,Orçamento!A13:G272,7,FALSE) -> 0.2216 | M15: 1.1122
A16: ='[1]Identificação-TCE'!$A$13 -> 1 | B16: =IF(AND(G16<>"",H16>0,I16<>"",J16<>0,K16<>0),COUNT($B$11:B15)+1,"") -> 5 | C16: =Orçamento!A15 -> 2.1 | D16: CCU | E16: CPUE 116 | F16: 2022-02-11 | G16: =VLOOKUP($C16,Orçamento!A15:C273,3,FALSE) -> ADMINISTRAÇÃO LOCAL | H16: =IFERROR(VLOOKUP($C16,Orçamento!A15:E273,5,FALSE),0) -> 1 | I16: UN | J16: =VLOOKUP($C16,Orçamento!A15:H274,8,FALSE) -> 116639.28 | K16: =VLOOKUP($C16,Orçamento!A15:I274,9,FALSE) -> 116639.28 | L16: =VLOOKUP($C16,Orçamento!A15:G274,7,FALSE) -> 0.2216 | M16: 1.1122
A17: ='[1]Identificação-TCE'!$A$13 -> 1 | B17: =IF(AND(G17<>"",H17>0,I17<>"",J17<>0,K17<>0),COUNT($B$11:B16)+1,"") -> 6 | C17: =Orçamento!A17 -> 3.1 | D17: SINAPI | E17: SINAPI 97640 | F17: 2022-02-11 | G17: =VLOOKUP($C17,Orçamento!A17:C275,3,FALSE) -> REMOÇÃO DE FORROS DE DRYWALL, PVC E FIBROMINERAL, DE FORMA MANUAL, SEM REAPROVEITAMENTO. AF_12/2017 | H17: =IFERROR(VLOOKUP($C17,Orçamento!A17:E275,5,FALSE),0) -> 317.29 | I17: =VLOOKUP($C17,Orçamento!A17:D275,4,FALSE) -> M2 | J17: =VLOOKUP($C17,Orçamento!A17:H276,8,FALSE) -> 1.84 | K17: =VLOOKUP($C17,Orçamento!A17:I276,9,FALSE) -> 583.81 | L17: =VLOOKUP($C17,Orçamento!A17:G276,7,FALSE) -> 0.2216 | M17: 1.1122
A18: ='[1]Identificação-TCE'!$A$13 -> 1 | B18: =IF(AND(G18<>"",H18>0,I18<>"",J18<>0,K18<>0),COUNT($B$11:B17)+1,"") -> 7 | C18: =Orçamento!A18 -> 3.2 | D18: SINAPI | E18: SINAPI 97629 | F18: 2022-02-11 | G18: =VLOOKUP($C18,Orçamento!A18:C276,3,FALSE) -> DEMOLIÇÃO DE LAJES, DE FORMA MECANIZADA COM MARTELETE, SEM REAPROVEITAMENTO. AF_12/2017 | H18: =IFERROR(VLOOKUP($C18,Orçamento!A18:E276,5,FALSE),0) -> 7.53 | I18: =VLOOKUP($C18,Orçamento!A18:D276,4,FALSE) -> M3 | J18: =VLOOKUP($C18,Orçamento!A18:H277,8,FALSE) -> 149.19 | K18: =VLOOKUP($C18,Orçamento!A18:I277,9,FALSE) -> 1123.4 | L18: =VLOOKUP($C18,Orçamento!A18:G277,7,FALSE) -> 0.2216 | M18: 1.1122
A19: ='[1]Identificação-TCE'!$A$13 -> 1 | B19: =IF(AND(G19<>"",H19>0,I19<>"",J19<>0,K19<>0),COUNT($B$11:B18)+1,"") -> 8 | C19: =Orçamento!A19 -> 3.3 | D19: SINAPI | E19: SINAPI 97642 | F19: 2022-02-11 | G19: =VLOOKUP($C19,Orçamento!A19:C277,3,FALSE) -> REMOÇÃO DE TRAMA METÁLICA OU DE MADEIRA PARA FORRO, DE FORMA MANUAL SEM REAPROVEITAMENTO. AF_12/2017 | H19: =IFERROR(VLOOKUP($C19,Orçamento!A19:E277,5,FALSE),0) -> 189.14 | I19: =VLOOKUP($C19,Orçamento!A19:D277,4,FALSE) -> M2 | J19: =VLOOKUP($C19,Orçamento!A19:H278,8,FALSE) -> 3.31 | K19: =VLOOKUP($C19,Orçamento!A19:I278,9,FALSE) -> 626.05 | L19: =VLOOKUP($C19,Orçamento!A19:G278,7,FALSE) -> 0.2216 | M19: 1.1122
A20: ='[1]Identificação-TCE'!$A$13 -> 1 | B20: =IF(AND(G20<>"",H20>0,I20<>"",J20<>0,K20<>0),COUNT($B$11:B19)+1,"") -> 9 | C20: =Orçamento!A20 -> 3.4 | D20: SINAPI | E20: SINAPI 97633 | F20: 2022-02-11 | G20: =VLOOKUP($C20,Orçamento!A20:C278,3,FALSE) -> DEMOLIÇÃO DE REVESTIMENTO CERÂMICO, DE FORMA MANUAL, SEM REAPROVEITAMENTO. AF_12/2017 | H20: =IFERROR(VLOOKUP($C20,Orçamento!A20:E278,5,FALSE),0) -> 301.22 | I20: =VLOOKUP($C20,Orçamento!A20:D278,4,FALSE) -> M2 | J20: =VLOOKUP($C20,Orçamento!A20:H279,8,FALSE) -> 23.63 | K20: =VLOOKUP($C20,Orçamento!A20:I279,9,FALSE) -> 7117.83 | L20: =VLOOKUP($C20,Orçamento!A20:G279,7,FALSE) -> 0.2216 | M20: 1.1122
A21: ='[1]Identificação-TCE'!$A$13 -> 1 | B21: =IF(AND(G21<>"",H21>0,I21<>"",J21<>0,K21<>0),COUNT($B$11:B20)+1,"") -> 10 | C21: =Orçamento!A21 -> 3.5 | D21: SINAPI | E21: SINAPI 97634 | F21: 2022-02-11 | G21: =VLOOKUP($C21,Orçamento!A21:C279,3,FALSE) -> DEMOLIÇÃO DE REVESTIMENTO CERÂMICO, DE FORMA MECANIZADA COM MARTELETE, SEM REAPROVEITAMENTO. AF_12/2017 | H21: =IFERROR(VLOOKUP($C21,Orçamento!A21:E279,5,FALSE),0) -> 1053.16 | I21: =VLOOKUP($C21,Orçamento!A21:D279,4,FALSE) -> M2 | J21: =VLOOKUP($C21,Orçamento!A21:H280,8,FALSE) -> 13.71 | K21: =VLOOKUP($C21,Orçamento!A21:I280,9,FALSE) -> 14438.82 | L21: =VLOOKUP($C21,Orçamento!A21:G280,7,FALSE) -> 0.2216 | M21: 1.1122
A22: ='[1]Identificação-TCE'!$A$13 -> 1 | B22: =IF(AND(G22<>"",H22>0,I22<>"",J22<>0,K22<>0),COUNT($B$11:B21)+1,"") -> 11 | C22: =Orçamento!A22 -> 3.6 | D22: SINAPI | E22: SINAPI 97621 | F22: 2022-02-11 | G22: =VLOOKUP($C22,Orçamento!A22:C280,3,FALSE) -> DEMOLIÇÃO DE ALVENARIA DE BLOCO FURADO, DE FORMA MANUAL, COM REAPROVEITAMENTO. AF_12/2017 | H22: =IFERROR(VLOOKUP($C22,Orçamento!A22:E280,5,FALSE),0) -> 66.85 | I22: =VLOOKUP($C22,Orçamento!A22:D280,4,FALSE) -> M3 | J22: =VLOOKUP($C22,Orçamento!A22:H281,8,FALSE) -> 122.61 | K22: =VLOOKUP($C22,Orçamento!A22:I281,9,FALSE) -> 8196.48 | L22: =VLOOKUP($C22,Orçamento!A22:G281,7,FALSE) -> 0.2216 | M22: 1.1122
A23: ='[1]Identificação-TCE'!$A$13 -> 1 | B23: =IF(AND(G23<>"",H23>0,I23<>"",J23<>0,K23<>0),COUNT($B$11:B22)+1,"") -> 12 | C23: =Orçamento!A23 -> 3.7 | D23: SINAPI | E23: SINAPI 97638 | F23: 2022-02-11 | G23: =VLOOKUP($C23,Orçamento!A23:C281,3,FALSE) -> REMOÇÃO DE CHAPAS E PERFIS DE DRYWALL, DE FORMA MANUAL, SEM REAPROVEITAMENTO. AF_12/2017 | H23: =IFERROR(VLOOKUP($C23,Orçamento!A23:E281,5,FALSE),0) -> 23.23 | I23: =VLOOKUP($C23,Orçamento!A23:D281,4,FALSE) -> M2 | J23: =VLOOKUP($C23,Orçamento!A23:H282,8,FALSE) -> 8.54 | K23: =VLOOKUP($C23,Orçamento!A23:I282,9,FALSE) -> 198.38 | L23: =VLOOKUP($C23,Orçamento!A23:G282,7,FALSE) -> 0.2216 | M23: 1.1122
A24: ='[1]Identificação-TCE'!$A$13 -> 1 | B24: =IF(AND(G24<>"",H24>0,I24<>"",J24<>0,K24<>0),COUNT($B$11:B23)+1,"") -> 13 | C24: =Orçamento!A24 -> 3.8 | D24: SINAPI | E24: SINAPI 97644 | F24: 2022-02-11 | G24: =VLOOKUP($C24,Orçamento!A24:C282,3,FALSE) -> REMOÇÃO DE PORTAS, DE FORMA MANUAL, SEM REAPROVEITAMENTO. AF_12/2017 | H24: =IFERROR(VLOOKUP($C24,Orçamento!A24:E282,5,FALSE),0) -> 84.21 | I24: =VLOOKUP($C24,Orçamento!A24:D282,4,FALSE) -> m2 | J24: =VLOOKUP($C24,Orçamento!A24:H283,8,FALSE) -> 9.59 | K24: =VLOOKUP($C24,Orçamento!A24:I283,9,FALSE) -> 807.57 | L24: =VLOOKUP($C24,Orçamento!A24:G283,7,FALSE) -> 0.2216 | M24: 1.1122
A25: ='[1]Identificação-TCE'!$A$13 -> 1 | B25: =IF(AND(G25<>"",H25>0,I25<>"",J25<>0,K25<>0),COUNT($B$11:B24)+1,"") -> 14 | C25: =Orçamento!A25 -> 3.9 | D25: SINAPI | E25: SINAPI 97645 | F25: 2022-02-11 | G25: =VLOOKUP($C25,Orçamento!A25:C283,3,FALSE) -> REMOÇÃO DE JANELAS, DE FORMA MANUAL, SEM REAPROVEIAMENTO. AF_12/2017 | H25: =IFERROR(VLOOKUP($C25,Orçamento!A25:E283,5,FALSE),0) -> 116.42 | I25: =VLOOKUP($C25,Orçamento!A25:D283,4,FALSE) -> M2 | J25: =VLOOKUP($C25,Orçamento!A25:H284,8,FALSE) -> 36.16 | K25: =VLOOKUP($C25,Orçamento!A25:I284,9,FALSE) -> 4209.75 | L25: =VLOOKUP($C25,Orçamento!A25:G284,7,FALSE) -> 0.2216 | M25: 1.1122
A26: ='[1]Identificação-TCE'!$A$13 -> 1 | B26: =IF(AND(G26<>"",H26>0,I26<>"",J26<>0,K26<>0),COUNT($B$11:B25)+1,"") -> 15 | C26: =Orçamento!A26 -> 3.10 | D26: SINAPI | E26: SINAPI 97663 | F26: 2022-02-11 | G26: =VLOOKUP($C26,Orçamento!A26:C284,3,FALSE) -> REMOÇÃO DE LOUÇAS, DE FORMA MANUAL, SEM REAPROVEITAMENTO. AF_12/2017 | H26: =IFERROR(VLOOKUP($C26,Orçamento!A26:E284,5,FALSE),0) -> 55 | I26: UN | J26: =VLOOKUP($C26,Orçamento!A26:H285,8,FALSE) -> 12.72 | K26: =VLOOKUP($C26,Orçamento!A26:I285,9,FALSE) -> 699.6 | L26: =VLOOKUP($C26,Orçamento!A26:G285,7,FALSE) -> 0.2216 | M26: 1.1122
A27: ='[1]Identificação-TCE'!$A$13 -> 1 | B27: =IF(AND(G27<>"",H27>0,I27<>"",J27<>0,K27<>0),COUNT($B$11:B26)+1,"") -> 16 | C27: =Orçamento!A27 -> 3.11 | D27: SINAPI | E27: SINAPI 95875 | F27: 2022-02-11 | G27: =VLOOKUP($C27,Orçamento!A27:C285,3,FALSE) -> TRANSPORTE COM CAMINHÃO BASCULANTE DE 10M3, EM VIA URBANA PAVIMENTADA, DMT ATÉ 30 KM (UNIDADE: M3XKM). AF_07/2020 | H27: =IFERROR(VLOOKUP($C27,Orçamento!A27:E285,5,FALSE),0) -> 2944.62 | I27: =VLOOKUP($C27,Orçamento!A27:D285,4,FALSE) -> M3XKM | J27: =VLOOKUP($C27,Orçamento!A27:H286,8,FALSE) -> 2 | K27: =VLOOKUP($C27,Orçamento!A27:I286,9,FALSE) -> 5889.24 | L27: =VLOOKUP($C27,Orçamento!A27:G286,7,FALSE) -> 0.2216 | M27: 1.1122
A28: ='[1]Identificação-TCE'!$A$13 -> 1 | B28: =IF(AND(G28<>"",H28>0,I28<>"",J28<>0,K28<>0),COUNT($B$11:B27)+1,"") -> 17 | C28: =Orçamento!A29 -> 4.1 | D28: SINAPI | E28: SINAPI 103324 | F28: 2022-02-11 | G28: =VLOOKUP($C28,Orçamento!A29:C287,3,FALSE) -> ALVENARIA DE VEDAÇÃO DE BLOCOS CERÂMICOS FURADOS NA VERTICAL DE 14X19X39 CM (ESPESSURA 14 CM) E ARGAMASSA DE ASSENTAMENTO COM PREPARO EM BETONEIRA. AF_12/2021 | H28: =IFERROR(VLOOKUP($C28,Orçamento!A29:E287,5,FALSE),0) -> 373.38 | I28: =VLOOKUP($C28,Orçamento!A29:D287,4,FALSE) -> M2 | J28: =VLOOKUP($C28,Orçamento!A29:H288,8,FALSE) -> 86.78 | K28: =VLOOKUP($C28,Orçamento!A29:I288,9,FALSE) -> 32401.92 | L28: =VLOOKUP($C28,Orçamento!A29:G288,7,FALSE) -> 0.2216 | M28: 1.1122
A29: ='[1]Identificação-TCE'!$A$13 -> 1 | B29: =IF(AND(G29<>"",H29>0,I29<>"",J29<>0,K29<>0),COUNT($B$11:B28)+1,"") -> 18 | C29: =Orçamento!A30 -> 4.2 | D29: SINAPI | E29: SINAPI 103326 | F29: 2022-02-11 | G29: =VLOOKUP($C29,Orçamento!A30:C288,3,FALSE) -> ALVENARIA DE VEDAÇÃO DE BLOCOS CERÂMICOS FURADOS NA VERTICAL DE 19X19X39 CM (ESPESSURA 19 CM) E ARGAMASSA DE ASSENTAMENTO COM PREPARO EM BETONEIRA. AF_12/2021 | H29: =IFERROR(VLOOKUP($C29,Orçamento!A30:E288,5,FALSE),0) -> 3.9 | I29: =VLOOKUP($C29,Orçamento!A30:D288,4,FALSE) -> M2 | J29: =VLOOKUP($C29,Orçamento!A30:H289,8,FALSE) -> 105.58 | K29: =VLOOKUP($C29,Orçamento!A30:I289,9,FALSE) -> 411.76 | L29: =VLOOKUP($C29,Orçamento!A30:G289,7,FALSE) -> 0.2216 | M29: 1.1122
A30: ='[1]Identificação-TCE'!$A$13 -> 1 | B30: =IF(AND(G30<>"",H30>0,I30<>"",J30<>0,K30<>0),COUNT($B$11:B29)+1,"") -> 19 | C30: =Orçamento!A31 -> 4.3 | D30: SINAPI | E30: SINAPI 96361 | F30: 2022-02-11 | G30: =VLOOKUP($C30,Orçamento!A31:C289,3,FALSE) -> PAREDE COM PLACAS DE GESSO ACARTONADO (DRYWALL), PARA USO INTERNO, COM DUAS FACES SIMPLES E ESTRUTURA METÁLICA COM GUIAS DUPLAS, COM VÃOS. AF_06/2017 | H30: =IFERROR(VLOOKUP($C30,Orçamento!A31:E289,5,FALSE),0) -> 114.08 | I30: =VLOOKUP($C30,Orçamento!A31:D289,4,FALSE) -> M2 | J30: =VLOOKUP($C30,Orçamento!A31:H290,8,FALSE) -> 220.73 | K30: =VLOOKUP($C30,Orçamento!A31:I290,9,FALSE) -> 25180.88 | L30: =VLOOKUP($C30,Orçamento!A31:G290,7,FALSE) -> 0.2216 | M30: 1.1122
A31: ='[1]Identificação-TCE'!$A$13 -> 1 | B31: =IF(AND(G31<>"",H31>0,I31<>"",J31<>0,K31<>0),COUNT($B$11:B30)+1,"") -> 20 | C31: =Orçamento!A32 -> 4.4 | D31: SINAPI | E31: SINAPI 102257 | F31: 2022-02-11 | G31: =VLOOKUP($C31,Orçamento!A32:C290,3,FALSE) -> DIVISÓRIA SANITÁRIA, TIPO CABINE, EM PAINEL DE GRANILITE, ESP = 3CM, ASSENTADO COM ARGAMASSA COLANTE AC III-E, EXCLUSIVE FERRAGENS. AF_01/2021 | H31: =IFERROR(VLOOKUP($C31,Orçamento!A32:E290,5,FALSE),0) -> 11.34 | I31: =VLOOKUP($C31,Orçamento!A32:D290,4,FALSE) -> M2 | J31: =VLOOKUP($C31,Orçamento!A32:H291,8,FALSE) -> 310.81 | K31: =VLOOKUP($C31,Orçamento!A32:I291,9,FALSE) -> 3524.59 | L31: =VLOOKUP($C31,Orçamento!A32:G291,7,FALSE) -> 0.2216 | M31: 1.1122
A32: ='[1]Identificação-TCE'!$A$13 -> 1 | B32: =IF(AND(G32<>"",H32>0,I32<>"",J32<>0,K32<>0),COUNT($B$11:B31)+1,"") -> 21 | C32: =Orçamento!A33 -> 4.5 | D32: ORSE | E32: ORSE 00178 | F32: 2022-02-11 | G32: =VLOOKUP($C32,Orçamento!A33:C291,3,FALSE) -> FERRAGEM PARA DIVISÓRIA (VÃO PORTA) COMPOSTA DE 3 DOBRADIÇAS PALMELA E 1 FECHADURA TUBULAR LOCKWELL COM BOTÃO DE GIRO PARA TRAVAMENTO, REF: 41410N, OU SIMILAR | H32: =IFERROR(VLOOKUP($C32,Orçamento!A33:E291,5,FALSE),0) -> 3 | I32: =VLOOKUP($C32,Orçamento!A33:D291,4,FALSE) -> CJ | J32: =VLOOKUP($C32,Orçamento!A33:H292,8,FALSE) -> 256.07 | K32: =VLOOKUP($C32,Orçamento!A33:I292,9,FALSE) -> 768.21 | L32: =VLOOKUP($C32,Orçamento!A33:G292,7,FALSE) -> 0.2216 | M32: 1.1122
A33: ='[1]Identificação-TCE'!$A$13 -> 1 | B33: =IF(AND(G33<>"",H33>0,I33<>"",J33<>0,K33<>0),COUNT($B$11:B32)+1,"") -> 22 | C33: =Orçamento!A35 -> 5.1 | D33: MERCADO | E33: COT 01 | F33: 2022-02-11 | G33: =VLOOKUP($C33,Orçamento!A35:C293,3,FALSE) -> EA01 | H33: =IFERROR(VLOOKUP($C33,Orçamento!A35:E293,5,FALSE),0) -> 1 | I33: UN | J33: =VLOOKUP($C33,Orçamento!A35:H294,8,FALSE) -> 1092.95 | K33: =VLOOKUP($C33,Orçamento!A35:I294,9,FALSE) -> 1092.95 | L33: =VLOOKUP($C33,Orçamento!A35:G294,7,FALSE) -> 0.1373 | M33: 1.1122
A34: ='[1]Identificação-TCE'!$A$13 -> 1 | B34: =IF(AND(G34<>"",H34>0,I34<>"",J34<>0,K34<>0),COUNT($B$11:B33)+1,"") -> 23 | C34: =Orçamento!A36 -> 5.2 | D34: MERCADO | E34: COT 01 | F34: 2022-02-11 | G34: =VLOOKUP($C34,Orçamento!A36:C294,3,FALSE) -> EA03 | H34: =IFERROR(VLOOKUP($C34,Orçamento!A36:E294,5,FALSE),0) -> 3 | I34: UN | J34: =VLOOKUP($C34,Orçamento!A36:H295,8,FALSE) -> 1990.28 | K34: =VLOOKUP($C34,Orçamento!A36:I295,9,FALSE) -> 5970.84 | L34: =VLOOKUP($C34,Orçamento!A36:G295,7,FALSE) -> 0.1373 | M34: 1.1122
A35: ='[1]Identificação-TCE'!$A$13 -> 1 | B35: =IF(AND(G35<>"",H35>0,I35<>"",J35<>0,K35<>0),COUNT($B$11:B34)+1,"") -> 24 | C35: =Orçamento!A37 -> 5.3 | D35: MERCADO | E35: COT 01 | F35: 2022-02-11 | G35: =VLOOKUP($C35,Orçamento!A37:C295,3,FALSE) -> EA04 | H35: =IFERROR(VLOOKUP($C35,Orçamento!A37:E295,5,FALSE),0) -> 1 | I35: UN | J35: =VLOOKUP($C35,Orçamento!A37:H296,8,FALSE) -> 2900.12 | K35: =VLOOKUP($C35,Orçamento!A37:I296,9,FALSE) -> 2900.12 | L35: =VLOOKUP($C35,Orçamento!A37:G296,7,FALSE) -> 0.1373 | M35: 1.1122
A36: ='[1]Identificação-TCE'!$A$13 -> 1 | B36: =IF(AND(G36<>"",H36>0,I36<>"",J36<>0,K36<>0),COUNT($B$11:B35)+1,"") -> 25 | C36: =Orçamento!A38 -> 5.4 | D36: MERCADO | E36: COT 01 | F36: 2022-02-11 | G36: =VLOOKUP($C36,Orçamento!A38:C296,3,FALSE) -> EA05 | H36: =IFERROR(VLOOKUP($C36,Orçamento!A38:E296,5,FALSE),0) -> 5 | I36: UN | J36: =VLOOKUP($C36,Orçamento!A38:H297,8,FALSE) -> 3070.71 | K36: =VLOOKUP($C36,Orçamento!A38:I297,9,FALSE) -> 15353.55 | L36: =VLOOKUP($C36,Orçamento!A38:G297,7,FALSE) -> 0.1373 | M36: 1.1122
A37: ='[1]Identificação-TCE'!$A$13 -> 1 | B37: =IF(AND(G37<>"",H37>0,I37<>"",J37<>0,K37<>0),COUNT($B$11:B36)+1,"") -> 26 | C37: =Orçamento!A39 -> 5.5 | D37: MERCADO | E37: COT 01 | F37: 2022-02-11 | G37: =VLOOKUP($C37,Orçamento!A39:C297,3,FALSE) -> EA09 | H37: =IFERROR(VLOOKUP($C37,Orçamento!A39:E297,5,FALSE),0) -> 3 | I37: UN | J37: =VLOOKUP($C37,Orçamento!A39:H298,8,FALSE) -> 5004.12 | K37: =VLOOKUP($C37,Orçamento!A39:I298,9,FALSE) -> 15012.36 | L37: =VLOOKUP($C37,Orçamento!A39:G298,7,FALSE) -> 0.1373 | M37: 1.1122
A38: ='[1]Identificação-TCE'!$A$13 -> 1 | B38: =IF(AND(G38<>"",H38>0,I38<>"",J38<>0,K38<>0),COUNT($B$11:B37)+1,"") -> 27 | C38: =Orçamento!A40 -> 5.6 | D38: MERCADO | E38: COT 01 | F38: 2022-02-11 | G38: =VLOOKUP($C38,Orçamento!A40:C298,3,FALSE) -> EA11 | H38: =IFERROR(VLOOKUP($C38,Orçamento!A40:E298,5,FALSE),0) -> 4 | I38: UN | J38: =VLOOKUP($C38,Orçamento!A40:H299,8,FALSE) -> 5459.04 | K38: =VLOOKUP($C38,Orçamento!A40:I299,9,FALSE) -> 21836.16 | L38: =VLOOKUP($C38,Orçamento!A40:G299,7,FALSE) -> 0.1373 | M38: 1.1122
A39: ='[1]Identificação-TCE'!$A$13 -> 1 | B39: =IF(AND(G39<>"",H39>0,I39<>"",J39<>0,K39<>0),COUNT($B$11:B38)+1,"") -> 28 | C39: =Orçamento!A41 -> 5.7 | D39: MERCADO | E39: COT 01 | F39: 2022-02-11 | G39: =VLOOKUP($C39,Orçamento!A41:C299,3,FALSE) -> EA12 | H39: =IFERROR(VLOOKUP($C39,Orçamento!A41:E299,5,FALSE),0) -> 5 | I39: UN | J39: =VLOOKUP($C39,Orçamento!A41:H300,8,FALSE) -> 10576.89 | K39: =VLOOKUP($C39,Orçamento!A41:I300,9,FALSE) -> 52884.45 | L39: =VLOOKUP($C39,Orçamento!A41:G300,7,FALSE) -> 0.1373 | M39: 1.1122
A40: ='[1]Identificação-TCE'!$A$13 -> 1 | B40: =IF(AND(G40<>"",H40>0,I40<>"",J40<>0,K40<>0),COUNT($B$11:B39)+1,"") -> 29 | C40: =Orçamento!A42 -> 5.8 | D40: MERCADO | E40: COT 01 | F40: 2022-02-11 | G40: =VLOOKUP($C40,Orçamento!A42:C300,3,FALSE) -> EA13 | H40: =IFERROR(VLOOKUP($C40,Orçamento!A42:E300,5,FALSE),0) -> 2 | I40: UN | J40: =VLOOKUP($C40,Orçamento!A42:H301,8,FALSE) -> 5629.64 | K40: =VLOOKUP($C40,Orçamento!A42:I301,9,FALSE) -> 11259.28 | L40: =VLOOKUP($C40,Orçamento!A42:G301,7,FALSE) -> 0.1373 | M40: 1.1122
A41: ='[1]Identificação-TCE'!$A$13 -> 1 | B41: =IF(AND(G41<>"",H41>0,I41<>"",J41<>0,K41<>0),COUNT($B$11:B40)+1,"") -> 30 | C41: =Orçamento!A43 -> 5.9 | D41: MERCADO | E41: COT 01 | F41: 2022-02-11 | G41: =VLOOKUP($C41,Orçamento!A43:C301,3,FALSE) -> EA15 | H41: =IFERROR(VLOOKUP($C41,Orçamento!A43:E301,5,FALSE),0) -> 7 | I41: UN | J41: =VLOOKUP($C41,Orçamento!A43:H302,8,FALSE) -> 5192.62 | K41: =VLOOKUP($C41,Orçamento!A43:I302,9,FALSE) -> 36348.34 | L41: =VLOOKUP($C41,Orçamento!A43:G302,7,FALSE) -> 0.1373 | M41: 1.1122
A42: ='[1]Identificação-TCE'!$A$13 -> 1 | B42: =IF(AND(G42<>"",H42>0,I42<>"",J42<>0,K42<>0),COUNT($B$11:B41)+1,"") -> 31 | C42: =Orçamento!A44 -> 5.10 | D42: MERCADO | E42: COT 01 | F42: 2022-02-11 | G42: =VLOOKUP($C42,Orçamento!A44:C302,3,FALSE) -> EA16 | H42: =IFERROR(VLOOKUP($C42,Orçamento!A44:E302,5,FALSE),0) -> 1 | I42: UN | J42: =VLOOKUP($C42,Orçamento!A44:H303,8,FALSE) -> 15051.03 | K42: =VLOOKUP($C42,Orçamento!A44:I303,9,FALSE) -> 15051.03 | L42: =VLOOKUP($C42,Orçamento!A44:G303,7,FALSE) -> 0.1373 | M42: 1.1122
A43: ='[1]Identificação-TCE'!$A$13 -> 1 | B43: =IF(AND(G43<>"",H43>0,I43<>"",J43<>0,K43<>0),COUNT($B$11:B42)+1,"") -> 32 | C43: =Orçamento!A45 -> 5.11 | D43: MERCADO | E43: COT 110 | F43: 2022-02-11 | G43: =VLOOKUP($C43,Orçamento!A45:C303,3,FALSE) -> EA18 | H43: =IFERROR(VLOOKUP($C43,Orçamento!A45:E303,5,FALSE),0) -> 1 | I43: UN | J43: =VLOOKUP($C43,Orçamento!A45:H304,8,FALSE) -> 23655.84 | K43: =VLOOKUP($C43,Orçamento!A45:I304,9,FALSE) -> 23655.84 | L43: =VLOOKUP($C43,Orçamento!A45:G304,7,FALSE) -> 0.1373 | M43: 1.1122
A44: ='[1]Identificação-TCE'!$A$13 -> 1 | B44: =IF(AND(G44<>"",H44>0,I44<>"",J44<>0,K44<>0),COUNT($B$11:B43)+1,"") -> 33 | C44: =Orçamento!A46 -> 5.12 | D44: CCU | E44: CPUE 56 | F44: 2022-02-11 | G44: =VLOOKUP($C44,Orçamento!A46:C304,3,FALSE) -> PM01 - 1 FOLHA DE ABRIR 0,70 X 1,40 M | H44: =IFERROR(VLOOKUP($C44,Orçamento!A46:E304,5,FALSE),0) -> 3 | I44: UN | J44: =VLOOKUP($C44,Orçamento!A46:H305,8,FALSE) -> 1170 | K44: =VLOOKUP($C44,Orçamento!A46:I305,9,FALSE) -> 3510 | L44: =VLOOKUP($C44,Orçamento!A46:G305,7,FALSE) -> 0.2216 | M44: 1.1122
A45: ='[1]Identificação-TCE'!$A$13 -> 1 | B45: =IF(AND(G45<>"",H45>0,I45<>"",J45<>0,K45<>0),COUNT($B$11:B44)+1,"") -> 34 | C45: =Orçamento!A47 -> 5.13 | D45: SINAPI | E45: SINAPI 100687 | F45: 2022-02-11 | G45: =VLOOKUP($C45,Orçamento!A47:C305,3,FALSE) -> KIT DE PORTA DE MADEIRA FRISADA, SEMI-OCA (LEVE OU MÉDIA), PADRÃO MÉDIO, 60X210CM, ESPESSURA DE 3,5CM, ITENS INCLUSOS: DOBRADIÇAS, MONTAGEM E INSTALAÇÃO DE BATENTE, FECHADURA COM EXECUÇÃO DO FURO - FORNECIMENTO E INSTALAÇÃO. AF_12/2019 | H45: =IFERROR(VLOOKUP($C45,Orçamento!A47:E305,5,FALSE),0) -> 4 | I45: UN | J45: =VLOOKUP($C45,Orçamento!A47:H306,8,FALSE) -> 1306.1 | K45: =VLOOKUP($C45,Orçamento!A47:I306,9,FALSE) -> 5224.4 | L45: =VLOOKUP($C45,Orçamento!A47:G306,7,FALSE) -> 0.2216 | M45: 1.1122
A46: ='[1]Identificação-TCE'!$A$13 -> 1 | B46: =IF(AND(G46<>"",H46>0,I46<>"",J46<>0,K46<>0),COUNT($B$11:B45)+1,"") -> 35 | C46: =Orçamento!A48 -> 5.14 | D46: SINAPI | E46: SINAPI 100689 | F46: 2022-02-11 | G46: =VLOOKUP($C46,Orçamento!A48:C306,3,FALSE) -> KIT DE PORTA DE MADEIRA FRISADA, SEMI-OCA (LEVE OU MÉDIA), PADRÃO MÉDIO, 80 X 210CM, ESPESSURA DE 3,5CM,ITENS INCLUSOS: DOBRADIÇAS, MONTAGEM E INSTALAÇÃO DE BATENTE, FECHADURA COM EXECUÇÃO DO FURO - FORNECIMENTO E INSTALAÇÃO. AF_12/2019 | H46: =IFERROR(VLOOKUP($C46,Orçamento!A48:E306,5,FALSE),0) -> 18 | I46: UN | J46: =VLOOKUP($C46,Orçamento!A48:H307,8,FALSE) -> 1413.37 | K46: =VLOOKUP($C46,Orçamento!A48:I307,9,FALSE) -> 25440.66 | L46: =VLOOKUP($C46,Orçamento!A48:G307,7,FALSE) -> 0.2216 | M46: 1.1122
A47: ='[1]Identificação-TCE'!$A$13 -> 1 | B47: =IF(AND(G47<>"",H47>0,I47<>"",J47<>0,K47<>0),COUNT($B$11:B46)+1,"") -> 36 | C47: =Orçamento!A49 -> 5.15 | D47: CCU | E47: CPUE 57 | F47: 2022-02-11 | G47: =VLOOKUP($C47,Orçamento!A49:C307,3,FALSE) -> PM04 - 1 FOLHA DE ABRIR 1,00x2,10 M | H47: =IFERROR(VLOOKUP($C47,Orçamento!A49:E307,5,FALSE),0) -> 11 | I47: UN | J47: =VLOOKUP($C47,Orçamento!A49:H308,8,FALSE) -> 1421.01 | K47: =VLOOKUP($C47,Orçamento!A49:I308,9,FALSE) -> 15631.11 | L47: =VLOOKUP($C47,Orçamento!A49:G308,7,FALSE) -> 0.2216 | M47: 1.1122
A48: ='[1]Identificação-TCE'!$A$13 -> 1 | B48: =IF(AND(G48<>"",H48>0,I48<>"",J48<>0,K48<>0),COUNT($B$11:B47)+1,"") -> 37 | C48: =Orçamento!A50 -> 5.16 | D48: CCU | E48: CPUE 58 | F48: 2022-02-11 | G48: =VLOOKUP($C48,Orçamento!A50:C308,3,FALSE) -> PM06 - 2 FOLHAS DE ABRIR 1,60 X 2,10 M | H48: =IFERROR(VLOOKUP($C48,Orçamento!A50:E308,5,FALSE),0) -> 2 | I48: UN | J48: =VLOOKUP($C48,Orçamento!A50:H309,8,FALSE) -> 1678.48 | K48: =VLOOKUP($C48,Orçamento!A50:I309,9,FALSE) -> 3356.96 | L48: =VLOOKUP($C48,Orçamento!A50:G309,7,FALSE) -> 0.2216 | M48: 1.1122
A49: ='[1]Identificação-TCE'!$A$13 -> 1 | B49: =IF(AND(G49<>"",H49>0,I49<>"",J49<>0,K49<>0),COUNT($B$11:B48)+1,"") -> 38 | C49: =Orçamento!A51 -> 5.17 | D49: CCU | E49: CPUE 59 | F49: 2022-02-11 | G49: =VLOOKUP($C49,Orçamento!A51:C309,3,FALSE) -> PM07 - 2 FOLHAS DE ABRIR 1,80 X 2,10 M | H49: =IFERROR(VLOOKUP($C49,Orçamento!A51:E309,5,FALSE),0) -> 2 | I49: UN | J49: =VLOOKUP($C49,Orçamento!A51:H310,8,FALSE) -> 1875.91 | K49: =VLOOKUP($C49,Orçamento!A51:I310,9,FALSE) -> 3751.82 | L49: =VLOOKUP($C49,Orçamento!A51:G310,7,FALSE) -> 0.2216 | M49: 1.1122
A50: ='[1]Identificação-TCE'!$A$13 -> 1 | B50: =IF(AND(G50<>"",H50>0,I50<>"",J50<>0,K50<>0),COUNT($B$11:B49)+1,"") -> 39 | C50: =Orçamento!A52 -> 5.18 | D50: CCU | E50: CPUE 60 | F50: 2022-02-11 | G50: =VLOOKUP($C50,Orçamento!A52:C310,3,FALSE) -> PM08 - 2 FOHAS DE ABRIR 2,00 X 2,10 M | H50: =IFERROR(VLOOKUP($C50,Orçamento!A52:E310,5,FALSE),0) -> 1 | I50: UN | J50: =VLOOKUP($C50,Orçamento!A52:H311,8,FALSE) -> 1998.31 | K50: =VLOOKUP($C50,Orçamento!A52:I311,9,FALSE) -> 1998.31 | L50: =VLOOKUP($C50,Orçamento!A52:G311,7,FALSE) -> 0.2216 | M50: 1.1122
A51: ='[1]Identificação-TCE'!$A$13 -> 1 | B51: =IF(AND(G51<>"",H51>0,I51<>"",J51<>0,K51<>0),COUNT($B$11:B50)+1,"") -> 40 | C51: =Orçamento!A54 -> 6.1 | D51: CCU | E51: CPUE 119 | F51: 2022-02-11 | G51: =VLOOKUP($C51,Orçamento!A54:C312,3,FALSE) -> IMPERMEABILIZAÇÃO DE SUPERFÍCIE COM EMULSÃO ASFÁLTICA, DUAS CAMADAS, COM APLICAÇÃO DE VÉU DE POLIÉSTER | H51: =IFERROR(VLOOKUP($C51,Orçamento!A54:E312,5,FALSE),0) -> 40.36 | I51: =VLOOKUP($C51,Orçamento!A54:D312,4,FALSE) -> M2 | J51: =VLOOKUP($C51,Orçamento!A54:H313,8,FALSE) -> 61.54 | K51: =VLOOKUP($C51,Orçamento!A54:I313,9,FALSE) -> 2483.75 | L51: =VLOOKUP($C51,Orçamento!A54:G313,7,FALSE) -> 0.2216 | M51: 1.1122
A52: ='[1]Identificação-TCE'!$A$13 -> 1 | B52: =IF(AND(G52<>"",H52>0,I52<>"",J52<>0,K52<>0),COUNT($B$11:B51)+1,"") -> 41 | C52: =Orçamento!A55 -> 6.2 | D52: SINAPI | E52: SINAPI 101749 | F52: 2022-02-11 | G52: =VLOOKUP($C52,Orçamento!A55:C313,3,FALSE) -> PISO CIMENTADO, TRAÇO 1:3 (CIMENTO E AREIA), ACABAMENTO LISO, ESPESSURA 4,0 CM, PREPARO MECÂNICO DA ARGAMASSA. AF_09/2020 | H52: =IFERROR(VLOOKUP($C52,Orçamento!A55:E313,5,FALSE),0) -> 40.36 | I52: =VLOOKUP($C52,Orçamento!A55:D313,4,FALSE) -> M2 | J52: =VLOOKUP($C52,Orçamento!A55:H314,8,FALSE) -> 57.34 | K52: =VLOOKUP($C52,Orçamento!A55:I314,9,FALSE) -> 2314.24 | L52: =VLOOKUP($C52,Orçamento!A55:G314,7,FALSE) -> 0.2216 | M52: 1.1122
A53: ='[1]Identificação-TCE'!$A$13 -> 1 | B53: =IF(AND(G53<>"",H53>0,I53<>"",J53<>0,K53<>0),COUNT($B$11:B52)+1,"") -> 42 | C53: =Orçamento!A56 -> 6.3 | D53: SINAPI | E53: SINAPI 98567 | F53: 2022-02-11 | G53: =VLOOKUP($C53,Orçamento!A56:C314,3,FALSE) -> PROTEÇÃO MECÂNICA DE SUPERFÍCIE HORIZONTAL COM ARGAMASSA DE CIMENTO E AREIA, TRAÇO 1:3, E= 4CM. AF_06/2018 | H53: =IFERROR(VLOOKUP($C53,Orçamento!A56:E314,5,FALSE),0) -> 40.36 | I53: =VLOOKUP($C53,Orçamento!A56:D314,4,FALSE) -> M2 | J53: =VLOOKUP($C53,Orçamento!A56:H315,8,FALSE) -> 69.2 | K53: =VLOOKUP($C53,Orçamento!A56:I315,9,FALSE) -> 2792.91 | L53: =VLOOKUP($C53,Orçamento!A56:G315,7,FALSE) -> 0.2216 | M53: 1.1122
A54: ='[1]Identificação-TCE'!$A$13 -> 1 | B54: =IF(AND(G54<>"",H54>0,I54<>"",J54<>0,K54<>0),COUNT($B$11:B53)+1,"") -> 43 | C54: =Orçamento!A57 -> 6.4 | D54: CCU | E54: CPUE 36 | F54: 2022-02-11 | G54: =VLOOKUP($C54,Orçamento!A57:C315,3,FALSE) -> BASE DE DISTRIUBUIÇÃO DE CARGA SOBRE CONTRAPISO EXISTENTE, E=2CM | H54: =IFERROR(VLOOKUP($C54,Orçamento!A57:E315,5,FALSE),0) -> 40.36 | I54: =VLOOKUP($C54,Orçamento!A57:D315,4,FALSE) -> M2 | J54: =VLOOKUP($C54,Orçamento!A57:H316,8,FALSE) -> 147.23 | K54: =VLOOKUP($C54,Orçamento!A57:I316,9,FALSE) -> 5942.2 | L54: =VLOOKUP($C54,Orçamento!A57:G316,7,FALSE) -> 0.2216 | M54: 1.1122
A55: ='[1]Identificação-TCE'!$A$13 -> 1 | B55: =IF(AND(G55<>"",H55>0,I55<>"",J55<>0,K55<>0),COUNT($B$11:B54)+1,"") -> 44 | C55: =Orçamento!A58 -> 6.5 | D55: CCU | E55: CPUE 35 | F55: 2022-02-11 | G55: =VLOOKUP($C55,Orçamento!A58:C316,3,FALSE) -> TRATAMENTO DE ESTRUTURAS DE CONCRETO ARMADO | H55: =IFERROR(VLOOKUP($C55,Orçamento!A58:E316,5,FALSE),0) -> 24.95 | I55: =VLOOKUP($C55,Orçamento!A58:D316,4,FALSE) -> M2 | J55: =VLOOKUP($C55,Orçamento!A58:H317,8,FALSE) -> 498.57 | K55: =VLOOKUP($C55,Orçamento!A58:I317,9,FALSE) -> 12439.32 | L55: =VLOOKUP($C55,Orçamento!A58:G317,7,FALSE) -> 0.2216 | M55: 1.1122
A56: ='[1]Identificação-TCE'!$A$13 -> 1 | B56: =IF(AND(G56<>"",H56>0,I56<>"",J56<>0,K56<>0),COUNT($B$11:B55)+1,"") -> 45 | C56: =Orçamento!A60 -> 7.1 | D56: SINAPI | E56: SINAPI 87878 | F56: 2022-02-11 | G56: =VLOOKUP($C56,Orçamento!A60:C318,3,FALSE) -> CHAPISCO APLICADO EM ALVENARIAS E ESTRUTURAS DE CONCRETO INTERNAS, COM COLHER DE PEDREIRO. ARGAMASSA TRAÇO 1:3 COM PREPARO MANUAL. AF_06/2014 | H56: =IFERROR(VLOOKUP($C56,Orçamento!A60:E318,5,FALSE),0) -> 616.2 | I56: =VLOOKUP($C56,Orçamento!A60:D318,4,FALSE) -> M2 | J56: =VLOOKUP($C56,Orçamento!A60:H319,8,FALSE) -> 5.02 | K56: =VLOOKUP($C56,Orçamento!A60:I319,9,FALSE) -> 3093.32 | L56: =VLOOKUP($C56,Orçamento!A60:G319,7,FALSE) -> 0.2216 | M56: 1.1122
A57: ='[1]Identificação-TCE'!$A$13 -> 1 | B57: =IF(AND(G57<>"",H57>0,I57<>"",J57<>0,K57<>0),COUNT($B$11:B56)+1,"") -> 46 | C57: =Orçamento!A61 -> 7.2 | D57: SINAPI | E57: SINAPI 87529 | F57: 2022-02-11 | G57: =VLOOKUP($C57,Orçamento!A61:C319,3,FALSE) -> MASSA ÚNICA, PARA RECEBIMENTO DE PINTURA EM ARGAMASSA TRAÇO 1:2:8, PREPARO MECÂNICO COM BETONEIRA 400L, APLICADA MANUALMENTE EM FACES INTERNAS DE PAREDES, ESPESSURA DE 20MM, COM EXECUÇÃO DE TALISCAS. AF_06/2014 | H57: =IFERROR(VLOOKUP($C57,Orçamento!A61:E319,5,FALSE),0) -> 616.2 | I57: =VLOOKUP($C57,Orçamento!A61:D319,4,FALSE) -> M2 | J57: =VLOOKUP($C57,Orçamento!A61:H320,8,FALSE) -> 37.26 | K57: =VLOOKUP($C57,Orçamento!A61:I320,9,FALSE) -> 22959.61 | L57: =VLOOKUP($C57,Orçamento!A61:G320,7,FALSE) -> 0.2216 | M57: 1.1122
A58: ='[1]Identificação-TCE'!$A$13 -> 1 | B58: =IF(AND(G58<>"",H58>0,I58<>"",J58<>0,K58<>0),COUNT($B$11:B57)+1,"") -> 47 | C58: =Orçamento!A62 -> 7.3 | D58: SINAPI | E58: SINAPI 87274 | F58: 2022-02-11 | G58: =VLOOKUP($C58,Orçamento!A62:C320,3,FALSE) -> REVESTIMENTO CERÂMICO PARA PAREDES INTERNAS COM PLACAS TIPO ESMALTADA EXTRA DE DIMENSÕES 33X45CM APLICADAS EM AMBIENTES DE ÁREA MENOR QUE 5M2 A MEIA ALTURA DAS PAREDES. AF_06/2014 | H58: =IFERROR(VLOOKUP($C58,Orçamento!A62:E320,5,FALSE),0) -> 757.83 | I58: =VLOOKUP($C58,Orçamento!A62:D320,4,FALSE) -> M2 | J58: =VLOOKUP($C58,Orçamento!A62:H321,8,FALSE) -> 84.08 | K58: =VLOOKUP($C58,Orçamento!A62:I321,9,FALSE) -> 63718.35 | L58: =VLOOKUP($C58,Orçamento!A62:G321,7,FALSE) -> 0.2216 | M58: 1.1122
A59: ='[1]Identificação-TCE'!$A$13 -> 1 | B59: =IF(AND(G59<>"",H59>0,I59<>"",J59<>0,K59<>0),COUNT($B$11:B58)+1,"") -> 48 | C59: =Orçamento!A63 -> 7.4 | D59: SINAPI | E59: SINAPI 39511 | F59: 2022-02-11 | G59: =VLOOKUP($C59,Orçamento!A63:C321,3,FALSE) -> FORRO DE FIBRA MINERAL EM PLACAS DE 625X625MM, E=15MM, BORDA RETA, COM PINTURA ANTIMOFO, APOIADO EM PERFIL DE AÇO GALVANIZADO COM 24MM DE BASE - INSTALADO | H59: =IFERROR(VLOOKUP($C59,Orçamento!A63:E321,5,FALSE),0) -> 846.46 | I59: =VLOOKUP($C59,Orçamento!A63:D321,4,FALSE) -> M2 | J59: =VLOOKUP($C59,Orçamento!A63:H322,8,FALSE) -> 131.99 | K59: =VLOOKUP($C59,Orçamento!A63:I322,9,FALSE) -> 111724.26 | L59: =VLOOKUP($C59,Orçamento!A63:G322,7,FALSE) -> 0.2216 | M59: 1.1122
A60: ='[1]Identificação-TCE'!$A$13 -> 1 | B60: =IF(AND(G60<>"",H60>0,I60<>"",J60<>0,K60<>0),COUNT($B$11:B59)+1,"") -> 49 | C60: =Orçamento!A64 -> 7.5 | D60: SINAPI | E60: SINAPI 100717 | F60: 2022-02-11 | G60: =VLOOKUP($C60,Orçamento!A64:C322,3,FALSE) -> LIXAMENTO MANUAL EM SUPERFÍCIES METÁLICAS EM OBRA. AF_01/2020 | H60: =IFERROR(VLOOKUP($C60,Orçamento!A64:E322,5,FALSE),0) -> 172.56 | I60: =VLOOKUP($C60,Orçamento!A64:D322,4,FALSE) -> M2 | J60: =VLOOKUP($C60,Orçamento!A64:H323,8,FALSE) -> 10.32 | K60: =VLOOKUP($C60,Orçamento!A64:I323,9,FALSE) -> 1780.82 | L60: =VLOOKUP($C60,Orçamento!A64:G323,7,FALSE) -> 0.2216 | M60: 1.1122
A61: ='[1]Identificação-TCE'!$A$13 -> 1 | B61: =IF(AND(G61<>"",H61>0,I61<>"",J61<>0,K61<>0),COUNT($B$11:B60)+1,"") -> 50 | C61: =Orçamento!A65 -> 7.6 | D61: SINAPI | E61: SINAPI 100722 | F61: 2022-02-11 | G61: =VLOOKUP($C61,Orçamento!A65:C323,3,FALSE) -> PINTURA COM TINTA ALQUÍDICA DE FUNDO (TIPO ZARCÃO) APLICADA A ROLO OU PINCEL SOBRE SUPERFÍCIES METÁLICAS (EXCETO PERFIL) EXECUTADO EM OBRA (POR DEMÃO). AF_01/2020 | H61: =IFERROR(VLOOKUP($C61,Orçamento!A65:E323,5,FALSE),0) -> 172.56 | I61: =VLOOKUP($C61,Orçamento!A65:D323,4,FALSE) -> M2 | J61: =VLOOKUP($C61,Orçamento!A65:H324,8,FALSE) -> 25.07 | K61: =VLOOKUP($C61,Orçamento!A65:I324,9,FALSE) -> 4326.08 | L61: =VLOOKUP($C61,Orçamento!A65:G324,7,FALSE) -> 0.2216 | M61: 1.1122
A62: ='[1]Identificação-TCE'!$A$13 -> 1 | B62: =IF(AND(G62<>"",H62>0,I62<>"",J62<>0,K62<>0),COUNT($B$11:B61)+1,"") -> 51 | C62: =Orçamento!A66 -> 7.7 | D62: SINAPI | E62: SINAPI 100734 | F62: 2022-02-11 | G62: =VLOOKUP($C62,Orçamento!A66:C324,3,FALSE) -> PINTURA COM TINTA ACRÍLICA DE FUNDO APLICADA A ROLO OU PINCEL SOBRE SUPERFÍCIES METÁLICAS (EXCETO PERFIL) EXECUTADO EM OBRA (POR DEMÃO). AF_01/2020 | H62: =IFERROR(VLOOKUP($C62,Orçamento!A66:E324,5,FALSE),0) -> 172.56 | I62: =VLOOKUP($C62,Orçamento!A66:D324,4,FALSE) -> M2 | J62: =VLOOKUP($C62,Orçamento!A66:H325,8,FALSE) -> 15.6 | K62: =VLOOKUP($C62,Orçamento!A66:I325,9,FALSE) -> 2691.94 | L62: =VLOOKUP($C62,Orçamento!A66:G325,7,FALSE) -> 0.2216 | M62: 1.1122
A63: ='[1]Identificação-TCE'!$A$13 -> 1 | B63: =IF(AND(G63<>"",H63>0,I63<>"",J63<>0,K63<>0),COUNT($B$11:B62)+1,"") -> 52 | C63: =Orçamento!A67 -> 7.8 | D63: SINAPI | E63: SINAPI 102220 | F63: 2022-02-11 | G63: =VLOOKUP($C63,Orçamento!A67:C325,3,FALSE) -> PINTURA TINTA DE ACABAMENTO (PIGMENTADA) ESMALTE SINTÉTICO BRILHANTE EM MADEIRA, 2 DEMÃOS. AF_01/2021 | H63: =IFERROR(VLOOKUP($C63,Orçamento!A67:E325,5,FALSE),0) -> 242.55 | I63: =VLOOKUP($C63,Orçamento!A67:D325,4,FALSE) -> M2 | J63: =VLOOKUP($C63,Orçamento!A67:H326,8,FALSE) -> 16.74 | K63: =VLOOKUP($C63,Orçamento!A67:I326,9,FALSE) -> 4060.29 | L63: =VLOOKUP($C63,Orçamento!A67:G326,7,FALSE) -> 0.2216 | M63: 1.1122
A64: ='[1]Identificação-TCE'!$A$13 -> 1 | B64: =IF(AND(G64<>"",H64>0,I64<>"",J64<>0,K64<>0),COUNT($B$11:B63)+1,"") -> 53 | C64: =Orçamento!A68 -> 7.9 | D64: SINAPI | E64: SINAPI 88485 | F64: 2022-02-11 | G64: =VLOOKUP($C64,Orçamento!A68:C326,3,FALSE) -> APLICAÇÃO DE FUNDO SELADOR ACRÍLICO EM PAREDES, UMA DEMÃO. AF_06/2014 | H64: =IFERROR(VLOOKUP($C64,Orçamento!A68:E326,5,FALSE),0) -> 214.93 | I64: =VLOOKUP($C64,Orçamento!A68:D326,4,FALSE) -> M2 | J64: =VLOOKUP($C64,Orçamento!A68:H327,8,FALSE) -> 2.81 | K64: =VLOOKUP($C64,Orçamento!A68:I327,9,FALSE) -> 603.95 | L64: =VLOOKUP($C64,Orçamento!A68:G327,7,FALSE) -> 0.2216 | M64: 1.1122
A65: ='[1]Identificação-TCE'!$A$13 -> 1 | B65: =IF(AND(G65<>"",H65>0,I65<>"",J65<>0,K65<>0),COUNT($B$11:B64)+1,"") -> 54 | C65: =Orçamento!A69 -> 7.10 | D65: SINAPI | E65: SINAPI 88489 | F65: 2022-02-11 | G65: =VLOOKUP($C65,Orçamento!A69:C327,3,FALSE) -> APLICAÇÃO MANUAL DE PINTURA COM TINTA LÁTEX ACRÍLICA EM PAREDES, DUAS DEMÃOS. AF_06/2014 | H65: =IFERROR(VLOOKUP($C65,Orçamento!A69:E327,5,FALSE),0) -> 1765.7 | I65: =VLOOKUP($C65,Orçamento!A69:D327,4,FALSE) -> M2 | J65: =VLOOKUP($C65,Orçamento!A69:H328,8,FALSE) -> 18.07 | K65: =VLOOKUP($C65,Orçamento!A69:I328,9,FALSE) -> 31906.2 | L65: =VLOOKUP($C65,Orçamento!A69:G328,7,FALSE) -> 0.2216 | M65: 1.1122
A66: ='[1]Identificação-TCE'!$A$13 -> 1 | B66: =IF(AND(G66<>"",H66>0,I66<>"",J66<>0,K66<>0),COUNT($B$11:B65)+1,"") -> 55 | C66: =Orçamento!A70 -> 7.11 | D66: SINAPI | E66: SINAPI 88495 | F66: 2022-02-11 | G66: =VLOOKUP($C66,Orçamento!A70:C328,3,FALSE) -> APLICAÇÃO E LIXAMENTO DE MASSA LÁTEX EM PAREDES, UMA DEMÃO. AF_06/2014 | H66: =IFERROR(VLOOKUP($C66,Orçamento!A70:E328,5,FALSE),0) -> 384.46 | I66: =VLOOKUP($C66,Orçamento!A70:D328,4,FALSE) -> M2 | J66: =VLOOKUP($C66,Orçamento!A70:H329,8,FALSE) -> 14.49 | K66: =VLOOKUP($C66,Orçamento!A70:I329,9,FALSE) -> 5570.83 | L66: =VLOOKUP($C66,Orçamento!A70:G329,7,FALSE) -> 0.2216 | M66: 1.1122
A67: ='[1]Identificação-TCE'!$A$13 -> 1 | B67: =IF(AND(G67<>"",H67>0,I67<>"",J67<>0,K67<>0),COUNT($B$11:B66)+1,"") -> 56 | C67: =Orçamento!A72 -> 8.1 | D67: SINAPI | E67: SINAPI 6076 | F67: 2022-02-11 | G67: =VLOOKUP($C67,Orçamento!A72:C330,3,FALSE) -> SAIBRO PARA ARGAMASSA (COLETADO NO COMÉRCIO) | H67: =IFERROR(VLOOKUP($C67,Orçamento!A72:E330,5,FALSE),0) -> 107.19 | I67: =VLOOKUP($C67,Orçamento!A72:D330,4,FALSE) -> M3 | J67: =VLOOKUP($C67,Orçamento!A72:H331,8,FALSE) -> 73.81 | K67: =VLOOKUP($C67,Orçamento!A72:I331,9,FALSE) -> 7911.69 | L67: =VLOOKUP($C67,Orçamento!A72:G331,7,FALSE) -> 0.2216 | M67: 1.1122
A68: ='[1]Identificação-TCE'!$A$13 -> 1 | B68: =IF(AND(G68<>"",H68>0,I68<>"",J68<>0,K68<>0),COUNT($B$11:B67)+1,"") -> 57 | C68: =Orçamento!A73 -> 8.2 | D68: SINAPI | E68: SINAPI 87620 | F68: 2022-02-11 | G68: =VLOOKUP($C68,Orçamento!A73:C331,3,FALSE) -> CONTRAPISO EM ARGAMASSA TRAÇO 1:4 (CIMENTO E AREIA), PREPARO MECÂNICO COM BETONEIRA 400L, APLICADO EM ÁREAS SECAS SOBRE LAJE, ADERIDO, ESPESSURA 2CM. AF_06/2014 | H68: =IFERROR(VLOOKUP($C68,Orçamento!A73:E331,5,FALSE),0) -> 975.2 | I68: =VLOOKUP($C68,Orçamento!A73:D331,4,FALSE) -> M2 | J68: =VLOOKUP($C68,Orçamento!A73:H332,8,FALSE) -> 33.18 | K68: =VLOOKUP($C68,Orçamento!A73:I332,9,FALSE) -> 32357.14 | L68: =VLOOKUP($C68,Orçamento!A73:G332,7,FALSE) -> 0.2216 | M68: 1.1122
A69: ='[1]Identificação-TCE'!$A$13 -> 1 | B69: =IF(AND(G69<>"",H69>0,I69<>"",J69<>0,K69<>0),COUNT($B$11:B68)+1,"") -> 58 | C69: =Orçamento!A74 -> 8.3 | D69: CCU | E69: CPUE 106 | F69: 2022-02-11 | G69: =VLOOKUP($C69,Orçamento!A74:C332,3,FALSE) -> CONTRAPISO DE CONCRETO ARMADO, E=6CM | H69: =IFERROR(VLOOKUP($C69,Orçamento!A74:E332,5,FALSE),0) -> 214.38 | I69: =VLOOKUP($C69,Orçamento!A74:D332,4,FALSE) -> M2 | J69: =VLOOKUP($C69,Orçamento!A74:H333,8,FALSE) -> 138.22 | K69: =VLOOKUP($C69,Orçamento!A74:I333,9,FALSE) -> 29631.6 | L69: =VLOOKUP($C69,Orçamento!A74:G333,7,FALSE) -> 0.2216 | M69: 1.1122
A70: ='[1]Identificação-TCE'!$A$13 -> 1 | B70: =IF(AND(G70<>"",H70>0,I70<>"",J70<>0,K70<>0),COUNT($B$11:B69)+1,"") -> 59 | C70: =Orçamento!A75 -> 8.4 | D70: SINAPI | E70: SINAPI 87262 | F70: 2022-02-11 | G70: =VLOOKUP($C70,Orçamento!A75:C333,3,FALSE) -> REVESTIMENTO CERÂMICO PARA PISO COM PLACAS TIPO PORCELANATO DE DIMENSÕES 60X60CM APLICADA EM AMBIENTES DE ÁREA ENTRE 5M2 E 10M2. AF_06/2014 | H70: =IFERROR(VLOOKUP($C70,Orçamento!A75:E333,5,FALSE),0) -> 451.99 | I70: =VLOOKUP($C70,Orçamento!A75:D333,4,FALSE) -> M2 | J70: =VLOOKUP($C70,Orçamento!A75:H334,8,FALSE) -> 167.93 | K70: =VLOOKUP($C70,Orçamento!A75:I334,9,FALSE) -> 75902.68 | L70: =VLOOKUP($C70,Orçamento!A75:G334,7,FALSE) -> 0.2216 | M70: 1.1122
A71: ='[1]Identificação-TCE'!$A$13 -> 1 | B71: =IF(AND(G71<>"",H71>0,I71<>"",J71<>0,K71<>0),COUNT($B$11:B70)+1,"") -> 60 | C71: =Orçamento!A76 -> 8.5 | D71: CCU | E71: CPUE 114 | F71: 2022-02-11 | G71: =VLOOKUP($C71,Orçamento!A76:C334,3,FALSE) -> PISO DE PORCELANATO TÉCNICO 80X80CM - FORNECIMENTO E INSTALAÇÃO | H71: =IFERROR(VLOOKUP($C71,Orçamento!A76:E334,5,FALSE),0) -> 487.82 | I71: =VLOOKUP($C71,Orçamento!A76:D334,4,FALSE) -> M2 | J71: =VLOOKUP($C71,Orçamento!A76:H335,8,FALSE) -> 184.77 | K71: =VLOOKUP($C71,Orçamento!A76:I335,9,FALSE) -> 90134.5 | L71: =VLOOKUP($C71,Orçamento!A76:G335,7,FALSE) -> 0.2216 | M71: 1.1122
A72: ='[1]Identificação-TCE'!$A$13 -> 1 | B72: =IF(AND(G72<>"",H72>0,I72<>"",J72<>0,K72<>0),COUNT($B$11:B71)+1,"") -> 61 | C72: =Orçamento!A77 -> 8.6 | D72: SINAPI | E72: SINAPI 101727 | F72: 2022-02-11 | G72: =VLOOKUP($C72,Orçamento!A77:C335,3,FALSE) -> PISO VINÍLICO SEMI FLEXÍVEL EM PLACAS, PADRÃO LISO, ESPESSURA 3,2MM, FIXADO COM COLA. AF_09/2020 | H72: =IFERROR(VLOOKUP($C72,Orçamento!A77:E335,5,FALSE),0) -> 192.91 | I72: =VLOOKUP($C72,Orçamento!A77:D335,4,FALSE) -> M2 | J72: =VLOOKUP($C72,Orçamento!A77:H336,8,FALSE) -> 199.4 | K72: =VLOOKUP($C72,Orçamento!A77:I336,9,FALSE) -> 38466.25 | L72: =VLOOKUP($C72,Orçamento!A77:G336,7,FALSE) -> 0.2216 | M72: 1.1122
A73: ='[1]Identificação-TCE'!$A$13 -> 1 | B73: =IF(AND(G73<>"",H73>0,I73<>"",J73<>0,K73<>0),COUNT($B$11:B72)+1,"") -> 62 | C73: =Orçamento!A78 -> 8.7 | D73: SINAPI | E73: SINAPI 98688 | F73: 2022-02-11 | G73: =VLOOKUP($C73,Orçamento!A78:C336,3,FALSE) -> RODAPÉ EM POLIESTIRENO, ALTURA 5CM. AF_09/2020 | H73: =IFERROR(VLOOKUP($C73,Orçamento!A78:E336,5,FALSE),0) -> 618.22 | I73: =VLOOKUP($C73,Orçamento!A78:D336,4,FALSE) -> M | J73: =VLOOKUP($C73,Orçamento!A78:H337,8,FALSE) -> 62.47 | K73: =VLOOKUP($C73,Orçamento!A78:I337,9,FALSE) -> 38620.2 | L73: =VLOOKUP($C73,Orçamento!A78:G337,7,FALSE) -> 0.2216 | M73: 1.1122
A74: ='[1]Identificação-TCE'!$A$13 -> 1 | B74: =IF(AND(G74<>"",H74>0,I74<>"",J74<>0,K74<>0),COUNT($B$11:B73)+1,"") -> 63 | C74: =Orçamento!A79 -> 8.8 | D74: CCU | E74: CPUE 113 | F74: 2022-02-11 | G74: =VLOOKUP($C74,Orçamento!A79:C337,3,FALSE) -> SOLEIRA EM BASALTO - FORNECIMENTO E INSTALAÇÃO | H74: =IFERROR(VLOOKUP($C74,Orçamento!A79:E337,5,FALSE),0) -> 32.85 | I74: =VLOOKUP($C74,Orçamento!A79:D337,4,FALSE) -> M | J74: =VLOOKUP($C74,Orçamento!A79:H338,8,FALSE) -> 109.25 | K74: =VLOOKUP($C74,Orçamento!A79:I338,9,FALSE) -> 3588.86 | L74: =VLOOKUP($C74,Orçamento!A79:G338,7,FALSE) -> 0.2216 | M74: 1.1122
A75: ='[1]Identificação-TCE'!$A$13 -> 1 | B75: =IF(AND(G75<>"",H75>0,I75<>"",J75<>0,K75<>0),COUNT($B$11:B74)+1,"") -> 64 | C75: =Orçamento!A80 -> 8.9 | D75: CCU | E75: CPUE 112 | F75: 2022-02-11 | G75: =VLOOKUP($C75,Orçamento!A80:C338,3,FALSE) -> PEITORIL DE BASALTO EM JANELAS - FORNECIMENTO E INSTALAÇÃO | H75: =IFERROR(VLOOKUP($C75,Orçamento!A80:E338,5,FALSE),0) -> 75.05 | I75: =VLOOKUP($C75,Orçamento!A80:D338,4,FALSE) -> M | J75: =VLOOKUP($C75,Orçamento!A80:H339,8,FALSE) -> 121.53 | K75: =VLOOKUP($C75,Orçamento!A80:I339,9,FALSE) -> 9120.83 | L75: =VLOOKUP($C75,Orçamento!A80:G339,7,FALSE) -> 0.2216 | M75: 1.1122
A76: ='[1]Identificação-TCE'!$A$13 -> 1 | B76: =IF(AND(G76<>"",H76>0,I76<>"",J76<>0,K76<>0),COUNT($B$11:B75)+1,"") -> 65 | C76: =Orçamento!A82 -> 9.1 | D76: SINAPI | E76: SINAPI 97634 | F76: 2022-02-11 | G76: =VLOOKUP($C76,Orçamento!A82:C340,3,FALSE) -> DEMOLIÇÃO DE REVESTIMENTO CERÂMICO, DE FORMA MECANIZADA COM MARTELETE, SEM REAPROVEITAMENTO. AF_12/2017 | H76: =IFERROR(VLOOKUP($C76,Orçamento!A82:E340,5,FALSE),0) -> 13.5 | I76: =VLOOKUP($C76,Orçamento!A82:D340,4,FALSE) -> M2 | J76: =VLOOKUP($C76,Orçamento!A82:H341,8,FALSE) -> 13.71 | K76: =VLOOKUP($C76,Orçamento!A82:I341,9,FALSE) -> 185.09 | L76: =VLOOKUP($C76,Orçamento!A82:G341,7,FALSE) -> 0.2216 | M76: 1.1122
A77: ='[1]Identificação-TCE'!$A$13 -> 1 | B77: =IF(AND(G77<>"",H77>0,I77<>"",J77<>0,K77<>0),COUNT($B$11:B76)+1,"") -> 66 | C77: =Orçamento!A83 -> 9.2 | D77: CCU | E77: CPUE 107 | F77: 2022-02-11 | G77: =VLOOKUP($C77,Orçamento!A83:C341,3,FALSE) -> PISO PODOTÁTIL ALERTA/DIRECIONAL 40X40CM | H77: =IFERROR(VLOOKUP($C77,Orçamento!A83:E341,5,FALSE),0) -> 30 | I77: =VLOOKUP($C77,Orçamento!A83:D341,4,FALSE) -> M | J77: =VLOOKUP($C77,Orçamento!A83:H342,8,FALSE) -> 41.4 | K77: =VLOOKUP($C77,Orçamento!A83:I342,9,FALSE) -> 1242 | L77: =VLOOKUP($C77,Orçamento!A83:G342,7,FALSE) -> 0.2216 | M77: 1.1122
A78: ='[1]Identificação-TCE'!$A$13 -> 1 | B78: =IF(AND(G78<>"",H78>0,I78<>"",J78<>0,K78<>0),COUNT($B$11:B77)+1,"") -> 67 | C78: =Orçamento!A85 -> 10.1 | D78: CCU | E78: CPUE 61 | F78: 2022-02-11 | G78: =VLOOKUP($C78,Orçamento!A85:C343,3,FALSE) -> QGBT - ARMÁRIO AUTO PORTANTE COM BASE SOLEIRA E OLHAIS DE IÇAMENTO COM PORTA INTERNA METÁLICA. 1600X700X350, DISJ. GERAL CX. MOLDADA 35KA/380V – 600 A 01PÇ MULTIMEDIDOR DIGITAL DE GRANDEZAS ELETRICAS DISJUNTORES PARCIAIS EM CX. MOLDADA 18KA/380V CFE. PROJETO. COM INSTALAÇÃO. | H78: =IFERROR(VLOOKUP($C78,Orçamento!A85:E343,5,FALSE),0) -> 1 | I78: UN | J78: =VLOOKUP($C78,Orçamento!A85:H344,8,FALSE) -> 34364.34 | K78: =VLOOKUP($C78,Orçamento!A85:I344,9,FALSE) -> 34364.34 | L78: =VLOOKUP($C78,Orçamento!A85:G344,7,FALSE) -> 0.2216 | M78: 1.1122
A79: ='[1]Identificação-TCE'!$A$13 -> 1 | B79: =IF(AND(G79<>"",H79>0,I79<>"",J79<>0,K79<>0),COUNT($B$11:B78)+1,"") -> 68 | C79: =Orçamento!A86 -> 10.2 | D79: CCU | E79: CPUE 63 | F79: 2022-02-11 | G79: =VLOOKUP($C79,Orçamento!A86:C344,3,FALSE) -> CD-Q2 - QUADRO DE FORÇA DE SOBREPOR MONTADO EM CAIXA DE COMANDO COM DIMENSÕES MÍNIMAS DE 1800X500X150MM, 66 LUGARES. COM INSTALAÇÃO. | H79: =IFERROR(VLOOKUP($C79,Orçamento!A86:E344,5,FALSE),0) -> 1 | I79: UN | J79: =VLOOKUP($C79,Orçamento!A86:H345,8,FALSE) -> 6804.32 | K79: =VLOOKUP($C79,Orçamento!A86:I345,9,FALSE) -> 6804.32 | L79: =VLOOKUP($C79,Orçamento!A86:G345,7,FALSE) -> 0.2216 | M79: 1.1122
A80: ='[1]Identificação-TCE'!$A$13 -> 1 | B80: =IF(AND(G80<>"",H80>0,I80<>"",J80<>0,K80<>0),COUNT($B$11:B79)+1,"") -> 69 | C80: =Orçamento!A87 -> 10.3 | D80: CCU | E80: CPUE 64 | F80: 2022-02-11 | G80: =VLOOKUP($C80,Orçamento!A87:C345,3,FALSE) -> CD-Q3 - QUADRO DE FORÇA DE SOBREPOR MONTADO EM CAIXA DE COMANDO COM DIMENSÕES MÍNIMAS DE 1800X500X150MM, 66 LUGARES. COM INSTALAÇÃO. | H80: =IFERROR(VLOOKUP($C80,Orçamento!A87:E345,5,FALSE),0) -> 1 | I80: UN | J80: =VLOOKUP($C80,Orçamento!A87:H346,8,FALSE) -> 6613.82 | K80: =VLOOKUP($C80,Orçamento!A87:I346,9,FALSE) -> 6613.82 | L80: =VLOOKUP($C80,Orçamento!A87:G346,7,FALSE) -> 0.2216 | M80: 1.1122
A81: ='[1]Identificação-TCE'!$A$13 -> 1 | B81: =IF(AND(G81<>"",H81>0,I81<>"",J81<>0,K81<>0),COUNT($B$11:B80)+1,"") -> 70 | C81: =Orçamento!A88 -> 10.4 | D81: CCU | E81: CPUE 67 | F81: 2022-02-11 | G81: =VLOOKUP($C81,Orçamento!A88:C346,3,FALSE) -> QF EMERGENCIA - QUADRO DE FORÇA DE SOBREPOR MONTADO EM CAIXA DE COMANDO COM DIMENSÕES MÍNIMAS DE 800X500X150MM. COM INSTALAÇÃO. | H81: =IFERROR(VLOOKUP($C81,Orçamento!A88:E346,5,FALSE),0) -> 1 | I81: UN | J81: =VLOOKUP($C81,Orçamento!A88:H347,8,FALSE) -> 3966.28 | K81: =VLOOKUP($C81,Orçamento!A88:I347,9,FALSE) -> 3966.28 | L81: =VLOOKUP($C81,Orçamento!A88:G347,7,FALSE) -> 0.2216 | M81: 1.1122
A82: ='[1]Identificação-TCE'!$A$13 -> 1 | B82: =IF(AND(G82<>"",H82>0,I82<>"",J82<>0,K82<>0),COUNT($B$11:B81)+1,"") -> 71 | C82: =Orçamento!A89 -> 10.5 | D82: SINAPI | E82: SINAPI 92992 | F82: 2022-02-11 | G82: =VLOOKUP($C82,Orçamento!A89:C347,3,FALSE) -> CABO DE COBRE FLEXÍVEL ISOLADO, 95MM2, ANTI-CHAMA 0,6/1,0kV, PARA DISTRIBUIÇÃO - FORNECIMENTO E INSTALAÇÃO. AF_12/2015 | H82: =IFERROR(VLOOKUP($C82,Orçamento!A89:E347,5,FALSE),0) -> 440 | I82: =VLOOKUP($C82,Orçamento!A89:D347,4,FALSE) -> M | J82: =VLOOKUP($C82,Orçamento!A89:H348,8,FALSE) -> 124.04 | K82: =VLOOKUP($C82,Orçamento!A89:I348,9,FALSE) -> 54577.6 | L82: =VLOOKUP($C82,Orçamento!A89:G348,7,FALSE) -> 0.2216 | M82: 1.1122
A83: ='[1]Identificação-TCE'!$A$13 -> 1 | B83: =IF(AND(G83<>"",H83>0,I83<>"",J83<>0,K83<>0),COUNT($B$11:B82)+1,"") -> 72 | C83: =Orçamento!A90 -> 10.6 | D83: SINAPI | E83: SINAPI 92988 | F83: 2022-02-11 | G83: =VLOOKUP($C83,Orçamento!A90:C348,3,FALSE) -> CABO DE COBRE FLEXÍVEL ISOLADO, 50MM2, ANTI-CHAMA 0,6/1,0kV, PARA DISTRIBUIÇÃO - FORNECIMENTO E INSTALAÇÃO. AF_12/2015 | H83: =IFERROR(VLOOKUP($C83,Orçamento!A90:E348,5,FALSE),0) -> 110 | I83: =VLOOKUP($C83,Orçamento!A90:D348,4,FALSE) -> M | J83: =VLOOKUP($C83,Orçamento!A90:H349,8,FALSE) -> 68.21 | K83: =VLOOKUP($C83,Orçamento!A90:I349,9,FALSE) -> 7503.1 | L83: =VLOOKUP($C83,Orçamento!A90:G349,7,FALSE) -> 0.2216 | M83: 1.1122
A84: ='[1]Identificação-TCE'!$A$13 -> 1 | B84: =IF(AND(G84<>"",H84>0,I84<>"",J84<>0,K84<>0),COUNT($B$11:B83)+1,"") -> 73 | C84: =Orçamento!A91 -> 10.7 | D84: SINAPI | E84: SINAPI 92986 | F84: 2022-02-11 | G84: =VLOOKUP($C84,Orçamento!A91:C349,3,FALSE) -> CABO DE COBRE FLEXÍVEL ISOLADO, 35MM2, ANTI-CHAMA 0,6/1,0kV, PARA DISTRIBUIÇÃO - FORNECIMENTO E INSTALAÇÃO. AF_12/2015 | H84: =IFERROR(VLOOKUP($C84,Orçamento!A91:E349,5,FALSE),0) -> 280 | I84: =VLOOKUP($C84,Orçamento!A91:D349,4,FALSE) -> M | J84: =VLOOKUP($C84,Orçamento!A91:H350,8,FALSE) -> 48.44 | K84: =VLOOKUP($C84,Orçamento!A91:I350,9,FALSE) -> 13563.2 | L84: =VLOOKUP($C84,Orçamento!A91:G350,7,FALSE) -> 0.2216 | M84: 1.1122
A85: ='[1]Identificação-TCE'!$A$13 -> 1 | B85: =IF(AND(G85<>"",H85>0,I85<>"",J85<>0,K85<>0),COUNT($B$11:B84)+1,"") -> 74 | C85: =Orçamento!A92 -> 10.8 | D85: SINAPI | E85: SINAPI 92984 | F85: 2022-02-11 | G85: =VLOOKUP($C85,Orçamento!A92:C350,3,FALSE) -> CABO DE COBRE FLEXÍVEL ISOLADO, 25MM2, ANTI-CHAMA 0,6/1,0kV, PARA DISTRIBUIÇÃO - FORNECIMENTO E INSTALAÇÃO. AF_12/2015 | H85: =IFERROR(VLOOKUP($C85,Orçamento!A92:E350,5,FALSE),0) -> 620 | I85: =VLOOKUP($C85,Orçamento!A92:D350,4,FALSE) -> M | J85: =VLOOKUP($C85,Orçamento!A92:H351,8,FALSE) -> 35.66 | K85: =VLOOKUP($C85,Orçamento!A92:I351,9,FALSE) -> 22109.2 | L85: =VLOOKUP($C85,Orçamento!A92:G351,7,FALSE) -> 0.2216 | M85: 1.1122
A86: ='[1]Identificação-TCE'!$A$13 -> 1 | B86: =IF(AND(G86<>"",H86>0,I86<>"",J86<>0,K86<>0),COUNT($B$11:B85)+1,"") -> 75 | C86: =Orçamento!A93 -> 10.9 | D86: SINAPI | E86: SINAPI 92982 | F86: 2022-02-11 | G86: =VLOOKUP($C86,Orçamento!A93:C351,3,FALSE) -> CABO DE COBRE FLEXÍVEL ISOLADO, 16MM2, ANTI-CHAMA 0,6/1,0kV, PARA DISTRIBUIÇÃO - FORNECIMENTO E INSTALAÇÃO. AF_12/2015 | H86: =IFERROR(VLOOKUP($C86,Orçamento!A93:E351,5,FALSE),0) -> 250 | I86: =VLOOKUP($C86,Orçamento!A93:D351,4,FALSE) -> M | J86: =VLOOKUP($C86,Orçamento!A93:H352,8,FALSE) -> 22.33 | K86: =VLOOKUP($C86,Orçamento!A93:I352,9,FALSE) -> 5582.5 | L86: =VLOOKUP($C86,Orçamento!A93:G352,7,FALSE) -> 0.2216 | M86: 1.1122
A87: ='[1]Identificação-TCE'!$A$13 -> 1 | B87: =IF(AND(G87<>"",H87>0,I87<>"",J87<>0,K87<>0),COUNT($B$11:B86)+1,"") -> 76 | C87: =Orçamento!A94 -> 10.10 | D87: SINAPI | E87: SINAPI 92980 | F87: 2022-02-11 | G87: =VLOOKUP($C87,Orçamento!A94:C352,3,FALSE) -> CABO DE COBRE FLEXÍVEL ISOLADO, 10MM2, ANTI-CHAMA 0,6/1,0kV, PARA DISTRIBUIÇÃO - FORNECIMENTO E INSTALAÇÃO. AF_12/2015 | H87: =IFERROR(VLOOKUP($C87,Orçamento!A94:E352,5,FALSE),0) -> 720 | I87: =VLOOKUP($C87,Orçamento!A94:D352,4,FALSE) -> M | J87: =VLOOKUP($C87,Orçamento!A94:H353,8,FALSE) -> 14.59 | K87: =VLOOKUP($C87,Orçamento!A94:I353,9,FALSE) -> 10504.8 | L87: =VLOOKUP($C87,Orçamento!A94:G353,7,FALSE) -> 0.2216 | M87: 1.1122
A88: ='[1]Identificação-TCE'!$A$13 -> 1 | B88: =IF(AND(G88<>"",H88>0,I88<>"",J88<>0,K88<>0),COUNT($B$11:B87)+1,"") -> 77 | C88: =Orçamento!A95 -> 10.11 | D88: CCU | E88: CPUE 43 | F88: 2022-02-11 | G88: =VLOOKUP($C88,Orçamento!A95:C353,3,FALSE) -> LUMINÁRIA DE EMBUTIR - COMPLETA COM QUATRO LÂMPADAS TUBULARES LED T8 (4x9 - 10W), INSTALAÇÃO EM FORRO COM MODELAÇÃO DE 625X625MM, COM REFLETOR PARABÓLICO E ALETAS DE ALUMÍNIO ANODIZADO BRILHANTE DE ALTA REFLETÂNCIA E ALTA PUREZA 99,85%. SOQUETE TIPO PUSH-IN G-13 DE ENGATE RÁPIDO, ROTOR DE SEGURANÇA EM POLICARBONATO E CONTATOS EM BRONZE FOSFOROSO, COMPLETA. CERTIFICAÇÃO CE, GARANTIA MÍNIMA DE 2 ANOS | H88: =IFERROR(VLOOKUP($C88,Orçamento!A95:E353,5,FALSE),0) -> 150 | I88: UN | J88: =VLOOKUP($C88,Orçamento!A95:H354,8,FALSE) -> 553.02 | K88: =VLOOKUP($C88,Orçamento!A95:I354,9,FALSE) -> 82953 | L88: =VLOOKUP($C88,Orçamento!A95:G354,7,FALSE) -> 0.2216 | M88: 1.1122
A89: ='[1]Identificação-TCE'!$A$13 -> 1 | B89: =IF(AND(G89<>"",H89>0,I89<>"",J89<>0,K89<>0),COUNT($B$11:B88)+1,"") -> 78 | C89: =Orçamento!A96 -> 10.12 | D89: SINAPI | E89: SINAPI 97585 | F89: 2022-02-11 | G89: =VLOOKUP($C89,Orçamento!A96:C354,3,FALSE) -> LUMINÁRIA TIPO CALHA, DE SOBREPOR, COM 2 LÂMPADAS TUBULARES FLUORESCENTES DE 18W, COM REATOR DE PARTIDA RÁPIDA - FORNECIMENTO E INSTALAÇÃO. AF_02/2020 | H89: =IFERROR(VLOOKUP($C89,Orçamento!A96:E354,5,FALSE),0) -> 23 | I89: UN | J89: =VLOOKUP($C89,Orçamento!A96:H355,8,FALSE) -> 177.49 | K89: =VLOOKUP($C89,Orçamento!A96:I355,9,FALSE) -> 4082.27 | L89: =VLOOKUP($C89,Orçamento!A96:G355,7,FALSE) -> 0.2216 | M89: 1.1122
A90: ='[1]Identificação-TCE'!$A$13 -> 1 | B90: =IF(AND(G90<>"",H90>0,I90<>"",J90<>0,K90<>0),COUNT($B$11:B89)+1,"") -> 79 | C90: =Orçamento!A97 -> 10.13 | D90: CCU | E90: CPUE 44 | F90: 2022-02-11 | G90: =VLOOKUP($C90,Orçamento!A97:C355,3,FALSE) -> LUMINÁRIA DE SOBREPOR - COMPLETA COM DUAS LÂMPADAS TUBULARES LED T8 (2X9W), INSTALAÇÃO EM FORRO DE GESSO, COM REFLETOR PARABÓLICO E ALETAS DE ALUMÍNIO ANODIZADO BRILHANTE DE ALTA REFLETÂNCIA E ALTA PUREZA 99,85%. SOQUE TIPO PUSH-IN G-13 DE ENGATE RÁPIDO, ROTOR DE SEGURANÇA EM POLICARBONATO E CONTATOS EM BRONZE FOSFOROSO. COMPLETA. CERTIFICAÇÃO CE. GARANTIA MÍNIMA 2 ANOS. | H90: =IFERROR(VLOOKUP($C90,Orçamento!A97:E355,5,FALSE),0) -> 1 | I90: UN | J90: =VLOOKUP($C90,Orçamento!A97:H356,8,FALSE) -> 216.11 | K90: =VLOOKUP($C90,Orçamento!A97:I356,9,FALSE) -> 216.11 | L90: =VLOOKUP($C90,Orçamento!A97:G356,7,FALSE) -> 0.2216 | M90: 1.1122
A91: ='[1]Identificação-TCE'!$A$13 -> 1 | B91: =IF(AND(G91<>"",H91>0,I91<>"",J91<>0,K91<>0),COUNT($B$11:B90)+1,"") -> 80 | C91: =Orçamento!A98 -> 10.14 | D91: CCU | E91: CPUE 45 | F91: 2022-02-11 | G91: =VLOOKUP($C91,Orçamento!A98:C356,3,FALSE) -> Luminária arandela de Sobrepor - Lâmpada led 18 W | H91: =IFERROR(VLOOKUP($C91,Orçamento!A98:E356,5,FALSE),0) -> 19 | I91: UN | J91: =VLOOKUP($C91,Orçamento!A98:H357,8,FALSE) -> 171.32 | K91: =VLOOKUP($C91,Orçamento!A98:I357,9,FALSE) -> 3255.08 | L91: =VLOOKUP($C91,Orçamento!A98:G357,7,FALSE) -> 0.2216 | M91: 1.1122
A92: ='[1]Identificação-TCE'!$A$13 -> 1 | B92: =IF(AND(G92<>"",H92>0,I92<>"",J92<>0,K92<>0),COUNT($B$11:B91)+1,"") -> 81 | C92: =Orçamento!A99 -> 10.15 | D92: SINAPI | E92: SINAPI 97595 | F92: 2022-02-11 | G92: =VLOOKUP($C92,Orçamento!A99:C357,3,FALSE) -> SENSOR DE PRESENÇA COM FOTOCÉLULA, FIXAÇÃO EM PAREDE - FORNECIMENTO E INSTALAÇÃO. AF_02/2020 | H92: =IFERROR(VLOOKUP($C92,Orçamento!A99:E357,5,FALSE),0) -> 2 | I92: UN | J92: =VLOOKUP($C92,Orçamento!A99:H358,8,FALSE) -> 152.41 | K92: =VLOOKUP($C92,Orçamento!A99:I358,9,FALSE) -> 304.82 | L92: =VLOOKUP($C92,Orçamento!A99:G358,7,FALSE) -> 0.2216 | M92: 1.1122
A93: ='[1]Identificação-TCE'!$A$13 -> 1 | B93: =IF(AND(G93<>"",H93>0,I93<>"",J93<>0,K93<>0),COUNT($B$11:B92)+1,"") -> 82 | C93: =Orçamento!A100 -> 10.16 | D93: CCU | E93: CPUE 71 | F93: 2022-02-11 | G93: =VLOOKUP($C93,Orçamento!A100:C358,3,FALSE) -> MÓDULO AUTÔNOMO DE ILUMINAÇÃO DE EMERGÊNCIA COM DIFUSOR LEITOSO, 500 LÚMENS, 115/220V, COM 80 LED'S. ALTO BRILHO, BATERIA 6V, 4,5Ah, AUTONOMIA DE 8 HORAS, GABINETE EM METAL, PINTURA EPÓXI. REF. TECHNOMASTER LM 0180 OU EQUIVALENTE | H93: =IFERROR(VLOOKUP($C93,Orçamento!A100:E358,5,FALSE),0) -> 23 | I93: UN | J93: =VLOOKUP($C93,Orçamento!A100:H359,8,FALSE) -> 184.36 | K93: =VLOOKUP($C93,Orçamento!A100:I359,9,FALSE) -> 4240.28 | L93: =VLOOKUP($C93,Orçamento!A100:G359,7,FALSE) -> 0.2216 | M93: 1.1122
A94: ='[1]Identificação-TCE'!$A$13 -> 1 | B94: =IF(AND(G94<>"",H94>0,I94<>"",J94<>0,K94<>0),COUNT($B$11:B93)+1,"") -> 83 | C94: =Orçamento!A101 -> 10.17 | D94: CCU | E94: CPUE 72 | F94: 2022-02-11 | G94: =VLOOKUP($C94,Orçamento!A101:C359,3,FALSE) -> MÓDULO AUTÔNOMO DE EMERGÊNCIA (127/220V) COM 2 FAROLETES DE 32 LED'S CADA, COM BATERIA 12V - 7A COM AUTONOMIA DE 32 HORAS COM SUPORTE METÁLICO PARA FIXAÇÃO DA BATERIA. REF. TECHNOMASTER UN0232 OU EQUIVALENTE | H94: =IFERROR(VLOOKUP($C94,Orçamento!A101:E359,5,FALSE),0) -> 1 | I94: UN | J94: =VLOOKUP($C94,Orçamento!A101:H360,8,FALSE) -> 284.17 | K94: =VLOOKUP($C94,Orçamento!A101:I360,9,FALSE) -> 284.17 | L94: =VLOOKUP($C94,Orçamento!A101:G360,7,FALSE) -> 0.2216 | M94: 1.1122
A95: ='[1]Identificação-TCE'!$A$13 -> 1 | B95: =IF(AND(G95<>"",H95>0,I95<>"",J95<>0,K95<>0),COUNT($B$11:B94)+1,"") -> 84 | C95: =Orçamento!A102 -> 10.18 | D95: SINAPI | E95: SINAPI 91953 | F95: 2022-02-11 | G95: =VLOOKUP($C95,Orçamento!A102:C360,3,FALSE) -> INTERRUPTOR SIMPLES (1 MÓDULO), 10A//250V, INCLUINDO SUPORTE E PLACA - FORNECIMENTO E INSTALAÇÃO. AF_12/2015 | H95: =IFERROR(VLOOKUP($C95,Orçamento!A102:E360,5,FALSE),0) -> 14 | I95: UN | J95: =VLOOKUP($C95,Orçamento!A102:H361,8,FALSE) -> 29.56 | K95: =VLOOKUP($C95,Orçamento!A102:I361,9,FALSE) -> 413.84 | L95: =VLOOKUP($C95,Orçamento!A102:G361,7,FALSE) -> 0.2216 | M95: 1.1122
A96: ='[1]Identificação-TCE'!$A$13 -> 1 | B96: =IF(AND(G96<>"",H96>0,I96<>"",J96<>0,K96<>0),COUNT($B$11:B95)+1,"") -> 85 | C96: =Orçamento!A103 -> 10.19 | D96: SINAPI | E96: SINAPI 91959 | F96: 2022-02-11 | G96: =VLOOKUP($C96,Orçamento!A103:C361,3,FALSE) -> INTERRUPTOR SIMPLES (2 MÓDULOS), 10A/250V, INCLUINDO SUPORTE E PLACA. FORNECIMENTO E INSTALAÇÃO. AF_12/2015 | H96: =IFERROR(VLOOKUP($C96,Orçamento!A103:E361,5,FALSE),0) -> 16 | I96: UN | J96: =VLOOKUP($C96,Orçamento!A103:H362,8,FALSE) -> 46.81 | K96: =VLOOKUP($C96,Orçamento!A103:I362,9,FALSE) -> 748.96 | L96: =VLOOKUP($C96,Orçamento!A103:G362,7,FALSE) -> 0.2216 | M96: 1.1122
A97: ='[1]Identificação-TCE'!$A$13 -> 1 | B97: =IF(AND(G97<>"",H97>0,I97<>"",J97<>0,K97<>0),COUNT($B$11:B96)+1,"") -> 86 | C97: =Orçamento!A104 -> 10.20 | D97: SINAPI | E97: SINAPI 91967 | F97: 2022-02-11 | G97: =VLOOKUP($C97,Orçamento!A104:C362,3,FALSE) -> INTERRUPTOR SIMPLES (3 MÓDULOS), 10A/250V, INCLUINDO SUPORTE E PLACA. FORNECIMENTO E INSTALAÇÃO. AF_12/2015 | H97: =IFERROR(VLOOKUP($C97,Orçamento!A104:E362,5,FALSE),0) -> 9 | I97: UN | J97: =VLOOKUP($C97,Orçamento!A104:H363,8,FALSE) -> 64.09 | K97: =VLOOKUP($C97,Orçamento!A104:I363,9,FALSE) -> 576.81 | L97: =VLOOKUP($C97,Orçamento!A104:G363,7,FALSE) -> 0.2216 | M97: 1.1122
A98: ='[1]Identificação-TCE'!$A$13 -> 1 | B98: =IF(AND(G98<>"",H98>0,I98<>"",J98<>0,K98<>0),COUNT($B$11:B97)+1,"") -> 87 | C98: =Orçamento!A105 -> 10.21 | D98: SINAPI | E98: SINAPI 91981 | F98: 2022-02-11 | G98: =VLOOKUP($C98,Orçamento!A105:C363,3,FALSE) -> INTERRUPTOR BIPOLAR, (1 MÓDULO), 10A/250V, INCLUINDO SUPORTE E PLACA. FORNECIMENTO E INSTALAÇÃO. AF_09/2017 | H98: =IFERROR(VLOOKUP($C98,Orçamento!A105:E363,5,FALSE),0) -> 10 | I98: UN | J98: =VLOOKUP($C98,Orçamento!A105:H364,8,FALSE) -> 52.14 | K98: =VLOOKUP($C98,Orçamento!A105:I364,9,FALSE) -> 521.4 | L98: =VLOOKUP($C98,Orçamento!A105:G364,7,FALSE) -> 0.2216 | M98: 1.1122
A99: ='[1]Identificação-TCE'!$A$13 -> 1 | B99: =IF(AND(G99<>"",H99>0,I99<>"",J99<>0,K99<>0),COUNT($B$11:B98)+1,"") -> 88 | C99: =Orçamento!A106 -> 10.22 | D99: SINAPI | E99: SINAPI 91979 | F99: 2022-02-11 | G99: =VLOOKUP($C99,Orçamento!A106:C364,3,FALSE) -> INTERRUPTOR INTERMEDIÁRIO (1 MÓDULO), 10A/250V, INCLUINDO SUPORTE E PLACA. FORNECIMENTO E INSTALAÇÃO. AF_09/2017 | H99: =IFERROR(VLOOKUP($C99,Orçamento!A106:E364,5,FALSE),0) -> 1 | I99: UN | J99: =VLOOKUP($C99,Orçamento!A106:H365,8,FALSE) -> 53.73 | K99: =VLOOKUP($C99,Orçamento!A106:I365,9,FALSE) -> 53.73 | L99: =VLOOKUP($C99,Orçamento!A106:G365,7,FALSE) -> 0.2216 | M99: 1.1122
A100: ='[1]Identificação-TCE'!$A$13 -> 1 | B100: =IF(AND(G100<>"",H100>0,I100<>"",J100<>0,K100<>0),COUNT($B$11:B99)+1,"") -> 89 | C100: =Orçamento!A107 -> 10.23 | D100: SINAPI | E100: SINAPI 91992 | F100: 2022-02-11 | G100: =VLOOKUP($C100,Orçamento!A107:C365,3,FALSE) -> TOMADA ALTA DE EMBUTIR (1 MÓDULO), 2P+T 10A, INCLUINDO SUPORTE E PLACA. FORNECIMENTO E INSTALAÇÃO. AF_12/2015 | H100: =IFERROR(VLOOKUP($C100,Orçamento!A107:E365,5,FALSE),0) -> 23 | I100: UN | J100: =VLOOKUP($C100,Orçamento!A107:H366,8,FALSE) -> 44.39 | K100: =VLOOKUP($C100,Orçamento!A107:I366,9,FALSE) -> 1020.97 | L100: =VLOOKUP($C100,Orçamento!A107:G366,7,FALSE) -> 0.2216 | M100: 1.1122
A101: ='[1]Identificação-TCE'!$A$13 -> 1 | B101: =IF(AND(G101<>"",H101>0,I101<>"",J101<>0,K101<>0),COUNT($B$11:B100)+1,"") -> 90 | C101: =Orçamento!A108 -> 10.24 | D101: SINAPI | E101: SINAPI 92004 | F101: 2022-02-11 | G101: =VLOOKUP($C101,Orçamento!A108:C366,3,FALSE) -> TOMADA MÉDIA DE EMBUTIR (2 MÓDULOS), 2P+T 10A, INCLUINDO SUPORTE E PLACA. FORNECIMENTO E INSTALAÇÃO. AF_12/2015 | H101: =IFERROR(VLOOKUP($C101,Orçamento!A108:E366,5,FALSE),0) -> 56 | I101: UN | J101: =VLOOKUP($C101,Orçamento!A108:H367,8,FALSE) -> 57.59 | K101: =VLOOKUP($C101,Orçamento!A108:I367,9,FALSE) -> 3225.04 | L101: =VLOOKUP($C101,Orçamento!A108:G367,7,FALSE) -> 0.2216 | M101: 1.1122
A102: ='[1]Identificação-TCE'!$A$13 -> 1 | B102: =IF(AND(G102<>"",H102>0,I102<>"",J102<>0,K102<>0),COUNT($B$11:B101)+1,"") -> 91 | C102: =Orçamento!A109 -> 10.25 | D102: SINAPI | E102: SINAPI 92005 | F102: 2022-02-11 | G102: =VLOOKUP($C102,Orçamento!A109:C367,3,FALSE) -> TOMADA MÉDIA DE EMBUTIR (2 MÓDULOS), 2P+T 20A, INCLUINDO SUPORTE E PLACA. FORNECIMENTO E INSTALAÇÃO. AF_12/2015 | H102: =IFERROR(VLOOKUP($C102,Orçamento!A109:E367,5,FALSE),0) -> 23 | I102: UN | J102: =VLOOKUP($C102,Orçamento!A109:H368,8,FALSE) -> 63.3 | K102: =VLOOKUP($C102,Orçamento!A109:I368,9,FALSE) -> 1455.9 | L102: =VLOOKUP($C102,Orçamento!A109:G368,7,FALSE) -> 0.2216 | M102: 1.1122
A103: ='[1]Identificação-TCE'!$A$13 -> 1 | B103: =IF(AND(G103<>"",H103>0,I103<>"",J103<>0,K103<>0),COUNT($B$11:B102)+1,"") -> 92 | C103: =Orçamento!A110 -> 10.26 | D103: CCU | E103: CPUE 47 | F103: 2022-02-11 | G103: =VLOOKUP($C103,Orçamento!A110:C368,3,FALSE) -> CABO DE COBRE PP CORDPLAST 3X1,5MM2 HF (NÃO HALOGENADO), 70ºC 450/750V. REF. AFITOX, AFUMEX OU EQUIVALENTE. (LIGAÇÃO PGDM, INTERFONE, FECHO SAA, ILUM. PÓRTICO, LIGAÇÃO LUMINÁRIAS, TOTEM, CUBO, SENSOR PRESENÇA) | H103: =IFERROR(VLOOKUP($C103,Orçamento!A110:E368,5,FALSE),0) -> 97 | I103: =VLOOKUP($C103,Orçamento!A110:D368,4,FALSE) -> M | J103: =VLOOKUP($C103,Orçamento!A110:H369,8,FALSE) -> 10.32 | K103: =VLOOKUP($C103,Orçamento!A110:I369,9,FALSE) -> 1001.04 | L103: =VLOOKUP($C103,Orçamento!A110:G369,7,FALSE) -> 0.2216 | M103: 1.1122
A104: ='[1]Identificação-TCE'!$A$13 -> 1 | B104: =IF(AND(G104<>"",H104>0,I104<>"",J104<>0,K104<>0),COUNT($B$11:B103)+1,"") -> 93 | C104: =Orçamento!A111 -> 10.27 | D104: CCU | E104: CPUE 110 | F104: 2022-02-11 | G104: =VLOOKUP($C104,Orçamento!A111:C369,3,FALSE) -> CONJUNTO PLUGS MACHO/FÊMEA 2P+T 10A/250V NBR 14136 (LIGAÇÃO LUMINÁRIAS) | H104: =IFERROR(VLOOKUP($C104,Orçamento!A111:E369,5,FALSE),0) -> 193 | I104: =VLOOKUP($C104,Orçamento!A111:D369,4,FALSE) -> CJ | J104: =VLOOKUP($C104,Orçamento!A111:H370,8,FALSE) -> 22.95 | K104: =VLOOKUP($C104,Orçamento!A111:I370,9,FALSE) -> 4429.35 | L104: =VLOOKUP($C104,Orçamento!A111:G370,7,FALSE) -> 0.2216 | M104: 1.1122
A105: ='[1]Identificação-TCE'!$A$13 -> 1 | B105: =IF(AND(G105<>"",H105>0,I105<>"",J105<>0,K105<>0),COUNT($B$11:B104)+1,"") -> 94 | C105: =Orçamento!A112 -> 10.28 | D105: SINAPI | E105: SINAPI 91926 | F105: 2022-02-11 | G105: =VLOOKUP($C105,Orçamento!A112:C370,3,FALSE) -> CABO DE COBRE FLEXÍVEL ISOLADO 2,5MM2, ANTI-CHAMA 450/750V, PARA CIRCUITOS TERMINAIS - FORNECIMENTO E INSTALAÇÃO. AF_12/2015 | H105: =IFERROR(VLOOKUP($C105,Orçamento!A112:E370,5,FALSE),0) -> 1920 | I105: =VLOOKUP($C105,Orçamento!A112:D370,4,FALSE) -> M | J105: =VLOOKUP($C105,Orçamento!A112:H371,8,FALSE) -> 5.01 | K105: =VLOOKUP($C105,Orçamento!A112:I371,9,FALSE) -> 9619.2 | L105: =VLOOKUP($C105,Orçamento!A112:G371,7,FALSE) -> 0.2216 | M105: 1.1122
A106: ='[1]Identificação-TCE'!$A$13 -> 1 | B106: =IF(AND(G106<>"",H106>0,I106<>"",J106<>0,K106<>0),COUNT($B$11:B105)+1,"") -> 95 | C106: =Orçamento!A113 -> 10.29 | D106: SINAPI | E106: SINAPI 91928 | F106: 2022-02-11 | G106: =VLOOKUP($C106,Orçamento!A113:C371,3,FALSE) -> CABO DE COBRE FLEXÍVEL ISOLADO 4MM2, ANTI-CHAMA 450/750V, PARA CIRCUITOS TERMINAIS - FORNECIMENTO E INSTALAÇÃO. AF_12/2015 | H106: =IFERROR(VLOOKUP($C106,Orçamento!A113:E371,5,FALSE),0) -> 160 | I106: =VLOOKUP($C106,Orçamento!A113:D371,4,FALSE) -> M | J106: =VLOOKUP($C106,Orçamento!A113:H372,8,FALSE) -> 8.29 | K106: =VLOOKUP($C106,Orçamento!A113:I372,9,FALSE) -> 1326.4 | L106: =VLOOKUP($C106,Orçamento!A113:G372,7,FALSE) -> 0.2216 | M106: 1.1122
A107: ='[1]Identificação-TCE'!$A$13 -> 1 | B107: =IF(AND(G107<>"",H107>0,I107<>"",J107<>0,K107<>0),COUNT($B$11:B106)+1,"") -> 96 | C107: =Orçamento!A114 -> 10.30 | D107: SINAPI | E107: SINAPI 95745 | F107: 2022-02-11 | G107: =VLOOKUP($C107,Orçamento!A114:C372,3,FALSE) -> ELETRODUTO DE AÇO GALVANIZADO, CLASSE LEVE, DN 20MM (3/4"), APARENTE, INSTALADO EM TETO - FORNECIMENTO E INSTALAÇÃO. AF_11/2016_P | H107: =IFERROR(VLOOKUP($C107,Orçamento!A114:E372,5,FALSE),0) -> 150 | I107: =VLOOKUP($C107,Orçamento!A114:D372,4,FALSE) -> M | J107: =VLOOKUP($C107,Orçamento!A114:H373,8,FALSE) -> 41.11 | K107: =VLOOKUP($C107,Orçamento!A114:I373,9,FALSE) -> 6166.5 | L107: =VLOOKUP($C107,Orçamento!A114:G373,7,FALSE) -> 0.2216 | M107: 1.1122
A108: ='[1]Identificação-TCE'!$A$13 -> 1 | B108: =IF(AND(G108<>"",H108>0,I108<>"",J108<>0,K108<>0),COUNT($B$11:B107)+1,"") -> 97 | C108: =Orçamento!A115 -> 10.31 | D108: SINAPI | E108: SINAPI 95746 | F108: 2022-02-11 | G108: =VLOOKUP($C108,Orçamento!A115:C373,3,FALSE) -> ELETRODUTO DE AÇO GALVANIZADO, CLASSE LEVE, DN 25MM (1"), APARENTE, INSTALADO EM TETO - FORNECIMENTO E INSTALAÇÃO. AF_11/2016_P | H108: =IFERROR(VLOOKUP($C108,Orçamento!A115:E373,5,FALSE),0) -> 560 | I108: =VLOOKUP($C108,Orçamento!A115:D373,4,FALSE) -> M | J108: =VLOOKUP($C108,Orçamento!A115:H374,8,FALSE) -> 51.83 | K108: =VLOOKUP($C108,Orçamento!A115:I374,9,FALSE) -> 29024.8 | L108: =VLOOKUP($C108,Orçamento!A115:G374,7,FALSE) -> 0.2216 | M108: 1.1122
A109: ='[1]Identificação-TCE'!$A$13 -> 1 | B109: =IF(AND(G109<>"",H109>0,I109<>"",J109<>0,K109<>0),COUNT($B$11:B108)+1,"") -> 98 | C109: =Orçamento!A116 -> 10.32 | D109: CCU | E109: CPUE 111 | F109: 2022-02-11 | G109: =VLOOKUP($C109,Orçamento!A116:C374,3,FALSE) -> ELETRODUTO DE AÇO GALVANIZADO, CLASSE SEMI PESADO, DN 50MM - FORNECIMENTO E INSTALAÇÃO | H109: =IFERROR(VLOOKUP($C109,Orçamento!A116:E374,5,FALSE),0) -> 90 | I109: =VLOOKUP($C109,Orçamento!A116:D374,4,FALSE) -> M | J109: =VLOOKUP($C109,Orçamento!A116:H375,8,FALSE) -> 108.84 | K109: =VLOOKUP($C109,Orçamento!A116:I375,9,FALSE) -> 9795.6 | L109: =VLOOKUP($C109,Orçamento!A116:G375,7,FALSE) -> 0.2216 | M109: 1.1122
A110: ='[1]Identificação-TCE'!$A$13 -> 1 | B110: =IF(AND(G110<>"",H110>0,I110<>"",J110<>0,K110<>0),COUNT($B$11:B109)+1,"") -> 99 | C110: =Orçamento!A117 -> 10.33 | D110: CCU | E110: CPUE 73 | F110: 2022-02-11 | G110: =VLOOKUP($C110,Orçamento!A117:C375,3,FALSE) -> BARRAMENTO DE EQUIPOTENCIALIZAÇÃO | H110: =IFERROR(VLOOKUP($C110,Orçamento!A117:E375,5,FALSE),0) -> 1 | I110: UN | J110: =VLOOKUP($C110,Orçamento!A117:H376,8,FALSE) -> 50.24 | K110: =VLOOKUP($C110,Orçamento!A117:I376,9,FALSE) -> 50.24 | L110: =VLOOKUP($C110,Orçamento!A117:G376,7,FALSE) -> 0.2216 | M110: 1.1122
A111: ='[1]Identificação-TCE'!$A$13 -> 1 | B111: =IF(AND(G111<>"",H111>0,I111<>"",J111<>0,K111<>0),COUNT($B$11:B110)+1,"") -> 100 | C111: =Orçamento!A118 -> 10.34 | D111: SINAPI | E111: SINAPI 96977 | F111: 2022-02-11 | G111: =VLOOKUP($C111,Orçamento!A118:C376,3,FALSE) -> CORDOALHA DE COBRE NU, 50MM2, ENTERRADA, SEM ISOLADOR - FORNECIMENTO E INSTALAÇÃO. AF_12/2017 | H111: =IFERROR(VLOOKUP($C111,Orçamento!A118:E376,5,FALSE),0) -> 30 | I111: =VLOOKUP($C111,Orçamento!A118:D376,4,FALSE) -> M | J111: =VLOOKUP($C111,Orçamento!A118:H377,8,FALSE) -> 67.52 | K111: =VLOOKUP($C111,Orçamento!A118:I377,9,FALSE) -> 2025.6 | L111: =VLOOKUP($C111,Orçamento!A118:G377,7,FALSE) -> 0.2216 | M111: 1.1122
A112: ='[1]Identificação-TCE'!$A$13 -> 1 | B112: =IF(AND(G112<>"",H112>0,I112<>"",J112<>0,K112<>0),COUNT($B$11:B111)+1,"") -> 101 | C112: =Orçamento!A119 -> 10.35 | D112: SINAPI | E112: SINAPI 96986 | F112: 2022-02-11 | G112: =VLOOKUP($C112,Orçamento!A119:C377,3,FALSE) -> HASTE DE ATERRAMENTO 3/4 PARA SPDA -FORNECIMENTO E INSTALAÇÃO. AF_12/2017 | H112: =IFERROR(VLOOKUP($C112,Orçamento!A119:E377,5,FALSE),0) -> 3 | I112: UN | J112: =VLOOKUP($C112,Orçamento!A119:H378,8,FALSE) -> 171.62 | K112: =VLOOKUP($C112,Orçamento!A119:I378,9,FALSE) -> 514.86 | L112: =VLOOKUP($C112,Orçamento!A119:G378,7,FALSE) -> 0.2216 | M112: 1.1122
A113: ='[1]Identificação-TCE'!$A$13 -> 1 | B113: =IF(AND(G113<>"",H113>0,I113<>"",J113<>0,K113<>0),COUNT($B$11:B112)+1,"") -> 102 | C113: =Orçamento!A120 -> 10.36 | D113: ORSE | E113: ORSE 00764 | F113: 2022-02-11 | G113: =VLOOKUP($C113,Orçamento!A120:C378,3,FALSE) -> Fornecimento e instalação de eletrocalha perfurada 300x100x3000mm | H113: =IFERROR(VLOOKUP($C113,Orçamento!A120:E378,5,FALSE),0) -> 170 | I113: =VLOOKUP($C113,Orçamento!A120:D378,4,FALSE) -> M | J113: =VLOOKUP($C113,Orçamento!A120:H379,8,FALSE) -> 146.89 | K113: =VLOOKUP($C113,Orçamento!A120:I379,9,FALSE) -> 24971.3 | L113: =VLOOKUP($C113,Orçamento!A120:G379,7,FALSE) -> 0.2216 | M113: 1.1122
A114: ='[1]Identificação-TCE'!$A$13 -> 1 | B114: =IF(AND(G114<>"",H114>0,I114<>"",J114<>0,K114<>0),COUNT($B$11:B113)+1,"") -> 103 | C114: =Orçamento!A121 -> 10.37 | D114: ORSE | E114: ORSE 12804 | F114: 2022-02-11 | G114: =VLOOKUP($C114,Orçamento!A121:C379,3,FALSE) -> Tampa de encaixe 300x3000mm, zincada, para eletrocalha metálica | H114: =IFERROR(VLOOKUP($C114,Orçamento!A121:E379,5,FALSE),0) -> 57 | I114: UN | J114: =VLOOKUP($C114,Orçamento!A121:H380,8,FALSE) -> 156.05 | K114: =VLOOKUP($C114,Orçamento!A121:I380,9,FALSE) -> 8894.85 | L114: =VLOOKUP($C114,Orçamento!A121:G380,7,FALSE) -> 0.2216 | M114: 1.1122
A115: ='[1]Identificação-TCE'!$A$13 -> 1 | B115: =IF(AND(G115<>"",H115>0,I115<>"",J115<>0,K115<>0),COUNT($B$11:B114)+1,"") -> 104 | C115: =Orçamento!A122 -> 10.38 | D115: ORSE | E115: ORSE 09525 | F115: 2022-02-11 | G115: =VLOOKUP($C115,Orçamento!A122:C380,3,FALSE) -> Suporte horizontal 300x100mm para fixação de eletrocalha metálica | H115: =IFERROR(VLOOKUP($C115,Orçamento!A122:E380,5,FALSE),0) -> 170 | I115: UN | J115: =VLOOKUP($C115,Orçamento!A122:H381,8,FALSE) -> 16.11 | K115: =VLOOKUP($C115,Orçamento!A122:I381,9,FALSE) -> 2738.7 | L115: =VLOOKUP($C115,Orçamento!A122:G381,7,FALSE) -> 0.2216 | M115: 1.1122
A116: ='[1]Identificação-TCE'!$A$13 -> 1 | B116: =IF(AND(G116<>"",H116>0,I116<>"",J116<>0,K116<>0),COUNT($B$11:B115)+1,"") -> 105 | C116: =Orçamento!A123 -> 10.39 | D116: ORSE | E116: ORSE 11923 | F116: 2022-02-11 | G116: =VLOOKUP($C116,Orçamento!A123:C381,3,FALSE) -> Fornecimento e instalação de curva vertical em PVC, para eletrocalha, 300x100mm | H116: =IFERROR(VLOOKUP($C116,Orçamento!A123:E381,5,FALSE),0) -> 8 | I116: UN | J116: =VLOOKUP($C116,Orçamento!A123:H382,8,FALSE) -> 151.86 | K116: =VLOOKUP($C116,Orçamento!A123:I382,9,FALSE) -> 1214.88 | L116: =VLOOKUP($C116,Orçamento!A123:G382,7,FALSE) -> 0.2216 | M116: 1.1122
A117: ='[1]Identificação-TCE'!$A$13 -> 1 | B117: =IF(AND(G117<>"",H117>0,I117<>"",J117<>0,K117<>0),COUNT($B$11:B116)+1,"") -> 106 | C117: =Orçamento!A124 -> 10.40 | D117: ORSE | E117: ORSE 12803 | F117: 2022-02-11 | G117: =VLOOKUP($C117,Orçamento!A124:C382,3,FALSE) -> Emenda interna 300 x 100 mm com base lisa perfurada para eletrocalha metálica (ref. Mopa ou similar) | H117: =IFERROR(VLOOKUP($C117,Orçamento!A124:E382,5,FALSE),0) -> 169 | I117: UN | J117: =VLOOKUP($C117,Orçamento!A124:H383,8,FALSE) -> 30.1 | K117: =VLOOKUP($C117,Orçamento!A124:I383,9,FALSE) -> 5086.9 | L117: =VLOOKUP($C117,Orçamento!A124:G383,7,FALSE) -> 0.2216 | M117: 1.1122
A118: ='[1]Identificação-TCE'!$A$13 -> 1 | B118: =IF(AND(G118<>"",H118>0,I118<>"",J118<>0,K118<>0),COUNT($B$11:B117)+1,"") -> 107 | C118: =Orçamento!A125 -> 10.41 | D118: CCU | E118: CPUE 74 | F118: 2022-02-11 | G118: =VLOOKUP($C118,Orçamento!A125:C383,3,FALSE) -> Perfilado 38x38mm chapa #18 | H118: =IFERROR(VLOOKUP($C118,Orçamento!A125:E383,5,FALSE),0) -> 440 | I118: =VLOOKUP($C118,Orçamento!A125:D383,4,FALSE) -> M | J118: =VLOOKUP($C118,Orçamento!A125:H384,8,FALSE) -> 42.8 | K118: =VLOOKUP($C118,Orçamento!A125:I384,9,FALSE) -> 18832 | L118: =VLOOKUP($C118,Orçamento!A125:G384,7,FALSE) -> 0.2216 | M118: 1.1122
A119: ='[1]Identificação-TCE'!$A$13 -> 1 | B119: =IF(AND(G119<>"",H119>0,I119<>"",J119<>0,K119<>0),COUNT($B$11:B118)+1,"") -> 108 | C119: =Orçamento!A126 -> 10.42 | D119: CCU | E119: CPUE 75 | F119: 2022-02-11 | G119: =VLOOKUP($C119,Orçamento!A126:C384,3,FALSE) -> Suporte longo para perfilado 38x38MM | H119: =IFERROR(VLOOKUP($C119,Orçamento!A126:E384,5,FALSE),0) -> 440 | I119: UN | J119: =VLOOKUP($C119,Orçamento!A126:H385,8,FALSE) -> 1.89 | K119: =VLOOKUP($C119,Orçamento!A126:I385,9,FALSE) -> 831.6 | L119: =VLOOKUP($C119,Orçamento!A126:G385,7,FALSE) -> 0.2216 | M119: 1.1122
A120: ='[1]Identificação-TCE'!$A$13 -> 1 | B120: =IF(AND(G120<>"",H120>0,I120<>"",J120<>0,K120<>0),COUNT($B$11:B119)+1,"") -> 109 | C120: =Orçamento!A127 -> 10.43 | D120: CCU | E120: CPUE 76 | F120: 2022-02-11 | G120: =VLOOKUP($C120,Orçamento!A127:C385,3,FALSE) -> Vergalhão rosca total 1/4" | H120: =IFERROR(VLOOKUP($C120,Orçamento!A127:E385,5,FALSE),0) -> 450 | I120: =VLOOKUP($C120,Orçamento!A127:D385,4,FALSE) -> M | J120: =VLOOKUP($C120,Orçamento!A127:H386,8,FALSE) -> 24.72 | K120: =VLOOKUP($C120,Orçamento!A127:I386,9,FALSE) -> 11124 | L120: =VLOOKUP($C120,Orçamento!A127:G386,7,FALSE) -> 0.2216 | M120: 1.1122
A121: ='[1]Identificação-TCE'!$A$13 -> 1 | B121: =IF(AND(G121<>"",H121>0,I121<>"",J121<>0,K121<>0),COUNT($B$11:B120)+1,"") -> 110 | C121: =Orçamento!A128 -> 10.44 | D121: CCU | E121: CPUE 77 | F121: 2022-02-11 | G121: =VLOOKUP($C121,Orçamento!A128:C386,3,FALSE) -> Chumbador rosca interna 1/4" | H121: =IFERROR(VLOOKUP($C121,Orçamento!A128:E386,5,FALSE),0) -> 225 | I121: UN | J121: =VLOOKUP($C121,Orçamento!A128:H387,8,FALSE) -> 34.66 | K121: =VLOOKUP($C121,Orçamento!A128:I387,9,FALSE) -> 7798.5 | L121: =VLOOKUP($C121,Orçamento!A128:G387,7,FALSE) -> 0.2216 | M121: 1.1122
A122: ='[1]Identificação-TCE'!$A$13 -> 1 | B122: =IF(AND(G122<>"",H122>0,I122<>"",J122<>0,K122<>0),COUNT($B$11:B121)+1,"") -> 111 | C122: =Orçamento!A129 -> 10.45 | D122: CCU | E122: CPUE 78 | F122: 2022-02-11 | G122: =VLOOKUP($C122,Orçamento!A129:C387,3,FALSE) -> TRANSFORMADOR TRIFÁSICO A SECO, PN=225KVA, CLASSE 15KV - BT 220/127V - 60HZ, IP00. | H122: =IFERROR(VLOOKUP($C122,Orçamento!A129:E387,5,FALSE),0) -> 1 | I122: UN | J122: =VLOOKUP($C122,Orçamento!A129:H388,8,FALSE) -> 34088.78 | K122: =VLOOKUP($C122,Orçamento!A129:I388,9,FALSE) -> 34088.78 | L122: =VLOOKUP($C122,Orçamento!A129:G388,7,FALSE) -> 0.2216 | M122: 1.1122
A123: ='[1]Identificação-TCE'!$A$13 -> 1 | B123: =IF(AND(G123<>"",H123>0,I123<>"",J123<>0,K123<>0),COUNT($B$11:B122)+1,"") -> 112 | C123: =Orçamento!A130 -> 10.46 | D123: CCU | E123: CPUE 79 | F123: 2022-02-11 | G123: =VLOOKUP($C123,Orçamento!A130:C388,3,FALSE) -> CABO DE COBRE UNIPOLAR #35MM² BLINDADO, ISOLAÇÃO 12/20KV EPR - COBERTURA EM PVC | H123: =IFERROR(VLOOKUP($C123,Orçamento!A130:E388,5,FALSE),0) -> 300 | I123: =VLOOKUP($C123,Orçamento!A130:D388,4,FALSE) -> M | J123: =VLOOKUP($C123,Orçamento!A130:H389,8,FALSE) -> 127.22 | K123: =VLOOKUP($C123,Orçamento!A130:I389,9,FALSE) -> 38166 | L123: =VLOOKUP($C123,Orçamento!A130:G389,7,FALSE) -> 0.2216 | M123: 1.1122
A124: ='[1]Identificação-TCE'!$A$13 -> 1 | B124: =IF(AND(G124<>"",H124>0,I124<>"",J124<>0,K124<>0),COUNT($B$11:B123)+1,"") -> 113 | C124: =Orçamento!A131 -> 10.47 | D124: CCU | E124: CPUE 91 | F124: 2022-02-11 | G124: =VLOOKUP($C124,Orçamento!A131:C389,3,FALSE) -> TERMINAÇÃO TERMOCONTRÁTIL PARA CABO 35MM2, CLASSE 15kV (PARA USO EXTERNO) | H124: =IFERROR(VLOOKUP($C124,Orçamento!A131:E389,5,FALSE),0) -> 3 | I124: UN | J124: =VLOOKUP($C124,Orçamento!A131:H390,8,FALSE) -> 317.84 | K124: =VLOOKUP($C124,Orçamento!A131:I390,9,FALSE) -> 953.52 | L124: =VLOOKUP($C124,Orçamento!A131:G390,7,FALSE) -> 0.2216 | M124: 1.1122
A125: ='[1]Identificação-TCE'!$A$13 -> 1 | B125: =IF(AND(G125<>"",H125>0,I125<>"",J125<>0,K125<>0),COUNT($B$11:B124)+1,"") -> 114 | C125: =Orçamento!A132 -> 10.48 | D125: CCU | E125: CPUE 85 | F125: 2022-02-11 | G125: =VLOOKUP($C125,Orçamento!A132:C390,3,FALSE) -> TERMINAÇÃO TERMOCONTRÁTIL PARA CABO 35MM2, CLASSE 15kV (PARA USO INTERNO) | H125: =IFERROR(VLOOKUP($C125,Orçamento!A132:E390,5,FALSE),0) -> 3 | I125: UN | J125: =VLOOKUP($C125,Orçamento!A132:H391,8,FALSE) -> 317.59 | K125: =VLOOKUP($C125,Orçamento!A132:I391,9,FALSE) -> 952.77 | L125: =VLOOKUP($C125,Orçamento!A132:G391,7,FALSE) -> 0.2216 | M125: 1.1122
A126: ='[1]Identificação-TCE'!$A$13 -> 1 | B126: =IF(AND(G126<>"",H126>0,I126<>"",J126<>0,K126<>0),COUNT($B$11:B125)+1,"") -> 115 | C126: =Orçamento!A133 -> 10.49 | D126: CCU | E126: CPUE 50 | F126: 2022-02-11 | G126: =VLOOKUP($C126,Orçamento!A133:C391,3,FALSE) -> SECCIONADORA TRIPOLAR SECA 15KV-400A-TSI 95KV-COMANDO POR PUNHO | H126: =IFERROR(VLOOKUP($C126,Orçamento!A133:E391,5,FALSE),0) -> 1 | I126: UN | J126: =VLOOKUP($C126,Orçamento!A133:H392,8,FALSE) -> 1688.14 | K126: =VLOOKUP($C126,Orçamento!A133:I392,9,FALSE) -> 1688.14 | L126: =VLOOKUP($C126,Orçamento!A133:G392,7,FALSE) -> 0.2216 | M126: 1.1122
A127: ='[1]Identificação-TCE'!$A$13 -> 1 | B127: =IF(AND(G127<>"",H127>0,I127<>"",J127<>0,K127<>0),COUNT($B$11:B126)+1,"") -> 116 | C127: =Orçamento!A134 -> 10.50 | D127: CCU | E127: CPUE 49 | F127: 2022-02-11 | G127: =VLOOKUP($C127,Orçamento!A134:C392,3,FALSE) -> SECCIONADORA TRIPOLAR FUSÍVEL 15KV-400A-TSI95KV-COMANDO POR PUNHO ABERTURA MÍNIMA 18CM-RUPTURA MÌNIMA 30KA-COM FUSÍVEL HH ABERTURA SOB CARGA | H127: =IFERROR(VLOOKUP($C127,Orçamento!A134:E392,5,FALSE),0) -> 1 | I127: UN | J127: =VLOOKUP($C127,Orçamento!A134:H393,8,FALSE) -> 3516.65 | K127: =VLOOKUP($C127,Orçamento!A134:I393,9,FALSE) -> 3516.65 | L127: =VLOOKUP($C127,Orçamento!A134:G393,7,FALSE) -> 0.2216 | M127: 1.1122
A128: ='[1]Identificação-TCE'!$A$13 -> 1 | B128: =IF(AND(G128<>"",H128>0,I128<>"",J128<>0,K128<>0),COUNT($B$11:B127)+1,"") -> 117 | C128: =Orçamento!A135 -> 10.51 | D128: CCU | E128: CPUE 80 | F128: 2022-02-11 | G128: =VLOOKUP($C128,Orçamento!A135:C393,3,FALSE) -> PUNHO DE ACIONAMENTO DA SECCIONADORA C/ MICROINTERRUPTOR DO INTERTRAVAMENTO ELÉTRICO, DIRETAMENTE ATERRADO | H128: =IFERROR(VLOOKUP($C128,Orçamento!A135:E393,5,FALSE),0) -> 1 | I128: UN | J128: =VLOOKUP($C128,Orçamento!A135:H394,8,FALSE) -> 404.47 | K128: =VLOOKUP($C128,Orçamento!A135:I394,9,FALSE) -> 404.47 | L128: =VLOOKUP($C128,Orçamento!A135:G394,7,FALSE) -> 0.2216 | M128: 1.1122
A129: ='[1]Identificação-TCE'!$A$13 -> 1 | B129: =IF(AND(G129<>"",H129>0,I129<>"",J129<>0,K129<>0),COUNT($B$11:B128)+1,"") -> 118 | C129: =Orçamento!A136 -> 10.52 | D129: SINAPI | E129: SINAPI 37558 | F129: 2022-02-11 | G129: =VLOOKUP($C129,Orçamento!A136:C394,3,FALSE) -> PLACA DE SINALIZAÇÃO DE SEGURANÇA CONTRA INCÊNDIO, FOTOLUMINISCENTE, RETANGULAR, 20X40CM EM PVC 2MM, ANTI-CHAMAS (SÍMBOLOS, CORES E PICTOGRAMAS CONFORME NBR 13434) | H129: =IFERROR(VLOOKUP($C129,Orçamento!A136:E394,5,FALSE),0) -> 3 | I129: UN | J129: =VLOOKUP($C129,Orçamento!A136:H395,8,FALSE) -> 45.5 | K129: =VLOOKUP($C129,Orçamento!A136:I395,9,FALSE) -> 136.5 | L129: =VLOOKUP($C129,Orçamento!A136:G395,7,FALSE) -> 0.2216 | M129: 1.1122
A130: ='[1]Identificação-TCE'!$A$13 -> 1 | B130: =IF(AND(G130<>"",H130>0,I130<>"",J130<>0,K130<>0),COUNT($B$11:B129)+1,"") -> 119 | C130: =Orçamento!A137 -> 10.53 | D130: CCU | E130: CPUE 81 | F130: 2022-02-11 | G130: =VLOOKUP($C130,Orçamento!A137:C395,3,FALSE) -> QUADRO COM DIAGRAMA UNIFILAR DA SUBESTAÇÃO | H130: =IFERROR(VLOOKUP($C130,Orçamento!A137:E395,5,FALSE),0) -> 1 | I130: UN | J130: =VLOOKUP($C130,Orçamento!A137:H396,8,FALSE) -> 656.66 | K130: =VLOOKUP($C130,Orçamento!A137:I396,9,FALSE) -> 656.66 | L130: =VLOOKUP($C130,Orçamento!A137:G396,7,FALSE) -> 0.2216 | M130: 1.1122
A131: ='[1]Identificação-TCE'!$A$13 -> 1 | B131: =IF(AND(G131<>"",H131>0,I131<>"",J131<>0,K131<>0),COUNT($B$11:B130)+1,"") -> 120 | C131: =Orçamento!A138 -> 10.54 | D131: SINAPI | E131: SINAPI 4796 | F131: 2022-02-11 | G131: =VLOOKUP($C131,Orçamento!A138:C396,3,FALSE) -> PISO DE BORRACHA FRISADO OU PASTILHADO, PRETO, EM PLACAS DE 50X50CM, E=7MM, PARA ARGAMASSA | H131: =IFERROR(VLOOKUP($C131,Orçamento!A138:E396,5,FALSE),0) -> 0.25 | I131: =VLOOKUP($C131,Orçamento!A138:D396,4,FALSE) -> M2 | J131: =VLOOKUP($C131,Orçamento!A138:H397,8,FALSE) -> 220.56 | K131: =VLOOKUP($C131,Orçamento!A138:I397,9,FALSE) -> 55.14 | L131: =VLOOKUP($C131,Orçamento!A138:G397,7,FALSE) -> 0.2216 | M131: 1.1122
A132: ='[1]Identificação-TCE'!$A$13 -> 1 | B132: =IF(AND(G132<>"",H132>0,I132<>"",J132<>0,K132<>0),COUNT($B$11:B131)+1,"") -> 121 | C132: =Orçamento!A140 -> 11.1 | D132: SINAPI | E132: SINAPI 96635 | F132: 2022-02-11 | G132: =VLOOKUP($C132,Orçamento!A140:C398,3,FALSE) -> TUBO, PPR, DN 25, CLASSE PN 20, INSTALADO EM RAMAL OU SUB-RAMAL DE ÁGUA - FORNECIMENTO E INSTALAÇÃO. AF_06/2015 | H132: =IFERROR(VLOOKUP($C132,Orçamento!A140:E398,5,FALSE),0) -> 60 | I132: =VLOOKUP($C132,Orçamento!A140:D398,4,FALSE) -> M | J132: =VLOOKUP($C132,Orçamento!A140:H399,8,FALSE) -> 34.33 | K132: =VLOOKUP($C132,Orçamento!A140:I399,9,FALSE) -> 2059.8 | L132: =VLOOKUP($C132,Orçamento!A140:G399,7,FALSE) -> 0.2216 | M132: 1.1122
A133: ='[1]Identificação-TCE'!$A$13 -> 1 | B133: =IF(AND(G133<>"",H133>0,I133<>"",J133<>0,K133<>0),COUNT($B$11:B132)+1,"") -> 122 | C133: =Orçamento!A141 -> 11.2 | D133: SINAPI | E133: SINAPI 89356 | F133: 2022-02-11 | G133: =VLOOKUP($C133,Orçamento!A141:C399,3,FALSE) -> TUBO, PVC, SOLDÁVEL, DN 25MM, INSTALADO EM RAMAL OU SUB-RAMAL DE ÁGUA - FORNECIMENTO E INSTALAÇÃO. AF_12/2014 | H133: =IFERROR(VLOOKUP($C133,Orçamento!A141:E399,5,FALSE),0) -> 157 | I133: =VLOOKUP($C133,Orçamento!A141:D399,4,FALSE) -> M | J133: =VLOOKUP($C133,Orçamento!A141:H400,8,FALSE) -> 26.18 | K133: =VLOOKUP($C133,Orçamento!A141:I400,9,FALSE) -> 4110.26 | L133: =VLOOKUP($C133,Orçamento!A141:G400,7,FALSE) -> 0.2216 | M133: 1.1122
A134: ='[1]Identificação-TCE'!$A$13 -> 1 | B134: =IF(AND(G134<>"",H134>0,I134<>"",J134<>0,K134<>0),COUNT($B$11:B133)+1,"") -> 123 | C134: =Orçamento!A142 -> 11.3 | D134: SINAPI | E134: SINAPI 96645 | F134: 2022-02-11 | G134: =VLOOKUP($C134,Orçamento!A142:C400,3,FALSE) -> TUBO, PPR, DN 32, CLASSE PN 12, INSTALADO EM RAMAL DE DISTRIBUIÇÃO DE ÁGUA - FORNECIMENTO E INSTALAÇÃO. AF_06/2015 | H134: =IFERROR(VLOOKUP($C134,Orçamento!A142:E400,5,FALSE),0) -> 17 | I134: =VLOOKUP($C134,Orçamento!A142:D400,4,FALSE) -> M | J134: =VLOOKUP($C134,Orçamento!A142:H401,8,FALSE) -> 30.52 | K134: =VLOOKUP($C134,Orçamento!A142:I401,9,FALSE) -> 518.84 | L134: =VLOOKUP($C134,Orçamento!A142:G401,7,FALSE) -> 0.2216 | M134: 1.1122
A135: ='[1]Identificação-TCE'!$A$13 -> 1 | B135: =IF(AND(G135<>"",H135>0,I135<>"",J135<>0,K135<>0),COUNT($B$11:B134)+1,"") -> 124 | C135: =Orçamento!A143 -> 11.4 | D135: SINAPI | E135: SINAPI 89357 | F135: 2022-02-11 | G135: =VLOOKUP($C135,Orçamento!A143:C401,3,FALSE) -> TUBO, PVC, SOLDÁVEL, DN 32MM, INSTALADO EM RAMAL OU SUB-RAMAL DE ÁGUA - FORNECIMENTO E INSTALAÇÃO. AF_12/2014 | H135: =IFERROR(VLOOKUP($C135,Orçamento!A143:E401,5,FALSE),0) -> 15 | I135: =VLOOKUP($C135,Orçamento!A143:D401,4,FALSE) -> M | J135: =VLOOKUP($C135,Orçamento!A143:H402,8,FALSE) -> 39.73 | K135: =VLOOKUP($C135,Orçamento!A143:I402,9,FALSE) -> 595.95 | L135: =VLOOKUP($C135,Orçamento!A143:G402,7,FALSE) -> 0.2216 | M135: 1.1122
A136: ='[1]Identificação-TCE'!$A$13 -> 1 | B136: =IF(AND(G136<>"",H136>0,I136<>"",J136<>0,K136<>0),COUNT($B$11:B135)+1,"") -> 125 | C136: =Orçamento!A144 -> 11.5 | D136: SINAPI | E136: SINAPI 89448 | F136: 2022-02-11 | G136: =VLOOKUP($C136,Orçamento!A144:C402,3,FALSE) -> TUBO, PVC, SOLDÁVEL, DN 40MM, INSTALADO EM PRUMADA DE ÁGUA - FORNECIMENTO E INSTALAÇÃO. AF_12/2014 | H136: =IFERROR(VLOOKUP($C136,Orçamento!A144:E402,5,FALSE),0) -> 14 | I136: =VLOOKUP($C136,Orçamento!A144:D402,4,FALSE) -> M | J136: =VLOOKUP($C136,Orçamento!A144:H403,8,FALSE) -> 27.63 | K136: =VLOOKUP($C136,Orçamento!A144:I403,9,FALSE) -> 386.82 | L136: =VLOOKUP($C136,Orçamento!A144:G403,7,FALSE) -> 0.2216 | M136: 1.1122
A137: ='[1]Identificação-TCE'!$A$13 -> 1 | B137: =IF(AND(G137<>"",H137>0,I137<>"",J137<>0,K137<>0),COUNT($B$11:B136)+1,"") -> 126 | C137: =Orçamento!A145 -> 11.6 | D137: SINAPI | E137: SINAPI 89711 | F137: 2022-02-11 | G137: =VLOOKUP($C137,Orçamento!A145:C403,3,FALSE) -> TUBO PVC SÉRIE NORMAL, ESGOTO PREDIAL, DN 40MM, FORNECIDO E INSTALADO EM RAMAL DE DESCARGA OU RAMAL DE ESGOTO SANITÁRIO. AF_12/2014 | H137: =IFERROR(VLOOKUP($C137,Orçamento!A145:E403,5,FALSE),0) -> 102 | I137: =VLOOKUP($C137,Orçamento!A145:D403,4,FALSE) -> M | J137: =VLOOKUP($C137,Orçamento!A145:H404,8,FALSE) -> 23.63 | K137: =VLOOKUP($C137,Orçamento!A145:I404,9,FALSE) -> 2410.26 | L137: =VLOOKUP($C137,Orçamento!A145:G404,7,FALSE) -> 0.2216 | M137: 1.1122
A138: ='[1]Identificação-TCE'!$A$13 -> 1 | B138: =IF(AND(G138<>"",H138>0,I138<>"",J138<>0,K138<>0),COUNT($B$11:B137)+1,"") -> 127 | C138: =Orçamento!A146 -> 11.7 | D138: SINAPI | E138: SINAPI 89449 | F138: 2022-02-11 | G138: =VLOOKUP($C138,Orçamento!A146:C404,3,FALSE) -> TUBO, PVC, SOLDÁVEL, DN 50MM, INSTALADO EM PRUMADA DE ÁGUA - FORNECIMENTO E INSTALAÇÃO. AF_12/2014 | H138: =IFERROR(VLOOKUP($C138,Orçamento!A146:E404,5,FALSE),0) -> 40 | I138: =VLOOKUP($C138,Orçamento!A146:D404,4,FALSE) -> M | J138: =VLOOKUP($C138,Orçamento!A146:H405,8,FALSE) -> 31.74 | K138: =VLOOKUP($C138,Orçamento!A146:I405,9,FALSE) -> 1269.6 | L138: =VLOOKUP($C138,Orçamento!A146:G405,7,FALSE) -> 0.2216 | M138: 1.1122
A139: ='[1]Identificação-TCE'!$A$13 -> 1 | B139: =IF(AND(G139<>"",H139>0,I139<>"",J139<>0,K139<>0),COUNT($B$11:B138)+1,"") -> 128 | C139: =Orçamento!A147 -> 11.8 | D139: SINAPI | E139: SINAPI 89712 | F139: 2022-02-11 | G139: =VLOOKUP($C139,Orçamento!A147:C405,3,FALSE) -> TUBO PVC SÉRIE NORMAL, ESGOTO PREDIAL, DN 50MM, FORNECIDO E INSTALADO EM RAMAL DE DESCARGA OU RAMAL DE ESGOTO SANITÁRIO. AF_12/2014 | H139: =IFERROR(VLOOKUP($C139,Orçamento!A147:E405,5,FALSE),0) -> 134 | I139: =VLOOKUP($C139,Orçamento!A147:D405,4,FALSE) -> M | J139: =VLOOKUP($C139,Orçamento!A147:H406,8,FALSE) -> 36.7 | K139: =VLOOKUP($C139,Orçamento!A147:I406,9,FALSE) -> 4917.8 | L139: =VLOOKUP($C139,Orçamento!A147:G406,7,FALSE) -> 0.2216 | M139: 1.1122
A140: ='[1]Identificação-TCE'!$A$13 -> 1 | B140: =IF(AND(G140<>"",H140>0,I140<>"",J140<>0,K140<>0),COUNT($B$11:B139)+1,"") -> 129 | C140: =Orçamento!A148 -> 11.9 | D140: SINAPI | E140: SINAPI 89451 | F140: 2022-02-11 | G140: =VLOOKUP($C140,Orçamento!A148:C406,3,FALSE) -> TUBO, PVC, SOLDÁVEL, DN 75MM, INSTALADO EM PRUMADA DE ÁGUA - FORNECIMENTO E INSTALAÇÃO. AF_12/2014 | H140: =IFERROR(VLOOKUP($C140,Orçamento!A148:E406,5,FALSE),0) -> 155 | I140: =VLOOKUP($C140,Orçamento!A148:D406,4,FALSE) -> M | J140: =VLOOKUP($C140,Orçamento!A148:H407,8,FALSE) -> 87.76 | K140: =VLOOKUP($C140,Orçamento!A148:I407,9,FALSE) -> 13602.8 | L140: =VLOOKUP($C140,Orçamento!A148:G407,7,FALSE) -> 0.2216 | M140: 1.1122
A141: ='[1]Identificação-TCE'!$A$13 -> 1 | B141: =IF(AND(G141<>"",H141>0,I141<>"",J141<>0,K141<>0),COUNT($B$11:B140)+1,"") -> 130 | C141: =Orçamento!A149 -> 11.10 | D141: SINAPI | E141: SINAPI 89713 | F141: 2022-02-11 | G141: =VLOOKUP($C141,Orçamento!A149:C407,3,FALSE) -> TUBO PVC SÉRIE NORMAL, ESGOTO PREDIAL, DN 75MM, FORNECIDO E INSTALADO EM RAMAL DE DESCARGA OU RAMAL DE ESGOTO SANITÁRIO. AF_12/2014 | H141: =IFERROR(VLOOKUP($C141,Orçamento!A149:E407,5,FALSE),0) -> 19 | I141: =VLOOKUP($C141,Orçamento!A149:D407,4,FALSE) -> M | J141: =VLOOKUP($C141,Orçamento!A149:H408,8,FALSE) -> 56.11 | K141: =VLOOKUP($C141,Orçamento!A149:I408,9,FALSE) -> 1066.09 | L141: =VLOOKUP($C141,Orçamento!A149:G408,7,FALSE) -> 0.2216 | M141: 1.1122
A142: ='[1]Identificação-TCE'!$A$13 -> 1 | B142: =IF(AND(G142<>"",H142>0,I142<>"",J142<>0,K142<>0),COUNT($B$11:B141)+1,"") -> 131 | C142: =Orçamento!A150 -> 11.11 | D142: SINAPI | E142: SINAPI 89714 | F142: 2022-02-11 | G142: =VLOOKUP($C142,Orçamento!A150:C408,3,FALSE) -> TUBO PVC SÉRIE NORMAL, ESGOTO PREDIAL, DN 100MM, FORNECIDO E INSTALADO EM RAMAL DE DESCARGA OU RAMAL DE ESGOTO SANITÁRIO. AF_12/2014 | H142: =IFERROR(VLOOKUP($C142,Orçamento!A150:E408,5,FALSE),0) -> 43 | I142: =VLOOKUP($C142,Orçamento!A150:D408,4,FALSE) -> M | J142: =VLOOKUP($C142,Orçamento!A150:H409,8,FALSE) -> 71.18 | K142: =VLOOKUP($C142,Orçamento!A150:I409,9,FALSE) -> 3060.74 | L142: =VLOOKUP($C142,Orçamento!A150:G409,7,FALSE) -> 0.2216 | M142: 1.1122
A143: ='[1]Identificação-TCE'!$A$13 -> 1 | B143: =IF(AND(G143<>"",H143>0,I143<>"",J143<>0,K143<>0),COUNT($B$11:B142)+1,"") -> 132 | C143: =Orçamento!A151 -> 11.12 | D143: SINAPI | E143: SINAPI 96650 | F143: 2022-02-11 | G143: =VLOOKUP($C143,Orçamento!A151:C409,3,FALSE) -> JOELHO 90 GRAUS, PPR, DN 25MM, CLASSE PN 25, INSTALADO EM RAMAL DE DISTRIBUIÇÃO - FORNECIMENTO E INSTALAÇÃO. AF_06/2015 | H143: =IFERROR(VLOOKUP($C143,Orçamento!A151:E409,5,FALSE),0) -> 62 | I143: UN | J143: =VLOOKUP($C143,Orçamento!A151:H410,8,FALSE) -> 11.52 | K143: =VLOOKUP($C143,Orçamento!A151:I410,9,FALSE) -> 714.24 | L143: =VLOOKUP($C143,Orçamento!A151:G410,7,FALSE) -> 0.2216 | M143: 1.1122
A144: ='[1]Identificação-TCE'!$A$13 -> 1 | B144: =IF(AND(G144<>"",H144>0,I144<>"",J144<>0,K144<>0),COUNT($B$11:B143)+1,"") -> 133 | C144: =Orçamento!A152 -> 11.13 | D144: SINAPI | E144: SINAPI 96665 | F144: 2022-02-11 | G144: =VLOOKUP($C144,Orçamento!A152:C410,3,FALSE) -> TÊ NORMAL, PPR, DN 25MM, CLASSE PN 25, INSTALADO EM RAMAL DE DISTRIBUIÇÃO DE ÁGUA - FORNECIMENTO E INSTALAÇÃO. AF_06/2015 | H144: =IFERROR(VLOOKUP($C144,Orçamento!A152:E410,5,FALSE),0) -> 13 | I144: UN | J144: =VLOOKUP($C144,Orçamento!A152:H411,8,FALSE) -> 15.15 | K144: =VLOOKUP($C144,Orçamento!A152:I411,9,FALSE) -> 196.95 | L144: =VLOOKUP($C144,Orçamento!A152:G411,7,FALSE) -> 0.2216 | M144: 1.1122
A145: ='[1]Identificação-TCE'!$A$13 -> 1 | B145: =IF(AND(G145<>"",H145>0,I145<>"",J145<>0,K145<>0),COUNT($B$11:B144)+1,"") -> 134 | C145: =Orçamento!A153 -> 11.14 | D145: SINAPI | E145: SINAPI 89408 | F145: 2022-02-11 | G145: =VLOOKUP($C145,Orçamento!A153:C411,3,FALSE) -> JOELHO 90 GRAUS, PVC, SOLDÁVEL, DN 25MM, INSTALADO EM RAMAL DE DISTRIBUIÇÃO DE ÁGUA - FORNECIMENTO E INSTALAÇÃO. AF_12/2014 | H145: =IFERROR(VLOOKUP($C145,Orçamento!A153:E411,5,FALSE),0) -> 113 | I145: UN | J145: =VLOOKUP($C145,Orçamento!A153:H412,8,FALSE) -> 7.45 | K145: =VLOOKUP($C145,Orçamento!A153:I412,9,FALSE) -> 841.85 | L145: =VLOOKUP($C145,Orçamento!A153:G412,7,FALSE) -> 0.2216 | M145: 1.1122
A146: ='[1]Identificação-TCE'!$A$13 -> 1 | B146: =IF(AND(G146<>"",H146>0,I146<>"",J146<>0,K146<>0),COUNT($B$11:B145)+1,"") -> 135 | C146: =Orçamento!A154 -> 11.15 | D146: SINAPI | E146: SINAPI 89395 | F146: 2022-02-11 | G146: =VLOOKUP($C146,Orçamento!A154:C412,3,FALSE) -> TÊ, PVC, SOLDÁVEL, DN 25MM, INSTALADO EM RAMAL OU SUB-RAMAL DE ÁGUA - FORNECIMENTO E INSTALAÇÃO. AF_12/2014 | H146: =IFERROR(VLOOKUP($C146,Orçamento!A154:E412,5,FALSE),0) -> 34 | I146: UN | J146: =VLOOKUP($C146,Orçamento!A154:H413,8,FALSE) -> 14.74 | K146: =VLOOKUP($C146,Orçamento!A154:I413,9,FALSE) -> 501.16 | L146: =VLOOKUP($C146,Orçamento!A154:G413,7,FALSE) -> 0.2216 | M146: 1.1122
A147: ='[1]Identificação-TCE'!$A$13 -> 1 | B147: =IF(AND(G147<>"",H147>0,I147<>"",J147<>0,K147<>0),COUNT($B$11:B146)+1,"") -> 136 | C147: =Orçamento!A155 -> 11.16 | D147: SINAPI | E147: SINAPI 96662 | F147: 2022-02-11 | G147: =VLOOKUP($C147,Orçamento!A155:C413,3,FALSE) -> BUCHA DE REDUÇÃO, PPR, 32X25, CLASSE PN 25, INSTALADO EM RAMAL DE DISTRIBUIÇÃO DE ÁGUA - FORNECIMENTO E INSTALAÇÃO. AF_06/2015 | H147: =IFERROR(VLOOKUP($C147,Orçamento!A155:E413,5,FALSE),0) -> 3 | I147: UN | J147: =VLOOKUP($C147,Orçamento!A155:H414,8,FALSE) -> 15.04 | K147: =VLOOKUP($C147,Orçamento!A155:I414,9,FALSE) -> 45.12 | L147: =VLOOKUP($C147,Orçamento!A155:G414,7,FALSE) -> 0.2216 | M147: 1.1122
A148: ='[1]Identificação-TCE'!$A$13 -> 1 | B148: =IF(AND(G148<>"",H148>0,I148<>"",J148<>0,K148<>0),COUNT($B$11:B147)+1,"") -> 137 | C148: =Orçamento!A156 -> 11.17 | D148: SINAPI | E148: SINAPI 89426 | F148: 2022-02-11 | G148: =VLOOKUP($C148,Orçamento!A156:C414,3,FALSE) -> LUVA DE REDUÇÃO, PVC, SOLDÁVEL, DN 32MMX25MM, INSTALADO EM RAMAL DE DISTRIBUIÇÃO DE ÁGUA - FORNECIMENTO E INSTALAÇÃO. AF_12/2014 | H148: =IFERROR(VLOOKUP($C148,Orçamento!A156:E414,5,FALSE),0) -> 3 | I148: UN | J148: =VLOOKUP($C148,Orçamento!A156:H415,8,FALSE) -> 12.07 | K148: =VLOOKUP($C148,Orçamento!A156:I415,9,FALSE) -> 36.21 | L148: =VLOOKUP($C148,Orçamento!A156:G415,7,FALSE) -> 0.2216 | M148: 1.1122
A149: ='[1]Identificação-TCE'!$A$13 -> 1 | B149: =IF(AND(G149<>"",H149>0,I149<>"",J149<>0,K149<>0),COUNT($B$11:B148)+1,"") -> 138 | C149: =Orçamento!A157 -> 11.18 | D149: SINAPI | E149: SINAPI 89413 | F149: 2022-02-11 | G149: =VLOOKUP($C149,Orçamento!A157:C415,3,FALSE) -> JOELHO 90 GRAUS, PVC, SOLDÁVEL, DN 32MM, INSTALADO EM RAMAL DE DISTRIBUIÇÃO DE ÁGUA - FORNECIMENTO E INSTALAÇÃO. AF_12/2014 | H149: =IFERROR(VLOOKUP($C149,Orçamento!A157:E415,5,FALSE),0) -> 20 | I149: UN | J149: =VLOOKUP($C149,Orçamento!A157:H416,8,FALSE) -> 11.8 | K149: =VLOOKUP($C149,Orçamento!A157:I416,9,FALSE) -> 236 | L149: =VLOOKUP($C149,Orçamento!A157:G416,7,FALSE) -> 0.2216 | M149: 1.1122
A150: ='[1]Identificação-TCE'!$A$13 -> 1 | B150: =IF(AND(G150<>"",H150>0,I150<>"",J150<>0,K150<>0),COUNT($B$11:B149)+1,"") -> 139 | C150: =Orçamento!A158 -> 11.19 | D150: SINAPI | E150: SINAPI 96686 | F150: 2022-02-11 | G150: =VLOOKUP($C150,Orçamento!A158:C416,3,FALSE) -> JOELHO 90 GRAUS, PPR, DN 32 MM, CLASSE PN 25, INSTALADO EM PRUMADA DE ÁGUA FORNECIMENTO E INSTALAÇÃO . AF_06/2015 | H150: =IFERROR(VLOOKUP($C150,Orçamento!A158:E416,5,FALSE),0) -> 16 | I150: UN | J150: =VLOOKUP($C150,Orçamento!A158:H417,8,FALSE) -> 9.06 | K150: =VLOOKUP($C150,Orçamento!A158:I417,9,FALSE) -> 144.96 | L150: =VLOOKUP($C150,Orçamento!A158:G417,7,FALSE) -> 0.2216 | M150: 1.1122
A151: ='[1]Identificação-TCE'!$A$13 -> 1 | B151: =IF(AND(G151<>"",H151>0,I151<>"",J151<>0,K151<>0),COUNT($B$11:B150)+1,"") -> 140 | C151: =Orçamento!A159 -> 11.20 | D151: SINAPI | E151: SINAPI 89497 | F151: 2022-02-11 | G151: =VLOOKUP($C151,Orçamento!A159:C417,3,FALSE) -> JOELHO 90 GRAUS, PVC, SOLDÁVEL, DN 40MM, INSTALADO EM PRUMADA DE ÁGUA - FORNECIMENTO E INSTALAÇÃO. AF_12/2014 | H151: =IFERROR(VLOOKUP($C151,Orçamento!A159:E417,5,FALSE),0) -> 14 | I151: UN | J151: =VLOOKUP($C151,Orçamento!A159:H418,8,FALSE) -> 17.7 | K151: =VLOOKUP($C151,Orçamento!A159:I418,9,FALSE) -> 247.8 | L151: =VLOOKUP($C151,Orçamento!A159:G418,7,FALSE) -> 0.2216 | M151: 1.1122
A152: ='[1]Identificação-TCE'!$A$13 -> 1 | B152: =IF(AND(G152<>"",H152>0,I152<>"",J152<>0,K152<>0),COUNT($B$11:B151)+1,"") -> 141 | C152: =Orçamento!A160 -> 11.21 | D152: SINAPI | E152: SINAPI 89724 | F152: 2022-02-11 | G152: =VLOOKUP($C152,Orçamento!A160:C418,3,FALSE) -> JOELHO 90 GRAUS, PVC, SERIE NORMAL, ESGOTO PREDIAL, DN 40MM, JUNTA SOLDÁVEL, FORNECIDO E INSTALADO EM RAMAL DE DESCARGA OU RAMAL DE ESGOTO SANITÁRIO. AF_12/2014 | H152: =IFERROR(VLOOKUP($C152,Orçamento!A160:E418,5,FALSE),0) -> 68 | I152: UN | J152: =VLOOKUP($C152,Orçamento!A160:H419,8,FALSE) -> 13.39 | K152: =VLOOKUP($C152,Orçamento!A160:I419,9,FALSE) -> 910.52 | L152: =VLOOKUP($C152,Orçamento!A160:G419,7,FALSE) -> 0.2216 | M152: 1.1122
A153: ='[1]Identificação-TCE'!$A$13 -> 1 | B153: =IF(AND(G153<>"",H153>0,I153<>"",J153<>0,K153<>0),COUNT($B$11:B152)+1,"") -> 142 | C153: =Orçamento!A161 -> 11.22 | D153: SINAPI | E153: SINAPI 89726 | F153: 2022-02-11 | G153: =VLOOKUP($C153,Orçamento!A161:C419,3,FALSE) -> JOELHO 45 GRAUS, PVC, SERIE NORMAL, ESGOTO PREDIAL, DN 40MM, JUNTA SOLDÁVEL, FORNECIDO E INSTALADO EM RAMAL DE DESCARGA OU RAMAL DE ESGOTO SANITÁRIO. AF_12/2014 | H153: =IFERROR(VLOOKUP($C153,Orçamento!A161:E419,5,FALSE),0) -> 80 | I153: UN | J153: =VLOOKUP($C153,Orçamento!A161:H420,8,FALSE) -> 9.16 | K153: =VLOOKUP($C153,Orçamento!A161:I420,9,FALSE) -> 732.8 | L153: =VLOOKUP($C153,Orçamento!A161:G420,7,FALSE) -> 0.2216 | M153: 1.1122
A154: ='[1]Identificação-TCE'!$A$13 -> 1 | B154: =IF(AND(G154<>"",H154>0,I154<>"",J154<>0,K154<>0),COUNT($B$11:B153)+1,"") -> 143 | C154: =Orçamento!A162 -> 11.23 | D154: SINAPI | E154: SINAPI 89783 | F154: 2022-02-11 | G154: =VLOOKUP($C154,Orçamento!A162:C420,3,FALSE) -> JUNÇÃO SIMPLES, PVC, SÉRIE NORMAL, ESGOTO PREDIAL, DN 40MM, JUNTA SOLDÁVEL, FORNECIDO E INSTALADO EM RAMAL DE DESCARGA OU RAMAL DE ESGOTO SANITÁRIO. AF_12/2014 | H154: =IFERROR(VLOOKUP($C154,Orçamento!A162:E420,5,FALSE),0) -> 28 | I154: UN | J154: =VLOOKUP($C154,Orçamento!A162:H421,8,FALSE) -> 15.88 | K154: =VLOOKUP($C154,Orçamento!A162:I421,9,FALSE) -> 444.64 | L154: =VLOOKUP($C154,Orçamento!A162:G421,7,FALSE) -> 0.2216 | M154: 1.1122
A155: ='[1]Identificação-TCE'!$A$13 -> 1 | B155: =IF(AND(G155<>"",H155>0,I155<>"",J155<>0,K155<>0),COUNT($B$11:B154)+1,"") -> 144 | C155: =Orçamento!A163 -> 11.24 | D155: SINAPI | E155: SINAPI 89501 | F155: 2022-02-11 | G155: =VLOOKUP($C155,Orçamento!A163:C421,3,FALSE) -> JOELHO 90 GRAUS, PVC, SOLDÁVEL, DN 50MM, INSTALADO EM PRUMADA DE ÁGUA - FORNECIMENTO E INSTALAÇÃO. AF_12/2014 | H155: =IFERROR(VLOOKUP($C155,Orçamento!A163:E421,5,FALSE),0) -> 35 | I155: UN | J155: =VLOOKUP($C155,Orçamento!A163:H422,8,FALSE) -> 20.96 | K155: =VLOOKUP($C155,Orçamento!A163:I422,9,FALSE) -> 733.6 | L155: =VLOOKUP($C155,Orçamento!A163:G422,7,FALSE) -> 0.2216 | M155: 1.1122
A156: ='[1]Identificação-TCE'!$A$13 -> 1 | B156: =IF(AND(G156<>"",H156>0,I156<>"",J156<>0,K156<>0),COUNT($B$11:B155)+1,"") -> 145 | C156: =Orçamento!A164 -> 11.25 | D156: SINAPI | E156: SINAPI 89732 | F156: 2022-02-11 | G156: =VLOOKUP($C156,Orçamento!A164:C422,3,FALSE) -> JOELHO 45 GRAUS, PVC, SÉRIE NORMAL, ESGOTO PREDIAL, DN 50MM, JUNTA ELÁSTICA, FORNECIDO E INSTALADO EM RAMAL DE DESCARGA OU ESGOTO SANITÁRIO. AF_12/2014 | H156: =IFERROR(VLOOKUP($C156,Orçamento!A164:E422,5,FALSE),0) -> 59 | I156: UN | J156: =VLOOKUP($C156,Orçamento!A164:H423,8,FALSE) -> 14.54 | K156: =VLOOKUP($C156,Orçamento!A164:I423,9,FALSE) -> 857.86 | L156: =VLOOKUP($C156,Orçamento!A164:G423,7,FALSE) -> 0.2216 | M156: 1.1122
A157: ='[1]Identificação-TCE'!$A$13 -> 1 | B157: =IF(AND(G157<>"",H157>0,I157<>"",J157<>0,K157<>0),COUNT($B$11:B156)+1,"") -> 146 | C157: =Orçamento!A165 -> 11.26 | D157: SINAPI | E157: SINAPI 89731 | F157: 2022-02-11 | G157: =VLOOKUP($C157,Orçamento!A165:C423,3,FALSE) -> JOELHO 90 GRAUS, PVC, SÉRIE NORMAL, ESGOTO PREDIAL, DN 50M, JUNTA ELÁSTICA, FORNECIDO E INSTALADO EM REMAL DE DESCARGA OU RAMAL DE ESGOTO SANITÁRIO. AF_12/2014 | H157: =IFERROR(VLOOKUP($C157,Orçamento!A165:E423,5,FALSE),0) -> 50 | I157: UN | J157: =VLOOKUP($C157,Orçamento!A165:H424,8,FALSE) -> 13.54 | K157: =VLOOKUP($C157,Orçamento!A165:I424,9,FALSE) -> 677 | L157: =VLOOKUP($C157,Orçamento!A165:G424,7,FALSE) -> 0.2216 | M157: 1.1122
A158: ='[1]Identificação-TCE'!$A$13 -> 1 | B158: =IF(AND(G158<>"",H158>0,I158<>"",J158<>0,K158<>0),COUNT($B$11:B157)+1,"") -> 147 | C158: =Orçamento!A166 -> 11.27 | D158: SINAPI | E158: SINAPI 89625 | F158: 2022-02-11 | G158: =VLOOKUP($C158,Orçamento!A166:C424,3,FALSE) -> TÊ, PVC, SOLDÁVEL, DN 50MM, INSTALADO EM PRUMADA DE ÁGUA - FORNECIMENTO E INSTALAÇÃO. AF_12/2014 | H158: =IFERROR(VLOOKUP($C158,Orçamento!A166:E424,5,FALSE),0) -> 15 | I158: UN | J158: =VLOOKUP($C158,Orçamento!A166:H425,8,FALSE) -> 33.95 | K158: =VLOOKUP($C158,Orçamento!A166:I425,9,FALSE) -> 509.25 | L158: =VLOOKUP($C158,Orçamento!A166:G425,7,FALSE) -> 0.2216 | M158: 1.1122
A159: ='[1]Identificação-TCE'!$A$13 -> 1 | B159: =IF(AND(G159<>"",H159>0,I159<>"",J159<>0,K159<>0),COUNT($B$11:B158)+1,"") -> 148 | C159: =Orçamento!A167 -> 11.28 | D159: SINAPI | E159: SINAPI 89785 | F159: 2022-02-11 | G159: =VLOOKUP($C159,Orçamento!A167:C425,3,FALSE) -> JUNÇÃO SIMPLES, PVC, SÉRIE NORMAL, ESGOTO PREDIAL, DN 50X50MM, JUNTA ELÁSTICA, FORNECIDO E INSTALADO EM RAMAL DE DESCARGA OU RAMAL DE ESGOTO SANITÁRIO. AF_12/2014 | H159: =IFERROR(VLOOKUP($C159,Orçamento!A167:E425,5,FALSE),0) -> 31 | I159: UN | J159: =VLOOKUP($C159,Orçamento!A167:H426,8,FALSE) -> 28.94 | K159: =VLOOKUP($C159,Orçamento!A167:I426,9,FALSE) -> 897.14 | L159: =VLOOKUP($C159,Orçamento!A167:G426,7,FALSE) -> 0.2216 | M159: 1.1122
A160: ='[1]Identificação-TCE'!$A$13 -> 1 | B160: =IF(AND(G160<>"",H160>0,I160<>"",J160<>0,K160<>0),COUNT($B$11:B159)+1,"") -> 149 | C160: =Orçamento!A168 -> 11.29 | D160: SINAPI | E160: SINAPI 89630 | F160: 2022-02-11 | G160: =VLOOKUP($C160,Orçamento!A168:C426,3,FALSE) -> TÊ DE REDUÇÃO, PVC, SOLDÁVEL, DN 75MMX50MM, INSTALADO EM PRUMADA DE ÁGUA - FORNECIMENTO E INSTALAÇÃO. AF_12/2014 | H160: =IFERROR(VLOOKUP($C160,Orçamento!A168:E426,5,FALSE),0) -> 22 | I160: UN | J160: =VLOOKUP($C160,Orçamento!A168:H427,8,FALSE) -> 126.73 | K160: =VLOOKUP($C160,Orçamento!A168:I427,9,FALSE) -> 2788.06 | L160: =VLOOKUP($C160,Orçamento!A168:G427,7,FALSE) -> 0.2216 | M160: 1.1122
A161: ='[1]Identificação-TCE'!$A$13 -> 1 | B161: =IF(AND(G161<>"",H161>0,I161<>"",J161<>0,K161<>0),COUNT($B$11:B160)+1,"") -> 150 | C161: =Orçamento!A169 -> 11.30 | D161: SINAPI | E161: SINAPI 89665 | F161: 2022-02-11 | G161: =VLOOKUP($C161,Orçamento!A169:C427,3,FALSE) -> REDUÇÃO EXCÊNTRICA, PVC, SÉRIE R, ÁGUA PLUVIAL, DN 75X50MM, JUNTA ELÁSTICA, FORNECIDO E INSTALADO EM CONDUTORES VERTICAIS DE ÁGUAS PLUVIAIS. AF_12/2014 | H161: =IFERROR(VLOOKUP($C161,Orçamento!A169:E427,5,FALSE),0) -> 3 | I161: UN | J161: =VLOOKUP($C161,Orçamento!A169:H428,8,FALSE) -> 19.19 | K161: =VLOOKUP($C161,Orçamento!A169:I428,9,FALSE) -> 57.57 | L161: =VLOOKUP($C161,Orçamento!A169:G428,7,FALSE) -> 0.2216 | M161: 1.1122
A162: ='[1]Identificação-TCE'!$A$13 -> 1 | B162: =IF(AND(G162<>"",H162>0,I162<>"",J162<>0,K162<>0),COUNT($B$11:B161)+1,"") -> 151 | C162: =Orçamento!A170 -> 11.31 | D162: SINAPI | E162: SINAPI 94682 | F162: 2022-02-11 | G162: =VLOOKUP($C162,Orçamento!A170:C428,3,FALSE) -> JOELHO 90 GRAUS, PVC, SOLDÁVEL, DN 75MM, INSTALADO EM RESERVAÇÃO DE ÁGUA DE EDIFICAÇÃO QUE POSSUA RESERVATÓRIO DE FIBRA/FIBROCIMENTO - FORNECIMENTO E INSTALAÇÃO. AF_06/2016 | H162: =IFERROR(VLOOKUP($C162,Orçamento!A170:E428,5,FALSE),0) -> 24 | I162: UN | J162: =VLOOKUP($C162,Orçamento!A170:H429,8,FALSE) -> 210.76 | K162: =VLOOKUP($C162,Orçamento!A170:I429,9,FALSE) -> 5058.24 | L162: =VLOOKUP($C162,Orçamento!A170:G429,7,FALSE) -> 0.2216 | M162: 1.1122
A163: ='[1]Identificação-TCE'!$A$13 -> 1 | B163: =IF(AND(G163<>"",H163>0,I163<>"",J163<>0,K163<>0),COUNT($B$11:B162)+1,"") -> 152 | C163: =Orçamento!A171 -> 11.32 | D163: SINAPI | E163: SINAPI 89805 | F163: 2022-02-11 | G163: =VLOOKUP($C163,Orçamento!A171:C429,3,FALSE) -> JOELHO 90 GRAUS, PVC, SÉRIE NORMAL, ESGOTO PREDIAL, DN 75MM, JUNTA ELÁSTICA, FORNECIDO E INSTALADO EM PRUMADA DE ESGOTO SANITÁRIO OU VENTILAÇÃO. AF_12/2014 | H163: =IFERROR(VLOOKUP($C163,Orçamento!A171:E429,5,FALSE),0) -> 9 | I163: UN | J163: =VLOOKUP($C163,Orçamento!A171:H430,8,FALSE) -> 19.17 | K163: =VLOOKUP($C163,Orçamento!A171:I430,9,FALSE) -> 172.53 | L163: =VLOOKUP($C163,Orçamento!A171:G430,7,FALSE) -> 0.2216 | M163: 1.1122
A164: ='[1]Identificação-TCE'!$A$13 -> 1 | B164: =IF(AND(G164<>"",H164>0,I164<>"",J164<>0,K164<>0),COUNT($B$11:B163)+1,"") -> 153 | C164: =Orçamento!A172 -> 11.33 | D164: SINAPI | E164: SINAPI 94697 | F164: 2022-02-11 | G164: =VLOOKUP($C164,Orçamento!A172:C430,3,FALSE) -> TÊ, PVC, SOLDÁVEL, DN 75MM INSTALADO EM RESERVAÇÃO DE ÁGUA DE EDIFICAÇÃO QUE POSSUA RESERVATÓRIO DE FIBRA/FIBROCIMENTO - FORNECIMENTO E INSTALAÇÃO. AF_06/2016 | H164: =IFERROR(VLOOKUP($C164,Orçamento!A172:E430,5,FALSE),0) -> 13 | I164: UN | J164: =VLOOKUP($C164,Orçamento!A172:H431,8,FALSE) -> 155.89 | K164: =VLOOKUP($C164,Orçamento!A172:I431,9,FALSE) -> 2026.57 | L164: =VLOOKUP($C164,Orçamento!A172:G431,7,FALSE) -> 0.2216 | M164: 1.1122
A165: ='[1]Identificação-TCE'!$A$13 -> 1 | B165: =IF(AND(G165<>"",H165>0,I165<>"",J165<>0,K165<>0),COUNT($B$11:B164)+1,"") -> 154 | C165: =Orçamento!A173 -> 11.34 | D165: SINAPI | E165: SINAPI 89565 | F165: 2022-02-11 | G165: =VLOOKUP($C165,Orçamento!A173:C431,3,FALSE) -> JUNÇÃO SIMPLES, PVC, SÉRIE R, ÁGUA PLUVIAL, DN 75X75MM, JUNTA ELÁSTICA, FORNECIDO E INSTALADO EM RAMAL DE ENCAMINHAMENTO. AF_12/2014 | H165: =IFERROR(VLOOKUP($C165,Orçamento!A173:E431,5,FALSE),0) -> 10 | I165: UN | J165: =VLOOKUP($C165,Orçamento!A173:H432,8,FALSE) -> 77.21 | K165: =VLOOKUP($C165,Orçamento!A173:I432,9,FALSE) -> 772.1 | L165: =VLOOKUP($C165,Orçamento!A173:G432,7,FALSE) -> 0.2216 | M165: 1.1122
A166: ='[1]Identificação-TCE'!$A$13 -> 1 | B166: =IF(AND(G166<>"",H166>0,I166<>"",J166<>0,K166<>0),COUNT($B$11:B165)+1,"") -> 155 | C166: =Orçamento!A174 -> 11.35 | D166: SINAPI | E166: SINAPI 89566 | F166: 2022-02-11 | G166: =VLOOKUP($C166,Orçamento!A174:C432,3,FALSE) -> TÊ, PVC, SÉRIE R, ÁGUA PLUVIAL, DN 75MM, JUNTA ELÁSTICA - FORNECIDO E INSTALADO EM RAMAL DE ENCAMINHAMENTO. AF_12/2014 | H166: =IFERROR(VLOOKUP($C166,Orçamento!A174:E432,5,FALSE),0) -> 13 | I166: UN | J166: =VLOOKUP($C166,Orçamento!A174:H433,8,FALSE) -> 65.65 | K166: =VLOOKUP($C166,Orçamento!A174:I433,9,FALSE) -> 853.45 | L166: =VLOOKUP($C166,Orçamento!A174:G433,7,FALSE) -> 0.2216 | M166: 1.1122
A167: ='[1]Identificação-TCE'!$A$13 -> 1 | B167: =IF(AND(G167<>"",H167>0,I167<>"",J167<>0,K167<>0),COUNT($B$11:B166)+1,"") -> 156 | C167: =Orçamento!A175 -> 11.36 | D167: SINAPI | E167: SINAPI 89673 | F167: 2022-02-11 | G167: =VLOOKUP($C167,Orçamento!A175:C433,3,FALSE) -> REDUÇÃO EXCÊNTRICA, PVC, SERIE R, ÁGUA PLUVIAL, DN 100 X 75 MM, JUNTA ELÁSTICA, FORNECIDO E INSTALADO EM CONDUTORES VERTICAIS DE ÁGUAS PLUVIAIS. AF_12/2014 | H167: =IFERROR(VLOOKUP($C167,Orçamento!A175:E433,5,FALSE),0) -> 12 | I167: UN | J167: =VLOOKUP($C167,Orçamento!A175:H434,8,FALSE) -> 39.21 | K167: =VLOOKUP($C167,Orçamento!A175:I434,9,FALSE) -> 470.52 | L167: =VLOOKUP($C167,Orçamento!A175:G434,7,FALSE) -> 0.2216 | M167: 1.1122
A168: ='[1]Identificação-TCE'!$A$13 -> 1 | B168: =IF(AND(G168<>"",H168>0,I168<>"",J168<>0,K168<>0),COUNT($B$11:B167)+1,"") -> 157 | C168: =Orçamento!A176 -> 11.37 | D168: SINAPI | E168: SINAPI 89745 | F168: 2022-02-11 | G168: =VLOOKUP($C168,Orçamento!A176:C434,3,FALSE) -> CONECTOR, CPVC, SOLDÁVEL, DN 22MMX1/2, INSTALADO EM RAMAL DE DISTRIBUIÇÃO DE ÁGUA - FORNECIMENTO E INSTALAÇÃO. AF_12/2014 | H168: =IFERROR(VLOOKUP($C168,Orçamento!A176:E434,5,FALSE),0) -> 13 | I168: UN | J168: =VLOOKUP($C168,Orçamento!A176:H435,8,FALSE) -> 41.17 | K168: =VLOOKUP($C168,Orçamento!A176:I435,9,FALSE) -> 535.21 | L168: =VLOOKUP($C168,Orçamento!A176:G435,7,FALSE) -> 0.2216 | M168: 1.1122
A169: ='[1]Identificação-TCE'!$A$13 -> 1 | B169: =IF(AND(G169<>"",H169>0,I169<>"",J169<>0,K169<>0),COUNT($B$11:B168)+1,"") -> 158 | C169: =Orçamento!A177 -> 11.38 | D169: SINAPI | E169: SINAPI 89746 | F169: 2022-02-11 | G169: =VLOOKUP($C169,Orçamento!A177:C435,3,FALSE) -> JOELHO 45 GRAUS, PVC, SÉRIE NORMAL, ESGOTO PREDIAL, DN 100MM, JUNTA ELÁSTICA, FORNECIDO E INSTALADO EM RAMAL DE DESCARGA OU ESGOTO SANITÁRIO. AF_12/2014 | H169: =IFERROR(VLOOKUP($C169,Orçamento!A177:E435,5,FALSE),0) -> 31 | I169: UN | J169: =VLOOKUP($C169,Orçamento!A177:H436,8,FALSE) -> 31.52 | K169: =VLOOKUP($C169,Orçamento!A177:I436,9,FALSE) -> 977.12 | L169: =VLOOKUP($C169,Orçamento!A177:G436,7,FALSE) -> 0.2216 | M169: 1.1122
A170: ='[1]Identificação-TCE'!$A$13 -> 1 | B170: =IF(AND(G170<>"",H170>0,I170<>"",J170<>0,K170<>0),COUNT($B$11:B169)+1,"") -> 159 | C170: =Orçamento!A178 -> 11.39 | D170: SINAPI | E170: SINAPI 89797 | F170: 2022-02-11 | G170: =VLOOKUP($C170,Orçamento!A178:C436,3,FALSE) -> JUNÇÃO SIMPLES, PVC, SÉRIE NORMAL, ESGOTO PREDIAL, DN 100X100MM, JUNTA ELÁSTICA, FORNECIDO E INSTALADO EM RAMAL DE DESCARGA OU RAMAL DE ESGOTO SANITÁRIO. AF_12/2014 | H170: =IFERROR(VLOOKUP($C170,Orçamento!A178:E436,5,FALSE),0) -> 22 | I170: UN | J170: =VLOOKUP($C170,Orçamento!A178:H437,8,FALSE) -> 63.12 | K170: =VLOOKUP($C170,Orçamento!A178:I437,9,FALSE) -> 1388.64 | L170: =VLOOKUP($C170,Orçamento!A178:G437,7,FALSE) -> 0.2216 | M170: 1.1122
A171: ='[1]Identificação-TCE'!$A$13 -> 1 | B171: =IF(AND(G171<>"",H171>0,I171<>"",J171<>0,K171<>0),COUNT($B$11:B170)+1,"") -> 160 | C171: =Orçamento!A179 -> 11.40 | D171: SINAPI | E171: SINAPI 89709 | F171: 2022-02-11 | G171: =VLOOKUP($C171,Orçamento!A179:C437,3,FALSE) -> RALO SIFONADO, PVC, DN 100X40MM, JUNTA SOLDÁVEL, FORNECIDO E INSTALADO EM RAMAL DE DESCARGA OU EM RAMAL DE ESGOTO SANITÁRIO. AF_12/2014 | H171: =IFERROR(VLOOKUP($C171,Orçamento!A179:E437,5,FALSE),0) -> 17 | I171: UN | J171: =VLOOKUP($C171,Orçamento!A179:H438,8,FALSE) -> 22.05 | K171: =VLOOKUP($C171,Orçamento!A179:I438,9,FALSE) -> 374.85 | L171: =VLOOKUP($C171,Orçamento!A179:G438,7,FALSE) -> 0.2216 | M171: 1.1122
A172: ='[1]Identificação-TCE'!$A$13 -> 1 | B172: =IF(AND(G172<>"",H172>0,I172<>"",J172<>0,K172<>0),COUNT($B$11:B171)+1,"") -> 161 | C172: =Orçamento!A180 -> 11.41 | D172: SINAPI | E172: SINAPI 98110 | F172: 2022-02-11 | G172: =VLOOKUP($C172,Orçamento!A180:C438,3,FALSE) -> CAIXA DE GORDURA PEQUENA (CAPACIDADE: 19L), CIRCULAR, EM PVC, DIÂMETRO INTERNO = 0,3M. AF_12/2020 | H172: =IFERROR(VLOOKUP($C172,Orçamento!A180:E438,5,FALSE),0) -> 3 | I172: UN | J172: =VLOOKUP($C172,Orçamento!A180:H439,8,FALSE) -> 567.4 | K172: =VLOOKUP($C172,Orçamento!A180:I439,9,FALSE) -> 1702.2 | L172: =VLOOKUP($C172,Orçamento!A180:G439,7,FALSE) -> 0.2216 | M172: 1.1122
A173: ='[1]Identificação-TCE'!$A$13 -> 1 | B173: =IF(AND(G173<>"",H173>0,I173<>"",J173<>0,K173<>0),COUNT($B$11:B172)+1,"") -> 162 | C173: =Orçamento!A181 -> 11.42 | D173: SINAPI | E173: SINAPI 89354 | F173: 2022-02-11 | G173: =VLOOKUP($C173,Orçamento!A181:C439,3,FALSE) -> MISTURADOR MONOCOMANDO PARA CHUVEIRO, BASE BRUTA E ACABAMENTO CROMADO - FORNECIDO E INSTALADO EM RAMAL DE ÁGUA. AF_12/2014 | H173: =IFERROR(VLOOKUP($C173,Orçamento!A181:E439,5,FALSE),0) -> 16 | I173: UN | J173: =VLOOKUP($C173,Orçamento!A181:H440,8,FALSE) -> 952.15 | K173: =VLOOKUP($C173,Orçamento!A181:I440,9,FALSE) -> 15234.4 | L173: =VLOOKUP($C173,Orçamento!A181:G440,7,FALSE) -> 0.2216 | M173: 1.1122
A174: ='[1]Identificação-TCE'!$A$13 -> 1 | B174: =IF(AND(G174<>"",H174>0,I174<>"",J174<>0,K174<>0),COUNT($B$11:B173)+1,"") -> 163 | C174: =Orçamento!A182 -> 11.43 | D174: SINAPI | E174: SINAPI 89491 | F174: 2022-02-11 | G174: =VLOOKUP($C174,Orçamento!A182:C440,3,FALSE) -> CAIXA SIFONADA, PVC, DN 150X185X75MM, FORNECIDA E INSTALADA EM RAMAIS DE ENCAMINHAMENTO DE ÁGUA PLUVIAL. AF_12/2014 | H174: =IFERROR(VLOOKUP($C174,Orçamento!A182:E440,5,FALSE),0) -> 16 | I174: UN | J174: =VLOOKUP($C174,Orçamento!A182:H441,8,FALSE) -> 118.3 | K174: =VLOOKUP($C174,Orçamento!A182:I441,9,FALSE) -> 1892.8 | L174: =VLOOKUP($C174,Orçamento!A182:G441,7,FALSE) -> 0.2216 | M174: 1.1122
A175: ='[1]Identificação-TCE'!$A$13 -> 1 | B175: =IF(AND(G175<>"",H175>0,I175<>"",J175<>0,K175<>0),COUNT($B$11:B174)+1,"") -> 164 | C175: =Orçamento!A183 -> 11.44 | D175: SINAPI | E175: SINAPI 99635 | F175: 2022-02-11 | G175: =VLOOKUP($C175,Orçamento!A183:C441,3,FALSE) -> VÁLVULA DE DESCARGA METÁLICA, BASE 1 1/2", ACABAMENTO METÁLICO CROMADO - FORNECIMENTO E INSTALAÇÃO. AF_01/2019 | H175: =IFERROR(VLOOKUP($C175,Orçamento!A183:E441,5,FALSE),0) -> 12 | I175: UN | J175: =VLOOKUP($C175,Orçamento!A183:H442,8,FALSE) -> 369.2 | K175: =VLOOKUP($C175,Orçamento!A183:I442,9,FALSE) -> 4430.4 | L175: =VLOOKUP($C175,Orçamento!A183:G442,7,FALSE) -> 0.2216 | M175: 1.1122
A176: ='[1]Identificação-TCE'!$A$13 -> 1 | B176: =IF(AND(G176<>"",H176>0,I176<>"",J176<>0,K176<>0),COUNT($B$11:B175)+1,"") -> 165 | C176: =Orçamento!A184 -> 11.45 | D176: SINAPI | E176: SINAPI 94489 | F176: 2022-02-11 | G176: =VLOOKUP($C176,Orçamento!A184:C442,3,FALSE) -> REGISTRO DE ESFERA, PVC, SOLDÁVEL, DN 25MM, INSTALADO EM RESERVAÇÃO DE ÁGUA DE EDIFIAÇÃO QUE POSSUA RESERVATÓRIO DE FIBRA/FIBROCIMENTO - FORNECIMENTO E INSTALAÇÃO. AF_06/2016 | H176: =IFERROR(VLOOKUP($C176,Orçamento!A184:E442,5,FALSE),0) -> 5 | I176: UN | J176: =VLOOKUP($C176,Orçamento!A184:H443,8,FALSE) -> 43.02 | K176: =VLOOKUP($C176,Orçamento!A184:I443,9,FALSE) -> 215.1 | L176: =VLOOKUP($C176,Orçamento!A184:G443,7,FALSE) -> 0.2216 | M176: 1.1122
A177: ='[1]Identificação-TCE'!$A$13 -> 1 | B177: =IF(AND(G177<>"",H177>0,I177<>"",J177<>0,K177<>0),COUNT($B$11:B176)+1,"") -> 166 | C177: =Orçamento!A185 -> 11.46 | D177: SINAPI | E177: SINAPI 94490 | F177: 2022-02-11 | G177: =VLOOKUP($C177,Orçamento!A185:C443,3,FALSE) -> REGISTRO DE ESFERA, PVC, SOLDÁVEL, DN 32MM, INSTALADO EM RESERVAÇÃO DE ÁGUA DE EDIFIAÇÃO QUE POSSUA RESERVATÓRIO DE FIBRA/FIBROCIMENTO - FORNECIMENTO E INSTALAÇÃO. AF_06/2016 | H177: =IFERROR(VLOOKUP($C177,Orçamento!A185:E443,5,FALSE),0) -> 5 | I177: UN | J177: =VLOOKUP($C177,Orçamento!A185:H444,8,FALSE) -> 64.71 | K177: =VLOOKUP($C177,Orçamento!A185:I444,9,FALSE) -> 323.55 | L177: =VLOOKUP($C177,Orçamento!A185:G444,7,FALSE) -> 0.2216 | M177: 1.1122
A178: ='[1]Identificação-TCE'!$A$13 -> 1 | B178: =IF(AND(G178<>"",H178>0,I178<>"",J178<>0,K178<>0),COUNT($B$11:B177)+1,"") -> 167 | C178: =Orçamento!A186 -> 11.47 | D178: SINAPI | E178: SINAPI 94493 | F178: 2022-02-11 | G178: =VLOOKUP($C178,Orçamento!A186:C444,3,FALSE) -> REGISTRO DE ESFERA, PVC, SOLDÁVEL, DN 60MM, INSTALADO EM RESERVAÇÃO DE ÁGUA DE EDIFICAÇÃO QUE POSSUA RESERVATÓRIO DE FIBRA/FIBROCIMENTO - FORNECIMENTO E INSTALAÇÃO. AF_06/2016 | H178: =IFERROR(VLOOKUP($C178,Orçamento!A186:E444,5,FALSE),0) -> 2 | I178: UN | J178: =VLOOKUP($C178,Orçamento!A186:H445,8,FALSE) -> 166.47 | K178: =VLOOKUP($C178,Orçamento!A186:I445,9,FALSE) -> 332.94 | L178: =VLOOKUP($C178,Orçamento!A186:G445,7,FALSE) -> 0.2216 | M178: 1.1122
A179: ='[1]Identificação-TCE'!$A$13 -> 1 | B179: =IF(AND(G179<>"",H179>0,I179<>"",J179<>0,K179<>0),COUNT($B$11:B178)+1,"") -> 168 | C179: =Orçamento!A187 -> 11.48 | D179: CCU | E179: CPUE 82 | F179: 2022-02-11 | G179: =VLOOKUP($C179,Orçamento!A187:C445,3,FALSE) -> CALDEIRA MURAL GLP, POTÊNCIA NOMINAL 69,0KW, VAZÃO 42,5 L/MINM COM CHAMINÉ INCLUSA | H179: =IFERROR(VLOOKUP($C179,Orçamento!A187:E445,5,FALSE),0) -> 2 | I179: UN | J179: =VLOOKUP($C179,Orçamento!A187:H446,8,FALSE) -> 14284.71 | K179: =VLOOKUP($C179,Orçamento!A187:I446,9,FALSE) -> 28569.42 | L179: =VLOOKUP($C179,Orçamento!A187:G446,7,FALSE) -> 0.2216 | M179: 1.1122
A180: ='[1]Identificação-TCE'!$A$13 -> 1 | B180: =IF(AND(G180<>"",H180>0,I180<>"",J180<>0,K180<>0),COUNT($B$11:B179)+1,"") -> 169 | C180: =Orçamento!A188 -> 11.49 | D180: CCU | E180: CPUE 83 | F180: 2022-02-11 | G180: =VLOOKUP($C180,Orçamento!A188:C446,3,FALSE) -> RESERVATÓRIO DE ÁGUA QUENTE 300 LITROS | H180: =IFERROR(VLOOKUP($C180,Orçamento!A188:E446,5,FALSE),0) -> 2 | I180: UN | J180: =VLOOKUP($C180,Orçamento!A188:H447,8,FALSE) -> 3987.89 | K180: =VLOOKUP($C180,Orçamento!A188:I447,9,FALSE) -> 7975.78 | L180: =VLOOKUP($C180,Orçamento!A188:G447,7,FALSE) -> 0.2216 | M180: 1.1122
A181: ='[1]Identificação-TCE'!$A$13 -> 1 | B181: =IF(AND(G181<>"",H181>0,I181<>"",J181<>0,K181<>0),COUNT($B$11:B180)+1,"") -> 170 | C181: =Orçamento!A189 -> 11.50 | D181: SINAPI | E181: SINAPI 94482 | F181: 2022-02-11 | G181: =VLOOKUP($C181,Orçamento!A189:C447,3,FALSE) -> CONJUNTO HIDRÁULICO PARA INSTALAÇÃO DE BOMBA EM AÇO ROSCÁVEL, DN SUCÇÃO 40 (1 1/2") E DN RECALQUE 32 (1 1/4"), PARA EDIFICAÇÃO ENTRE 4 E 8 PAVIMENTOS - FORNECIMENTO E INSTALAÇÃO. AF_06/2016 | H181: =IFERROR(VLOOKUP($C181,Orçamento!A189:E447,5,FALSE),0) -> 2 | I181: UN | J181: =VLOOKUP($C181,Orçamento!A189:H448,8,FALSE) -> 1755.48 | K181: =VLOOKUP($C181,Orçamento!A189:I448,9,FALSE) -> 3510.96 | L181: =VLOOKUP($C181,Orçamento!A189:G448,7,FALSE) -> 0.2216 | M181: 1.1122
A182: ='[1]Identificação-TCE'!$A$13 -> 1 | B182: =IF(AND(G182<>"",H182>0,I182<>"",J182<>0,K182<>0),COUNT($B$11:B181)+1,"") -> 171 | C182: =Orçamento!A190 -> 11.51 | D182: CCU | E182: CPUE 84 | F182: 2022-02-11 | G182: =VLOOKUP($C182,Orçamento!A190:C448,3,FALSE) -> VÁLVULA QUEBRA VÁCUO 32MM | H182: =IFERROR(VLOOKUP($C182,Orçamento!A190:E448,5,FALSE),0) -> 2 | I182: UN | J182: =VLOOKUP($C182,Orçamento!A190:H449,8,FALSE) -> 374.57 | K182: =VLOOKUP($C182,Orçamento!A190:I449,9,FALSE) -> 749.14 | L182: =VLOOKUP($C182,Orçamento!A190:G449,7,FALSE) -> 0.2216 | M182: 1.1122
A183: ='[1]Identificação-TCE'!$A$13 -> 1 | B183: =IF(AND(G183<>"",H183>0,I183<>"",J183<>0,K183<>0),COUNT($B$11:B182)+1,"") -> 172 | C183: =Orçamento!A191 -> 11.52 | D183: SINAPI | E183: SINAPI 94490 | F183: 2022-02-11 | G183: =VLOOKUP($C183,Orçamento!A191:C449,3,FALSE) -> REGISTRO DE ESFERA, PVC SOLDÁVEL, DN 32MM, INSTALADO EM RESERVAÇÃO DE ÁGUA DE EDIFICAÇÃO QUE POSSUA RESERVATÓRIO DE FIBRA/FIBROCIMENTO - FORNECIMENTO E INSTALAÇÃO. AF_06/2016 | H183: =IFERROR(VLOOKUP($C183,Orçamento!A191:E449,5,FALSE),0) -> 2 | I183: UN | J183: =VLOOKUP($C183,Orçamento!A191:H450,8,FALSE) -> 64.71 | K183: =VLOOKUP($C183,Orçamento!A191:I450,9,FALSE) -> 129.42 | L183: =VLOOKUP($C183,Orçamento!A191:G450,7,FALSE) -> 0.2216 | M183: 1.1122
A184: ='[1]Identificação-TCE'!$A$13 -> 1 | B184: =IF(AND(G184<>"",H184>0,I184<>"",J184<>0,K184<>0),COUNT($B$11:B183)+1,"") -> 173 | C184: =Orçamento!A192 -> 11.53 | D184: SINAPI | E184: SINAPI 101882 | F184: 2022-02-11 | G184: =VLOOKUP($C184,Orçamento!A192:C450,3,FALSE) -> QUADRO DE DISTRIBUIÇÃO DE ENERGIA EM CHAPA DE AÇO GALVANIZADO, DE EMBUTIR, COM BARRAMENTO TRIFÁSICO, PARA 30 DISJUNTORES DIN 225A - FORNECIMENTO E INSTALAÇÃO. AF_10/2020 | H184: =IFERROR(VLOOKUP($C184,Orçamento!A192:E450,5,FALSE),0) -> 2 | I184: UN | J184: =VLOOKUP($C184,Orçamento!A192:H451,8,FALSE) -> 2007.81 | K184: =VLOOKUP($C184,Orçamento!A192:I451,9,FALSE) -> 4015.62 | L184: =VLOOKUP($C184,Orçamento!A192:G451,7,FALSE) -> 0.2216 | M184: 1.1122
A185: ='[1]Identificação-TCE'!$A$13 -> 1 | B185: =IF(AND(G185<>"",H185>0,I185<>"",J185<>0,K185<>0),COUNT($B$11:B184)+1,"") -> 174 | C185: =Orçamento!A193 -> 11.54 | D185: SINAPI | E185: SINAPI 91855 | F185: 2022-02-11 | G185: =VLOOKUP($C185,Orçamento!A193:C451,3,FALSE) -> ELETRODUTO FLEXÍVEL CORRUGADO REFORÇADO, PVC, DN 25MM (3/4'), PARA CIRCUITOS TERMINAIS, INSTALADO EM PAREDE - FORNECIMENTO E INSTALAÇÃO. AF_12/2015 | H185: =IFERROR(VLOOKUP($C185,Orçamento!A193:E451,5,FALSE),0) -> 2 | I185: =VLOOKUP($C185,Orçamento!A193:D451,4,FALSE) -> M | J185: =VLOOKUP($C185,Orçamento!A193:H452,8,FALSE) -> 11.85 | K185: =VLOOKUP($C185,Orçamento!A193:I452,9,FALSE) -> 23.7 | L185: =VLOOKUP($C185,Orçamento!A193:G452,7,FALSE) -> 0.2216 | M185: 1.1122
A186: ='[1]Identificação-TCE'!$A$13 -> 1 | B186: =IF(AND(G186<>"",H186>0,I186<>"",J186<>0,K186<>0),COUNT($B$11:B185)+1,"") -> 175 | C186: =Orçamento!A194 -> 11.55 | D186: SINAPI | E186: SINAPI 91863 | F186: 2022-02-11 | G186: =VLOOKUP($C186,Orçamento!A194:C452,3,FALSE) -> ELETRODUTO RÍGIDO ROSCÁVEL, PVC, DN 25MM (3/4"), PARA CIRCUITOS TERMINAIS, INSTALADO EM FORRO - FORNECIMENTO E INSTALAÇÃO. AF_12/2015 | H186: =IFERROR(VLOOKUP($C186,Orçamento!A194:E452,5,FALSE),0) -> 6 | I186: =VLOOKUP($C186,Orçamento!A194:D452,4,FALSE) -> M | J186: =VLOOKUP($C186,Orçamento!A194:H453,8,FALSE) -> 13.14 | K186: =VLOOKUP($C186,Orçamento!A194:I453,9,FALSE) -> 78.84 | L186: =VLOOKUP($C186,Orçamento!A194:G453,7,FALSE) -> 0.2216 | M186: 1.1122
A187: ='[1]Identificação-TCE'!$A$13 -> 1 | B187: =IF(AND(G187<>"",H187>0,I187<>"",J187<>0,K187<>0),COUNT($B$11:B186)+1,"") -> 176 | C187: =Orçamento!A195 -> 11.56 | D187: SINAPI | E187: SINAPI 95804 | F187: 2022-02-11 | G187: =VLOOKUP($C187,Orçamento!A195:C453,3,FALSE) -> CONDULETE DE PVC, TIPO B, PARA ELETRODUTO DE PVC SOLDÁVEL DN 20MM (1/2"), APARENTE - FORNECIMENTO E INSTALAÇÃO. AF_11/2016 | H187: =IFERROR(VLOOKUP($C187,Orçamento!A195:E453,5,FALSE),0) -> 12 | I187: UN | J187: =VLOOKUP($C187,Orçamento!A195:H454,8,FALSE) -> 30.63 | K187: =VLOOKUP($C187,Orçamento!A195:I454,9,FALSE) -> 367.56 | L187: =VLOOKUP($C187,Orçamento!A195:G454,7,FALSE) -> 0.2216 | M187: 1.1122
A188: ='[1]Identificação-TCE'!$A$13 -> 1 | B188: =IF(AND(G188<>"",H188>0,I188<>"",J188<>0,K188<>0),COUNT($B$11:B187)+1,"") -> 177 | C188: =Orçamento!A196 -> 11.57 | D188: SINAPI | E188: SINAPI 86901 | F188: 2022-02-11 | G188: =VLOOKUP($C188,Orçamento!A196:C454,3,FALSE) -> CUBA DE EMBUTIR OVAL EM LOUÇA BRANCA, 35X50CM OU EQUIVALENTE - FORNECIMENTO E INSTALAÇÃO. AF_11/2016 | H188: =IFERROR(VLOOKUP($C188,Orçamento!A196:E454,5,FALSE),0) -> 18 | I188: UN | J188: =VLOOKUP($C188,Orçamento!A196:H455,8,FALSE) -> 157.16 | K188: =VLOOKUP($C188,Orçamento!A196:I455,9,FALSE) -> 2828.88 | L188: =VLOOKUP($C188,Orçamento!A196:G455,7,FALSE) -> 0.2216 | M188: 1.1122
A189: ='[1]Identificação-TCE'!$A$13 -> 1 | B189: =IF(AND(G189<>"",H189>0,I189<>"",J189<>0,K189<>0),COUNT($B$11:B188)+1,"") -> 178 | C189: =Orçamento!A197 -> 11.58 | D189: SINAPI | E189: SINAPI 95469 | F189: 2022-02-11 | G189: =VLOOKUP($C189,Orçamento!A197:C455,3,FALSE) -> VASO SANITÁRIO SIFONADO CONVENCIONAL COM LOUÇA BRANCA - FORNECIMENTO E INSTALAÇÃO. AF_01/2020 | H189: =IFERROR(VLOOKUP($C189,Orçamento!A197:E455,5,FALSE),0) -> 7 | I189: UN | J189: =VLOOKUP($C189,Orçamento!A197:H456,8,FALSE) -> 317.91 | K189: =VLOOKUP($C189,Orçamento!A197:I456,9,FALSE) -> 2225.37 | L189: =VLOOKUP($C189,Orçamento!A197:G456,7,FALSE) -> 0.2216 | M189: 1.1122
A190: ='[1]Identificação-TCE'!$A$13 -> 1 | B190: =IF(AND(G190<>"",H190>0,I190<>"",J190<>0,K190<>0),COUNT($B$11:B189)+1,"") -> 179 | C190: =Orçamento!A198 -> 11.59 | D190: SINAPI | E190: SINAPI 95470 | F190: 2022-02-11 | G190: =VLOOKUP($C190,Orçamento!A198:C456,3,FALSE) -> VASO SANITARIO SIFONADO CONVENCIONAL COM LOUÇA BRANCA, INCLUSO CONJUNTO DE LIGAÇÃO PARA BACIA SANITÁRIA AJUSTÁVEL - FORNECIMENTO E INSTALAÇÃO. AF_10/2016 | H190: =IFERROR(VLOOKUP($C190,Orçamento!A198:E456,5,FALSE),0) -> 7 | I190: UN | J190: =VLOOKUP($C190,Orçamento!A198:H457,8,FALSE) -> 329.8 | K190: =VLOOKUP($C190,Orçamento!A198:I457,9,FALSE) -> 2308.6 | L190: =VLOOKUP($C190,Orçamento!A198:G457,7,FALSE) -> 0.2216 | M190: 1.1122
A191: ='[1]Identificação-TCE'!$A$13 -> 1 | B191: =IF(AND(G191<>"",H191>0,I191<>"",J191<>0,K191<>0),COUNT($B$11:B190)+1,"") -> 180 | C191: =Orçamento!A199 -> 11.60 | D191: SINAPI | E191: SINAPI 100858 | F191: 2022-02-11 | G191: =VLOOKUP($C191,Orçamento!A199:C457,3,FALSE) -> MICTÓRIO SIFONADO LOUÇA BRANCA, PADRÃO MÉDIO - FORNECIMENTO E INSTALAÇÃO. AF_01/2020 | H191: =IFERROR(VLOOKUP($C191,Orçamento!A199:E457,5,FALSE),0) -> 2 | I191: UN | J191: =VLOOKUP($C191,Orçamento!A199:H458,8,FALSE) -> 741.98 | K191: =VLOOKUP($C191,Orçamento!A199:I458,9,FALSE) -> 1483.96 | L191: =VLOOKUP($C191,Orçamento!A199:G458,7,FALSE) -> 0.2216 | M191: 1.1122
A192: ='[1]Identificação-TCE'!$A$13 -> 1 | B192: =IF(AND(G192<>"",H192>0,I192<>"",J192<>0,K192<>0),COUNT($B$11:B191)+1,"") -> 181 | C192: =Orçamento!A200 -> 11.61 | D192: SINAPI | E192: SINAPI 100849 | F192: 2022-02-11 | G192: =VLOOKUP($C192,Orçamento!A200:C458,3,FALSE) -> ASSENTO SANITÁRIO CONVENCIONAL - FORNECIMENTO E INSTALAÇÃO | H192: =IFERROR(VLOOKUP($C192,Orçamento!A200:E458,5,FALSE),0) -> 14 | I192: UN | J192: =VLOOKUP($C192,Orçamento!A200:H459,8,FALSE) -> 60.88 | K192: =VLOOKUP($C192,Orçamento!A200:I459,9,FALSE) -> 852.32 | L192: =VLOOKUP($C192,Orçamento!A200:G459,7,FALSE) -> 0.2216 | M192: 1.1122
A193: ='[1]Identificação-TCE'!$A$13 -> 1 | B193: =IF(AND(G193<>"",H193>0,I193<>"",J193<>0,K193<>0),COUNT($B$11:B192)+1,"") -> 182 | C193: =Orçamento!A201 -> 11.62 | D193: CCU | E193: CPUE 39 | F193: 2022-02-11 | G193: =VLOOKUP($C193,Orçamento!A201:C459,3,FALSE) -> TORNEIRA PARA SANITÁRIO PNE AUTOMÁTICA | H193: =IFERROR(VLOOKUP($C193,Orçamento!A201:E459,5,FALSE),0) -> 19 | I193: UN | J193: =VLOOKUP($C193,Orçamento!A201:H460,8,FALSE) -> 286.43 | K193: =VLOOKUP($C193,Orçamento!A201:I460,9,FALSE) -> 5442.17 | L193: =VLOOKUP($C193,Orçamento!A201:G460,7,FALSE) -> 0.2216 | M193: 1.1122
A194: ='[1]Identificação-TCE'!$A$13 -> 1 | B194: =IF(AND(G194<>"",H194>0,I194<>"",J194<>0,K194<>0),COUNT($B$11:B193)+1,"") -> 183 | C194: =Orçamento!A202 -> 11.63 | D194: CCU | E194: CPUE 86 | F194: 2022-02-11 | G194: =VLOOKUP($C194,Orçamento!A202:C460,3,FALSE) -> PORTA PAPEL HIGIÊNICO EM ROLO - DISPENSER EM PLÁSTICO | H194: =IFERROR(VLOOKUP($C194,Orçamento!A202:E460,5,FALSE),0) -> 14 | I194: UN | J194: =VLOOKUP($C194,Orçamento!A202:H461,8,FALSE) -> 63.5 | K194: =VLOOKUP($C194,Orçamento!A202:I461,9,FALSE) -> 889 | L194: =VLOOKUP($C194,Orçamento!A202:G461,7,FALSE) -> 0.2216 | M194: 1.1122
A195: ='[1]Identificação-TCE'!$A$13 -> 1 | B195: =IF(AND(G195<>"",H195>0,I195<>"",J195<>0,K195<>0),COUNT($B$11:B194)+1,"") -> 184 | C195: =Orçamento!A203 -> 11.64 | D195: SINAPI | E195: SINAPI 100855 | F195: 2022-02-11 | G195: =VLOOKUP($C195,Orçamento!A203:C461,3,FALSE) -> SABONETEIRA DE PAREDE EM PLASTICO ABS COM ACABAMENTO CROMADO E ACRILICO, INCLUSO FIXAÇÃO. AF_01/2020 | H195: =IFERROR(VLOOKUP($C195,Orçamento!A203:E461,5,FALSE),0) -> 13 | I195: UN | J195: =VLOOKUP($C195,Orçamento!A203:H462,8,FALSE) -> 83.06 | K195: =VLOOKUP($C195,Orçamento!A203:I462,9,FALSE) -> 1079.78 | L195: =VLOOKUP($C195,Orçamento!A203:G462,7,FALSE) -> 0.2216 | M195: 1.1122
A196: ='[1]Identificação-TCE'!$A$13 -> 1 | B196: =IF(AND(G196<>"",H196>0,I196<>"",J196<>0,K196<>0),COUNT($B$11:B195)+1,"") -> 185 | C196: =Orçamento!A204 -> 11.65 | D196: CCU | E196: CPUE 87 | F196: 2022-02-11 | G196: =VLOOKUP($C196,Orçamento!A204:C462,3,FALSE) -> MEIA SABONETEIRA PARA CHUVEIRO | H196: =IFERROR(VLOOKUP($C196,Orçamento!A204:E462,5,FALSE),0) -> 16 | I196: UN | J196: =VLOOKUP($C196,Orçamento!A204:H463,8,FALSE) -> 82.94 | K196: =VLOOKUP($C196,Orçamento!A204:I463,9,FALSE) -> 1327.04 | L196: =VLOOKUP($C196,Orçamento!A204:G463,7,FALSE) -> 0.2216 | M196: 1.1122
A197: ='[1]Identificação-TCE'!$A$13 -> 1 | B197: =IF(AND(G197<>"",H197>0,I197<>"",J197<>0,K197<>0),COUNT($B$11:B196)+1,"") -> 186 | C197: =Orçamento!A205 -> 11.66 | D197: CCU | E197: CPUE 88 | F197: 2022-02-11 | G197: =VLOOKUP($C197,Orçamento!A205:C463,3,FALSE) -> TOALHEIRO DISPENSER PARA TOALHA DE PAPEL, EM PLÁSTICO | H197: =IFERROR(VLOOKUP($C197,Orçamento!A205:E463,5,FALSE),0) -> 14 | I197: UN | J197: =VLOOKUP($C197,Orçamento!A205:H464,8,FALSE) -> 63.5 | K197: =VLOOKUP($C197,Orçamento!A205:I464,9,FALSE) -> 889 | L197: =VLOOKUP($C197,Orçamento!A205:G464,7,FALSE) -> 0.2216 | M197: 1.1122
A198: ='[1]Identificação-TCE'!$A$13 -> 1 | B198: =IF(AND(G198<>"",H198>0,I198<>"",J198<>0,K198<>0),COUNT($B$11:B197)+1,"") -> 187 | C198: =Orçamento!A206 -> 11.67 | D198: CCU | E198: CPUE 89 | F198: 2022-02-11 | G198: =VLOOKUP($C198,Orçamento!A206:C464,3,FALSE) -> CHUVEIRO AQUECEDOR A GÁS | H198: =IFERROR(VLOOKUP($C198,Orçamento!A206:E464,5,FALSE),0) -> 16 | I198: UN | J198: =VLOOKUP($C198,Orçamento!A206:H465,8,FALSE) -> 325.73 | K198: =VLOOKUP($C198,Orçamento!A206:I465,9,FALSE) -> 5211.68 | L198: =VLOOKUP($C198,Orçamento!A206:G465,7,FALSE) -> 0.2216 | M198: 1.1122
A199: ='[1]Identificação-TCE'!$A$13 -> 1 | B199: =IF(AND(G199<>"",H199>0,I199<>"",J199<>0,K199<>0),COUNT($B$11:B198)+1,"") -> 188 | C199: =Orçamento!A207 -> 11.68 | D199: CCU | E199: CPUE 90 | F199: 2022-02-11 | G199: =VLOOKUP($C199,Orçamento!A207:C465,3,FALSE) -> BATEDOR DE AÇO POLIDO | H199: =IFERROR(VLOOKUP($C199,Orçamento!A207:E465,5,FALSE),0) -> 14 | I199: UN | J199: =VLOOKUP($C199,Orçamento!A207:H466,8,FALSE) -> 381.09 | K199: =VLOOKUP($C199,Orçamento!A207:I466,9,FALSE) -> 5335.26 | L199: =VLOOKUP($C199,Orçamento!A207:G466,7,FALSE) -> 0.2216 | M199: 1.1122
A200: ='[1]Identificação-TCE'!$A$13 -> 1 | B200: =IF(AND(G200<>"",H200>0,I200<>"",J200<>0,K200<>0),COUNT($B$11:B199)+1,"") -> 189 | C200: =Orçamento!A208 -> 11.69 | D200: SINAPI | E200: SINAPI 100875 | F200: 2022-02-11 | G200: =VLOOKUP($C200,Orçamento!A208:C466,3,FALSE) -> BANCO ARTICULADO, EM AÇO INOX, PARA PCD, FIXADO NA PAREDE - FORNECIMENTO E INSTALAÇÃO. AF_01/2020 | H200: =IFERROR(VLOOKUP($C200,Orçamento!A208:E466,5,FALSE),0) -> 10 | I200: UN | J200: =VLOOKUP($C200,Orçamento!A208:H467,8,FALSE) -> 1635.03 | K200: =VLOOKUP($C200,Orçamento!A208:I467,9,FALSE) -> 16350.3 | L200: =VLOOKUP($C200,Orçamento!A208:G467,7,FALSE) -> 0.2216 | M200: 1.1122
A201: ='[1]Identificação-TCE'!$A$13 -> 1 | B201: =IF(AND(G201<>"",H201>0,I201<>"",J201<>0,K201<>0),COUNT($B$11:B200)+1,"") -> 190 | C201: =Orçamento!A209 -> 11.70 | D201: CCU | E201: CPUE 115 | F201: 2022-02-11 | G201: =VLOOKUP($C201,Orçamento!A209:C467,3,FALSE) -> BANCOS EM "L" | H201: =IFERROR(VLOOKUP($C201,Orçamento!A209:E467,5,FALSE),0) -> 14.44 | I201: =VLOOKUP($C201,Orçamento!A209:D467,4,FALSE) -> M | J201: =VLOOKUP($C201,Orçamento!A209:H468,8,FALSE) -> 738.36 | K201: =VLOOKUP($C201,Orçamento!A209:I468,9,FALSE) -> 10661.92 | L201: =VLOOKUP($C201,Orçamento!A209:G468,7,FALSE) -> 0.2216 | M201: 1.1122
... 56 more rows

Sheet Identificação-TCE (hidden)
A1: IDENTIFICAÇÃO
A2: Modalidade* | D2: N° * | F2: Ano *
A3: Descrição do Objeto | B3: =Orçamento!B3 -> Reforma dos setores 2 e 4 do Ginásio Municipal Osmar Fortes Barcellos (Ginásio Tesourinha)
A4: Órgão | B4: SMELJ | F4: CNPJ *
A5: Tipo de Objeto* | C5: N° CENTRAL DE COMPRAS
A6: Preço Total Estimado | B6: ='Orçamento-TCE'!C6 -> 2045309.43
A7: Preço Total Proposto | B7: ='Proposta-TCE'!C6 -> 2045309.43
A8: Qtd. Itens Orçamento | B8: =COUNTIF('Orçamento-TCE'!$H$12:$H$257,"<>0") -> 246
A9: Atenção! Para incluir mais de 50 lotes, selecione as células A62 a G62 e arraste as fórmulas para baixo, de acordo com o número de lotes necessário.
A10: *Campos de preenchimento obrigatório | C10: **Campos de preenchimento obrigatório para licitação composta por lotes
A11: Nº do lote** | B11: Descrição do Lote** | C11: Estimativa | G11: Proposta
C12: Valor do lote (R$) | G12: Valor do lote (R$)
A13: 1 | B13: =B3 -> Reforma dos setores 2 e 4 do Ginásio Municipal Osmar Fortes Barcellos (Ginásio Tesourinha) | C13: =B6 -> 2045309.43 | G13: =B7 -> 2045309.43
C14: 0 | G14: 0
C15: 0 | G15: 0
C16: 0 | G16: 0
C17: 0 | G17: 0
C18: 0 | G18: 0
C19: 0 | G19: 0
C20: 0 | G20: 0
C21: 0 | G21: 0
C22: 0 | G22: 0
C23: 0 | G23: 0
C24: 0 | G24: 0
C25: 0 | G25: 0
C26: 0 | G26: 0
C27: 0 | G27: 0
C28: 0 | G28: 0
C29: 0 | G29: 0
C30: 0 | G30: 0
C31: 0 | G31: 0
C32: 0 | G32: 0
C33: 0 | G33: 0
C34: 0 | G34: 0
C35: 0 | G35: 0
C36: 0 | G36: 0
C37: 0 | G37: 0
C38: 0 | G38: 0
C39: 0 | G39: 0
C40: 0 | G40: 0
C41: 0 | G41: 0
C42: 0 | G42: 0
C43: 0 | G43: 0
C44: 0 | G44: 0
C45: 0 | G45: 0
C46: 0 | G46: 0
C47: 0 | G47: 0
C48: 0 | G48: 0
C49: 0 | G49: 0
C50: 0 | G50: 0
C51: 0 | G51: 0
C52: 0 | G52: 0
C53: 0 | G53: 0
C54: 0 | G54: 0
C55: 0 | G55: 0
C56: 0 | G56: 0
C57: 0 | G57: 0
C58: 0 | G58: 0
C59: 0 | G59: 0
C60: 0 | G60: 0
C61: 0 | G61: 0
C62: 0 | G62: 0

Sheet Orçamento
C2: PREFEITURA DE PORTO ALEGRE
A3: Obra: | B3: Reforma dos setores 2 e 4 do Ginásio Municipal Osmar Fortes Barcellos (Ginásio Tesourinha) | G3: SINAPI data base jan/2022 - não desonerado
A4: Endereço: | B4: Av. Erico Veríssimo, s/n | G4: Data referência técnica SINAPI: 11/02/2022
A5: SEI: | B5: 22.0.000029811-9 | G5: Data base ORSE: jan/2022
A6: ORÇAMENTO DISCRIMINADO
A7: ITEM | B7: FONTE PREÇO | C7: DISCRIMINAÇÃO | D7: UNID. | E7: QUANT. | F7: PREÇO UNITÁRIO (R$) | G7: BDI | H7: PREÇO UNITÁRIO C/ BDI (R$) | I7: CUSTO TOTAL (R$)
A9: 1 | C9: INSTALAÇÕES PROVISÓRIAS | I9: =SUM(I10:I13) -> 8593.67
A10: 1.1 | B10: CPUE 30 | C10: PLACA DE OBRA | D10: M2 | E10: 2.88 | F10: =CPUE!J21 -> 320.0067 | G10: 0.2216 | H10: =ROUND(F10*(1+G10),2) -> 390.92 | I10: =ROUND(E10*H10,2) -> 1125.85
A11: 1.2 | B11: CPUE 54 | C11: ANDAIME TUBULAR METÁLICO | D11: MÊS | E11: 8 | F11: =CPUE!J103 -> 646.5104 | G11: 0.2216 | H11: =ROUND(F11*(1+G11),2) -> 789.78 | I11: =ROUND(E11*H11,2) -> 6318.24
A12: 1.3 | B12: SINAPI 101908 | C12: EXTINTOR DE INCÊNDIO PORTÁTIL COM CARGA DE PQS DE 4 KG, CLASSE BC - FORNECIMENTO E INSTALAÇÃO. AF_10/2020_P | D12: UNID | E12: 2 | F12: 231.64 | G12: 0.2216 | H12: 282.97 | I12: 565.94
A13: 1.4 | B13: SINAPI 101905 | C13: EXTINTOR DE INCÊNDIO PORTÁTIL COM CARGA DE ÁGUA PRESSURIZADA DE 10 L, CLASSE A - FORNECIMENTO E INSTALAÇÃO. AF_10/2020_P | D13: UNID | E13: 2 | F13: 238.88 | G13: 0.2216 | H13: 291.82 | I13: 583.64
A14: 2 | C14: ADMINISTRAÇÃO DA OBRA | I14: =SUM(I15:I15) -> 116639.28
A15: 2.1 | B15: CPUE 116 | C15: ADMINISTRAÇÃO LOCAL | D15: UNID | E15: 1 | F15: =CPUE!J521 -> 95480.75 | G15: 0.2216 | H15: 116639.28 | I15: =ROUND(E15*H15,2) -> 116639.28
A16: 3 | C16: REMOÇÕES E DEMOLIÇÕES | I16: =SUM(I17:I27) -> 43890.93
A17: 3.1 | B17: SINAPI 97640 | C17: REMOÇÃO DE FORROS DE DRYWALL, PVC E FIBROMINERAL, DE FORMA MANUAL, SEM REAPROVEITAMENTO. AF_12/2017 | D17: M2 | E17: 317.29 | F17: 1.51 | G17: 0.2216 | H17: 1.84 | I17: =ROUND(E17*H17,2) -> 583.81
A18: 3.2 | B18: SINAPI 97629 | C18: DEMOLIÇÃO DE LAJES, DE FORMA MECANIZADA COM MARTELETE, SEM REAPROVEITAMENTO. AF_12/2017 | D18: M3 | E18: 7.53 | F18: 122.13 | G18: 0.2216 | H18: 149.19 | I18: =ROUND(E18*H18,2) -> 1123.4
A19: 3.3 | B19: SINAPI 97642 | C19: REMOÇÃO DE TRAMA METÁLICA OU DE MADEIRA PARA FORRO, DE FORMA MANUAL SEM REAPROVEITAMENTO. AF_12/2017 | D19: M2 | E19: 189.14 | F19: 2.71 | G19: 0.2216 | H19: 3.31 | I19: 626.05
A20: 3.4 | B20: SINAPI 97633 | C20: DEMOLIÇÃO DE REVESTIMENTO CERÂMICO, DE FORMA MANUAL, SEM REAPROVEITAMENTO. AF_12/2017 | D20: M2 | E20: 301.22 | F20: 19.34 | G20: 0.2216 | H20: 23.63 | I20: 7117.83
A21: 3.5 | B21: SINAPI 97634 | C21: DEMOLIÇÃO DE REVESTIMENTO CERÂMICO, DE FORMA MECANIZADA COM MARTELETE, SEM REAPROVEITAMENTO. AF_12/2017 | D21: M2 | E21: 1053.16 | F21: 11.22 | G21: 0.2216 | H21: 13.71 | I21: 14438.82
A22: 3.6 | B22: SINAPI 97621 | C22: DEMOLIÇÃO DE ALVENARIA DE BLOCO FURADO, DE FORMA MANUAL, COM REAPROVEITAMENTO. AF_12/2017 | D22: M3 | E22: 66.85 | F22: 100.37 | G22: 0.2216 | H22: 122.61 | I22: 8196.48
A23: 3.7 | B23: SINAPI 97638 | C23: REMOÇÃO DE CHAPAS E PERFIS DE DRYWALL, DE FORMA MANUAL, SEM REAPROVEITAMENTO. AF_12/2017 | D23: M2 | E23: 23.23 | F23: 6.99 | G23: 0.2216 | H23: 8.54 | I23: 198.38
A24: 3.8 | B24: SINAPI 97644 | C24: REMOÇÃO DE PORTAS, DE FORMA MANUAL, SEM REAPROVEITAMENTO. AF_12/2017 | D24: m2 | E24: 84.21 | F24: 7.85 | G24: 0.2216 | H24: 9.59 | I24: 807.57
A25: 3.9 | B25: SINAPI 97645 | C25: REMOÇÃO DE JANELAS, DE FORMA MANUAL, SEM REAPROVEIAMENTO. AF_12/2017 | D25: M2 | E25: 116.42 | F25: 29.6 | G25: 0.2216 | H25: 36.16 | I25: 4209.75
A26: 3.10 | B26: SINAPI 97663 | C26: REMOÇÃO DE LOUÇAS, DE FORMA MANUAL, SEM REAPROVEITAMENTO. AF_12/2017 | D26: UNID | E26: 55 | F26: 10.41 | G26: 0.2216 | H26: 12.72 | I26: 699.6
A27: 3.11 | B27: SINAPI 95875 | C27: TRANSPORTE COM CAMINHÃO BASCULANTE DE 10M3, EM VIA URBANA PAVIMENTADA, DMT ATÉ 30 KM (UNIDADE: M3XKM). AF_07/2020 | D27: M3XKM | E27: 2944.62 | F27: 1.64 | G27: 0.2216 | H27: 2 | I27: 5889.24
A28: 4 | C28: PAREDES E PAINÉIS | I28: =SUM(I29:I33) -> 62287.36
A29: 4.1 | B29: SINAPI 103324 | C29: ALVENARIA DE VEDAÇÃO DE BLOCOS CERÂMICOS FURADOS NA VERTICAL DE 14X19X39 CM (ESPESSURA 14 CM) E ARGAMASSA DE ASSENTAMENTO COM PREPARO EM BETONEIRA. AF_12/2021 | D29: M2 | E29: 373.38 | F29: 71.04 | G29: 0.2216 | H29: 86.78 | I29: =ROUND(E29*H29,2) -> 32401.92
A30: 4.2 | B30: SINAPI 103326 | C30: ALVENARIA DE VEDAÇÃO DE BLOCOS CERÂMICOS FURADOS NA VERTICAL DE 19X19X39 CM (ESPESSURA 19 CM) E ARGAMASSA DE ASSENTAMENTO COM PREPARO EM BETONEIRA. AF_12/2021 | D30: M2 | E30: 3.9 | F30: 86.43 | G30: 0.2216 | H30: 105.58 | I30: =ROUND(E30*H30,2) -> 411.76
A31: 4.3 | B31: SINAPI 96361 | C31: PAREDE COM PLACAS DE GESSO ACARTONADO (DRYWALL), PARA USO INTERNO, COM DUAS FACES SIMPLES E ESTRUTURA METÁLICA COM GUIAS DUPLAS, COM VÃOS. AF_06/2017 | D31: M2 | E31: 114.08 | F31: 180.69 | G31: 0.2216 | H31: 220.73 | I31: 25180.88
A32: 4.4 | B32: SINAPI 102257 | C32: DIVISÓRIA SANITÁRIA, TIPO CABINE, EM PAINEL DE GRANILITE, ESP = 3CM, ASSENTADO COM ARGAMASSA COLANTE AC III-E, EXCLUSIVE FERRAGENS. AF_01/2021 | D32: M2 | E32: 11.34 | F32: 254.43 | G32: 0.2216 | H32: 310.81 | I32: 3524.59
A33: 4.5 | B33: ORSE 00178 | C33: FERRAGEM PARA DIVISÓRIA (VÃO PORTA) COMPOSTA DE 3 DOBRADIÇAS PALMELA E 1 FECHADURA TUBULAR LOCKWELL COM BOTÃO DE GIRO PARA TRAVAMENTO, REF: 41410N, OU SIMILAR | D33: CJ | E33: 3 | F33: 209.62 | G33: 0.2216 | H33: 256.07 | I33: 768.21
A34: 5 | C34: ESQUADRIAS METÁLICAS E DE MADEIRA C/FERRAGENS E VIDROS | I34: =SUM(I35:I52) -> 260278.18
A35: 5.1 | B35: COT 01 | C35: EA01 | D35: UNID | E35: 1 | F35: ='Mapa Cotacões'!H8 -> 961 | G35: 0.1373 | H35: 1092.95 | I35: =ROUND(E35*H35,2) -> 1092.95
A36: 5.2 | B36: COT 01 | C36: EA03 | D36: UNID | E36: 3 | F36: ='Mapa Cotacões'!H15 -> 1750 | G36: 0.1373 | H36: 1990.28 | I36: =ROUND(E36*H36,2) -> 5970.84
A37: 5.3 | B37: COT 01 | C37: EA04 | D37: UNID | E37: 1 | F37: ='Mapa Cotacões'!H22 -> 2550 | G37: 0.1373 | H37: 2900.12 | I37: 2900.12
A38: 5.4 | B38: COT 01 | C38: EA05 | D38: UNID | E38: 5 | F38: ='Mapa Cotacões'!H29 -> 2700 | G38: 0.1373 | H38: 3070.71 | I38: 15353.55
A39: 5.5 | B39: COT 01 | C39: EA09 | D39: UNID | E39: 3 | F39: ='Mapa Cotacões'!H36 -> 4400 | G39: 0.1373 | H39: 5004.12 | I39: 15012.36
A40: 5.6 | B40: COT 01 | C40: EA11 | D40: UNID | E40: 4 | F40: ='Mapa Cotacões'!H43 -> 4800 | G40: 0.1373 | H40: 5459.04 | I40: 21836.16
A41: 5.7 | B41: COT 01 | C41: EA12 | D41: UNID | E41: 5 | F41: ='Mapa Cotacões'!H50 -> 9300 | G41: 0.1373 | H41: 10576.89 | I41: 52884.45
A42: 5.8 | B42: COT 01 | C42: EA13 | D42: UNID | E42: 2 | F42: ='Mapa Cotacões'!H57 -> 4950 | G42: 0.1373 | H42: 5629.64 | I42: 11259.28
A43: 5.9 | B43: COT 01 | C43: EA15 | D43: UNID | E43: 7 | F43: ='Mapa Cotacões'!H64 -> 4565.74 | G43: 0.1373 | H43: 5192.62 | I43: 36348.34
A44: 5.10 | B44: COT 01 | C44: EA16 | D44: UNID | E44: 1 | F44: ='Mapa Cotacões'!H78 -> 13234 | G44: 0.1373 | H44: 15051.03 | I44: 15051.03
A45: 5.11 | B45: COT 110 | C45: EA18 | D45: UNID | E45: 1 | F45: ='Mapa Cotacões'!H85 -> 20800 | G45: 0.1373 | H45: 23655.84 | I45: 23655.84
A46: 5.12 | B46: CPUE 56 | C46: PM01 - 1 FOLHA DE ABRIR 0,70 X 1,40 M | D46: UNID | E46: 3 | F46: =CPUE!J118 -> 957.760175 | G46: 0.2216 | H46: 1170 | I46: 3510
A47: 5.13 | B47: SINAPI 100687 | C47: KIT DE PORTA DE MADEIRA FRISADA, SEMI-OCA (LEVE OU MÉDIA), PADRÃO MÉDIO, 60X210CM, ESPESSURA DE 3,5CM, ITENS INCLUSOS: DOBRADIÇAS, MONTAGEM E INSTALAÇÃO DE BATENTE, FECHADURA COM EXECUÇÃO DO FURO - FORNECIMENTO E INSTALAÇÃO. AF_12/2019 | D47: UNID | E47: 4 | F47: 1069.17 | G47: 0.2216 | H47: 1306.1 | I47: 5224.4
A48: 5.14 | B48: SINAPI 100689 | C48: KIT DE PORTA DE MADEIRA FRISADA, SEMI-OCA (LEVE OU MÉDIA), PADRÃO MÉDIO, 80 X 210CM, ESPESSURA DE 3,5CM,ITENS INCLUSOS: DOBRADIÇAS, MONTAGEM E INSTALAÇÃO DE BATENTE, FECHADURA COM EXECUÇÃO DO FURO - FORNECIMENTO E INSTALAÇÃO. AF_12/2019 | D48: UNID | E48: 18 | F48: 1156.98 | G48: 0.2216 | H48: 1413.37 | I48: 25440.66
A49: 5.15 | B49: CPUE 57 | C49: PM04 - 1 FOLHA DE ABRIR 1,00x2,10 M | D49: UNID | E49: 11 | F49: =CPUE!J133 -> 1163.234175 | G49: 0.2216 | H49: 1421.01 | I49: 15631.11
A50: 5.16 | B50: CPUE 58 | C50: PM06 - 2 FOLHAS DE ABRIR 1,60 X 2,10 M | D50: UNID | E50: 2 | F50: =CPUE!J148 -> 1373.999175 | G50: 0.2216 | H50: 1678.48 | I50: 3356.96
A51: 5.17 | B51: CPUE 59 | C51: PM07 - 2 FOLHAS DE ABRIR 1,80 X 2,10 M | D51: UNID | E51: 2 | F51: =CPUE!J163 -> 1535.619175 | G51: 0.2216 | H51: 1875.91 | I51: 3751.82
A52: 5.18 | B52: CPUE 60 | C52: PM08 - 2 FOHAS DE ABRIR 2,00 X 2,10 M | D52: UNID | E52: 1 | F52: =CPUE!J178 -> 1635.814175 | G52: 0.2216 | H52: 1998.31 | I52: 1998.31
A53: 6 | C53: PROTEÇÕES | I53: =SUM(I54:I58) -> 25972.42
A54: 6.1 | B54: CPUE 119 | C54: IMPERMEABILIZAÇÃO DE SUPERFÍCIE COM EMULSÃO ASFÁLTICA, DUAS CAMADAS, COM APLICAÇÃO DE VÉU DE POLIÉSTER | D54: M2 | E54: 40.36 | F54: =CPUE!J533 -> 50.38 | G54: 0.2216 | H54: 61.54 | I54: =ROUND(E54*H54,2) -> 2483.75
A55: 6.2 | B55: SINAPI 101749 | C55: PISO CIMENTADO, TRAÇO 1:3 (CIMENTO E AREIA), ACABAMENTO LISO, ESPESSURA 4,0 CM, PREPARO MECÂNICO DA ARGAMASSA. AF_09/2020 | D55: M2 | E55: 40.36 | F55: 46.94 | G55: 0.2216 | H55: 57.34 | I55: =ROUND(E55*H55,2) -> 2314.24
A56: 6.3 | B56: SINAPI 98567 | C56: PROTEÇÃO MECÂNICA DE SUPERFÍCIE HORIZONTAL COM ARGAMASSA DE CIMENTO E AREIA, TRAÇO 1:3, E= 4CM. AF_06/2018 | D56: M2 | E56: 40.36 | F56: 56.65 | G56: 0.2216 | H56: 69.2 | I56: 2792.91
A57: 6.4 | B57: CPUE 36 | C57: BASE DE DISTRIUBUIÇÃO DE CARGA SOBRE CONTRAPISO EXISTENTE, E=2CM | D57: M2 | E57: 40.36 | F57: =CPUE!J44 -> 120.5191 | G57: 0.2216 | H57: 147.23 | I57: 5942.2
A58: 6.5 | B58: CPUE 35 | C58: TRATAMENTO DE ESTRUTURAS DE CONCRETO ARMADO | D58: M2 | E58: 24.95 | F58: =CPUE!J35 -> 408.1284 | G58: 0.2216 | H58: 498.57 | I58: 12439.32
A59: 7 | C59: REVESTIMENTOS - FORROS - PINTURAS | I59: =SUM(I60:I70) -> 252435.65
A60: 7.1 | B60: SINAPI 87878 | C60: CHAPISCO APLICADO EM ALVENARIAS E ESTRUTURAS DE CONCRETO INTERNAS, COM COLHER DE PEDREIRO. ARGAMASSA TRAÇO 1:3 COM PREPARO MANUAL. AF_06/2014 | D60: M2 | E60: 616.2 | F60: 4.11 | G60: 0.2216 | H60: 5.02 | I60: =ROUND(E60*H60,2) -> 3093.32
A61: 7.2 | B61: SINAPI 87529 | C61: MASSA ÚNICA, PARA RECEBIMENTO DE PINTURA EM ARGAMASSA TRAÇO 1:2:8, PREPARO MECÂNICO COM BETONEIRA 400L, APLICADA MANUALMENTE EM FACES INTERNAS DE PAREDES, ESPESSURA DE 20MM, COM EXECUÇÃO DE TALISCAS. AF_06/2014 | D61: M2 | E61: 616.2 | F61: 30.5 | G61: 0.2216 | H61: 37.26 | I61: =ROUND(E61*H61,2) -> 22959.61
A62: 7.3 | B62: SINAPI 87274 | C62: REVESTIMENTO CERÂMICO PARA PAREDES INTERNAS COM PLACAS TIPO ESMALTADA EXTRA DE DIMENSÕES 33X45CM APLICADAS EM AMBIENTES DE ÁREA MENOR QUE 5M2 A MEIA ALTURA DAS PAREDES. AF_06/2014 | D62: M2 | E62: 757.83 | F62: 68.83 | G62: 0.2216 | H62: 84.08 | I62: 63718.35
A63: 7.4 | B63: SINAPI 39511 | C63: FORRO DE FIBRA MINERAL EM PLACAS DE 625X625MM, E=15MM, BORDA RETA, COM PINTURA ANTIMOFO, APOIADO EM PERFIL DE AÇO GALVANIZADO COM 24MM DE BASE - INSTALADO | D63: M2 | E63: 846.46 | F63: 108.05 | G63: 0.2216 | H63: 131.99 | I63: 111724.26
A64: 7.5 | B64: SINAPI 100717 | C64: LIXAMENTO MANUAL EM SUPERFÍCIES METÁLICAS EM OBRA. AF_01/2020 | D64: M2 | E64: 172.56 | F64: 8.45 | G64: 0.2216 | H64: 10.32 | I64: 1780.82
A65: 7.6 | B65: SINAPI 100722 | C65: PINTURA COM TINTA ALQUÍDICA DE FUNDO (TIPO ZARCÃO) APLICADA A ROLO OU PINCEL SOBRE SUPERFÍCIES METÁLICAS (EXCETO PERFIL) EXECUTADO EM OBRA (POR DEMÃO). AF_01/2020 | D65: M2 | E65: 172.56 | F65: 20.52 | G65: 0.2216 | H65: 25.07 | I65: 4326.08
A66: 7.7 | B66: SINAPI 100734 | C66: PINTURA COM TINTA ACRÍLICA DE FUNDO APLICADA A ROLO OU PINCEL SOBRE SUPERFÍCIES METÁLICAS (EXCETO PERFIL) EXECUTADO EM OBRA (POR DEMÃO). AF_01/2020 | D66: M2 | E66: 172.56 | F66: 12.77 | G66: 0.2216 | H66: 15.6 | I66: 2691.94
A67: 7.8 | B67: SINAPI 102220 | C67: PINTURA TINTA DE ACABAMENTO (PIGMENTADA) ESMALTE SINTÉTICO BRILHANTE EM MADEIRA, 2 DEMÃOS. AF_01/2021 | D67: M2 | E67: 242.55 | F67: 13.7 | G67: 0.2216 | H67: 16.74 | I67: 4060.29
A68: 7.9 | B68: SINAPI 88485 | C68: APLICAÇÃO DE FUNDO SELADOR ACRÍLICO EM PAREDES, UMA DEMÃO. AF_06/2014 | D68: M2 | E68: 214.93 | F68: 2.3 | G68: 0.2216 | H68: 2.81 | I68: 603.95
A69: 7.10 | B69: SINAPI 88489 | C69: APLICAÇÃO MANUAL DE PINTURA COM TINTA LÁTEX ACRÍLICA EM PAREDES, DUAS DEMÃOS. AF_06/2014 | D69: M2 | E69: 1765.7 | F69: 14.79 | G69: 0.2216 | H69: 18.07 | I69: 31906.2
A70: 7.11 | B70: SINAPI 88495 | C70: APLICAÇÃO E LIXAMENTO DE MASSA LÁTEX EM PAREDES, UMA DEMÃO. AF_06/2014 | D70: M2 | E70: 384.46 | F70: 11.86 | G70: 0.2216 | H70: 14.49 | I70: 5570.83
A71: 8 | C71: PAVIMENTAÇÕES INTERNAS | I71: =SUM(I72:I80) -> 325733.75
A72: 8.1 | B72: SINAPI 6076 | C72: SAIBRO PARA ARGAMASSA (COLETADO NO COMÉRCIO) | D72: M3 | E72: 107.19 | F72: 60.42 | G72: 0.2216 | H72: 73.81 | I72: =ROUND(E72*H72,2) -> 7911.69
A73: 8.2 | B73: SINAPI 87620 | C73: CONTRAPISO EM ARGAMASSA TRAÇO 1:4 (CIMENTO E AREIA), PREPARO MECÂNICO COM BETONEIRA 400L, APLICADO EM ÁREAS SECAS SOBRE LAJE, ADERIDO, ESPESSURA 2CM. AF_06/2014 | D73: M2 | E73: 975.2 | F73: 27.16 | G73: 0.2216 | H73: 33.18 | I73: =ROUND(E73*H73,2) -> 32357.14
A74: 8.3 | B74: CPUE 106 | C74: CONTRAPISO DE CONCRETO ARMADO, E=6CM | D74: M2 | E74: 214.38 | F74: =CPUE!J461 -> 113.1468 | G74: 0.2216 | H74: 138.22 | I74: 29631.6
A75: 8.4 | B75: SINAPI 87262 | C75: REVESTIMENTO CERÂMICO PARA PISO COM PLACAS TIPO PORCELANATO DE DIMENSÕES 60X60CM APLICADA EM AMBIENTES DE ÁREA ENTRE 5M2 E 10M2. AF_06/2014 | D75: M2 | E75: 451.99 | F75: 137.47 | G75: 0.2216 | H75: =ROUND(F75*(1+G75),2) -> 167.93 | I75: 75902.68
A76: 8.5 | B76: CPUE 114 | C76: PISO DE PORCELANATO TÉCNICO 80X80CM - FORNECIMENTO E INSTALAÇÃO | D76: M2 | E76: 487.82 | F76: =CPUE!J509 -> 151.2552 | G76: 0.2216 | H76: 184.77 | I76: 90134.5
A77: 8.6 | B77: SINAPI 101727 | C77: PISO VINÍLICO SEMI FLEXÍVEL EM PLACAS, PADRÃO LISO, ESPESSURA 3,2MM, FIXADO COM COLA. AF_09/2020 | D77: M2 | E77: 192.91 | F77: 163.23 | G77: 0.2216 | H77: 199.4 | I77: 38466.25
A78: 8.7 | B78: SINAPI 98688 | C78: RODAPÉ EM POLIESTIRENO, ALTURA 5CM. AF_09/2020 | D78: M | E78: 618.22 | F78: 51.14 | G78: 0.2216 | H78: 62.47 | I78: 38620.2
A79: 8.8 | B79: CPUE 113 | C79: SOLEIRA EM BASALTO - FORNECIMENTO E INSTALAÇÃO | D79: M | E79: 32.85 | F79: =CPUE!J501 -> 89.43194 | G79: 0.2216 | H79: 109.25 | I79: 3588.86
A80: 8.9 | B80: CPUE 112 | C80: PEITORIL DE BASALTO EM JANELAS - FORNECIMENTO E INSTALAÇÃO | D80: M | E80: 75.05 | F80: =CPUE!J494 -> 99.483 | G80: 0.2216 | H80: 121.53 | I80: 9120.83
A81: 9 | C81: ROTA ACESSÍVEL | I81: =SUM(I82:I83) -> 1427.09
A82: 9.1 | B82: SINAPI 97634 | C82: DEMOLIÇÃO DE REVESTIMENTO CERÂMICO, DE FORMA MECANIZADA COM MARTELETE, SEM REAPROVEITAMENTO. AF_12/2017 | D82: M2 | E82: 13.5 | F82: 11.22 | G82: 0.2216 | H82: 13.71 | I82: =ROUND(E82*H82,2) -> 185.09
A83: 9.2 | B83: CPUE 107 | C83: PISO PODOTÁTIL ALERTA/DIRECIONAL 40X40CM | D83: M | E83: 30 | F83: =CPUE!J471 -> 33.891953 | G83: 0.2216 | H83: 41.4 | I83: =ROUND(E83*H83,2) -> 1242
A84: 10 | C84: INSTALAÇÕES ELETRICAS | I84: =SUM(I85:I138) -> 495006.49
A85: 10.1 | B85: CPUE 61 | C85: QGBT - ARMÁRIO AUTO PORTANTE COM BASE SOLEIRA E OLHAIS DE IÇAMENTO COM PORTA INTERNA METÁLICA. 1600X700X350, DISJ. GERAL CX. MOLDADA 35KA/380V – 600 A 01PÇ MULTIMEDIDOR DIGITAL DE GRANDEZAS ELETRICAS DISJUNTORES PARCIAIS EM CX. MOLDADA 18KA/380V CFE. PROJETO. COM INSTALAÇÃO. | D85: UNID | E85: 1 | F85: =CPUE!J184 -> 28130.6 | G85: 0.2216 | H85: 34364.34 | I85: =ROUND(E85*H85,2) -> 34364.34
A86: 10.2 | B86: CPUE 63 | C86: CD-Q2 - QUADRO DE FORÇA DE SOBREPOR MONTADO EM CAIXA DE COMANDO COM DIMENSÕES MÍNIMAS DE 1800X500X150MM, 66 LUGARES. COM INSTALAÇÃO. | D86: UNID | E86: 1 | F86: =CPUE!J196 -> 5570.01 | G86: 0.2216 | H86: 6804.32 | I86: =ROUND(E86*H86,2) -> 6804.32
A87: 10.3 | B87: CPUE 64 | C87: CD-Q3 - QUADRO DE FORÇA DE SOBREPOR MONTADO EM CAIXA DE COMANDO COM DIMENSÕES MÍNIMAS DE 1800X500X150MM, 66 LUGARES. COM INSTALAÇÃO. | D87: UNID | E87: 1 | F87: =CPUE!J202 -> 5414.06 | G87: 0.2216 | H87: 6613.82 | I87: 6613.82
A88: 10.4 | B88: CPUE 67 | C88: QF EMERGENCIA - QUADRO DE FORÇA DE SOBREPOR MONTADO EM CAIXA DE COMANDO COM DIMENSÕES MÍNIMAS DE 800X500X150MM. COM INSTALAÇÃO. | D88: UNID | E88: 1 | F88: =CPUE!J220 -> 3246.79 | G88: 0.2216 | H88: 3966.28 | I88: 3966.28
A89: 10.5 | B89: SINAPI 92992 | C89: CABO DE COBRE FLEXÍVEL ISOLADO, 95MM2, ANTI-CHAMA 0,6/1,0kV, PARA DISTRIBUIÇÃO - FORNECIMENTO E INSTALAÇÃO. AF_12/2015 | D89: M | E89: 440 | F89: 101.54 | G89: 0.2216 | H89: 124.04 | I89: 54577.6
A90: 10.6 | B90: SINAPI 92988 | C90: CABO DE COBRE FLEXÍVEL ISOLADO, 50MM2, ANTI-CHAMA 0,6/1,0kV, PARA DISTRIBUIÇÃO - FORNECIMENTO E INSTALAÇÃO. AF_12/2015 | D90: M | E90: 110 | F90: 55.84 | G90: 0.2216 | H90: 68.21 | I90: 7503.1
A91: 10.7 | B91: SINAPI 92986 | C91: CABO DE COBRE FLEXÍVEL ISOLADO, 35MM2, ANTI-CHAMA 0,6/1,0kV, PARA DISTRIBUIÇÃO - FORNECIMENTO E INSTALAÇÃO. AF_12/2015 | D91: M | E91: 280 | F91: 39.65 | G91: 0.2216 | H91: 48.44 | I91: 13563.2
A92: 10.8 | B92: SINAPI 92984 | C92: CABO DE COBRE FLEXÍVEL ISOLADO, 25MM2, ANTI-CHAMA 0,6/1,0kV, PARA DISTRIBUIÇÃO - FORNECIMENTO E INSTALAÇÃO. AF_12/2015 | D92: M | E92: 620 | F92: 29.19 | G92: 0.2216 | H92: 35.66 | I92: 22109.2
A93: 10.9 | B93: SINAPI 92982 | C93: CABO DE COBRE FLEXÍVEL ISOLADO, 16MM2, ANTI-CHAMA 0,6/1,0kV, PARA DISTRIBUIÇÃO - FORNECIMENTO E INSTALAÇÃO. AF_12/2015 | D93: M | E93: 250 | F93: 18.28 | G93: 0.2216 | H93: 22.33 | I93: 5582.5
A94: 10.10 | B94: SINAPI 92980 | C94: CABO DE COBRE FLEXÍVEL ISOLADO, 10MM2, ANTI-CHAMA 0,6/1,0kV, PARA DISTRIBUIÇÃO - FORNECIMENTO E INSTALAÇÃO. AF_12/2015 | D94: M | E94: 720 | F94: 11.94 | G94: 0.2216 | H94: 14.59 | I94: 10504.8
A95: 10.11 | B95: CPUE 43 | C95: LUMINÁRIA DE EMBUTIR - COMPLETA COM QUATRO LÂMPADAS TUBULARES LED T8 (4x9 - 10W), INSTALAÇÃO EM FORRO COM MODELAÇÃO DE 625X625MM, COM REFLETOR PARABÓLICO E ALETAS DE ALUMÍNIO ANODIZADO BRILHANTE DE ALTA REFLETÂNCIA E ALTA PUREZA 99,85%. SOQUETE TIPO PUSH-IN G-13 DE ENGATE RÁPIDO, ROTOR DE SEGURANÇA EM POLICARBONATO E CONTATOS EM BRONZE FOSFOROSO, COMPLETA. CERTIFICAÇÃO CE, GARANTIA MÍNIMA DE 2 ANOS | D95: UNID | E95: 150 | F95: =CPUE!J65 -> 452.7 | G95: 0.2216 | H95: 553.02 | I95: 82953
A96: 10.12 | B96: SINAPI 97585 | C96: LUMINÁRIA TIPO CALHA, DE SOBREPOR, COM 2 LÂMPADAS TUBULARES FLUORESCENTES DE 18W, COM REATOR DE PARTIDA RÁPIDA - FORNECIMENTO E INSTALAÇÃO. AF_02/2020 | D96: UNID | E96: 23 | F96: 145.29 | G96: 0.2216 | H96: 177.49 | I96: 4082.27
A97: 10.13 | B97: CPUE 44 | C97: LUMINÁRIA DE SOBREPOR - COMPLETA COM DUAS LÂMPADAS TUBULARES LED T8 (2X9W), INSTALAÇÃO EM FORRO DE GESSO, COM REFLETOR PARABÓLICO E ALETAS DE ALUMÍNIO ANODIZADO BRILHANTE DE ALTA REFLETÂNCIA E ALTA PUREZA 99,85%. SOQUE TIPO PUSH-IN G-13 DE ENGATE RÁPIDO, ROTOR DE SEGURANÇA EM POLICARBONATO E CONTATOS EM BRONZE FOSFOROSO. COMPLETA. CERTIFICAÇÃO CE. GARANTIA MÍNIMA 2 ANOS. | D97: UNID | E97: 1 | F97: =CPUE!J72 -> 176.91 | G97: 0.2216 | H97: 216.11 | I97: 216.11
A98: 10.14 | B98: CPUE 45 | C98: Luminária arandela de Sobrepor - Lâmpada led 18 W | D98: UNID | E98: 19 | F98: =CPUE!J79 -> 140.24 | G98: 0.2216 | H98: 171.32 | I98: 3255.08
A99: 10.15 | B99: SINAPI 97595 | C99: SENSOR DE PRESENÇA COM FOTOCÉLULA, FIXAÇÃO EM PAREDE - FORNECIMENTO E INSTALAÇÃO. AF_02/2020 | D99: UNID | E99: 2 | F99: 124.76 | G99: 0.2216 | H99: 152.41 | I99: 304.82
A100: 10.16 | B100: CPUE 71 | C100: MÓDULO AUTÔNOMO DE ILUMINAÇÃO DE EMERGÊNCIA COM DIFUSOR LEITOSO, 500 LÚMENS, 115/220V, COM 80 LED'S. ALTO BRILHO, BATERIA 6V, 4,5Ah, AUTONOMIA DE 8 HORAS, GABINETE EM METAL, PINTURA EPÓXI. REF. TECHNOMASTER LM 0180 OU EQUIVALENTE | D100: UNID | E100: 23 | F100: =CPUE!J238 -> 150.92 | G100: 0.2216 | H100: 184.36 | I100: 4240.28
A101: 10.17 | B101: CPUE 72 | C101: MÓDULO AUTÔNOMO DE EMERGÊNCIA (127/220V) COM 2 FAROLETES DE 32 LED'S CADA, COM BATERIA 12V - 7A COM AUTONOMIA DE 32 HORAS COM SUPORTE METÁLICO PARA FIXAÇÃO DA BATERIA. REF. TECHNOMASTER UN0232 OU EQUIVALENTE | D101: UNID | E101: 1 | F101: =CPUE!J244 -> 232.62 | G101: 0.2216 | H101: 284.17 | I101: 284.17
A102: 10.18 | B102: SINAPI 91953 | C102: INTERRUPTOR SIMPLES (1 MÓDULO), 10A//250V, INCLUINDO SUPORTE E PLACA - FORNECIMENTO E INSTALAÇÃO. AF_12/2015 | D102: UNID | E102: 14 | F102: 24.2 | G102: 0.2216 | H102: 29.56 | I102: 413.84
A103: 10.19 | B103: SINAPI 91959 | C103: INTERRUPTOR SIMPLES (2 MÓDULOS), 10A/250V, INCLUINDO SUPORTE E PLACA. FORNECIMENTO E INSTALAÇÃO. AF_12/2015 | D103: UNID | E103: 16 | F103: 38.32 | G103: 0.2216 | H103: 46.81 | I103: 748.96
A104: 10.20 | B104: SINAPI 91967 | C104: INTERRUPTOR SIMPLES (3 MÓDULOS), 10A/250V, INCLUINDO SUPORTE E PLACA. FORNECIMENTO E INSTALAÇÃO. AF_12/2015 | D104: UNID | E104: 9 | F104: 52.46 | G104: 0.2216 | H104: 64.09 | I104: 576.81
A105: 10.21 | B105: SINAPI 91981 | C105: INTERRUPTOR BIPOLAR, (1 MÓDULO), 10A/250V, INCLUINDO SUPORTE E PLACA. FORNECIMENTO E INSTALAÇÃO. AF_09/2017 | D105: UNID | E105: 10 | F105: 42.68 | G105: 0.2216 | H105: 52.14 | I105: 521.4
A106: 10.22 | B106: SINAPI 91979 | C106: INTERRUPTOR INTERMEDIÁRIO (1 MÓDULO), 10A/250V, INCLUINDO SUPORTE E PLACA. FORNECIMENTO E INSTALAÇÃO. AF_09/2017 | D106: UNID | E106: 1 | F106: 43.98 | G106: 0.2216 | H106: 53.73 | I106: 53.73
A107: 10.23 | B107: SINAPI 91992 | C107: TOMADA ALTA DE EMBUTIR (1 MÓDULO), 2P+T 10A, INCLUINDO SUPORTE E PLACA. FORNECIMENTO E INSTALAÇÃO. AF_12/2015 | D107: UNID | E107: 23 | F107: 36.34 | G107: 0.2216 | H107: 44.39 | I107: 1020.97
A108: 10.24 | B108: SINAPI 92004 | C108: TOMADA MÉDIA DE EMBUTIR (2 MÓDULOS), 2P+T 10A, INCLUINDO SUPORTE E PLACA. FORNECIMENTO E INSTALAÇÃO. AF_12/2015 | D108: UNID | E108: 56 | F108: 47.14 | G108: 0.2216 | H108: 57.59 | I108: 3225.04
A109: 10.25 | B109: SINAPI 92005 | C109: TOMADA MÉDIA DE EMBUTIR (2 MÓDULOS), 2P+T 20A, INCLUINDO SUPORTE E PLACA. FORNECIMENTO E INSTALAÇÃO. AF_12/2015 | D109: UNID | E109: 23 | F109: 51.82 | G109: 0.2216 | H109: 63.3 | I109: 1455.9
A110: 10.26 | B110: CPUE 47 | C110: CABO DE COBRE PP CORDPLAST 3X1,5MM2 HF (NÃO HALOGENADO), 70ºC 450/750V. REF. AFITOX, AFUMEX OU EQUIVALENTE. (LIGAÇÃO PGDM, INTERFONE, FECHO SAA, ILUM. PÓRTICO, LIGAÇÃO LUMINÁRIAS, TOTEM, CUBO, SENSOR PRESENÇA) | D110: M | E110: 97 | F110: =CPUE!J85 -> 8.4459 | G110: 0.2216 | H110: 10.32 | I110: 1001.04
A111: 10.27 | B111: CPUE 110 | C111: CONJUNTO PLUGS MACHO/FÊMEA 2P+T 10A/250V NBR 14136 (LIGAÇÃO LUMINÁRIAS) | D111: CJ | E111: 193 | F111: =CPUE!J477 -> 18.785 | G111: 0.2216 | H111: 22.95 | I111: 4429.35
A112: 10.28 | B112: SINAPI 91926 | C112: CABO DE COBRE FLEXÍVEL ISOLADO 2,5MM2, ANTI-CHAMA 450/750V, PARA CIRCUITOS TERMINAIS - FORNECIMENTO E INSTALAÇÃO. AF_12/2015 | D112: M | E112: 1920 | F112: 4.1 | G112: 0.2216 | H112: 5.01 | I112: 9619.2
A113: 10.29 | B113: SINAPI 91928 | C113: CABO DE COBRE FLEXÍVEL ISOLADO 4MM2, ANTI-CHAMA 450/750V, PARA CIRCUITOS TERMINAIS - FORNECIMENTO E INSTALAÇÃO. AF_12/2015 | D113: M | E113: 160 | F113: 6.79 | G113: 0.2216 | H113: 8.29 | I113: 1326.4
A114: 10.30 | B114: SINAPI 95745 | C114: ELETRODUTO DE AÇO GALVANIZADO, CLASSE LEVE, DN 20MM (3/4"), APARENTE, INSTALADO EM TETO - FORNECIMENTO E INSTALAÇÃO. AF_11/2016_P | D114: M | E114: 150 | F114: 33.65 | G114: 0.2216 | H114: 41.11 | I114: 6166.5
A115: 10.31 | B115: SINAPI 95746 | C115: ELETRODUTO DE AÇO GALVANIZADO, CLASSE LEVE, DN 25MM (1"), APARENTE, INSTALADO EM TETO - FORNECIMENTO E INSTALAÇÃO. AF_11/2016_P | D115: M | E115: 560 | F115: 42.43 | G115: 0.2216 | H115: 51.83 | I115: 29024.8
A116: 10.32 | B116: CPUE 111 | C116: ELETRODUTO DE AÇO GALVANIZADO, CLASSE SEMI PESADO, DN 50MM - FORNECIMENTO E INSTALAÇÃO | D116: M | E116: 90 | F116: =CPUE!J485 -> 89.099915 | G116: 0.2216 | H116: 108.84 | I116: 9795.6
A117: 10.33 | B117: CPUE 73 | C117: BARRAMENTO DE EQUIPOTENCIALIZAÇÃO | D117: UNID | E117: 1 | F117: =CPUE!J250 -> 41.126 | G117: 0.2216 | H117: 50.24 | I117: 50.24
A118: 10.34 | B118: SINAPI 96977 | C118: CORDOALHA DE COBRE NU, 50MM2, ENTERRADA, SEM ISOLADOR - FORNECIMENTO E INSTALAÇÃO. AF_12/2017 | D118: M | E118: 30 | F118: 55.27 | G118: 0.2216 | H118: 67.52 | I118: 2025.6
A119: 10.35 | B119: SINAPI 96986 | C119: HASTE DE ATERRAMENTO 3/4 PARA SPDA -FORNECIMENTO E INSTALAÇÃO. AF_12/2017 | D119: UNID | E119: 3 | F119: 140.49 | G119: 0.2216 | H119: 171.62 | I119: 514.86
A120: 10.36 | B120: ORSE 00764 | C120: Fornecimento e instalação de eletrocalha perfurada 300x100x3000mm | D120: M | E120: 170 | F120: 120.24 | G120: 0.2216 | H120: 146.89 | I120: 24971.3
A121: 10.37 | B121: ORSE 12804 | C121: Tampa de encaixe 300x3000mm, zincada, para eletrocalha metálica | D121: UNID | E121: 57 | F121: 127.74 | G121: 0.2216 | H121: 156.05 | I121: 8894.85
A122: 10.38 | B122: ORSE 09525 | C122: Suporte horizontal 300x100mm para fixação de eletrocalha metálica | D122: UNID | E122: 170 | F122: 13.19 | G122: 0.2216 | H122: 16.11 | I122: 2738.7
A123: 10.39 | B123: ORSE 11923 | C123: Fornecimento e instalação de curva vertical em PVC, para eletrocalha, 300x100mm | D123: UNID | E123: 8 | F123: 124.31 | G123: 0.2216 | H123: 151.86 | I123: 1214.88
A124: 10.40 | B124: ORSE 12803 | C124: Emenda interna 300 x 100 mm com base lisa perfurada para eletrocalha metálica (ref. Mopa ou similar) | D124: UNID | E124: 169 | F124: 24.64 | G124: 0.2216 | H124: 30.1 | I124: 5086.9
A125: 10.41 | B125: CPUE 74 | C125: Perfilado 38x38mm chapa #18 | D125: M | E125: 440 | F125: =CPUE!J256 -> 35.032 | G125: 0.2216 | H125: 42.8 | I125: 18832
A126: 10.42 | B126: CPUE 75 | C126: Suporte longo para perfilado 38x38MM | D126: UNID | E126: 440 | F126: =CPUE!J265 -> 1.54504 | G126: 0.2216 | H126: 1.89 | I126: 831.6
A127: 10.43 | B127: CPUE 76 | C127: Vergalhão rosca total 1/4" | D127: M | E127: 450 | F127: =CPUE!J272 -> 20.2325 | G127: 0.2216 | H127: 24.72 | I127: 11124
A128: 10.44 | B128: CPUE 77 | C128: Chumbador rosca interna 1/4" | D128: UNID | E128: 225 | F128: =CPUE!J278 -> 28.375 | G128: 0.2216 | H128: 34.66 | I128: 7798.5
A129: 10.45 | B129: CPUE 78 | C129: TRANSFORMADOR TRIFÁSICO A SECO, PN=225KVA, CLASSE 15KV - BT 220/127V - 60HZ, IP00. | D129: UNID | E129: 1 | F129: =CPUE!J285 -> 27905.02825 | G129: 0.2216 | H129: 34088.78 | I129: 34088.78
A130: 10.46 | B130: CPUE 79 | C130: CABO DE COBRE UNIPOLAR #35MM² BLINDADO, ISOLAÇÃO 12/20KV EPR - COBERTURA EM PVC | D130: M | E130: 300 | F130: =CPUE!J292 -> 104.13876 | G130: 0.2216 | H130: 127.22 | I130: 38166
A131: 10.47 | B131: CPUE 91 | C131: TERMINAÇÃO TERMOCONTRÁTIL PARA CABO 35MM2, CLASSE 15kV (PARA USO EXTERNO) | D131: UNID | E131: 3 | F131: =CPUE!J365 -> 260.185 | G131: 0.2216 | H131: 317.84 | I131: 953.52
A132: 10.48 | B132: CPUE 85 | C132: TERMINAÇÃO TERMOCONTRÁTIL PARA CABO 35MM2, CLASSE 15kV (PARA USO INTERNO) | D132: UNID | E132: 3 | F132: =CPUE!J329 -> 259.975 | G132: 0.2216 | H132: 317.59 | I132: 952.77
A133: 10.49 | B133: CPUE 50 | C133: SECCIONADORA TRIPOLAR SECA 15KV-400A-TSI 95KV-COMANDO POR PUNHO | D133: UNID | E133: 1 | F133: =CPUE!J97 -> 1381.91 | G133: 0.2216 | H133: 1688.14 | I133: 1688.14
A134: 10.50 | B134: CPUE 49 | C134: SECCIONADORA TRIPOLAR FUSÍVEL 15KV-400A-TSI95KV-COMANDO POR PUNHO ABERTURA MÍNIMA 18CM-RUPTURA MÌNIMA 30KA-COM FUSÍVEL HH ABERTURA SOB CARGA | D134: UNID | E134: 1 | F134: =CPUE!J91 -> 2878.725 | G134: 0.2216 | H134: 3516.65 | I134: 3516.65
A135: 10.51 | B135: CPUE 80 | C135: PUNHO DE ACIONAMENTO DA SECCIONADORA C/ MICROINTERRUPTOR DO INTERTRAVAMENTO ELÉTRICO, DIRETAMENTE ATERRADO | D135: UNID | E135: 1 | F135: =CPUE!J298 -> 331.1 | G135: 0.2216 | H135: 404.47 | I135: 404.47
A136: 10.52 | B136: SINAPI 37558 | C136: PLACA DE SINALIZAÇÃO DE SEGURANÇA CONTRA INCÊNDIO, FOTOLUMINISCENTE, RETANGULAR, 20X40CM EM PVC 2MM, ANTI-CHAMAS (SÍMBOLOS, CORES E PICTOGRAMAS CONFORME NBR 13434) | D136: UNID | E136: 3 | F136: 37.25 | G136: 0.2216 | H136: 45.5 | I136: 136.5
A137: 10.53 | B137: CPUE 81 | C137: QUADRO COM DIAGRAMA UNIFILAR DA SUBESTAÇÃO | D137: UNID | E137: 1 | F137: =CPUE!J303 -> 537.54 | G137: 0.2216 | H137: 656.66 | I137: 656.66
A138: 10.54 | B138: SINAPI 4796 | C138: PISO DE BORRACHA FRISADO OU PASTILHADO, PRETO, EM PLACAS DE 50X50CM, E=7MM, PARA ARGAMASSA | D138: M2 | E138: 0.25 | F138: 180.55 | G138: 0.2216 | H138: 220.56 | I138: 55.14
A139: 11 | C139: INSTALAÇÕES HIDROSSANITÁRIAS | I139: =SUM(I140:I215) -> 240492.54
